Workbook

Sheet Instrucciones
B3: CALIFICACIÓN DE LAS COMPETENCIAS CLAVE Y DE LAS MATERIAS 4º_ESO_Diversificación
B6: INSTRUCCIONES 1. INCORPORAR LOS CRITERIOS DE CALIFICACIÓN DE LAS COMPETENCIAS CLAVE BOTÓN: "INCORPORAR LOS CRITERIOS DE CALIFICACIÓN DE LAS COMPETENCIAS CLAVE." Para introducir los criterios de calificación de las competencias clave hay que seleccionar una opción en cada uno de los siguientes campos: -Pesos de los criterios de evaluación en el cálculo de la calificación de los descriptores operativos. -Pesos de los descriptores operativos en el cálculo de la calificación de las competencias clave. Si se considera, se puede bloquear la información introducida pulsado en el botón "PROTEGIDA" e introduciendo una contaseña. En caso de querer desbloquear la página se debe pulsar en el botón "DESPROTEGIDA" e introducir la contraseña marcada. 2. INCORPORAR EL NOMBRE DE LOS ALUMNOS QUE COMPONEN EL GRUPO. BOTÓN: "INCORPORAR EL LISTADO DE ALUMNOS" Introducir el nombre de todos los alumnos que componen el grupo-clase. Marcar las materias de opción que cursa cada alumno. Pulsando sobre el botón "informe" en cada alumnno se visualiza de forma individualizada la composición de las calificaciones de las materias y de las competencias clave a partir de las notas de los criterios de evaluación. Además, se incorporan dos botones para facilitar el trabajo colaborativo a través de TEAMS o Onedrive. El procedimiento es el siguiente: 1º Se pulsa el botón superior de esta sección TEAMS/Onedrive; 2º Una vez guardado el archivo, se comparte con las citadas aplicaciones; 3º Los docentes incorporan las céntésimas de redondeo de su materia en la pestaña "Redondeo" y las notas de los criterios de evaluación en la pestaña correspondiente a su materia; 4º Se descarga el archivo y se pulsa en el segundo botón de esta sección TEAMS/Onedrive para normalizar su funcionamiento y poder visualizar toda la información que esta herramienta ofrece. 3. INCORPORAR LAS CALIFICACIONES DE LOS CRITERIOS DE EVALUACIÓN DE LAS MATERIAS CURSADAS POR EL ALUMNO. BOTÓN: "INCORPORAR LA CALIFICACIÓN POR MATERIAS DE LOS CRITERIOS DE EVALUACIÓN " Seleccionar la materia. En la pestaña de destino introducir los pesos (ponderaciones) de cada criterio de evaluación (es decir, los criterios de calificación de la materia) y las calificaciones de los criterios de evaluación para los alumnos que cursen la materia o, en su caso, la calificación de la materia. 4. OBSERVAR LAS NOTAS DE LAS COMPETENCIAS CLAVE DE LOS ALUMNOS. BOTÓN: "VISUALIZAR LAS NOTAS DE LAS COMPETENCIAS CLAVE" Permite observar las notas de las competencias clave de cada alumno en función de los criterios de calificación de las competencias clave introducidos. Además, desde la pantalla de destino se puede generar un documento para exportar las notas de las competencias clave a STILUS. Para ello, previamente es necesario introducir las centésimas de redondeo de las notas de las competencias clave en la celda creada al efecto. 5. OBSERVAR LAS NOTAS DE LAS MATERIAS DE LOS ALUMNOS. BOTÓN: "VISUALIZAR LAS NOTAS DE LAS MATERIAS" Permite observar las notas de las materias de cada alumno, en función de los criterios de calificación de la materia introducidos. Además, desde la pantalla de destino se puede generar un documento para exportar las notas de las materias a STILUS.

Sheet Criterios de calificacion CClav
D4: CRITERIOS DE CALIFICACIÓN DE LAS COMPETENCIAS CLAVE
D6: Pesos de los criterios de evaluación en el cálculo de la calificación de los descriptores operativos
E8: MEDIA SIMPLE. Se aplica un criterio común para el cálculo de la calificación de todos los descriptores. Todos los criterios de evaluación pesan (ponderan) los mismo en la calificación de los descriptores operativos.
E10: MEDIA PONDERADA POR CARGA HORARIA. Se aplica un criterio común para el cálculo de la calificación de todos los descriptores. El peso de los criterios de evaluación se determina en función de la carga horaria de la materia. (RECOMENDADO)
E12: LIBRE. Se aplica un criterio común para el cálculo de la calificación de todos los descriptores. El peso de cada criterio de evaluación en la calificación de los descriptores se determina por el centro.
E14: LIBRE DIFERENCIADO POR DESCRIPTORES. Se aplica un criterio diferenciado para el cálculo de la calificación de cada descriptor. El peso de cada criterio de evaluación en la calificación de cada descriptor se determina por el centro.
D16: Pesos de los descriptores operativos en el cálculo de la calificación de las competencias clave
E18: MEDIA PONDERADA. El peso de los descriptores operativos en el cálculo de la calificación de la competencia clave se determina en proporción al número de vinculaciones de cada descriptor operativo con los criterios de evaluación (RECOMENDADO)
E20: LIBRE. El peso (ponderación) de los descriptores operativos en el cálculo de la calificación de la competencia clave se determina por el centro.
I873: =#REF! ->  | L873: =#REF! ->  | O873: =#REF! ->  | R873: =#REF! ->  | U873: =#REF! ->  | X873: =#REF! ->  | AA873: =#REF! ->  | AD873: =#REF! ->  | AG873: =#REF! ->  | AJ873: =#REF! ->  | AM873: =#REF! ->  | AP873: =#REF! ->  | AS873: =#REF! ->  | AV873: =#REF! ->  | AY873: =#REF! ->  | BB873: =#REF! ->  | BE873: =#REF! ->  | BH873: =#REF! ->  | BK873: =#REF! ->  | BN873: =#REF! ->  | BQ873: =#REF! ->  | BT873: =#REF! ->  | BW873: =#REF! ->  | BZ873: =#REF! ->  | CC873: =#REF! ->  | CF873: =#REF! ->  | CI873: =#REF! ->  | CL873: =#REF! ->  | CO873: =#REF! ->  | CR873: =#REF! ->  | CU873: =#REF! ->  | CX873: =#REF! ->  | DA873: =#REF! ->  | DD873: =#REF! -> 
I885: =#REF! ->  | L885: =#REF! ->  | O885: =#REF! ->  | R885: =#REF! ->  | U885: =#REF! ->  | X885: =#REF! ->  | AA885: =#REF! ->  | AD885: =#REF! ->  | AG885: =#REF! ->  | AJ885: =#REF! ->  | AM885: =#REF! ->  | AP885: =#REF! ->  | AS885: =#REF! ->  | AV885: =#REF! ->  | AY885: =#REF! ->  | BB885: =#REF! ->  | BE885: =#REF! ->  | BH885: =#REF! ->  | BK885: =#REF! ->  | BN885: =#REF! ->  | BQ885: =#REF! ->  | BT885: =#REF! ->  | BW885: =#REF! ->  | BZ885: =#REF! ->  | CC885: =#REF! ->  | CF885: =#REF! ->  | CI885: =#REF! ->  | CL885: =#REF! ->  | CO885: =#REF! ->  | CR885: =#REF! ->  | CU885: =#REF! ->  | CX885: =#REF! ->  | DA885: =#REF! ->  | DD885: =#REF! -> 

Sheet Peso criterios carga horaria
F4: PESO TODOS
B5: Ámbito científico-tecnológico | C5: Comp. Esp. 1 | D5: Criterio Evaluación 1.1 | F5: 8
D6: Criterio Evaluación 1.2 | F6: 8
D7: Criterio Evaluación 1.3 | F7: 8
C8: Comp. Esp. 2 | D8: Criterio Evaluación 2.1 | F8: 8
D9: Criterio Evaluación 2.2 | F9: 8
D10: Criterio Evaluación 2.3 | F10: 8
D11: Criterio Evaluación 2.4 | F11: 8
C12: Comp. Esp. 3 | D12: Criterio Evaluación 3.1 | F12: 8
D13: Criterio Evaluación 3.2 | F13: 8
D14: Criterio Evaluación 3.3 | F14: 8
D15: Criterio Evaluación 3.4 | F15: 8
D16: Criterio Evaluación 3.5 | F16: 8
C17: Comp. Esp. 4 | D17: Criterio Evaluación 4.1 | F17: 8
D18: Criterio Evaluación 4.2 | F18: 8
C19: Comp. Esp. 5 | D19: Criterio Evaluación 5.1 | F19: 8
D20: Criterio Evaluación 5.2 | F20: 8
D21: Criterio Evaluación 5.3 | F21: 8
C22: Comp. Esp. 6 | D22: Criterio Evaluación 6.1 | F22: 8
D23: Criterio Evaluación 6.2 | F23: 8
D24: Criterio Evaluación 6.3 | F24: 8
D25: Criterio Evaluación 6.4 | F25: 8
C26: Comp. Esp. 7 | D26: Criterio Evaluación 7.1 | F26: 8
D27: Criterio Evaluación 7.2 | F27: 8
B28: Ámbito lingüístico y social | C28: Comp. Esp. 1 | D28: Criterio Evaluación 1.1 | F28: 7
D29: Criterio Evaluación 1.2 | F29: 7
C30: Comp. Esp. 2 | D30: Criterio Evaluación 2.1 | F30: 7
D31: Criterio Evaluación 2.2 | F31: 7
D32: Criterio Evaluación 2.3 | F32: 7
D33: Criterio Evaluación 2.4 | F33: 7
C34: Comp. Esp. 3 | D34: Criterio Evaluación 3.1 | F34: 7
D35: Criterio Evaluación 3.2 | F35: 7
D36: Criterio Evaluación 3.3 | F36: 7
C37: Comp. Esp. 4 | D37: Criterio Evaluación 4.1 | F37: 7
D38: Criterio Evaluación 4.2 | F38: 7
C39: Comp. Esp. 5 | D39: Criterio Evaluación 5.1 | F39: 7
D40: Criterio Evaluación 5.2 | F40: 7
D41: Criterio Evaluación 5.3 | F41: 7
C42: Comp. Esp. 6 | D42: Criterio Evaluación 6.1 | F42: 7
D43: Criterio Evaluación 6.2 | F43: 7
C44: Comp. Esp. 7 | D44: Criterio Evaluación 7.1 | F44: 7
D45: Criterio Evaluación 7.2 | F45: 7
D46: Criterio Evaluación 7.3 | F46: 7
B47: Ámbito práctico | C47: Comp. Esp. 1 | D47: Criterio Evaluación 1.1 | F47: 2
D48: Criterio Evaluación 1.2 | F48: 2
D49: Criterio Evaluación 1.3 | F49: 2
C50: Comp. Esp. 2 | D50: Criterio Evaluación 2.1 | F50: 2
D51: Criterio Evaluación 2.2 | F51: 2
D52: Criterio Evaluación 2.3 | F52: 2
D53: Criterio Evaluación 2.4 | F53: 2
C54: Comp. Esp. 3 | D54: Criterio Evaluación 3.1 | F54: 2
D55: Criterio Evaluación 3.2 | F55: 2
C56: Comp. Esp. 4 | D56: Criterio Evaluación 4.1 | F56: 2
D57: Criterio Evaluación 4.2 | F57: 2
D58: Criterio Evaluación 4.3 | F58: 2
C59: Comp. Esp. 5 | D59: Criterio Evaluación 5.1 | F59: 2
D60: Criterio Evaluación 5.2 | F60: 2
D61: Criterio Evaluación 5.3 | F61: 2
D62: Criterio Evaluación 5.4 | F62: 2
C63: Comp. Esp. 6 | D63: Criterio Evaluación 6.1 | F63: 2
D64: Criterio Evaluación 6.2 | F64: 2
D65: Criterio Evaluación 6.3 | F65: 2
D66: Criterio Evaluación 6.4 | F66: 2
C67: Comp. Esp. 7 | D67: Criterio Evaluación 7.1 | F67: 2
D68: Criterio Evaluación 7.2 | F68: 2
D69: Criterio Evaluación 7.3 | F69: 2
D70: Criterio Evaluación 7.4 | F70: 2
C71: Comp. Esp. 8 | D71: Criterio Evaluación 8.1 | F71: 2
D72: Criterio Evaluación 8.2 | F72: 2
D73: Criterio Evaluación 8.3 | F73: 2
B74: Conocimiento de las Matemáticas | C74: Comp. Esp. 1 | D74: Criterio Evaluación 1.1 | F74: 2
D75: Criterio Evaluación 1.2 | F75: 2
D76: Criterio Evaluación 1.3 | F76: 2
C77: Comp. Esp. 2 | D77: Criterio Evaluación 2.1 | F77: 2
C78: Comp. Esp. 3 | D78: Criterio Evaluación 3.1 | F78: 2
D79: Criterio Evaluación 3.2 | F79: 2
D80: Criterio Evaluación 3.3 | F80: 2
C81: Comp. Esp. 4 | D81: Criterio Evaluación 4.1 | F81: 2
D82: Criterio Evaluación 4.2 | F82: 2
D83: Criterio Evaluación 4.3 | F83: 2
C84: Comp. Esp. 5 | D84: Criterio Evaluación 5.1 | F84: 2
D85: Criterio Evaluación 5.2 | F85: 2
D86: Criterio Evaluación 5.3 | F86: 2
D87: Criterio Evaluación 5.4 | F87: 2
B88: Conocimiento del Lenguaje | C88: Comp. Esp. 1 | D88: Criterio Evaluación 1.1 | F88: 2
D89: Criterio Evaluación 1.2 | F89: 2
C90: Comp. Esp. 2 | D90: Criterio Evaluación 2.1 | F90: 2
D91: Criterio Evaluación 2.2 | F91: 2
C92: Comp. Esp. 3 | D92: Criterio Evaluación 3.1 | F92: 2
D93: Criterio Evaluación 3.2 | F93: 2
D94: Criterio Evaluación 3.3 | F94: 2
D95: Criterio Evaluación 3.4 | F95: 2
C96: Comp. Esp. 4 | D96: Criterio Evaluación 4.1 | F96: 2
C97: Comp. Esp. 5 | D97: Criterio Evaluación 5.1 | F97: 2
D98: Criterio Evaluación 5.2 | F98: 2
C99: Comp. Esp. 6 | D99: Criterio Evaluación 6.1 | F99: 2
D100: Criterio Evaluación 6.2 | F100: 2
B101: Educación Física | C101: Comp. Esp. 1 | D101: Criterio Evaluación 1.1 | F101: 2
D102: Criterio Evaluación 1.2 | F102: 2
D103: Criterio Evaluación 1.3 | F103: 2
D104: Criterio Evaluación 1.4 | F104: 2
D105: Criterio Evaluación 1.5 | F105: 2
D106: Criterio Evaluación 1.6 | F106: 2
D107: Criterio Evaluación 1.7 | F107: 2
D108: Criterio Evaluación 1.8 | F108: 2
D109: Criterio Evaluación 1.9 | F109: 2
C110: Comp. Esp. 2 | D110: Criterio Evaluación 2.1 | F110: 2
D111: Criterio Evaluación 2.2 | F111: 2
D112: Criterio Evaluación 2.3 | F112: 2
D113: Criterio Evaluación 2.4 | F113: 2
C114: Comp. Esp. 3 | D114: Criterio Evaluación 3.1 | F114: 2
D115: Criterio Evaluación 3.2 | F115: 2
D116: Criterio Evaluación 3.3 | F116: 2
C117: Comp. Esp. 4 | D117: Criterio Evaluación 4.1 | F117: 2
D118: Criterio Evaluación 4.2 | F118: 2
D119: Criterio Evaluación 4.3 | F119: 2
C120: Comp. Esp. 5 | D120: Criterio Evaluación 5.1 | F120: 2
D121: Criterio Evaluación 5.2 | F121: 2
B122: Expresión Artística | C122: Comp. Esp. 1 | D122: Criterio Evaluación 1.1 | F122: 2
D123: Criterio Evaluación 1.2 | F123: 2
D124: Criterio Evaluación 1.3 | F124: 2
C125: Comp. Esp. 2 | D125: Criterio Evaluación 2.1 | F125: 2
D126: Criterio Evaluación 2.2 | F126: 2
D127: Criterio Evaluación 2.3 | F127: 2
C128: Comp. Esp. 3 | D128: Criterio Evaluación 3.1 | F128: 2
D129: Criterio Evaluación 3.2 | F129: 2
C130: Comp. Esp. 4 | D130: Criterio Evaluación 4.1 | F130: 2
D131: Criterio Evaluación 4.2 | F131: 2
D132: Criterio Evaluación 4.3 | F132: 2
D133: Criterio Evaluación 4.4 | F133: 2
B134: Formación y orientación personal y profesional | C134: Comp. Esp. 1 | D134: Criterio Evaluación 1.1 | F134: 2
D135: Criterio Evaluación 1.2 | F135: 2
D136: Criterio Evaluación 1.3 | F136: 2
D137: Criterio Evaluación 1.4 | F137: 2
D138: Criterio Evaluación 1.5 | F138: 2
D139: Criterio Evaluación 1.6 | F139: 2
D140: Criterio Evaluación 1.7 | F140: 2
C141: Comp. Esp. 2 | D141: Criterio Evaluación 2.1 | F141: 2
D142: Criterio Evaluación 2.2 | F142: 2
D143: Criterio Evaluación 2.3 | F143: 2
D144: Criterio Evaluación 2.4 | F144: 2
C145: Comp. Esp. 3 | D145: Criterio Evaluación 3.1 | F145: 2
D146: Criterio Evaluación 3.2 | F146: 2
C147: Comp. Esp. 4 | D147: Criterio Evaluación 4.1 | F147: 2
D148: Criterio Evaluación 4.2 | F148: 2
D149: Criterio Evaluación 4.3 | F149: 2
D150: Criterio Evaluación 4.4 | F150: 2
C151: Comp. Esp. 5 | D151: Criterio Evaluación 5.1 | F151: 2
D152: Criterio Evaluación 5.2 | F152: 2
D153: Criterio Evaluación 5.3 | F153: 2
D154: Criterio Evaluación 5.4 | F154: 2
D155: Criterio Evaluación 5.5 | F155: 2
D156: Criterio Evaluación 5.6 | F156: 2
B157: Lengua Extranjera | C157: Comp. Esp. 1 | D157: Criterio Evaluación 1.1 | F157: 3
D158: Criterio Evaluación 1.2 | F158: 3
D159: Criterio Evaluación 1.3 | F159: 3
C160: Comp. Esp. 2 | D160: Criterio Evaluación 2.1 | F160: 3
D161: Criterio Evaluación 2.2 | F161: 3
D162: Criterio Evaluación 2.3 | F162: 3
D163: Criterio Evaluación 2.4 | F163: 3
C164: Comp. Esp. 3 | D164: Criterio Evaluación 3.1 | F164: 3
D165: Criterio Evaluación 3.2 | F165: 3
D166: Criterio Evaluación 3.3 | F166: 3
D167: Criterio Evaluación 3.4 | F167: 3
C168: Comp. Esp. 4 | D168: Criterio Evaluación 4.1 | F168: 3
D169: Criterio Evaluación 4.2 | F169: 3
D170: Criterio Evaluación 4.3 | F170: 3
D171: Criterio Evaluación 4.4 | F171: 3
C172: Comp. Esp. 5 | D172: Criterio Evaluación 5.1 | F172: 3
D173: Criterio Evaluación 5.2 | F173: 3
D174: Criterio Evaluación 5.3 | F174: 3
C175: Comp. Esp. 6 | D175: Criterio Evaluación 6.1 | F175: 3
D176: Criterio Evaluación 6.2 | F176: 3
D177: Criterio Evaluación 6.3 | F177: 3
B178: Materia dirigida al alumnado que no cursa religión | C178: Comp. Esp. 1 | D178: Criterio Evaluación 1.1 | F178: 1
C179: Comp. Esp. 2 | D179: Criterio Evaluación 2.1 | F179: 1
C180: Comp. Esp. 3 | D180: Criterio Evaluación 3.1 | F180: 1
C181: Comp. Esp. 4 | D181: Criterio Evaluación 4.1 | F181: 1
C182: Comp. Esp. 5 | D182: Criterio Evaluación 5.1 | F182: 1
C183: Comp. Esp. 6 | D183: Criterio Evaluación 6.1 | F183: 1
B184: Música | C184: Comp. Esp. 1 | D184: Criterio Evaluación 1.1 | F184: 2
D185: Criterio Evaluación 1.2 | F185: 2
D186: Criterio Evaluación 1.3 | F186: 2
D187: Criterio Evaluación 1.4 | F187: 2
C188: Comp. Esp. 2 | D188: Criterio Evaluación 2.1 | F188: 2
D189: Criterio Evaluación 2.2 | F189: 2
D190: Criterio Evaluación 2.3 | F190: 2
C191: Comp. Esp. 3 | D191: Criterio Evaluación 3.1 | F191: 2
D192: Criterio Evaluación 3.2 | F192: 2
D193: Criterio Evaluación 3.3 | F193: 2
D194: Criterio Evaluación 3.4 | F194: 2
C195: Comp. Esp. 4 | D195: Criterio Evaluación 4.1 | F195: 2
D196: Criterio Evaluación 4.2 | F196: 2
D197: Criterio Evaluación 4.3 | F197: 2
D198: Criterio Evaluación 4.4 | F198: 2
B199: Religión | C199: Comp. Esp. 1 | D199: Criterio Evaluación 1.1 | F199: 1
C200: Comp. Esp. 2 | D200: Criterio Evaluación 2.1 | F200: 1
C201: Comp. Esp. 3 | D201: Criterio Evaluación 3.1 | F201: 1
C202: Comp. Esp. 4 | D202: Criterio Evaluación 4.1 | F202: 1
C203: Comp. Esp. 5 | D203: Criterio Evaluación 5.1 | F203: 1
... 869 more rows

Sheet Peso criterios libre
E4: PESO | F4: PORCENTAJE
A5: MATERIAS DE 4º ESO_Diversificación | B5: Ámbito científico-tecnológico | C5: Comp. Esp. 1 | D5: Criterio Evaluación 1.1 | E5: 1 | F5: =E5/SUM($E$5:$E$204) -> 0.005
D6: Criterio Evaluación 1.2 | E6: 1 | F6: =E6/SUM($E$5:$E$204) -> 0.005
D7: Criterio Evaluación 1.3 | E7: 1 | F7: 0.005
C8: Comp. Esp. 2 | D8: Criterio Evaluación 2.1 | E8: 1 | F8: 0.005
D9: Criterio Evaluación 2.2 | E9: 1 | F9: 0.005
D10: Criterio Evaluación 2.3 | E10: 1 | F10: 0.005
D11: Criterio Evaluación 2.4 | E11: 1 | F11: 0.005
C12: Comp. Esp. 3 | D12: Criterio Evaluación 3.1 | E12: 1 | F12: 0.005
D13: Criterio Evaluación 3.2 | E13: 1 | F13: 0.005
D14: Criterio Evaluación 3.3 | E14: 1 | F14: 0.005
D15: Criterio Evaluación 3.4 | E15: 1 | F15: 0.005
D16: Criterio Evaluación 3.5 | E16: 1 | F16: 0.005
C17: Comp. Esp. 4 | D17: Criterio Evaluación 4.1 | E17: 1 | F17: 0.005
D18: Criterio Evaluación 4.2 | E18: 1 | F18: 0.005
C19: Comp. Esp. 5 | D19: Criterio Evaluación 5.1 | E19: 1 | F19: 0.005
D20: Criterio Evaluación 5.2 | E20: 1 | F20: 0.005
D21: Criterio Evaluación 5.3 | E21: 1 | F21: 0.005
C22: Comp. Esp. 6 | D22: Criterio Evaluación 6.1 | E22: 1 | F22: 0.005
D23: Criterio Evaluación 6.2 | E23: 1 | F23: 0.005
D24: Criterio Evaluación 6.3 | E24: 1 | F24: 0.005
D25: Criterio Evaluación 6.4 | E25: 1 | F25: 0.005
C26: Comp. Esp. 7 | D26: Criterio Evaluación 7.1 | E26: 1 | F26: 0.005
D27: Criterio Evaluación 7.2 | E27: 1 | F27: 0.005
B28: Ámbito lingüístico y social | C28: Comp. Esp. 1 | D28: Criterio Evaluación 1.1 | E28: 1 | F28: 0.005
D29: Criterio Evaluación 1.2 | E29: 1 | F29: 0.005
C30: Comp. Esp. 2 | D30: Criterio Evaluación 2.1 | E30: 1 | F30: 0.005
D31: Criterio Evaluación 2.2 | E31: 1 | F31: 0.005
D32: Criterio Evaluación 2.3 | E32: 1 | F32: 0.005
D33: Criterio Evaluación 2.4 | E33: 1 | F33: 0.005
C34: Comp. Esp. 3 | D34: Criterio Evaluación 3.1 | E34: 1 | F34: 0.005
D35: Criterio Evaluación 3.2 | E35: 1 | F35: 0.005
D36: Criterio Evaluación 3.3 | E36: 1 | F36: 0.005
C37: Comp. Esp. 4 | D37: Criterio Evaluación 4.1 | E37: 1 | F37: 0.005
D38: Criterio Evaluación 4.2 | E38: 1 | F38: 0.005
C39: Comp. Esp. 5 | D39: Criterio Evaluación 5.1 | E39: 1 | F39: 0.005
D40: Criterio Evaluación 5.2 | E40: 1 | F40: 0.005
D41: Criterio Evaluación 5.3 | E41: 1 | F41: 0.005
C42: Comp. Esp. 6 | D42: Criterio Evaluación 6.1 | E42: 1 | F42: 0.005
D43: Criterio Evaluación 6.2 | E43: 1 | F43: 0.005
C44: Comp. Esp. 7 | D44: Criterio Evaluación 7.1 | E44: 1 | F44: 0.005
D45: Criterio Evaluación 7.2 | E45: 1 | F45: 0.005
D46: Criterio Evaluación 7.3 | E46: 1 | F46: 0.005
B47: Ámbito práctico | C47: Comp. Esp. 1 | D47: Criterio Evaluación 1.1 | E47: 1 | F47: 0.005
D48: Criterio Evaluación 1.2 | E48: 1 | F48: 0.005
D49: Criterio Evaluación 1.3 | E49: 1 | F49: 0.005
C50: Comp. Esp. 2 | D50: Criterio Evaluación 2.1 | E50: 1 | F50: 0.005
D51: Criterio Evaluación 2.2 | E51: 1 | F51: 0.005
D52: Criterio Evaluación 2.3 | E52: 1 | F52: 0.005
D53: Criterio Evaluación 2.4 | E53: 1 | F53: 0.005
C54: Comp. Esp. 3 | D54: Criterio Evaluación 3.1 | E54: 1 | F54: 0.005
D55: Criterio Evaluación 3.2 | E55: 1 | F55: 0.005
C56: Comp. Esp. 4 | D56: Criterio Evaluación 4.1 | E56: 1 | F56: 0.005
D57: Criterio Evaluación 4.2 | E57: 1 | F57: 0.005
D58: Criterio Evaluación 4.3 | E58: 1 | F58: 0.005
C59: Comp. Esp. 5 | D59: Criterio Evaluación 5.1 | E59: 1 | F59: 0.005
D60: Criterio Evaluación 5.2 | E60: 1 | F60: 0.005
D61: Criterio Evaluación 5.3 | E61: 1 | F61: 0.005
D62: Criterio Evaluación 5.4 | E62: 1 | F62: 0.005
C63: Comp. Esp. 6 | D63: Criterio Evaluación 6.1 | E63: 1 | F63: 0.005
D64: Criterio Evaluación 6.2 | E64: 1 | F64: 0.005
D65: Criterio Evaluación 6.3 | E65: 1 | F65: 0.005
D66: Criterio Evaluación 6.4 | E66: 1 | F66: 0.005
C67: Comp. Esp. 7 | D67: Criterio Evaluación 7.1 | E67: 1 | F67: 0.005
D68: Criterio Evaluación 7.2 | E68: 1 | F68: 0.005
D69: Criterio Evaluación 7.3 | E69: 1 | F69: 0.005
D70: Criterio Evaluación 7.4 | E70: 1 | F70: =E70/SUM($E$5:$E$204) -> 0.005
C71: Comp. Esp. 8 | D71: Criterio Evaluación 8.1 | E71: 1 | F71: 0.005
D72: Criterio Evaluación 8.2 | E72: 1 | F72: 0.005
D73: Criterio Evaluación 8.3 | E73: 1 | F73: 0.005
B74: Conocimiento de las Matemáticas | C74: Comp. Esp. 1 | D74: Criterio Evaluación 1.1 | E74: 1 | F74: 0.005
D75: Criterio Evaluación 1.2 | E75: 1 | F75: 0.005
D76: Criterio Evaluación 1.3 | E76: 1 | F76: 0.005
C77: Comp. Esp. 2 | D77: Criterio Evaluación 2.1 | E77: 1 | F77: 0.005
C78: Comp. Esp. 3 | D78: Criterio Evaluación 3.1 | E78: 1 | F78: 0.005
D79: Criterio Evaluación 3.2 | E79: 1 | F79: 0.005
D80: Criterio Evaluación 3.3 | E80: 1 | F80: 0.005
C81: Comp. Esp. 4 | D81: Criterio Evaluación 4.1 | E81: 1 | F81: 0.005
D82: Criterio Evaluación 4.2 | E82: 1 | F82: 0.005
D83: Criterio Evaluación 4.3 | E83: 1 | F83: 0.005
C84: Comp. Esp. 5 | D84: Criterio Evaluación 5.1 | E84: 1 | F84: 0.005
D85: Criterio Evaluación 5.2 | E85: 1 | F85: 0.005
D86: Criterio Evaluación 5.3 | E86: 1 | F86: 0.005
D87: Criterio Evaluación 5.4 | E87: 1 | F87: 0.005
B88: Conocimiento del Lenguaje | C88: Comp. Esp. 1 | D88: Criterio Evaluación 1.1 | E88: 1 | F88: 0.005
D89: Criterio Evaluación 1.2 | E89: 1 | F89: 0.005
C90: Comp. Esp. 2 | D90: Criterio Evaluación 2.1 | E90: 1 | F90: 0.005
D91: Criterio Evaluación 2.2 | E91: 1 | F91: 0.005
C92: Comp. Esp. 3 | D92: Criterio Evaluación 3.1 | E92: 1 | F92: 0.005
D93: Criterio Evaluación 3.2 | E93: 1 | F93: 0.005
D94: Criterio Evaluación 3.3 | E94: 1 | F94: 0.005
D95: Criterio Evaluación 3.4 | E95: 1 | F95: 0.005
C96: Comp. Esp. 4 | D96: Criterio Evaluación 4.1 | E96: 1 | F96: 0.005
C97: Comp. Esp. 5 | D97: Criterio Evaluación 5.1 | E97: 1 | F97: 0.005
D98: Criterio Evaluación 5.2 | E98: 1 | F98: 0.005
C99: Comp. Esp. 6 | D99: Criterio Evaluación 6.1 | E99: 1 | F99: 0.005
D100: Criterio Evaluación 6.2 | E100: 1 | F100: 0.005
B101: Educación Física | C101: Comp. Esp. 1 | D101: Criterio Evaluación 1.1 | E101: 1 | F101: 0.005
D102: Criterio Evaluación 1.2 | E102: 1 | F102: 0.005
D103: Criterio Evaluación 1.3 | E103: 1 | F103: 0.005
D104: Criterio Evaluación 1.4 | E104: 1 | F104: 0.005
D105: Criterio Evaluación 1.5 | E105: 1 | F105: 0.005
D106: Criterio Evaluación 1.6 | E106: 1 | F106: 0.005
D107: Criterio Evaluación 1.7 | E107: 1 | F107: 0.005
D108: Criterio Evaluación 1.8 | E108: 1 | F108: 0.005
D109: Criterio Evaluación 1.9 | E109: 1 | F109: 0.005
C110: Comp. Esp. 2 | D110: Criterio Evaluación 2.1 | E110: 1 | F110: 0.005
D111: Criterio Evaluación 2.2 | E111: 1 | F111: 0.005
D112: Criterio Evaluación 2.3 | E112: 1 | F112: 0.005
D113: Criterio Evaluación 2.4 | E113: 1 | F113: 0.005
C114: Comp. Esp. 3 | D114: Criterio Evaluación 3.1 | E114: 1 | F114: 0.005
D115: Criterio Evaluación 3.2 | E115: 1 | F115: 0.005
D116: Criterio Evaluación 3.3 | E116: 1 | F116: 0.005
C117: Comp. Esp. 4 | D117: Criterio Evaluación 4.1 | E117: 1 | F117: 0.005
D118: Criterio Evaluación 4.2 | E118: 1 | F118: 0.005
D119: Criterio Evaluación 4.3 | E119: 1 | F119: 0.005
C120: Comp. Esp. 5 | D120: Criterio Evaluación 5.1 | E120: 1 | F120: 0.005
D121: Criterio Evaluación 5.2 | E121: 1 | F121: 0.005
B122: Expresión Artística | C122: Comp. Esp. 1 | D122: Criterio Evaluación 1.1 | E122: 1 | F122: 0.005
D123: Criterio Evaluación 1.2 | E123: 1 | F123: 0.005
D124: Criterio Evaluación 1.3 | E124: 1 | F124: 0.005
C125: Comp. Esp. 2 | D125: Criterio Evaluación 2.1 | E125: 1 | F125: 0.005
D126: Criterio Evaluación 2.2 | E126: 1 | F126: 0.005
D127: Criterio Evaluación 2.3 | E127: 1 | F127: 0.005
C128: Comp. Esp. 3 | D128: Criterio Evaluación 3.1 | E128: 1 | F128: 0.005
D129: Criterio Evaluación 3.2 | E129: 1 | F129: 0.005
C130: Comp. Esp. 4 | D130: Criterio Evaluación 4.1 | E130: 1 | F130: 0.005
D131: Criterio Evaluación 4.2 | E131: 1 | F131: 0.005
D132: Criterio Evaluación 4.3 | E132: 1 | F132: 0.005
D133: Criterio Evaluación 4.4 | E133: 1 | F133: 0.005
B134: Formación y orientación personal y profesional | C134: Comp. Esp. 1 | D134: Criterio Evaluación 1.1 | E134: 1 | F134: =E134/SUM($E$5:$E$204) -> 0.005
D135: Criterio Evaluación 1.2 | E135: 1 | F135: 0.005
D136: Criterio Evaluación 1.3 | E136: 1 | F136: 0.005
D137: Criterio Evaluación 1.4 | E137: 1 | F137: 0.005
D138: Criterio Evaluación 1.5 | E138: 1 | F138: 0.005
D139: Criterio Evaluación 1.6 | E139: 1 | F139: 0.005
D140: Criterio Evaluación 1.7 | E140: 1 | F140: 0.005
C141: Comp. Esp. 2 | D141: Criterio Evaluación 2.1 | E141: 1 | F141: 0.005
D142: Criterio Evaluación 2.2 | E142: 1 | F142: 0.005
D143: Criterio Evaluación 2.3 | E143: 1 | F143: 0.005
D144: Criterio Evaluación 2.4 | E144: 1 | F144: 0.005
C145: Comp. Esp. 3 | D145: Criterio Evaluación 3.1 | E145: 1 | F145: 0.005
D146: Criterio Evaluación 3.2 | E146: 1 | F146: 0.005
C147: Comp. Esp. 4 | D147: Criterio Evaluación 4.1 | E147: 1 | F147: 0.005
D148: Criterio Evaluación 4.2 | E148: 1 | F148: 0.005
D149: Criterio Evaluación 4.3 | E149: 1 | F149: 0.005
D150: Criterio Evaluación 4.4 | E150: 1 | F150: 0.005
C151: Comp. Esp. 5 | D151: Criterio Evaluación 5.1 | E151: 1 | F151: 0.005
D152: Criterio Evaluación 5.2 | E152: 1 | F152: 0.005
D153: Criterio Evaluación 5.3 | E153: 1 | F153: 0.005
D154: Criterio Evaluación 5.4 | E154: 1 | F154: 0.005
D155: Criterio Evaluación 5.5 | E155: 1 | F155: 0.005
D156: Criterio Evaluación 5.6 | E156: 1 | F156: 0.005
B157: Lengua Extranjera | C157: Comp. Esp. 1 | D157: Criterio Evaluación 1.1 | E157: 1 | F157: 0.005
D158: Criterio Evaluación 1.2 | E158: 1 | F158: 0.005
D159: Criterio Evaluación 1.3 | E159: 1 | F159: 0.005
C160: Comp. Esp. 2 | D160: Criterio Evaluación 2.1 | E160: 1 | F160: 0.005
D161: Criterio Evaluación 2.2 | E161: 1 | F161: 0.005
D162: Criterio Evaluación 2.3 | E162: 1 | F162: 0.005
D163: Criterio Evaluación 2.4 | E163: 1 | F163: 0.005
C164: Comp. Esp. 3 | D164: Criterio Evaluación 3.1 | E164: 1 | F164: 0.005
D165: Criterio Evaluación 3.2 | E165: 1 | F165: 0.005
D166: Criterio Evaluación 3.3 | E166: 1 | F166: 0.005
D167: Criterio Evaluación 3.4 | E167: 1 | F167: 0.005
C168: Comp. Esp. 4 | D168: Criterio Evaluación 4.1 | E168: 1 | F168: 0.005
D169: Criterio Evaluación 4.2 | E169: 1 | F169: 0.005
D170: Criterio Evaluación 4.3 | E170: 1 | F170: 0.005
D171: Criterio Evaluación 4.4 | E171: 1 | F171: 0.005
C172: Comp. Esp. 5 | D172: Criterio Evaluación 5.1 | E172: 1 | F172: 0.005
D173: Criterio Evaluación 5.2 | E173: 1 | F173: 0.005
D174: Criterio Evaluación 5.3 | E174: 1 | F174: 0.005
C175: Comp. Esp. 6 | D175: Criterio Evaluación 6.1 | E175: 1 | F175: 0.005
D176: Criterio Evaluación 6.2 | E176: 1 | F176: 0.005
D177: Criterio Evaluación 6.3 | E177: 1 | F177: 0.005
B178: Materia dirigida al alumnado que no cursa religión | C178: Comp. Esp. 1 | D178: Criterio Evaluación 1.1 | E178: 1 | F178: 0.005
C179: Comp. Esp. 2 | D179: Criterio Evaluación 2.1 | E179: 1 | F179: 0.005
C180: Comp. Esp. 3 | D180: Criterio Evaluación 3.1 | E180: 1 | F180: 0.005
C181: Comp. Esp. 4 | D181: Criterio Evaluación 4.1 | E181: 1 | F181: 0.005
C182: Comp. Esp. 5 | D182: Criterio Evaluación 5.1 | E182: 1 | F182: 0.005
C183: Comp. Esp. 6 | D183: Criterio Evaluación 6.1 | E183: 1 | F183: 0.005
B184: Música | C184: Comp. Esp. 1 | D184: Criterio Evaluación 1.1 | E184: 1 | F184: 0.005
D185: Criterio Evaluación 1.2 | E185: 1 | F185: 0.005
D186: Criterio Evaluación 1.3 | E186: 1 | F186: 0.005
D187: Criterio Evaluación 1.4 | E187: 1 | F187: 0.005
C188: Comp. Esp. 2 | D188: Criterio Evaluación 2.1 | E188: 1 | F188: 0.005
D189: Criterio Evaluación 2.2 | E189: 1 | F189: 0.005
D190: Criterio Evaluación 2.3 | E190: 1 | F190: 0.005
C191: Comp. Esp. 3 | D191: Criterio Evaluación 3.1 | E191: 1 | F191: 0.005
D192: Criterio Evaluación 3.2 | E192: 1 | F192: 0.005
D193: Criterio Evaluación 3.3 | E193: 1 | F193: 0.005
D194: Criterio Evaluación 3.4 | E194: 1 | F194: 0.005
C195: Comp. Esp. 4 | D195: Criterio Evaluación 4.1 | E195: 1 | F195: 0.005
D196: Criterio Evaluación 4.2 | E196: 1 | F196: 0.005
D197: Criterio Evaluación 4.3 | E197: 1 | F197: 0.005
D198: Criterio Evaluación 4.4 | E198: 1 | F198: =E198/SUM($E$5:$E$204) -> 0.005
B199: Religión | C199: Comp. Esp. 1 | D199: Criterio Evaluación 1.4 | E199: 1 | F199: 0.005
C200: Comp. Esp. 2 | D200: Criterio Evaluación 2.4 | E200: 1 | F200: 0.005
C201: Comp. Esp. 3 | D201: Criterio Evaluación 3.4 | E201: 1 | F201: 0.005
C202: Comp. Esp. 4 | D202: Criterio Evaluación 4.4 | E202: 1 | F202: 0.005
C203: Comp. Esp. 5 | D203: Criterio Evaluación 5.4 | E203: 1 | F203: 0.005
... 870 more rows

Sheet Peso descrip. libre
E2: Competencia en Comunicación Lingüística | Y2: Competencia Plurilingüe | AK2: Competencia Matemática y Competencia en Ciencia, Tecnología e Ingeniería | BE2: Competencia Digital | BY2: Competencia Personal, Social y de Aprender a Aprender | CS2: Competencia Ciudadana | DI2: Competencia Emprendedora | DU2: Competencia en Conciencia y Expresión Culturales
E3: CCL 1 | I3: CCL 2 | M3: CCL 3 | Q3: CCL 4 | U3: CCL 5 | Y3: CP 1 | AC3: CP 2 | AG3: CP 3 | AK3: STEM 1 | AO3: STEM 2 | AS3: STEM 3 | AW3: STEM 4 | BA3: STEM 5 | BE3: CD 1 | BI3: CD 2 | BM3: CD 3 | BQ3: CD 4 | BU3: CD 5 | BY3: CPSAA 1 | CC3: CPSAA 2 | CG3: CPSAA 3 | CK3: CPSAA 4 | CO3: CPSAA 5 | CS3: CC 1 | CW3: CC 2 | DA3: CC 3 | DE3: CC 4 | DI3: CE 1 | DM3: CE 2 | DQ3: CE 3 | DU3: CCEC 1 | DY3: CCEC 2 | EC3: CCEC 3 | EG3: CCEC 4
B4: NO | C4: PESO DESCRIPTORES | E4: 1 | I4: 1 | M4: 1 | Q4: 1 | U4: 1 | Y4: 1 | AC4: 1 | AG4: 1 | AK4: 1 | AO4: 1 | AS4: 1 | AW4: 1 | BA4: 1 | BE4: 1 | BI4: 1 | BM4: 1 | BQ4: 1 | BU4: 1 | BY4: 1 | CC4: 1 | CG4: 1 | CK4: 1 | CO4: 1 | CS4: 1 | CW4: 1 | DA4: 1 | DE4: 1 | DI4: 1 | DM4: 1 | DQ4: 1 | DU4: 1 | DY4: 1 | EC4: 1 | EG4: 1
C5: PORCENTAJES | E5: =E4/SUM($E4:$U4) -> 0.2 | I5: =I4/SUM($E4:$U4) -> 0.2 | M5: =M4/SUM($E4:$U4) -> 0.2 | Q5: =Q4/SUM($E4:$U4) -> 0.2 | U5: =U4/SUM($E4:$U4) -> 0.2 | Y5: =Y4/SUM($Y4:$AG4) -> 0.3333333333 | AC5: =AC4/SUM($Y4:$AG4) -> 0.3333333333 | AG5: 0.3333333333 | AK5: =AK4/SUM($AK4:$BA4) -> 0.2 | AO5: =AO4/SUM($AK4:$BA4) -> 0.2 | AS5: 0.2 | AW5: 0.2 | BA5: 0.2 | BE5: =BE4/SUM($BE4:$BU4) -> 0.2 | BI5: =BI4/SUM($BE4:$BU4) -> 0.2 | BM5: 0.2 | BQ5: 0.2 | BU5: 0.2 | BY5: =BY4/SUM($BY4:$CO4) -> 0.2 | CC5: =CC4/SUM($BY4:$CO4) -> 0.2 | CG5: 0.2 | CK5: 0.2 | CO5: 0.2 | CS5: =CS4/SUM($CS4:$DE4) -> 0.25 | CW5: =CW4/SUM($CS4:$DE4) -> 0.25 | DA5: 0.25 | DE5: 0.25 | DI5: =DI4/SUM($DI4:$DQ4) -> 0.3333333333 | DM5: =DM4/SUM($DI4:$DQ4) -> 0.3333333333 | DQ5: 0.3333333333 | DU5: =DU4/SUM($DU4:$EG4) -> 0.25 | DY5: =DY4/SUM($DU4:$EG4) -> 0.25 | EC5: 0.25 | EG5: 0.25

Sheet Peso descrip. vinculaciones
E2: Competencia en Comunicación Lingüística | Y2: Competencia Plurilingüe | AK2: Competencia Matemática y Competencia en Ciencia, Tecnología e Ingeniería | BE2: Competencia Digital | BY2: Competencia Personal, Social y de Aprender a Aprender | CS2: Competencia Ciudadana | DI2: Competencia Emprendedora | DU2: Competencia en Conciencia y Expresión Culturales
E3: CCL 1 | I3: CCL 2 | M3: CCL 3 | Q3: CCL 4 | U3: CCL 5 | Y3: CP 1 | AC3: CP 2 | AG3: CP 3 | AK3: STEM 1 | AO3: STEM 2 | AS3: STEM 3 | AW3: STEM 4 | BA3: STEM 5 | BE3: CD 1 | BI3: CD 2 | BM3: CD 3 | BQ3: CD 4 | BU3: CD 5 | BY3: CPSAA 1 | CC3: CPSAA 2 | CG3: CPSAA 3 | CK3: CPSAA 4 | CO3: CPSAA 5 | CS3: CC 1 | CW3: CC 2 | DA3: CC 3 | DE3: CC 4 | DI3: CE 1 | DM3: CE 2 | DQ3: CE 3 | DU3: CCEC 1 | DY3: CCEC 2 | EC3: CCEC 3 | EG3: CCEC 4
B4: NO | C4: PESO DESCRIPTORES | E4: 0.3056994819 | I4: 0.207253886 | M4: 0.274611399 | Q4: 0.04663212435 | U4: 0.1658031088 | Y4: 0.2535211268 | AC4: 0.4084507042 | AG4: 0.338028169 | AK4: 0.2696629213 | AO4: 0.2247191011 | AS4: 0.1853932584 | AW4: 0.1235955056 | BA4: 0.1966292135 | BE4: 0.2281553398 | BI4: 0.286407767 | BM4: 0.2669902913 | BQ4: 0.1262135922 | BU4: 0.09223300971 | BY4: 0.2085106383 | CC4: 0.07234042553 | CG4: 0.2553191489 | CK4: 0.2425531915 | CO4: 0.2212765957 | CS4: 0.3 | CW4: 0.1866666667 | DA4: 0.3666666667 | DE4: 0.1466666667 | DI4: 0.4044117647 | DM4: 0.125 | DQ4: 0.4705882353 | DU4: 0.2429906542 | DY4: 0.1775700935 | EC4: 0.3551401869 | EG4: 0.2242990654
C5: PORCENTAJES | E5: =E4/SUM($E4:$U4) -> 0.3056994819 | I5: =I4/SUM($E4:$U4) -> 0.207253886 | M5: =M4/SUM($E4:$U4) -> 0.274611399 | Q5: =Q4/SUM($E4:$U4) -> 0.04663212435 | U5: =U4/SUM($E4:$U4) -> 0.1658031088 | Y5: =Y4/SUM($Y4:$AG4) -> 0.2535211268 | AC5: =AC4/SUM($Y4:$AG4) -> 0.4084507042 | AG5: 0.338028169 | AK5: =AK4/SUM($AK4:$BA4) -> 0.2696629213 | AO5: =AO4/SUM($AK4:$BA4) -> 0.2247191011 | AS5: 0.1853932584 | AW5: 0.1235955056 | BA5: 0.1966292135 | BE5: =BE4/SUM($BE4:$BU4) -> 0.2281553398 | BI5: =BI4/SUM($BE4:$BU4) -> 0.286407767 | BM5: 0.2669902913 | BQ5: 0.1262135922 | BU5: 0.09223300971 | BY5: =BY4/SUM($BY4:$CO4) -> 0.2085106383 | CC5: =CC4/SUM($BY4:$CO4) -> 0.07234042553 | CG5: 0.2553191489 | CK5: 0.2425531915 | CO5: 0.2212765957 | CS5: =CS4/SUM($CS4:$DE4) -> 0.3 | CW5: =CW4/SUM($CS4:$DE4) -> 0.1866666667 | DA5: 0.3666666667 | DE5: 0.1466666667 | DI5: =DI4/SUM($DI4:$DQ4) -> 0.4044117647 | DM5: =DM4/SUM($DI4:$DQ4) -> 0.125 | DQ5: 0.4705882353 | DU5: =DU4/SUM($DU4:$EG4) -> 0.2429906542 | DY5: =DY4/SUM($DU4:$EG4) -> 0.1775700935 | EC5: 0.3551401869 | EG5: 0.2242990654

Sheet Alumnos
C3: LISTADO DE ALUMNOS | F3: MATERIAS 4º ESO_DIV | L3: MATERIAS PENDIENTES DE 3º ESO | AI3: MATERIAS PENDIENTES DE 2ºESO | AW3: MATERIAS PENDIENTES DE 1ºESO
C4: Informe | D4: Grupo 4º _____ | E4: ID Matrícula | F4: EX. ART. | G4: MUS | H4: CMAT | I4: CLEN | J4: MNR | K4: REL | L4: ÁMB. C-T | M4: ÁMB. L Y S | N4: ÁMB. PR. | O4: EVCE | P4: EF | Q4: LEX | R4: EPVA | S4: MUS | T4: CMAT | U4: CLEN | V4: CYR | W4: IAEE | X4: LCCh | Y4: RES. PRO. | Z4: 2ª LEX | AE4: TAP | AF4: TEM | AG4: MNR | AH4: REL | AI4: EF | AJ4: LEX | AK4: MUS | AL4: CMAT | AM4: CLEN | AN4: CCL | AO4: LLCh | AP4: 2ª LEX | AU4: MNR | AV4: REL | AW4: EF | AX4: EPVA | AY4: LEX | AZ4: CMAT | BA4: CLEN | BB4: LLCh | BC4: 2ª LEX | BH4: MNR | BI4: REL | BK4: TEAMS / Onedrive
Z5: ALE | AA5: FRA | AB5: ING | AC5: ITA | AD5: POR | AP5: ALE | AQ5: FRA | AR5: ING | AS5: ITA | AT5: POR | BC5: ALE | BD5: FRA | BE5: ING | BF5: ITA | BG5: POR
D6: Nombre_Alumno_1 | E6: 0000_1 | F6: x | H6: x | J6: x | L6: x | R6: x | T6: x | AG6: x | AI6: x | AM6: x | AU6: x | AZ6: x | BH6: x
C7: 2 | D7: Nombre_Alumno_2 | E7: 0000_2 | G7: x | I7: x | K7: x | M7: x | S7: x | AF7: x | AH7: x | AN7: x | AV7: x | AW7: x | BA7: x | BI7: x
C8: 3 | D8: Nombre_Alumno_3 | E8: 0000_3 | F8: x | N8: x | R8: x | AG8: x | AO8: x | AX8: x | BB8: x
C9: 4 | D9: Nombre_Alumno_4 | E9: 0000_4 | O9: x | S9: x | AH9: x | AT9: x | BG9: x
D10: Nombre_Alumno_5 | E10: 0000_5 | F10: x | P10: x | R10: x | AG10: x | AJ10: x
C11: 6 | D11: Nombre_Alumno_6 | E11: 0000_6 | Q11: x | S11: x | AH11: x | AY11: x
C12: 7 | D12: Nombre_Alumno_7 | E12: 0000_7 | F12: x | R12: x | AG12: x | AK12: x
C13: 8 | D13: Nombre_Alumno_8 | E13: 0000_8 | S13: x | AH13: x | AL13: x
C14: 9 | D14: Nombre_Alumno_9 | E14: 0000_9 | F14: x | AG14: x
C15: 10
C16: 11
C17: 12
C18: 13
C19: 14
C20: 15
C21: 16
C22: 17
C23: 18
C24: 19
C25: 20
C26: 21
C27: 22
C28: 23
C29: 24
C30: 25
C31: 26
C32: 27
C33: 28
C34: 29
C35: 30
C36: 31
C37: 32
C38: 33
C39: 34
C40: 35
D41: TOTAL MATRICULADOS | F41: =COUNTA(F6:F40) -> 5 | G41: =COUNTA(G6:G40) -> 1 | H41: 1 | I41: 1 | J41: 1 | K41: 1 | L41: 1 | M41: 1 | N41: 1 | O41: 1 | P41: 1 | Q41: 1 | R41: 4 | S41: 4 | T41: 1 | U41: 0 | V41: 0 | W41: 0 | X41: 0 | Y41: 0 | Z41: 0 | AA41: 0 | AB41: 0 | AC41: 0 | AD41: 0 | AE41: 0 | AF41: 1 | AG41: 5 | AH41: 4 | AI41: 1 | AJ41: 1 | AK41: 1 | AL41: 1 | AM41: 1 | AN41: 1 | AO41: 1 | AP41: 0 | AQ41: 0 | AR41: 0 | AS41: 0 | AT41: 1 | AU41: 1 | AV41: 1 | AW41: 1 | AX41: 1 | AY41: 1 | AZ41: 1 | BA41: 1 | BB41: 1 | BC41: 0 | BD41: 0 | BE41: 0 | BF41: 0 | BG41: 1 | BH41: 1 | BI41: 1

Sheet Redondeo
BO2: EXPORTACIÓN NOTAS COMPETENCIAS A STILUS
C3: CALIFICACIÓN DE MATERIAS | BO3: 1º_Introduce para cada materia las centésimas a partir de las que se realizará un redondeo al alza (valor entre 1 y 100):
C4: CENTÉSIMAS REDONDEO | W4: CENTÉSIMAS RENDONDEO
C5: 90 | D5: 90 | E5: 90 | F5: 90 | G5: 90 | H5: 90 | I5: 90 | J5: 90 | K5: 90 | L5: 90 | M5: 90 | N5: 90 | O5: 90 | P5: 90 | Q5: 90 | R5: 90 | S5: 90 | T5: 90 | U5: 90 | V5: 90 | W5: 90 | X5: 90 | Y5: 90 | Z5: 90 | AA5: 90 | AB5: 90 | AC5: 90 | AD5: 90 | AE5: 90 | AF5: 90 | AG5: 90 | AH5: 90 | AI5: 90 | AJ5: 90 | AK5: 90 | AL5: 90 | AM5: 90 | AN5: 90 | AO5: 90 | AP5: 90 | AQ5: 90 | AR5: 90 | AS5: 90 | AT5: 90 | AU5: 90 | AV5: 90 | AW5: 90 | AX5: 90 | AY5: 90 | AZ5: 90 | BA5: 90 | BB5: 90 | BC5: 90 | BD5: 90 | BE5: 90 | BF5: 90 | BG5: 90 | BH5: 90 | BI5: 90 | BJ5: 90 | BK5: 90 | BL5: 90 | BO5: Ejemplo: si se marca 85, desde el 4,85 (inclusive) se redondeará a 5, Si se marca 100, el 4,99 e inferiores se redondearán a 4
C6: 4º ESO_DIV | O6: 3º ESO PENDIENTES | AL6: 2º ESO PENDIENTES | AZ6: 1º ESO PENDIENTES
B7: =TRANSPOSE('Calificación materias'!B5:AK67) -> 0 | C7: Ámbito Científico-Téc. | D7: Ámbito Lingüíst. y Soc. | E7: Ámbito Práctico | F7: Educación Física | G7: Formación y Orient. PyP | H7: Lengua Extranjera | I7: Expresión Artística | J7: Música | K7: CMAT | L7: CLEN | M7: Materia no Religión | N7: Religión | O7: Ámbito Científico-Téc. | P7: Ámbito Lingúíst. y Soc. | Q7: Ámbito Práctico | R7: EVCE | S7: Educación Física | T7: Lengua Extranjera | U7: EPVA | V7: Música | W7: CMAT | X7: CLEN | Y7: Cotrol y Robótica | Z7: IAEE | AA7: Lengua y Cultura China | AB7: Resolución de Problemas | AC7: 2ª Lengua Extranjera_ALE | AD7: 2ª Lengua Extranjera_FRA | AE7: 2ª Lengua Extranjera_ING | AF7: 2ª Lengua Extranjera_ITA | AG7: 2ª Lengua Extranjera_POR | AH7: Taller de Artes Plásticas | AI7: Taller de Expr. Musical | AJ7: Materia no Religión | AK7: Religión | AL7: Educación Física | AM7: Lengua Extranjera | AN7: Música | AO7: CMAT | AP7: CLEN | AQ7: Cultura Clásica | AR7: Lengua y Cultura China | AS7: 2ª Lengua Extranjera_ALE | AT7: 2ª Lengua Extranjera_FRA | AU7: 2ª Lengua Extranjera_ING | AV7: 2ª Lengua Extranjera_ITA | AW7: 2ª Lengua Extranjera_POR | AX7: Materia no Religión | AY7: Religión | AZ7: Educación Física | BA7: EPVA | BB7: Lengua Extranjera | BC7: CMAT | BD7: CLEN | BE7: Lengua y Cultura China | BF7: 2ª Lengua Extranjera_ALE | BG7: 2ª Lengua Extranjera_FRA | BH7: 2ª Lengua Extranjera_ING | BI7: 2ª Lengua Extranjera_ITA | BJ7: 2ª Lengua Extranjera_POR | BK7: Materia no Religión | BL7: Religión | BO7: 2º_Pulsa el siguiente botón:
B8: Nombre_Alumno_1
B9: Nombre_Alumno_2
B10: Nombre_Alumno_3
B11: Nombre_Alumno_4
B12: Nombre_Alumno_5
B13: Nombre_Alumno_6
B14: Nombre_Alumno_7
B15: Nombre_Alumno_8
B16: Nombre_Alumno_9

Sheet Materias
C1: MATERIAS DE 4º ESO_DIVERSIFICACIÓN
C11: MATERIAS PENDIENTES DE 3º ESO
C27: MATERIAS PENDIENTES DE 2º ESO
C38: MATERIAS PENDIENTES DE 1º ESO

Sheet 2LEX (3)
C2: MATERIAS PENDIENTES DE 3º ESO

Sheet 2LEX (2)
C2: MATERIAS PENDIENTES DE 2º ESO

Sheet 2LEX (1)
C2: MATERIAS PENDIENTES DE 1º ESO

Sheet Calif. de crit.
E2: =IF(Alumnos!D6="","",Alumnos!D6) -> Nombre_Alumno_1 | F2: =IF(Alumnos!D7="","",Alumnos!D7) -> Nombre_Alumno_2 | G2: =IF(Alumnos!D8="","",Alumnos!D8) -> Nombre_Alumno_3 | H2: =IF(Alumnos!D9="","",Alumnos!D9) -> Nombre_Alumno_4 | I2: =IF(Alumnos!D10="","",Alumnos!D10) -> Nombre_Alumno_5 | J2: =IF(Alumnos!D11="","",Alumnos!D11) -> Nombre_Alumno_6 | K2: =IF(Alumnos!D12="","",Alumnos!D12) -> Nombre_Alumno_7 | L2: =IF(Alumnos!D13="","",Alumnos!D13) -> Nombre_Alumno_8 | M2: =IF(Alumnos!D14="","",Alumnos!D14) -> Nombre_Alumno_9 | N2: =IF(Alumnos!D15="","",Alumnos!D15) ->  | O2: =IF(Alumnos!D16="","",Alumnos!D16) ->  | P2: =IF(Alumnos!D17="","",Alumnos!D17) ->  | Q2: =IF(Alumnos!D18="","",Alumnos!D18) ->  | R2: =IF(Alumnos!D19="","",Alumnos!D19) ->  | S2: =IF(Alumnos!D20="","",Alumnos!D20) ->  | T2: =IF(Alumnos!D21="","",Alumnos!D21) ->  | U2: =IF(Alumnos!D22="","",Alumnos!D22) ->  | V2: =IF(Alumnos!D23="","",Alumnos!D23) ->  | W2: =IF(Alumnos!D24="","",Alumnos!D24) ->  | X2: =IF(Alumnos!D25="","",Alumnos!D25) ->  | Y2: =IF(Alumnos!D26="","",Alumnos!D26) ->  | Z2: =IF(Alumnos!D27="","",Alumnos!D27) ->  | AA2: =IF(Alumnos!D28="","",Alumnos!D28) ->  | AB2: =IF(Alumnos!D29="","",Alumnos!D29) ->  | AC2: =IF(Alumnos!D30="","",Alumnos!D30) ->  | AD2: =IF(Alumnos!D31="","",Alumnos!D31) ->  | AE2: =IF(Alumnos!D32="","",Alumnos!D32) ->  | AF2: =IF(Alumnos!D33="","",Alumnos!D33) ->  | AG2: =IF(Alumnos!D34="","",Alumnos!D34) ->  | AH2: =IF(Alumnos!D35="","",Alumnos!D35) ->  | AI2: =IF(Alumnos!D36="","",Alumnos!D36) ->  | AJ2: =IF(Alumnos!D37="","",Alumnos!D37) ->  | AK2: =IF(Alumnos!D38="","",Alumnos!D38) ->  | AL2: =IF(Alumnos!D39="","",Alumnos!D39) ->  | AM2: =IF(Alumnos!D40="","",Alumnos!D40) -> 
B3: Ámbito científico-tecnológico | C3: Comp. Esp. 1 | D3: Criterio Evaluación 1.1 | E3: =IF(ACT!H4="","",ACT!H4) ->  | F3: =IF(ACT!I4="","",ACT!I4) ->  | G3: =IF(ACT!J4="","",ACT!J4) ->  | H3: =IF(ACT!K4="","",ACT!K4) ->  | I3: =IF(ACT!L4="","",ACT!L4) ->  | J3: =IF(ACT!M4="","",ACT!M4) ->  | K3: =IF(ACT!N4="","",ACT!N4) ->  | L3: =IF(ACT!O4="","",ACT!O4) ->  | M3: =IF(ACT!P4="","",ACT!P4) ->  | N3: =IF(ACT!Q4="","",ACT!Q4) ->  | O3: =IF(ACT!R4="","",ACT!R4) ->  | P3: =IF(ACT!S4="","",ACT!S4) ->  | Q3: =IF(ACT!T4="","",ACT!T4) ->  | R3: =IF(ACT!U4="","",ACT!U4) ->  | S3: =IF(ACT!V4="","",ACT!V4) ->  | T3: =IF(ACT!W4="","",ACT!W4) ->  | U3: =IF(ACT!X4="","",ACT!X4) ->  | V3: =IF(ACT!Y4="","",ACT!Y4) ->  | W3: =IF(ACT!Z4="","",ACT!Z4) ->  | X3: =IF(ACT!AA4="","",ACT!AA4) ->  | Y3: =IF(ACT!AB4="","",ACT!AB4) ->  | Z3: =IF(ACT!AC4="","",ACT!AC4) ->  | AA3: =IF(ACT!AD4="","",ACT!AD4) ->  | AB3: =IF(ACT!AE4="","",ACT!AE4) ->  | AC3: =IF(ACT!AF4="","",ACT!AF4) ->  | AD3: =IF(ACT!AG4="","",ACT!AG4) ->  | AE3: =IF(ACT!AH4="","",ACT!AH4) ->  | AF3: =IF(ACT!AI4="","",ACT!AI4) ->  | AG3: =IF(ACT!AJ4="","",ACT!AJ4) ->  | AH3: =IF(ACT!AK4="","",ACT!AK4) ->  | AI3: =IF(ACT!AL4="","",ACT!AL4) ->  | AJ3: =IF(ACT!AM4="","",ACT!AM4) ->  | AK3: =IF(ACT!AN4="","",ACT!AN4) ->  | AL3: =IF(ACT!AO4="","",ACT!AO4) ->  | AM3: =IF(ACT!AP4="","",ACT!AP4) -> 
D4: Criterio Evaluación 1.2 | E4: =IF(ACT!H5="","",ACT!H5) ->  | F4: =IF(ACT!I5="","",ACT!I5) ->  | G4: =IF(ACT!J5="","",ACT!J5) ->  | H4: =IF(ACT!K5="","",ACT!K5) ->  | I4: =IF(ACT!L5="","",ACT!L5) ->  | J4: =IF(ACT!M5="","",ACT!M5) ->  | K4: =IF(ACT!N5="","",ACT!N5) ->  | L4: =IF(ACT!O5="","",ACT!O5) ->  | M4: =IF(ACT!P5="","",ACT!P5) ->  | N4: =IF(ACT!Q5="","",ACT!Q5) ->  | O4: =IF(ACT!R5="","",ACT!R5) ->  | P4: =IF(ACT!S5="","",ACT!S5) ->  | Q4: =IF(ACT!T5="","",ACT!T5) ->  | R4: =IF(ACT!U5="","",ACT!U5) ->  | S4: =IF(ACT!V5="","",ACT!V5) ->  | T4: =IF(ACT!W5="","",ACT!W5) ->  | U4: =IF(ACT!X5="","",ACT!X5) ->  | V4: =IF(ACT!Y5="","",ACT!Y5) ->  | W4: =IF(ACT!Z5="","",ACT!Z5) ->  | X4: =IF(ACT!AA5="","",ACT!AA5) ->  | Y4: =IF(ACT!AB5="","",ACT!AB5) ->  | Z4: =IF(ACT!AC5="","",ACT!AC5) ->  | AA4: =IF(ACT!AD5="","",ACT!AD5) ->  | AB4: =IF(ACT!AE5="","",ACT!AE5) ->  | AC4: =IF(ACT!AF5="","",ACT!AF5) ->  | AD4: =IF(ACT!AG5="","",ACT!AG5) ->  | AE4: =IF(ACT!AH5="","",ACT!AH5) ->  | AF4: =IF(ACT!AI5="","",ACT!AI5) ->  | AG4: =IF(ACT!AJ5="","",ACT!AJ5) ->  | AH4: =IF(ACT!AK5="","",ACT!AK5) ->  | AI4: =IF(ACT!AL5="","",ACT!AL5) ->  | AJ4: =IF(ACT!AM5="","",ACT!AM5) ->  | AK4: =IF(ACT!AN5="","",ACT!AN5) ->  | AL4: =IF(ACT!AO5="","",ACT!AO5) ->  | AM4: =IF(ACT!AP5="","",ACT!AP5) -> 
D5: Criterio Evaluación 1.3 | E5: =IF(ACT!H6="","",ACT!H6) ->  | F5: =IF(ACT!I6="","",ACT!I6) ->  | G5: =IF(ACT!J6="","",ACT!J6) ->  | H5: =IF(ACT!K6="","",ACT!K6) ->  | I5: =IF(ACT!L6="","",ACT!L6) ->  | J5: =IF(ACT!M6="","",ACT!M6) ->  | K5: =IF(ACT!N6="","",ACT!N6) ->  | L5: =IF(ACT!O6="","",ACT!O6) ->  | M5: =IF(ACT!P6="","",ACT!P6) ->  | N5: =IF(ACT!Q6="","",ACT!Q6) ->  | O5: =IF(ACT!R6="","",ACT!R6) ->  | P5: =IF(ACT!S6="","",ACT!S6) ->  | Q5: =IF(ACT!T6="","",ACT!T6) ->  | R5: =IF(ACT!U6="","",ACT!U6) ->  | S5: =IF(ACT!V6="","",ACT!V6) ->  | T5: =IF(ACT!W6="","",ACT!W6) ->  | U5: =IF(ACT!X6="","",ACT!X6) ->  | V5: =IF(ACT!Y6="","",ACT!Y6) ->  | W5: =IF(ACT!Z6="","",ACT!Z6) ->  | X5: =IF(ACT!AA6="","",ACT!AA6) ->  | Y5: =IF(ACT!AB6="","",ACT!AB6) ->  | Z5: =IF(ACT!AC6="","",ACT!AC6) ->  | AA5: =IF(ACT!AD6="","",ACT!AD6) ->  | AB5: =IF(ACT!AE6="","",ACT!AE6) ->  | AC5: =IF(ACT!AF6="","",ACT!AF6) ->  | AD5: =IF(ACT!AG6="","",ACT!AG6) ->  | AE5: =IF(ACT!AH6="","",ACT!AH6) ->  | AF5: =IF(ACT!AI6="","",ACT!AI6) ->  | AG5: =IF(ACT!AJ6="","",ACT!AJ6) ->  | AH5: =IF(ACT!AK6="","",ACT!AK6) ->  | AI5: =IF(ACT!AL6="","",ACT!AL6) ->  | AJ5: =IF(ACT!AM6="","",ACT!AM6) ->  | AK5: =IF(ACT!AN6="","",ACT!AN6) ->  | AL5: =IF(ACT!AO6="","",ACT!AO6) ->  | AM5: =IF(ACT!AP6="","",ACT!AP6) -> 
C6: Comp. Esp. 2 | D6: Criterio Evaluación 2.1 | E6: =IF(ACT!H7="","",ACT!H7) ->  | F6: =IF(ACT!I7="","",ACT!I7) ->  | G6: =IF(ACT!J7="","",ACT!J7) ->  | H6: =IF(ACT!K7="","",ACT!K7) ->  | I6: =IF(ACT!L7="","",ACT!L7) ->  | J6: =IF(ACT!M7="","",ACT!M7) ->  | K6: =IF(ACT!N7="","",ACT!N7) ->  | L6: =IF(ACT!O7="","",ACT!O7) ->  | M6: =IF(ACT!P7="","",ACT!P7) ->  | N6: =IF(ACT!Q7="","",ACT!Q7) ->  | O6: =IF(ACT!R7="","",ACT!R7) ->  | P6: =IF(ACT!S7="","",ACT!S7) ->  | Q6: =IF(ACT!T7="","",ACT!T7) ->  | R6: =IF(ACT!U7="","",ACT!U7) ->  | S6: =IF(ACT!V7="","",ACT!V7) ->  | T6: =IF(ACT!W7="","",ACT!W7) ->  | U6: =IF(ACT!X7="","",ACT!X7) ->  | V6: =IF(ACT!Y7="","",ACT!Y7) ->  | W6: =IF(ACT!Z7="","",ACT!Z7) ->  | X6: =IF(ACT!AA7="","",ACT!AA7) ->  | Y6: =IF(ACT!AB7="","",ACT!AB7) ->  | Z6: =IF(ACT!AC7="","",ACT!AC7) ->  | AA6: =IF(ACT!AD7="","",ACT!AD7) ->  | AB6: =IF(ACT!AE7="","",ACT!AE7) ->  | AC6: =IF(ACT!AF7="","",ACT!AF7) ->  | AD6: =IF(ACT!AG7="","",ACT!AG7) ->  | AE6: =IF(ACT!AH7="","",ACT!AH7) ->  | AF6: =IF(ACT!AI7="","",ACT!AI7) ->  | AG6: =IF(ACT!AJ7="","",ACT!AJ7) ->  | AH6: =IF(ACT!AK7="","",ACT!AK7) ->  | AI6: =IF(ACT!AL7="","",ACT!AL7) ->  | AJ6: =IF(ACT!AM7="","",ACT!AM7) ->  | AK6: =IF(ACT!AN7="","",ACT!AN7) ->  | AL6: =IF(ACT!AO7="","",ACT!AO7) ->  | AM6: =IF(ACT!AP7="","",ACT!AP7) -> 
D7: Criterio Evaluación 2.2 | E7: =IF(ACT!H8="","",ACT!H8) ->  | F7: =IF(ACT!I8="","",ACT!I8) ->  | G7: =IF(ACT!J8="","",ACT!J8) ->  | H7: =IF(ACT!K8="","",ACT!K8) ->  | I7: =IF(ACT!L8="","",ACT!L8) ->  | J7: =IF(ACT!M8="","",ACT!M8) ->  | K7: =IF(ACT!N8="","",ACT!N8) ->  | L7: =IF(ACT!O8="","",ACT!O8) ->  | M7: =IF(ACT!P8="","",ACT!P8) ->  | N7: =IF(ACT!Q8="","",ACT!Q8) ->  | O7: =IF(ACT!R8="","",ACT!R8) ->  | P7: =IF(ACT!S8="","",ACT!S8) ->  | Q7: =IF(ACT!T8="","",ACT!T8) ->  | R7: =IF(ACT!U8="","",ACT!U8) ->  | S7: =IF(ACT!V8="","",ACT!V8) ->  | T7: =IF(ACT!W8="","",ACT!W8) ->  | U7: =IF(ACT!X8="","",ACT!X8) ->  | V7: =IF(ACT!Y8="","",ACT!Y8) ->  | W7: =IF(ACT!Z8="","",ACT!Z8) ->  | X7: =IF(ACT!AA8="","",ACT!AA8) ->  | Y7: =IF(ACT!AB8="","",ACT!AB8) ->  | Z7: =IF(ACT!AC8="","",ACT!AC8) ->  | AA7: =IF(ACT!AD8="","",ACT!AD8) ->  | AB7: =IF(ACT!AE8="","",ACT!AE8) ->  | AC7: =IF(ACT!AF8="","",ACT!AF8) ->  | AD7: =IF(ACT!AG8="","",ACT!AG8) ->  | AE7: =IF(ACT!AH8="","",ACT!AH8) ->  | AF7: =IF(ACT!AI8="","",ACT!AI8) ->  | AG7: =IF(ACT!AJ8="","",ACT!AJ8) ->  | AH7: =IF(ACT!AK8="","",ACT!AK8) ->  | AI7: =IF(ACT!AL8="","",ACT!AL8) ->  | AJ7: =IF(ACT!AM8="","",ACT!AM8) ->  | AK7: =IF(ACT!AN8="","",ACT!AN8) ->  | AL7: =IF(ACT!AO8="","",ACT!AO8) ->  | AM7: =IF(ACT!AP8="","",ACT!AP8) -> 
D8: Criterio Evaluación 2.3 | E8: =IF(ACT!H9="","",ACT!H9) ->  | F8: =IF(ACT!I9="","",ACT!I9) ->  | G8: =IF(ACT!J9="","",ACT!J9) ->  | H8: =IF(ACT!K9="","",ACT!K9) ->  | I8: =IF(ACT!L9="","",ACT!L9) ->  | J8: =IF(ACT!M9="","",ACT!M9) ->  | K8: =IF(ACT!N9="","",ACT!N9) ->  | L8: =IF(ACT!O9="","",ACT!O9) ->  | M8: =IF(ACT!P9="","",ACT!P9) ->  | N8: =IF(ACT!Q9="","",ACT!Q9) ->  | O8: =IF(ACT!R9="","",ACT!R9) ->  | P8: =IF(ACT!S9="","",ACT!S9) ->  | Q8: =IF(ACT!T9="","",ACT!T9) ->  | R8: =IF(ACT!U9="","",ACT!U9) ->  | S8: =IF(ACT!V9="","",ACT!V9) ->  | T8: =IF(ACT!W9="","",ACT!W9) ->  | U8: =IF(ACT!X9="","",ACT!X9) ->  | V8: =IF(ACT!Y9="","",ACT!Y9) ->  | W8: =IF(ACT!Z9="","",ACT!Z9) ->  | X8: =IF(ACT!AA9="","",ACT!AA9) ->  | Y8: =IF(ACT!AB9="","",ACT!AB9) ->  | Z8: =IF(ACT!AC9="","",ACT!AC9) ->  | AA8: =IF(ACT!AD9="","",ACT!AD9) ->  | AB8: =IF(ACT!AE9="","",ACT!AE9) ->  | AC8: =IF(ACT!AF9="","",ACT!AF9) ->  | AD8: =IF(ACT!AG9="","",ACT!AG9) ->  | AE8: =IF(ACT!AH9="","",ACT!AH9) ->  | AF8: =IF(ACT!AI9="","",ACT!AI9) ->  | AG8: =IF(ACT!AJ9="","",ACT!AJ9) ->  | AH8: =IF(ACT!AK9="","",ACT!AK9) ->  | AI8: =IF(ACT!AL9="","",ACT!AL9) ->  | AJ8: =IF(ACT!AM9="","",ACT!AM9) ->  | AK8: =IF(ACT!AN9="","",ACT!AN9) ->  | AL8: =IF(ACT!AO9="","",ACT!AO9) ->  | AM8: =IF(ACT!AP9="","",ACT!AP9) -> 
D9: Criterio Evaluación 2.4 | E9: =IF(ACT!H10="","",ACT!H10) ->  | F9: =IF(ACT!I10="","",ACT!I10) ->  | G9: =IF(ACT!J10="","",ACT!J10) ->  | H9: =IF(ACT!K10="","",ACT!K10) ->  | I9: =IF(ACT!L10="","",ACT!L10) ->  | J9: =IF(ACT!M10="","",ACT!M10) ->  | K9: =IF(ACT!N10="","",ACT!N10) ->  | L9: =IF(ACT!O10="","",ACT!O10) ->  | M9: =IF(ACT!P10="","",ACT!P10) ->  | N9: =IF(ACT!Q10="","",ACT!Q10) ->  | O9: =IF(ACT!R10="","",ACT!R10) ->  | P9: =IF(ACT!S10="","",ACT!S10) ->  | Q9: =IF(ACT!T10="","",ACT!T10) ->  | R9: =IF(ACT!U10="","",ACT!U10) ->  | S9: =IF(ACT!V10="","",ACT!V10) ->  | T9: =IF(ACT!W10="","",ACT!W10) ->  | U9: =IF(ACT!X10="","",ACT!X10) ->  | V9: =IF(ACT!Y10="","",ACT!Y10) ->  | W9: =IF(ACT!Z10="","",ACT!Z10) ->  | X9: =IF(ACT!AA10="","",ACT!AA10) ->  | Y9: =IF(ACT!AB10="","",ACT!AB10) ->  | Z9: =IF(ACT!AC10="","",ACT!AC10) ->  | AA9: =IF(ACT!AD10="","",ACT!AD10) ->  | AB9: =IF(ACT!AE10="","",ACT!AE10) ->  | AC9: =IF(ACT!AF10="","",ACT!AF10) ->  | AD9: =IF(ACT!AG10="","",ACT!AG10) ->  | AE9: =IF(ACT!AH10="","",ACT!AH10) ->  | AF9: =IF(ACT!AI10="","",ACT!AI10) ->  | AG9: =IF(ACT!AJ10="","",ACT!AJ10) ->  | AH9: =IF(ACT!AK10="","",ACT!AK10) ->  | AI9: =IF(ACT!AL10="","",ACT!AL10) ->  | AJ9: =IF(ACT!AM10="","",ACT!AM10) ->  | AK9: =IF(ACT!AN10="","",ACT!AN10) ->  | AL9: =IF(ACT!AO10="","",ACT!AO10) ->  | AM9: =IF(ACT!AP10="","",ACT!AP10) -> 
C10: Comp. Esp. 3 | D10: Criterio Evaluación 3.1 | E10: =IF(ACT!H11="","",ACT!H11) ->  | F10: =IF(ACT!I11="","",ACT!I11) ->  | G10: =IF(ACT!J11="","",ACT!J11) ->  | H10: =IF(ACT!K11="","",ACT!K11) ->  | I10: =IF(ACT!L11="","",ACT!L11) ->  | J10: =IF(ACT!M11="","",ACT!M11) ->  | K10: =IF(ACT!N11="","",ACT!N11) ->  | L10: =IF(ACT!O11="","",ACT!O11) ->  | M10: =IF(ACT!P11="","",ACT!P11) ->  | N10: =IF(ACT!Q11="","",ACT!Q11) ->  | O10: =IF(ACT!R11="","",ACT!R11) ->  | P10: =IF(ACT!S11="","",ACT!S11) ->  | Q10: =IF(ACT!T11="","",ACT!T11) ->  | R10: =IF(ACT!U11="","",ACT!U11) ->  | S10: =IF(ACT!V11="","",ACT!V11) ->  | T10: =IF(ACT!W11="","",ACT!W11) ->  | U10: =IF(ACT!X11="","",ACT!X11) ->  | V10: =IF(ACT!Y11="","",ACT!Y11) ->  | W10: =IF(ACT!Z11="","",ACT!Z11) ->  | X10: =IF(ACT!AA11="","",ACT!AA11) ->  | Y10: =IF(ACT!AB11="","",ACT!AB11) ->  | Z10: =IF(ACT!AC11="","",ACT!AC11) ->  | AA10: =IF(ACT!AD11="","",ACT!AD11) ->  | AB10: =IF(ACT!AE11="","",ACT!AE11) ->  | AC10: =IF(ACT!AF11="","",ACT!AF11) ->  | AD10: =IF(ACT!AG11="","",ACT!AG11) ->  | AE10: =IF(ACT!AH11="","",ACT!AH11) ->  | AF10: =IF(ACT!AI11="","",ACT!AI11) ->  | AG10: =IF(ACT!AJ11="","",ACT!AJ11) ->  | AH10: =IF(ACT!AK11="","",ACT!AK11) ->  | AI10: =IF(ACT!AL11="","",ACT!AL11) ->  | AJ10: =IF(ACT!AM11="","",ACT!AM11) ->  | AK10: =IF(ACT!AN11="","",ACT!AN11) ->  | AL10: =IF(ACT!AO11="","",ACT!AO11) ->  | AM10: =IF(ACT!AP11="","",ACT!AP11) -> 
D11: Criterio Evaluación 3.2 | E11: =IF(ACT!H12="","",ACT!H12) ->  | F11: =IF(ACT!I12="","",ACT!I12) ->  | G11: =IF(ACT!J12="","",ACT!J12) ->  | H11: =IF(ACT!K12="","",ACT!K12) ->  | I11: =IF(ACT!L12="","",ACT!L12) ->  | J11: =IF(ACT!M12="","",ACT!M12) ->  | K11: =IF(ACT!N12="","",ACT!N12) ->  | L11: =IF(ACT!O12="","",ACT!O12) ->  | M11: =IF(ACT!P12="","",ACT!P12) ->  | N11: =IF(ACT!Q12="","",ACT!Q12) ->  | O11: =IF(ACT!R12="","",ACT!R12) ->  | P11: =IF(ACT!S12="","",ACT!S12) ->  | Q11: =IF(ACT!T12="","",ACT!T12) ->  | R11: =IF(ACT!U12="","",ACT!U12) ->  | S11: =IF(ACT!V12="","",ACT!V12) ->  | T11: =IF(ACT!W12="","",ACT!W12) ->  | U11: =IF(ACT!X12="","",ACT!X12) ->  | V11: =IF(ACT!Y12="","",ACT!Y12) ->  | W11: =IF(ACT!Z12="","",ACT!Z12) ->  | X11: =IF(ACT!AA12="","",ACT!AA12) ->  | Y11: =IF(ACT!AB12="","",ACT!AB12) ->  | Z11: =IF(ACT!AC12="","",ACT!AC12) ->  | AA11: =IF(ACT!AD12="","",ACT!AD12) ->  | AB11: =IF(ACT!AE12="","",ACT!AE12) ->  | AC11: =IF(ACT!AF12="","",ACT!AF12) ->  | AD11: =IF(ACT!AG12="","",ACT!AG12) ->  | AE11: =IF(ACT!AH12="","",ACT!AH12) ->  | AF11: =IF(ACT!AI12="","",ACT!AI12) ->  | AG11: =IF(ACT!AJ12="","",ACT!AJ12) ->  | AH11: =IF(ACT!AK12="","",ACT!AK12) ->  | AI11: =IF(ACT!AL12="","",ACT!AL12) ->  | AJ11: =IF(ACT!AM12="","",ACT!AM12) ->  | AK11: =IF(ACT!AN12="","",ACT!AN12) ->  | AL11: =IF(ACT!AO12="","",ACT!AO12) ->  | AM11: =IF(ACT!AP12="","",ACT!AP12) -> 
D12: Criterio Evaluación 3.3 | E12: =IF(ACT!H13="","",ACT!H13) ->  | F12: =IF(ACT!I13="","",ACT!I13) ->  | G12: =IF(ACT!J13="","",ACT!J13) ->  | H12: =IF(ACT!K13="","",ACT!K13) ->  | I12: =IF(ACT!L13="","",ACT!L13) ->  | J12: =IF(ACT!M13="","",ACT!M13) ->  | K12: =IF(ACT!N13="","",ACT!N13) ->  | L12: =IF(ACT!O13="","",ACT!O13) ->  | M12: =IF(ACT!P13="","",ACT!P13) ->  | N12: =IF(ACT!Q13="","",ACT!Q13) ->  | O12: =IF(ACT!R13="","",ACT!R13) ->  | P12: =IF(ACT!S13="","",ACT!S13) ->  | Q12: =IF(ACT!T13="","",ACT!T13) ->  | R12: =IF(ACT!U13="","",ACT!U13) ->  | S12: =IF(ACT!V13="","",ACT!V13) ->  | T12: =IF(ACT!W13="","",ACT!W13) ->  | U12: =IF(ACT!X13="","",ACT!X13) ->  | V12: =IF(ACT!Y13="","",ACT!Y13) ->  | W12: =IF(ACT!Z13="","",ACT!Z13) ->  | X12: =IF(ACT!AA13="","",ACT!AA13) ->  | Y12: =IF(ACT!AB13="","",ACT!AB13) ->  | Z12: =IF(ACT!AC13="","",ACT!AC13) ->  | AA12: =IF(ACT!AD13="","",ACT!AD13) ->  | AB12: =IF(ACT!AE13="","",ACT!AE13) ->  | AC12: =IF(ACT!AF13="","",ACT!AF13) ->  | AD12: =IF(ACT!AG13="","",ACT!AG13) ->  | AE12: =IF(ACT!AH13="","",ACT!AH13) ->  | AF12: =IF(ACT!AI13="","",ACT!AI13) ->  | AG12: =IF(ACT!AJ13="","",ACT!AJ13) ->  | AH12: =IF(ACT!AK13="","",ACT!AK13) ->  | AI12: =IF(ACT!AL13="","",ACT!AL13) ->  | AJ12: =IF(ACT!AM13="","",ACT!AM13) ->  | AK12: =IF(ACT!AN13="","",ACT!AN13) ->  | AL12: =IF(ACT!AO13="","",ACT!AO13) ->  | AM12: =IF(ACT!AP13="","",ACT!AP13) -> 
D13: Criterio Evaluación 3.4 | E13: =IF(ACT!H14="","",ACT!H14) ->  | F13: =IF(ACT!I14="","",ACT!I14) ->  | G13: =IF(ACT!J14="","",ACT!J14) ->  | H13: =IF(ACT!K14="","",ACT!K14) ->  | I13: =IF(ACT!L14="","",ACT!L14) ->  | J13: =IF(ACT!M14="","",ACT!M14) ->  | K13: =IF(ACT!N14="","",ACT!N14) ->  | L13: =IF(ACT!O14="","",ACT!O14) ->  | M13: =IF(ACT!P14="","",ACT!P14) ->  | N13: =IF(ACT!Q14="","",ACT!Q14) ->  | O13: =IF(ACT!R14="","",ACT!R14) ->  | P13: =IF(ACT!S14="","",ACT!S14) ->  | Q13: =IF(ACT!T14="","",ACT!T14) ->  | R13: =IF(ACT!U14="","",ACT!U14) ->  | S13: =IF(ACT!V14="","",ACT!V14) ->  | T13: =IF(ACT!W14="","",ACT!W14) ->  | U13: =IF(ACT!X14="","",ACT!X14) ->  | V13: =IF(ACT!Y14="","",ACT!Y14) ->  | W13: =IF(ACT!Z14="","",ACT!Z14) ->  | X13: =IF(ACT!AA14="","",ACT!AA14) ->  | Y13: =IF(ACT!AB14="","",ACT!AB14) ->  | Z13: =IF(ACT!AC14="","",ACT!AC14) ->  | AA13: =IF(ACT!AD14="","",ACT!AD14) ->  | AB13: =IF(ACT!AE14="","",ACT!AE14) ->  | AC13: =IF(ACT!AF14="","",ACT!AF14) ->  | AD13: =IF(ACT!AG14="","",ACT!AG14) ->  | AE13: =IF(ACT!AH14="","",ACT!AH14) ->  | AF13: =IF(ACT!AI14="","",ACT!AI14) ->  | AG13: =IF(ACT!AJ14="","",ACT!AJ14) ->  | AH13: =IF(ACT!AK14="","",ACT!AK14) ->  | AI13: =IF(ACT!AL14="","",ACT!AL14) ->  | AJ13: =IF(ACT!AM14="","",ACT!AM14) ->  | AK13: =IF(ACT!AN14="","",ACT!AN14) ->  | AL13: =IF(ACT!AO14="","",ACT!AO14) ->  | AM13: =IF(ACT!AP14="","",ACT!AP14) -> 
D14: Criterio Evaluación 3.5 | E14: =IF(ACT!H15="","",ACT!H15) ->  | F14: =IF(ACT!I15="","",ACT!I15) ->  | G14: =IF(ACT!J15="","",ACT!J15) ->  | H14: =IF(ACT!K15="","",ACT!K15) ->  | I14: =IF(ACT!L15="","",ACT!L15) ->  | J14: =IF(ACT!M15="","",ACT!M15) ->  | K14: =IF(ACT!N15="","",ACT!N15) ->  | L14: =IF(ACT!O15="","",ACT!O15) ->  | M14: =IF(ACT!P15="","",ACT!P15) ->  | N14: =IF(ACT!Q15="","",ACT!Q15) ->  | O14: =IF(ACT!R15="","",ACT!R15) ->  | P14: =IF(ACT!S15="","",ACT!S15) ->  | Q14: =IF(ACT!T15="","",ACT!T15) ->  | R14: =IF(ACT!U15="","",ACT!U15) ->  | S14: =IF(ACT!V15="","",ACT!V15) ->  | T14: =IF(ACT!W15="","",ACT!W15) ->  | U14: =IF(ACT!X15="","",ACT!X15) ->  | V14: =IF(ACT!Y15="","",ACT!Y15) ->  | W14: =IF(ACT!Z15="","",ACT!Z15) ->  | X14: =IF(ACT!AA15="","",ACT!AA15) ->  | Y14: =IF(ACT!AB15="","",ACT!AB15) ->  | Z14: =IF(ACT!AC15="","",ACT!AC15) ->  | AA14: =IF(ACT!AD15="","",ACT!AD15) ->  | AB14: =IF(ACT!AE15="","",ACT!AE15) ->  | AC14: =IF(ACT!AF15="","",ACT!AF15) ->  | AD14: =IF(ACT!AG15="","",ACT!AG15) ->  | AE14: =IF(ACT!AH15="","",ACT!AH15) ->  | AF14: =IF(ACT!AI15="","",ACT!AI15) ->  | AG14: =IF(ACT!AJ15="","",ACT!AJ15) ->  | AH14: =IF(ACT!AK15="","",ACT!AK15) ->  | AI14: =IF(ACT!AL15="","",ACT!AL15) ->  | AJ14: =IF(ACT!AM15="","",ACT!AM15) ->  | AK14: =IF(ACT!AN15="","",ACT!AN15) ->  | AL14: =IF(ACT!AO15="","",ACT!AO15) ->  | AM14: =IF(ACT!AP15="","",ACT!AP15) -> 
C15: Comp. Esp. 4 | D15: Criterio Evaluación 4.1 | E15: =IF(ACT!H16="","",ACT!H16) ->  | F15: =IF(ACT!I16="","",ACT!I16) ->  | G15: =IF(ACT!J16="","",ACT!J16) ->  | H15: =IF(ACT!K16="","",ACT!K16) ->  | I15: =IF(ACT!L16="","",ACT!L16) ->  | J15: =IF(ACT!M16="","",ACT!M16) ->  | K15: =IF(ACT!N16="","",ACT!N16) ->  | L15: =IF(ACT!O16="","",ACT!O16) ->  | M15: =IF(ACT!P16="","",ACT!P16) ->  | N15: =IF(ACT!Q16="","",ACT!Q16) ->  | O15: =IF(ACT!R16="","",ACT!R16) ->  | P15: =IF(ACT!S16="","",ACT!S16) ->  | Q15: =IF(ACT!T16="","",ACT!T16) ->  | R15: =IF(ACT!U16="","",ACT!U16) ->  | S15: =IF(ACT!V16="","",ACT!V16) ->  | T15: =IF(ACT!W16="","",ACT!W16) ->  | U15: =IF(ACT!X16="","",ACT!X16) ->  | V15: =IF(ACT!Y16="","",ACT!Y16) ->  | W15: =IF(ACT!Z16="","",ACT!Z16) ->  | X15: =IF(ACT!AA16="","",ACT!AA16) ->  | Y15: =IF(ACT!AB16="","",ACT!AB16) ->  | Z15: =IF(ACT!AC16="","",ACT!AC16) ->  | AA15: =IF(ACT!AD16="","",ACT!AD16) ->  | AB15: =IF(ACT!AE16="","",ACT!AE16) ->  | AC15: =IF(ACT!AF16="","",ACT!AF16) ->  | AD15: =IF(ACT!AG16="","",ACT!AG16) ->  | AE15: =IF(ACT!AH16="","",ACT!AH16) ->  | AF15: =IF(ACT!AI16="","",ACT!AI16) ->  | AG15: =IF(ACT!AJ16="","",ACT!AJ16) ->  | AH15: =IF(ACT!AK16="","",ACT!AK16) ->  | AI15: =IF(ACT!AL16="","",ACT!AL16) ->  | AJ15: =IF(ACT!AM16="","",ACT!AM16) ->  | AK15: =IF(ACT!AN16="","",ACT!AN16) ->  | AL15: =IF(ACT!AO16="","",ACT!AO16) ->  | AM15: =IF(ACT!AP16="","",ACT!AP16) -> 
D16: Criterio Evaluación 4.2 | E16: =IF(ACT!H17="","",ACT!H17) ->  | F16: =IF(ACT!I17="","",ACT!I17) ->  | G16: =IF(ACT!J17="","",ACT!J17) ->  | H16: =IF(ACT!K17="","",ACT!K17) ->  | I16: =IF(ACT!L17="","",ACT!L17) ->  | J16: =IF(ACT!M17="","",ACT!M17) ->  | K16: =IF(ACT!N17="","",ACT!N17) ->  | L16: =IF(ACT!O17="","",ACT!O17) ->  | M16: =IF(ACT!P17="","",ACT!P17) ->  | N16: =IF(ACT!Q17="","",ACT!Q17) ->  | O16: =IF(ACT!R17="","",ACT!R17) ->  | P16: =IF(ACT!S17="","",ACT!S17) ->  | Q16: =IF(ACT!T17="","",ACT!T17) ->  | R16: =IF(ACT!U17="","",ACT!U17) ->  | S16: =IF(ACT!V17="","",ACT!V17) ->  | T16: =IF(ACT!W17="","",ACT!W17) ->  | U16: =IF(ACT!X17="","",ACT!X17) ->  | V16: =IF(ACT!Y17="","",ACT!Y17) ->  | W16: =IF(ACT!Z17="","",ACT!Z17) ->  | X16: =IF(ACT!AA17="","",ACT!AA17) ->  | Y16: =IF(ACT!AB17="","",ACT!AB17) ->  | Z16: =IF(ACT!AC17="","",ACT!AC17) ->  | AA16: =IF(ACT!AD17="","",ACT!AD17) ->  | AB16: =IF(ACT!AE17="","",ACT!AE17) ->  | AC16: =IF(ACT!AF17="","",ACT!AF17) ->  | AD16: =IF(ACT!AG17="","",ACT!AG17) ->  | AE16: =IF(ACT!AH17="","",ACT!AH17) ->  | AF16: =IF(ACT!AI17="","",ACT!AI17) ->  | AG16: =IF(ACT!AJ17="","",ACT!AJ17) ->  | AH16: =IF(ACT!AK17="","",ACT!AK17) ->  | AI16: =IF(ACT!AL17="","",ACT!AL17) ->  | AJ16: =IF(ACT!AM17="","",ACT!AM17) ->  | AK16: =IF(ACT!AN17="","",ACT!AN17) ->  | AL16: =IF(ACT!AO17="","",ACT!AO17) ->  | AM16: =IF(ACT!AP17="","",ACT!AP17) -> 
C17: Comp. Esp. 5 | D17: Criterio Evaluación 5.1 | E17: =IF(ACT!H18="","",ACT!H18) ->  | F17: =IF(ACT!I18="","",ACT!I18) ->  | G17: =IF(ACT!J18="","",ACT!J18) ->  | H17: =IF(ACT!K18="","",ACT!K18) ->  | I17: =IF(ACT!L18="","",ACT!L18) ->  | J17: =IF(ACT!M18="","",ACT!M18) ->  | K17: =IF(ACT!N18="","",ACT!N18) ->  | L17: =IF(ACT!O18="","",ACT!O18) ->  | M17: =IF(ACT!P18="","",ACT!P18) ->  | N17: =IF(ACT!Q18="","",ACT!Q18) ->  | O17: =IF(ACT!R18="","",ACT!R18) ->  | P17: =IF(ACT!S18="","",ACT!S18) ->  | Q17: =IF(ACT!T18="","",ACT!T18) ->  | R17: =IF(ACT!U18="","",ACT!U18) ->  | S17: =IF(ACT!V18="","",ACT!V18) ->  | T17: =IF(ACT!W18="","",ACT!W18) ->  | U17: =IF(ACT!X18="","",ACT!X18) ->  | V17: =IF(ACT!Y18="","",ACT!Y18) ->  | W17: =IF(ACT!Z18="","",ACT!Z18) ->  | X17: =IF(ACT!AA18="","",ACT!AA18) ->  | Y17: =IF(ACT!AB18="","",ACT!AB18) ->  | Z17: =IF(ACT!AC18="","",ACT!AC18) ->  | AA17: =IF(ACT!AD18="","",ACT!AD18) ->  | AB17: =IF(ACT!AE18="","",ACT!AE18) ->  | AC17: =IF(ACT!AF18="","",ACT!AF18) ->  | AD17: =IF(ACT!AG18="","",ACT!AG18) ->  | AE17: =IF(ACT!AH18="","",ACT!AH18) ->  | AF17: =IF(ACT!AI18="","",ACT!AI18) ->  | AG17: =IF(ACT!AJ18="","",ACT!AJ18) ->  | AH17: =IF(ACT!AK18="","",ACT!AK18) ->  | AI17: =IF(ACT!AL18="","",ACT!AL18) ->  | AJ17: =IF(ACT!AM18="","",ACT!AM18) ->  | AK17: =IF(ACT!AN18="","",ACT!AN18) ->  | AL17: =IF(ACT!AO18="","",ACT!AO18) ->  | AM17: =IF(ACT!AP18="","",ACT!AP18) -> 
D18: Criterio Evaluación 5.2 | E18: =IF(ACT!H19="","",ACT!H19) ->  | F18: =IF(ACT!I19="","",ACT!I19) ->  | G18: =IF(ACT!J19="","",ACT!J19) ->  | H18: =IF(ACT!K19="","",ACT!K19) ->  | I18: =IF(ACT!L19="","",ACT!L19) ->  | J18: =IF(ACT!M19="","",ACT!M19) ->  | K18: =IF(ACT!N19="","",ACT!N19) ->  | L18: =IF(ACT!O19="","",ACT!O19) ->  | M18: =IF(ACT!P19="","",ACT!P19) ->  | N18: =IF(ACT!Q19="","",ACT!Q19) ->  | O18: =IF(ACT!R19="","",ACT!R19) ->  | P18: =IF(ACT!S19="","",ACT!S19) ->  | Q18: =IF(ACT!T19="","",ACT!T19) ->  | R18: =IF(ACT!U19="","",ACT!U19) ->  | S18: =IF(ACT!V19="","",ACT!V19) ->  | T18: =IF(ACT!W19="","",ACT!W19) ->  | U18: =IF(ACT!X19="","",ACT!X19) ->  | V18: =IF(ACT!Y19="","",ACT!Y19) ->  | W18: =IF(ACT!Z19="","",ACT!Z19) ->  | X18: =IF(ACT!AA19="","",ACT!AA19) ->  | Y18: =IF(ACT!AB19="","",ACT!AB19) ->  | Z18: =IF(ACT!AC19="","",ACT!AC19) ->  | AA18: =IF(ACT!AD19="","",ACT!AD19) ->  | AB18: =IF(ACT!AE19="","",ACT!AE19) ->  | AC18: =IF(ACT!AF19="","",ACT!AF19) ->  | AD18: =IF(ACT!AG19="","",ACT!AG19) ->  | AE18: =IF(ACT!AH19="","",ACT!AH19) ->  | AF18: =IF(ACT!AI19="","",ACT!AI19) ->  | AG18: =IF(ACT!AJ19="","",ACT!AJ19) ->  | AH18: =IF(ACT!AK19="","",ACT!AK19) ->  | AI18: =IF(ACT!AL19="","",ACT!AL19) ->  | AJ18: =IF(ACT!AM19="","",ACT!AM19) ->  | AK18: =IF(ACT!AN19="","",ACT!AN19) ->  | AL18: =IF(ACT!AO19="","",ACT!AO19) ->  | AM18: =IF(ACT!AP19="","",ACT!AP19) -> 
D19: Criterio Evaluación 5.3 | E19: =IF(ACT!H20="","",ACT!H20) ->  | F19: =IF(ACT!I20="","",ACT!I20) ->  | G19: =IF(ACT!J20="","",ACT!J20) ->  | H19: =IF(ACT!K20="","",ACT!K20) ->  | I19: =IF(ACT!L20="","",ACT!L20) ->  | J19: =IF(ACT!M20="","",ACT!M20) ->  | K19: =IF(ACT!N20="","",ACT!N20) ->  | L19: =IF(ACT!O20="","",ACT!O20) ->  | M19: =IF(ACT!P20="","",ACT!P20) ->  | N19: =IF(ACT!Q20="","",ACT!Q20) ->  | O19: =IF(ACT!R20="","",ACT!R20) ->  | P19: =IF(ACT!S20="","",ACT!S20) ->  | Q19: =IF(ACT!T20="","",ACT!T20) ->  | R19: =IF(ACT!U20="","",ACT!U20) ->  | S19: =IF(ACT!V20="","",ACT!V20) ->  | T19: =IF(ACT!W20="","",ACT!W20) ->  | U19: =IF(ACT!X20="","",ACT!X20) ->  | V19: =IF(ACT!Y20="","",ACT!Y20) ->  | W19: =IF(ACT!Z20="","",ACT!Z20) ->  | X19: =IF(ACT!AA20="","",ACT!AA20) ->  | Y19: =IF(ACT!AB20="","",ACT!AB20) ->  | Z19: =IF(ACT!AC20="","",ACT!AC20) ->  | AA19: =IF(ACT!AD20="","",ACT!AD20) ->  | AB19: =IF(ACT!AE20="","",ACT!AE20) ->  | AC19: =IF(ACT!AF20="","",ACT!AF20) ->  | AD19: =IF(ACT!AG20="","",ACT!AG20) ->  | AE19: =IF(ACT!AH20="","",ACT!AH20) ->  | AF19: =IF(ACT!AI20="","",ACT!AI20) ->  | AG19: =IF(ACT!AJ20="","",ACT!AJ20) ->  | AH19: =IF(ACT!AK20="","",ACT!AK20) ->  | AI19: =IF(ACT!AL20="","",ACT!AL20) ->  | AJ19: =IF(ACT!AM20="","",ACT!AM20) ->  | AK19: =IF(ACT!AN20="","",ACT!AN20) ->  | AL19: =IF(ACT!AO20="","",ACT!AO20) ->  | AM19: =IF(ACT!AP20="","",ACT!AP20) -> 
C20: Comp. Esp. 6 | D20: Criterio Evaluación 6.1 | E20: =IF(ACT!H21="","",ACT!H21) ->  | F20: =IF(ACT!I21="","",ACT!I21) ->  | G20: =IF(ACT!J21="","",ACT!J21) ->  | H20: =IF(ACT!K21="","",ACT!K21) ->  | I20: =IF(ACT!L21="","",ACT!L21) ->  | J20: =IF(ACT!M21="","",ACT!M21) ->  | K20: =IF(ACT!N21="","",ACT!N21) ->  | L20: =IF(ACT!O21="","",ACT!O21) ->  | M20: =IF(ACT!P21="","",ACT!P21) ->  | N20: =IF(ACT!Q21="","",ACT!Q21) ->  | O20: =IF(ACT!R21="","",ACT!R21) ->  | P20: =IF(ACT!S21="","",ACT!S21) ->  | Q20: =IF(ACT!T21="","",ACT!T21) ->  | R20: =IF(ACT!U21="","",ACT!U21) ->  | S20: =IF(ACT!V21="","",ACT!V21) ->  | T20: =IF(ACT!W21="","",ACT!W21) ->  | U20: =IF(ACT!X21="","",ACT!X21) ->  | V20: =IF(ACT!Y21="","",ACT!Y21) ->  | W20: =IF(ACT!Z21="","",ACT!Z21) ->  | X20: =IF(ACT!AA21="","",ACT!AA21) ->  | Y20: =IF(ACT!AB21="","",ACT!AB21) ->  | Z20: =IF(ACT!AC21="","",ACT!AC21) ->  | AA20: =IF(ACT!AD21="","",ACT!AD21) ->  | AB20: =IF(ACT!AE21="","",ACT!AE21) ->  | AC20: =IF(ACT!AF21="","",ACT!AF21) ->  | AD20: =IF(ACT!AG21="","",ACT!AG21) ->  | AE20: =IF(ACT!AH21="","",ACT!AH21) ->  | AF20: =IF(ACT!AI21="","",ACT!AI21) ->  | AG20: =IF(ACT!AJ21="","",ACT!AJ21) ->  | AH20: =IF(ACT!AK21="","",ACT!AK21) ->  | AI20: =IF(ACT!AL21="","",ACT!AL21) ->  | AJ20: =IF(ACT!AM21="","",ACT!AM21) ->  | AK20: =IF(ACT!AN21="","",ACT!AN21) ->  | AL20: =IF(ACT!AO21="","",ACT!AO21) ->  | AM20: =IF(ACT!AP21="","",ACT!AP21) -> 
D21: Criterio Evaluación 6.2 | E21: =IF(ACT!H22="","",ACT!H22) ->  | F21: =IF(ACT!I22="","",ACT!I22) ->  | G21: =IF(ACT!J22="","",ACT!J22) ->  | H21: =IF(ACT!K22="","",ACT!K22) ->  | I21: =IF(ACT!L22="","",ACT!L22) ->  | J21: =IF(ACT!M22="","",ACT!M22) ->  | K21: =IF(ACT!N22="","",ACT!N22) ->  | L21: =IF(ACT!O22="","",ACT!O22) ->  | M21: =IF(ACT!P22="","",ACT!P22) ->  | N21: =IF(ACT!Q22="","",ACT!Q22) ->  | O21: =IF(ACT!R22="","",ACT!R22) ->  | P21: =IF(ACT!S22="","",ACT!S22) ->  | Q21: =IF(ACT!T22="","",ACT!T22) ->  | R21: =IF(ACT!U22="","",ACT!U22) ->  | S21: =IF(ACT!V22="","",ACT!V22) ->  | T21: =IF(ACT!W22="","",ACT!W22) ->  | U21: =IF(ACT!X22="","",ACT!X22) ->  | V21: =IF(ACT!Y22="","",ACT!Y22) ->  | W21: =IF(ACT!Z22="","",ACT!Z22) ->  | X21: =IF(ACT!AA22="","",ACT!AA22) ->  | Y21: =IF(ACT!AB22="","",ACT!AB22) ->  | Z21: =IF(ACT!AC22="","",ACT!AC22) ->  | AA21: =IF(ACT!AD22="","",ACT!AD22) ->  | AB21: =IF(ACT!AE22="","",ACT!AE22) ->  | AC21: =IF(ACT!AF22="","",ACT!AF22) ->  | AD21: =IF(ACT!AG22="","",ACT!AG22) ->  | AE21: =IF(ACT!AH22="","",ACT!AH22) ->  | AF21: =IF(ACT!AI22="","",ACT!AI22) ->  | AG21: =IF(ACT!AJ22="","",ACT!AJ22) ->  | AH21: =IF(ACT!AK22="","",ACT!AK22) ->  | AI21: =IF(ACT!AL22="","",ACT!AL22) ->  | AJ21: =IF(ACT!AM22="","",ACT!AM22) ->  | AK21: =IF(ACT!AN22="","",ACT!AN22) ->  | AL21: =IF(ACT!AO22="","",ACT!AO22) ->  | AM21: =IF(ACT!AP22="","",ACT!AP22) -> 
D22: Criterio Evaluación 6.3 | E22: =IF(ACT!H23="","",ACT!H23) ->  | F22: =IF(ACT!I23="","",ACT!I23) ->  | G22: =IF(ACT!J23="","",ACT!J23) ->  | H22: =IF(ACT!K23="","",ACT!K23) ->  | I22: =IF(ACT!L23="","",ACT!L23) ->  | J22: =IF(ACT!M23="","",ACT!M23) ->  | K22: =IF(ACT!N23="","",ACT!N23) ->  | L22: =IF(ACT!O23="","",ACT!O23) ->  | M22: =IF(ACT!P23="","",ACT!P23) ->  | N22: =IF(ACT!Q23="","",ACT!Q23) ->  | O22: =IF(ACT!R23="","",ACT!R23) ->  | P22: =IF(ACT!S23="","",ACT!S23) ->  | Q22: =IF(ACT!T23="","",ACT!T23) ->  | R22: =IF(ACT!U23="","",ACT!U23) ->  | S22: =IF(ACT!V23="","",ACT!V23) ->  | T22: =IF(ACT!W23="","",ACT!W23) ->  | U22: =IF(ACT!X23="","",ACT!X23) ->  | V22: =IF(ACT!Y23="","",ACT!Y23) ->  | W22: =IF(ACT!Z23="","",ACT!Z23) ->  | X22: =IF(ACT!AA23="","",ACT!AA23) ->  | Y22: =IF(ACT!AB23="","",ACT!AB23) ->  | Z22: =IF(ACT!AC23="","",ACT!AC23) ->  | AA22: =IF(ACT!AD23="","",ACT!AD23) ->  | AB22: =IF(ACT!AE23="","",ACT!AE23) ->  | AC22: =IF(ACT!AF23="","",ACT!AF23) ->  | AD22: =IF(ACT!AG23="","",ACT!AG23) ->  | AE22: =IF(ACT!AH23="","",ACT!AH23) ->  | AF22: =IF(ACT!AI23="","",ACT!AI23) ->  | AG22: =IF(ACT!AJ23="","",ACT!AJ23) ->  | AH22: =IF(ACT!AK23="","",ACT!AK23) ->  | AI22: =IF(ACT!AL23="","",ACT!AL23) ->  | AJ22: =IF(ACT!AM23="","",ACT!AM23) ->  | AK22: =IF(ACT!AN23="","",ACT!AN23) ->  | AL22: =IF(ACT!AO23="","",ACT!AO23) ->  | AM22: =IF(ACT!AP23="","",ACT!AP23) -> 
D23: Criterio Evaluación 6.4 | E23: =IF(ACT!H24="","",ACT!H24) ->  | F23: =IF(ACT!I24="","",ACT!I24) ->  | G23: =IF(ACT!J24="","",ACT!J24) ->  | H23: =IF(ACT!K24="","",ACT!K24) ->  | I23: =IF(ACT!L24="","",ACT!L24) ->  | J23: =IF(ACT!M24="","",ACT!M24) ->  | K23: =IF(ACT!N24="","",ACT!N24) ->  | L23: =IF(ACT!O24="","",ACT!O24) ->  | M23: =IF(ACT!P24="","",ACT!P24) ->  | N23: =IF(ACT!Q24="","",ACT!Q24) ->  | O23: =IF(ACT!R24="","",ACT!R24) ->  | P23: =IF(ACT!S24="","",ACT!S24) ->  | Q23: =IF(ACT!T24="","",ACT!T24) ->  | R23: =IF(ACT!U24="","",ACT!U24) ->  | S23: =IF(ACT!V24="","",ACT!V24) ->  | T23: =IF(ACT!W24="","",ACT!W24) ->  | U23: =IF(ACT!X24="","",ACT!X24) ->  | V23: =IF(ACT!Y24="","",ACT!Y24) ->  | W23: =IF(ACT!Z24="","",ACT!Z24) ->  | X23: =IF(ACT!AA24="","",ACT!AA24) ->  | Y23: =IF(ACT!AB24="","",ACT!AB24) ->  | Z23: =IF(ACT!AC24="","",ACT!AC24) ->  | AA23: =IF(ACT!AD24="","",ACT!AD24) ->  | AB23: =IF(ACT!AE24="","",ACT!AE24) ->  | AC23: =IF(ACT!AF24="","",ACT!AF24) ->  | AD23: =IF(ACT!AG24="","",ACT!AG24) ->  | AE23: =IF(ACT!AH24="","",ACT!AH24) ->  | AF23: =IF(ACT!AI24="","",ACT!AI24) ->  | AG23: =IF(ACT!AJ24="","",ACT!AJ24) ->  | AH23: =IF(ACT!AK24="","",ACT!AK24) ->  | AI23: =IF(ACT!AL24="","",ACT!AL24) ->  | AJ23: =IF(ACT!AM24="","",ACT!AM24) ->  | AK23: =IF(ACT!AN24="","",ACT!AN24) ->  | AL23: =IF(ACT!AO24="","",ACT!AO24) ->  | AM23: =IF(ACT!AP24="","",ACT!AP24) -> 
C24: Comp. Esp. 7 | D24: Criterio Evaluación 7.1 | E24: =IF(ACT!H25="","",ACT!H25) ->  | F24: =IF(ACT!I25="","",ACT!I25) ->  | G24: =IF(ACT!J25="","",ACT!J25) ->  | H24: =IF(ACT!K25="","",ACT!K25) ->  | I24: =IF(ACT!L25="","",ACT!L25) ->  | J24: =IF(ACT!M25="","",ACT!M25) ->  | K24: =IF(ACT!N25="","",ACT!N25) ->  | L24: =IF(ACT!O25="","",ACT!O25) ->  | M24: =IF(ACT!P25="","",ACT!P25) ->  | N24: =IF(ACT!Q25="","",ACT!Q25) ->  | O24: =IF(ACT!R25="","",ACT!R25) ->  | P24: =IF(ACT!S25="","",ACT!S25) ->  | Q24: =IF(ACT!T25="","",ACT!T25) ->  | R24: =IF(ACT!U25="","",ACT!U25) ->  | S24: =IF(ACT!V25="","",ACT!V25) ->  | T24: =IF(ACT!W25="","",ACT!W25) ->  | U24: =IF(ACT!X25="","",ACT!X25) ->  | V24: =IF(ACT!Y25="","",ACT!Y25) ->  | W24: =IF(ACT!Z25="","",ACT!Z25) ->  | X24: =IF(ACT!AA25="","",ACT!AA25) ->  | Y24: =IF(ACT!AB25="","",ACT!AB25) ->  | Z24: =IF(ACT!AC25="","",ACT!AC25) ->  | AA24: =IF(ACT!AD25="","",ACT!AD25) ->  | AB24: =IF(ACT!AE25="","",ACT!AE25) ->  | AC24: =IF(ACT!AF25="","",ACT!AF25) ->  | AD24: =IF(ACT!AG25="","",ACT!AG25) ->  | AE24: =IF(ACT!AH25="","",ACT!AH25) ->  | AF24: =IF(ACT!AI25="","",ACT!AI25) ->  | AG24: =IF(ACT!AJ25="","",ACT!AJ25) ->  | AH24: =IF(ACT!AK25="","",ACT!AK25) ->  | AI24: =IF(ACT!AL25="","",ACT!AL25) ->  | AJ24: =IF(ACT!AM25="","",ACT!AM25) ->  | AK24: =IF(ACT!AN25="","",ACT!AN25) ->  | AL24: =IF(ACT!AO25="","",ACT!AO25) ->  | AM24: =IF(ACT!AP25="","",ACT!AP25) -> 
D25: Criterio Evaluación 7.2 | E25: =IF(ACT!H26="","",ACT!H26) ->  | F25: =IF(ACT!I26="","",ACT!I26) ->  | G25: =IF(ACT!J26="","",ACT!J26) ->  | H25: =IF(ACT!K26="","",ACT!K26) ->  | I25: =IF(ACT!L26="","",ACT!L26) ->  | J25: =IF(ACT!M26="","",ACT!M26) ->  | K25: =IF(ACT!N26="","",ACT!N26) ->  | L25: =IF(ACT!O26="","",ACT!O26) ->  | M25: =IF(ACT!P26="","",ACT!P26) ->  | N25: =IF(ACT!Q26="","",ACT!Q26) ->  | O25: =IF(ACT!R26="","",ACT!R26) ->  | P25: =IF(ACT!S26="","",ACT!S26) ->  | Q25: =IF(ACT!T26="","",ACT!T26) ->  | R25: =IF(ACT!U26="","",ACT!U26) ->  | S25: =IF(ACT!V26="","",ACT!V26) ->  | T25: =IF(ACT!W26="","",ACT!W26) ->  | U25: =IF(ACT!X26="","",ACT!X26) ->  | V25: =IF(ACT!Y26="","",ACT!Y26) ->  | W25: =IF(ACT!Z26="","",ACT!Z26) ->  | X25: =IF(ACT!AA26="","",ACT!AA26) ->  | Y25: =IF(ACT!AB26="","",ACT!AB26) ->  | Z25: =IF(ACT!AC26="","",ACT!AC26) ->  | AA25: =IF(ACT!AD26="","",ACT!AD26) ->  | AB25: =IF(ACT!AE26="","",ACT!AE26) ->  | AC25: =IF(ACT!AF26="","",ACT!AF26) ->  | AD25: =IF(ACT!AG26="","",ACT!AG26) ->  | AE25: =IF(ACT!AH26="","",ACT!AH26) ->  | AF25: =IF(ACT!AI26="","",ACT!AI26) ->  | AG25: =IF(ACT!AJ26="","",ACT!AJ26) ->  | AH25: =IF(ACT!AK26="","",ACT!AK26) ->  | AI25: =IF(ACT!AL26="","",ACT!AL26) ->  | AJ25: =IF(ACT!AM26="","",ACT!AM26) ->  | AK25: =IF(ACT!AN26="","",ACT!AN26) ->  | AL25: =IF(ACT!AO26="","",ACT!AO26) ->  | AM25: =IF(ACT!AP26="","",ACT!AP26) -> 
B26: Ámbito lingüístico y social | C26: Comp. Esp. 1 | D26: Criterio Evaluación 1.1 | E26: =IF(ALYS!H4="","",ALYS!H4) ->  | F26: =IF(ALYS!I4="","",ALYS!I4) ->  | G26: =IF(ALYS!J4="","",ALYS!J4) ->  | H26: =IF(ALYS!K4="","",ALYS!K4) ->  | I26: =IF(ALYS!L4="","",ALYS!L4) ->  | J26: =IF(ALYS!M4="","",ALYS!M4) ->  | K26: =IF(ALYS!N4="","",ALYS!N4) ->  | L26: =IF(ALYS!O4="","",ALYS!O4) ->  | M26: =IF(ALYS!P4="","",ALYS!P4) ->  | N26: =IF(ALYS!Q4="","",ALYS!Q4) ->  | O26: =IF(ALYS!R4="","",ALYS!R4) ->  | P26: =IF(ALYS!S4="","",ALYS!S4) ->  | Q26: =IF(ALYS!T4="","",ALYS!T4) ->  | R26: =IF(ALYS!U4="","",ALYS!U4) ->  | S26: =IF(ALYS!V4="","",ALYS!V4) ->  | T26: =IF(ALYS!W4="","",ALYS!W4) ->  | U26: =IF(ALYS!X4="","",ALYS!X4) ->  | V26: =IF(ALYS!Y4="","",ALYS!Y4) ->  | W26: =IF(ALYS!Z4="","",ALYS!Z4) ->  | X26: =IF(ALYS!AA4="","",ALYS!AA4) ->  | Y26: =IF(ALYS!AB4="","",ALYS!AB4) ->  | Z26: =IF(ALYS!AC4="","",ALYS!AC4) ->  | AA26: =IF(ALYS!AD4="","",ALYS!AD4) ->  | AB26: =IF(ALYS!AE4="","",ALYS!AE4) ->  | AC26: =IF(ALYS!AF4="","",ALYS!AF4) ->  | AD26: =IF(ALYS!AG4="","",ALYS!AG4) ->  | AE26: =IF(ALYS!AH4="","",ALYS!AH4) ->  | AF26: =IF(ALYS!AI4="","",ALYS!AI4) ->  | AG26: =IF(ALYS!AJ4="","",ALYS!AJ4) ->  | AH26: =IF(ALYS!AK4="","",ALYS!AK4) ->  | AI26: =IF(ALYS!AL4="","",ALYS!AL4) ->  | AJ26: =IF(ALYS!AM4="","",ALYS!AM4) ->  | AK26: =IF(ALYS!AN4="","",ALYS!AN4) ->  | AL26: =IF(ALYS!AO4="","",ALYS!AO4) ->  | AM26: =IF(ALYS!AP4="","",ALYS!AP4) -> 
D27: Criterio Evaluación 1.2 | E27: =IF(ALYS!H5="","",ALYS!H5) ->  | F27: =IF(ALYS!I5="","",ALYS!I5) ->  | G27: =IF(ALYS!J5="","",ALYS!J5) ->  | H27: =IF(ALYS!K5="","",ALYS!K5) ->  | I27: =IF(ALYS!L5="","",ALYS!L5) ->  | J27: =IF(ALYS!M5="","",ALYS!M5) ->  | K27: =IF(ALYS!N5="","",ALYS!N5) ->  | L27: =IF(ALYS!O5="","",ALYS!O5) ->  | M27: =IF(ALYS!P5="","",ALYS!P5) ->  | N27: =IF(ALYS!Q5="","",ALYS!Q5) ->  | O27: =IF(ALYS!R5="","",ALYS!R5) ->  | P27: =IF(ALYS!S5="","",ALYS!S5) ->  | Q27: =IF(ALYS!T5="","",ALYS!T5) ->  | R27: =IF(ALYS!U5="","",ALYS!U5) ->  | S27: =IF(ALYS!V5="","",ALYS!V5) ->  | T27: =IF(ALYS!W5="","",ALYS!W5) ->  | U27: =IF(ALYS!X5="","",ALYS!X5) ->  | V27: =IF(ALYS!Y5="","",ALYS!Y5) ->  | W27: =IF(ALYS!Z5="","",ALYS!Z5) ->  | X27: =IF(ALYS!AA5="","",ALYS!AA5) ->  | Y27: =IF(ALYS!AB5="","",ALYS!AB5) ->  | Z27: =IF(ALYS!AC5="","",ALYS!AC5) ->  | AA27: =IF(ALYS!AD5="","",ALYS!AD5) ->  | AB27: =IF(ALYS!AE5="","",ALYS!AE5) ->  | AC27: =IF(ALYS!AF5="","",ALYS!AF5) ->  | AD27: =IF(ALYS!AG5="","",ALYS!AG5) ->  | AE27: =IF(ALYS!AH5="","",ALYS!AH5) ->  | AF27: =IF(ALYS!AI5="","",ALYS!AI5) ->  | AG27: =IF(ALYS!AJ5="","",ALYS!AJ5) ->  | AH27: =IF(ALYS!AK5="","",ALYS!AK5) ->  | AI27: =IF(ALYS!AL5="","",ALYS!AL5) ->  | AJ27: =IF(ALYS!AM5="","",ALYS!AM5) ->  | AK27: =IF(ALYS!AN5="","",ALYS!AN5) ->  | AL27: =IF(ALYS!AO5="","",ALYS!AO5) ->  | AM27: =IF(ALYS!AP5="","",ALYS!AP5) -> 
C28: Comp. Esp. 2 | D28: Criterio Evaluación 2.1 | E28: =IF(ALYS!H6="","",ALYS!H6) ->  | F28: =IF(ALYS!I6="","",ALYS!I6) ->  | G28: =IF(ALYS!J6="","",ALYS!J6) ->  | H28: =IF(ALYS!K6="","",ALYS!K6) ->  | I28: =IF(ALYS!L6="","",ALYS!L6) ->  | J28: =IF(ALYS!M6="","",ALYS!M6) ->  | K28: =IF(ALYS!N6="","",ALYS!N6) ->  | L28: =IF(ALYS!O6="","",ALYS!O6) ->  | M28: =IF(ALYS!P6="","",ALYS!P6) ->  | N28: =IF(ALYS!Q6="","",ALYS!Q6) ->  | O28: =IF(ALYS!R6="","",ALYS!R6) ->  | P28: =IF(ALYS!S6="","",ALYS!S6) ->  | Q28: =IF(ALYS!T6="","",ALYS!T6) ->  | R28: =IF(ALYS!U6="","",ALYS!U6) ->  | S28: =IF(ALYS!V6="","",ALYS!V6) ->  | T28: =IF(ALYS!W6="","",ALYS!W6) ->  | U28: =IF(ALYS!X6="","",ALYS!X6) ->  | V28: =IF(ALYS!Y6="","",ALYS!Y6) ->  | W28: =IF(ALYS!Z6="","",ALYS!Z6) ->  | X28: =IF(ALYS!AA6="","",ALYS!AA6) ->  | Y28: =IF(ALYS!AB6="","",ALYS!AB6) ->  | Z28: =IF(ALYS!AC6="","",ALYS!AC6) ->  | AA28: =IF(ALYS!AD6="","",ALYS!AD6) ->  | AB28: =IF(ALYS!AE6="","",ALYS!AE6) ->  | AC28: =IF(ALYS!AF6="","",ALYS!AF6) ->  | AD28: =IF(ALYS!AG6="","",ALYS!AG6) ->  | AE28: =IF(ALYS!AH6="","",ALYS!AH6) ->  | AF28: =IF(ALYS!AI6="","",ALYS!AI6) ->  | AG28: =IF(ALYS!AJ6="","",ALYS!AJ6) ->  | AH28: =IF(ALYS!AK6="","",ALYS!AK6) ->  | AI28: =IF(ALYS!AL6="","",ALYS!AL6) ->  | AJ28: =IF(ALYS!AM6="","",ALYS!AM6) ->  | AK28: =IF(ALYS!AN6="","",ALYS!AN6) ->  | AL28: =IF(ALYS!AO6="","",ALYS!AO6) ->  | AM28: =IF(ALYS!AP6="","",ALYS!AP6) -> 
D29: Criterio Evaluación 2.2 | E29: =IF(ALYS!H7="","",ALYS!H7) ->  | F29: =IF(ALYS!I7="","",ALYS!I7) ->  | G29: =IF(ALYS!J7="","",ALYS!J7) ->  | H29: =IF(ALYS!K7="","",ALYS!K7) ->  | I29: =IF(ALYS!L7="","",ALYS!L7) ->  | J29: =IF(ALYS!M7="","",ALYS!M7) ->  | K29: =IF(ALYS!N7="","",ALYS!N7) ->  | L29: =IF(ALYS!O7="","",ALYS!O7) ->  | M29: =IF(ALYS!P7="","",ALYS!P7) ->  | N29: =IF(ALYS!Q7="","",ALYS!Q7) ->  | O29: =IF(ALYS!R7="","",ALYS!R7) ->  | P29: =IF(ALYS!S7="","",ALYS!S7) ->  | Q29: =IF(ALYS!T7="","",ALYS!T7) ->  | R29: =IF(ALYS!U7="","",ALYS!U7) ->  | S29: =IF(ALYS!V7="","",ALYS!V7) ->  | T29: =IF(ALYS!W7="","",ALYS!W7) ->  | U29: =IF(ALYS!X7="","",ALYS!X7) ->  | V29: =IF(ALYS!Y7="","",ALYS!Y7) ->  | W29: =IF(ALYS!Z7="","",ALYS!Z7) ->  | X29: =IF(ALYS!AA7="","",ALYS!AA7) ->  | Y29: =IF(ALYS!AB7="","",ALYS!AB7) ->  | Z29: =IF(ALYS!AC7="","",ALYS!AC7) ->  | AA29: =IF(ALYS!AD7="","",ALYS!AD7) ->  | AB29: =IF(ALYS!AE7="","",ALYS!AE7) ->  | AC29: =IF(ALYS!AF7="","",ALYS!AF7) ->  | AD29: =IF(ALYS!AG7="","",ALYS!AG7) ->  | AE29: =IF(ALYS!AH7="","",ALYS!AH7) ->  | AF29: =IF(ALYS!AI7="","",ALYS!AI7) ->  | AG29: =IF(ALYS!AJ7="","",ALYS!AJ7) ->  | AH29: =IF(ALYS!AK7="","",ALYS!AK7) ->  | AI29: =IF(ALYS!AL7="","",ALYS!AL7) ->  | AJ29: =IF(ALYS!AM7="","",ALYS!AM7) ->  | AK29: =IF(ALYS!AN7="","",ALYS!AN7) ->  | AL29: =IF(ALYS!AO7="","",ALYS!AO7) ->  | AM29: =IF(ALYS!AP7="","",ALYS!AP7) -> 
D30: Criterio Evaluación 2.3 | E30: =IF(ALYS!H8="","",ALYS!H8) ->  | F30: =IF(ALYS!I8="","",ALYS!I8) ->  | G30: =IF(ALYS!J8="","",ALYS!J8) ->  | H30: =IF(ALYS!K8="","",ALYS!K8) ->  | I30: =IF(ALYS!L8="","",ALYS!L8) ->  | J30: =IF(ALYS!M8="","",ALYS!M8) ->  | K30: =IF(ALYS!N8="","",ALYS!N8) ->  | L30: =IF(ALYS!O8="","",ALYS!O8) ->  | M30: =IF(ALYS!P8="","",ALYS!P8) ->  | N30: =IF(ALYS!Q8="","",ALYS!Q8) ->  | O30: =IF(ALYS!R8="","",ALYS!R8) ->  | P30: =IF(ALYS!S8="","",ALYS!S8) ->  | Q30: =IF(ALYS!T8="","",ALYS!T8) ->  | R30: =IF(ALYS!U8="","",ALYS!U8) ->  | S30: =IF(ALYS!V8="","",ALYS!V8) ->  | T30: =IF(ALYS!W8="","",ALYS!W8) ->  | U30: =IF(ALYS!X8="","",ALYS!X8) ->  | V30: =IF(ALYS!Y8="","",ALYS!Y8) ->  | W30: =IF(ALYS!Z8="","",ALYS!Z8) ->  | X30: =IF(ALYS!AA8="","",ALYS!AA8) ->  | Y30: =IF(ALYS!AB8="","",ALYS!AB8) ->  | Z30: =IF(ALYS!AC8="","",ALYS!AC8) ->  | AA30: =IF(ALYS!AD8="","",ALYS!AD8) ->  | AB30: =IF(ALYS!AE8="","",ALYS!AE8) ->  | AC30: =IF(ALYS!AF8="","",ALYS!AF8) ->  | AD30: =IF(ALYS!AG8="","",ALYS!AG8) ->  | AE30: =IF(ALYS!AH8="","",ALYS!AH8) ->  | AF30: =IF(ALYS!AI8="","",ALYS!AI8) ->  | AG30: =IF(ALYS!AJ8="","",ALYS!AJ8) ->  | AH30: =IF(ALYS!AK8="","",ALYS!AK8) ->  | AI30: =IF(ALYS!AL8="","",ALYS!AL8) ->  | AJ30: =IF(ALYS!AM8="","",ALYS!AM8) ->  | AK30: =IF(ALYS!AN8="","",ALYS!AN8) ->  | AL30: =IF(ALYS!AO8="","",ALYS!AO8) ->  | AM30: =IF(ALYS!AP8="","",ALYS!AP8) -> 
D31: Criterio Evaluación 2.4 | E31: =IF(ALYS!H9="","",ALYS!H9) ->  | F31: =IF(ALYS!I9="","",ALYS!I9) ->  | G31: =IF(ALYS!J9="","",ALYS!J9) ->  | H31: =IF(ALYS!K9="","",ALYS!K9) ->  | I31: =IF(ALYS!L9="","",ALYS!L9) ->  | J31: =IF(ALYS!M9="","",ALYS!M9) ->  | K31: =IF(ALYS!N9="","",ALYS!N9) ->  | L31: =IF(ALYS!O9="","",ALYS!O9) ->  | M31: =IF(ALYS!P9="","",ALYS!P9) ->  | N31: =IF(ALYS!Q9="","",ALYS!Q9) ->  | O31: =IF(ALYS!R9="","",ALYS!R9) ->  | P31: =IF(ALYS!S9="","",ALYS!S9) ->  | Q31: =IF(ALYS!T9="","",ALYS!T9) ->  | R31: =IF(ALYS!U9="","",ALYS!U9) ->  | S31: =IF(ALYS!V9="","",ALYS!V9) ->  | T31: =IF(ALYS!W9="","",ALYS!W9) ->  | U31: =IF(ALYS!X9="","",ALYS!X9) ->  | V31: =IF(ALYS!Y9="","",ALYS!Y9) ->  | W31: =IF(ALYS!Z9="","",ALYS!Z9) ->  | X31: =IF(ALYS!AA9="","",ALYS!AA9) ->  | Y31: =IF(ALYS!AB9="","",ALYS!AB9) ->  | Z31: =IF(ALYS!AC9="","",ALYS!AC9) ->  | AA31: =IF(ALYS!AD9="","",ALYS!AD9) ->  | AB31: =IF(ALYS!AE9="","",ALYS!AE9) ->  | AC31: =IF(ALYS!AF9="","",ALYS!AF9) ->  | AD31: =IF(ALYS!AG9="","",ALYS!AG9) ->  | AE31: =IF(ALYS!AH9="","",ALYS!AH9) ->  | AF31: =IF(ALYS!AI9="","",ALYS!AI9) ->  | AG31: =IF(ALYS!AJ9="","",ALYS!AJ9) ->  | AH31: =IF(ALYS!AK9="","",ALYS!AK9) ->  | AI31: =IF(ALYS!AL9="","",ALYS!AL9) ->  | AJ31: =IF(ALYS!AM9="","",ALYS!AM9) ->  | AK31: =IF(ALYS!AN9="","",ALYS!AN9) ->  | AL31: =IF(ALYS!AO9="","",ALYS!AO9) ->  | AM31: =IF(ALYS!AP9="","",ALYS!AP9) -> 
C32: Comp. Esp. 3 | D32: Criterio Evaluación 3.1 | E32: =IF(ALYS!H10="","",ALYS!H10) ->  | F32: =IF(ALYS!I10="","",ALYS!I10) ->  | G32: =IF(ALYS!J10="","",ALYS!J10) ->  | H32: =IF(ALYS!K10="","",ALYS!K10) ->  | I32: =IF(ALYS!L10="","",ALYS!L10) ->  | J32: =IF(ALYS!M10="","",ALYS!M10) ->  | K32: =IF(ALYS!N10="","",ALYS!N10) ->  | L32: =IF(ALYS!O10="","",ALYS!O10) ->  | M32: =IF(ALYS!P10="","",ALYS!P10) ->  | N32: =IF(ALYS!Q10="","",ALYS!Q10) ->  | O32: =IF(ALYS!R10="","",ALYS!R10) ->  | P32: =IF(ALYS!S10="","",ALYS!S10) ->  | Q32: =IF(ALYS!T10="","",ALYS!T10) ->  | R32: =IF(ALYS!U10="","",ALYS!U10) ->  | S32: =IF(ALYS!V10="","",ALYS!V10) ->  | T32: =IF(ALYS!W10="","",ALYS!W10) ->  | U32: =IF(ALYS!X10="","",ALYS!X10) ->  | V32: =IF(ALYS!Y10="","",ALYS!Y10) ->  | W32: =IF(ALYS!Z10="","",ALYS!Z10) ->  | X32: =IF(ALYS!AA10="","",ALYS!AA10) ->  | Y32: =IF(ALYS!AB10="","",ALYS!AB10) ->  | Z32: =IF(ALYS!AC10="","",ALYS!AC10) ->  | AA32: =IF(ALYS!AD10="","",ALYS!AD10) ->  | AB32: =IF(ALYS!AE10="","",ALYS!AE10) ->  | AC32: =IF(ALYS!AF10="","",ALYS!AF10) ->  | AD32: =IF(ALYS!AG10="","",ALYS!AG10) ->  | AE32: =IF(ALYS!AH10="","",ALYS!AH10) ->  | AF32: =IF(ALYS!AI10="","",ALYS!AI10) ->  | AG32: =IF(ALYS!AJ10="","",ALYS!AJ10) ->  | AH32: =IF(ALYS!AK10="","",ALYS!AK10) ->  | AI32: =IF(ALYS!AL10="","",ALYS!AL10) ->  | AJ32: =IF(ALYS!AM10="","",ALYS!AM10) ->  | AK32: =IF(ALYS!AN10="","",ALYS!AN10) ->  | AL32: =IF(ALYS!AO10="","",ALYS!AO10) ->  | AM32: =IF(ALYS!AP10="","",ALYS!AP10) -> 
D33: Criterio Evaluación 3.2 | E33: =IF(ALYS!H11="","",ALYS!H11) ->  | F33: =IF(ALYS!I11="","",ALYS!I11) ->  | G33: =IF(ALYS!J11="","",ALYS!J11) ->  | H33: =IF(ALYS!K11="","",ALYS!K11) ->  | I33: =IF(ALYS!L11="","",ALYS!L11) ->  | J33: =IF(ALYS!M11="","",ALYS!M11) ->  | K33: =IF(ALYS!N11="","",ALYS!N11) ->  | L33: =IF(ALYS!O11="","",ALYS!O11) ->  | M33: =IF(ALYS!P11="","",ALYS!P11) ->  | N33: =IF(ALYS!Q11="","",ALYS!Q11) ->  | O33: =IF(ALYS!R11="","",ALYS!R11) ->  | P33: =IF(ALYS!S11="","",ALYS!S11) ->  | Q33: =IF(ALYS!T11="","",ALYS!T11) ->  | R33: =IF(ALYS!U11="","",ALYS!U11) ->  | S33: =IF(ALYS!V11="","",ALYS!V11) ->  | T33: =IF(ALYS!W11="","",ALYS!W11) ->  | U33: =IF(ALYS!X11="","",ALYS!X11) ->  | V33: =IF(ALYS!Y11="","",ALYS!Y11) ->  | W33: =IF(ALYS!Z11="","",ALYS!Z11) ->  | X33: =IF(ALYS!AA11="","",ALYS!AA11) ->  | Y33: =IF(ALYS!AB11="","",ALYS!AB11) ->  | Z33: =IF(ALYS!AC11="","",ALYS!AC11) ->  | AA33: =IF(ALYS!AD11="","",ALYS!AD11) ->  | AB33: =IF(ALYS!AE11="","",ALYS!AE11) ->  | AC33: =IF(ALYS!AF11="","",ALYS!AF11) ->  | AD33: =IF(ALYS!AG11="","",ALYS!AG11) ->  | AE33: =IF(ALYS!AH11="","",ALYS!AH11) ->  | AF33: =IF(ALYS!AI11="","",ALYS!AI11) ->  | AG33: =IF(ALYS!AJ11="","",ALYS!AJ11) ->  | AH33: =IF(ALYS!AK11="","",ALYS!AK11) ->  | AI33: =IF(ALYS!AL11="","",ALYS!AL11) ->  | AJ33: =IF(ALYS!AM11="","",ALYS!AM11) ->  | AK33: =IF(ALYS!AN11="","",ALYS!AN11) ->  | AL33: =IF(ALYS!AO11="","",ALYS!AO11) ->  | AM33: =IF(ALYS!AP11="","",ALYS!AP11) -> 
D34: Criterio Evaluación 3.3 | E34: =IF(ALYS!H12="","",ALYS!H12) ->  | F34: =IF(ALYS!I12="","",ALYS!I12) ->  | G34: =IF(ALYS!J12="","",ALYS!J12) ->  | H34: =IF(ALYS!K12="","",ALYS!K12) ->  | I34: =IF(ALYS!L12="","",ALYS!L12) ->  | J34: =IF(ALYS!M12="","",ALYS!M12) ->  | K34: =IF(ALYS!N12="","",ALYS!N12) ->  | L34: =IF(ALYS!O12="","",ALYS!O12) ->  | M34: =IF(ALYS!P12="","",ALYS!P12) ->  | N34: =IF(ALYS!Q12="","",ALYS!Q12) ->  | O34: =IF(ALYS!R12="","",ALYS!R12) ->  | P34: =IF(ALYS!S12="","",ALYS!S12) ->  | Q34: =IF(ALYS!T12="","",ALYS!T12) ->  | R34: =IF(ALYS!U12="","",ALYS!U12) ->  | S34: =IF(ALYS!V12="","",ALYS!V12) ->  | T34: =IF(ALYS!W12="","",ALYS!W12) ->  | U34: =IF(ALYS!X12="","",ALYS!X12) ->  | V34: =IF(ALYS!Y12="","",ALYS!Y12) ->  | W34: =IF(ALYS!Z12="","",ALYS!Z12) ->  | X34: =IF(ALYS!AA12="","",ALYS!AA12) ->  | Y34: =IF(ALYS!AB12="","",ALYS!AB12) ->  | Z34: =IF(ALYS!AC12="","",ALYS!AC12) ->  | AA34: =IF(ALYS!AD12="","",ALYS!AD12) ->  | AB34: =IF(ALYS!AE12="","",ALYS!AE12) ->  | AC34: =IF(ALYS!AF12="","",ALYS!AF12) ->  | AD34: =IF(ALYS!AG12="","",ALYS!AG12) ->  | AE34: =IF(ALYS!AH12="","",ALYS!AH12) ->  | AF34: =IF(ALYS!AI12="","",ALYS!AI12) ->  | AG34: =IF(ALYS!AJ12="","",ALYS!AJ12) ->  | AH34: =IF(ALYS!AK12="","",ALYS!AK12) ->  | AI34: =IF(ALYS!AL12="","",ALYS!AL12) ->  | AJ34: =IF(ALYS!AM12="","",ALYS!AM12) ->  | AK34: =IF(ALYS!AN12="","",ALYS!AN12) ->  | AL34: =IF(ALYS!AO12="","",ALYS!AO12) ->  | AM34: =IF(ALYS!AP12="","",ALYS!AP12) -> 
C35: Comp. Esp. 4 | D35: Criterio Evaluación 4.1 | E35: =IF(ALYS!H13="","",ALYS!H13) ->  | F35: =IF(ALYS!I13="","",ALYS!I13) ->  | G35: =IF(ALYS!J13="","",ALYS!J13) ->  | H35: =IF(ALYS!K13="","",ALYS!K13) ->  | I35: =IF(ALYS!L13="","",ALYS!L13) ->  | J35: =IF(ALYS!M13="","",ALYS!M13) ->  | K35: =IF(ALYS!N13="","",ALYS!N13) ->  | L35: =IF(ALYS!O13="","",ALYS!O13) ->  | M35: =IF(ALYS!P13="","",ALYS!P13) ->  | N35: =IF(ALYS!Q13="","",ALYS!Q13) ->  | O35: =IF(ALYS!R13="","",ALYS!R13) ->  | P35: =IF(ALYS!S13="","",ALYS!S13) ->  | Q35: =IF(ALYS!T13="","",ALYS!T13) ->  | R35: =IF(ALYS!U13="","",ALYS!U13) ->  | S35: =IF(ALYS!V13="","",ALYS!V13) ->  | T35: =IF(ALYS!W13="","",ALYS!W13) ->  | U35: =IF(ALYS!X13="","",ALYS!X13) ->  | V35: =IF(ALYS!Y13="","",ALYS!Y13) ->  | W35: =IF(ALYS!Z13="","",ALYS!Z13) ->  | X35: =IF(ALYS!AA13="","",ALYS!AA13) ->  | Y35: =IF(ALYS!AB13="","",ALYS!AB13) ->  | Z35: =IF(ALYS!AC13="","",ALYS!AC13) ->  | AA35: =IF(ALYS!AD13="","",ALYS!AD13) ->  | AB35: =IF(ALYS!AE13="","",ALYS!AE13) ->  | AC35: =IF(ALYS!AF13="","",ALYS!AF13) ->  | AD35: =IF(ALYS!AG13="","",ALYS!AG13) ->  | AE35: =IF(ALYS!AH13="","",ALYS!AH13) ->  | AF35: =IF(ALYS!AI13="","",ALYS!AI13) ->  | AG35: =IF(ALYS!AJ13="","",ALYS!AJ13) ->  | AH35: =IF(ALYS!AK13="","",ALYS!AK13) ->  | AI35: =IF(ALYS!AL13="","",ALYS!AL13) ->  | AJ35: =IF(ALYS!AM13="","",ALYS!AM13) ->  | AK35: =IF(ALYS!AN13="","",ALYS!AN13) ->  | AL35: =IF(ALYS!AO13="","",ALYS!AO13) ->  | AM35: =IF(ALYS!AP13="","",ALYS!AP13) -> 
D36: Criterio Evaluación 4.2 | E36: =IF(ALYS!H14="","",ALYS!H14) ->  | F36: =IF(ALYS!I14="","",ALYS!I14) ->  | G36: =IF(ALYS!J14="","",ALYS!J14) ->  | H36: =IF(ALYS!K14="","",ALYS!K14) ->  | I36: =IF(ALYS!L14="","",ALYS!L14) ->  | J36: =IF(ALYS!M14="","",ALYS!M14) ->  | K36: =IF(ALYS!N14="","",ALYS!N14) ->  | L36: =IF(ALYS!O14="","",ALYS!O14) ->  | M36: =IF(ALYS!P14="","",ALYS!P14) ->  | N36: =IF(ALYS!Q14="","",ALYS!Q14) ->  | O36: =IF(ALYS!R14="","",ALYS!R14) ->  | P36: =IF(ALYS!S14="","",ALYS!S14) ->  | Q36: =IF(ALYS!T14="","",ALYS!T14) ->  | R36: =IF(ALYS!U14="","",ALYS!U14) ->  | S36: =IF(ALYS!V14="","",ALYS!V14) ->  | T36: =IF(ALYS!W14="","",ALYS!W14) ->  | U36: =IF(ALYS!X14="","",ALYS!X14) ->  | V36: =IF(ALYS!Y14="","",ALYS!Y14) ->  | W36: =IF(ALYS!Z14="","",ALYS!Z14) ->  | X36: =IF(ALYS!AA14="","",ALYS!AA14) ->  | Y36: =IF(ALYS!AB14="","",ALYS!AB14) ->  | Z36: =IF(ALYS!AC14="","",ALYS!AC14) ->  | AA36: =IF(ALYS!AD14="","",ALYS!AD14) ->  | AB36: =IF(ALYS!AE14="","",ALYS!AE14) ->  | AC36: =IF(ALYS!AF14="","",ALYS!AF14) ->  | AD36: =IF(ALYS!AG14="","",ALYS!AG14) ->  | AE36: =IF(ALYS!AH14="","",ALYS!AH14) ->  | AF36: =IF(ALYS!AI14="","",ALYS!AI14) ->  | AG36: =IF(ALYS!AJ14="","",ALYS!AJ14) ->  | AH36: =IF(ALYS!AK14="","",ALYS!AK14) ->  | AI36: =IF(ALYS!AL14="","",ALYS!AL14) ->  | AJ36: =IF(ALYS!AM14="","",ALYS!AM14) ->  | AK36: =IF(ALYS!AN14="","",ALYS!AN14) ->  | AL36: =IF(ALYS!AO14="","",ALYS!AO14) ->  | AM36: =IF(ALYS!AP14="","",ALYS!AP14) -> 
C37: Comp. Esp. 5 | D37: Criterio Evaluación 5.1 | E37: =IF(ALYS!H15="","",ALYS!H15) ->  | F37: =IF(ALYS!I15="","",ALYS!I15) ->  | G37: =IF(ALYS!J15="","",ALYS!J15) ->  | H37: =IF(ALYS!K15="","",ALYS!K15) ->  | I37: =IF(ALYS!L15="","",ALYS!L15) ->  | J37: =IF(ALYS!M15="","",ALYS!M15) ->  | K37: =IF(ALYS!N15="","",ALYS!N15) ->  | L37: =IF(ALYS!O15="","",ALYS!O15) ->  | M37: =IF(ALYS!P15="","",ALYS!P15) ->  | N37: =IF(ALYS!Q15="","",ALYS!Q15) ->  | O37: =IF(ALYS!R15="","",ALYS!R15) ->  | P37: =IF(ALYS!S15="","",ALYS!S15) ->  | Q37: =IF(ALYS!T15="","",ALYS!T15) ->  | R37: =IF(ALYS!U15="","",ALYS!U15) ->  | S37: =IF(ALYS!V15="","",ALYS!V15) ->  | T37: =IF(ALYS!W15="","",ALYS!W15) ->  | U37: =IF(ALYS!X15="","",ALYS!X15) ->  | V37: =IF(ALYS!Y15="","",ALYS!Y15) ->  | W37: =IF(ALYS!Z15="","",ALYS!Z15) ->  | X37: =IF(ALYS!AA15="","",ALYS!AA15) ->  | Y37: =IF(ALYS!AB15="","",ALYS!AB15) ->  | Z37: =IF(ALYS!AC15="","",ALYS!AC15) ->  | AA37: =IF(ALYS!AD15="","",ALYS!AD15) ->  | AB37: =IF(ALYS!AE15="","",ALYS!AE15) ->  | AC37: =IF(ALYS!AF15="","",ALYS!AF15) ->  | AD37: =IF(ALYS!AG15="","",ALYS!AG15) ->  | AE37: =IF(ALYS!AH15="","",ALYS!AH15) ->  | AF37: =IF(ALYS!AI15="","",ALYS!AI15) ->  | AG37: =IF(ALYS!AJ15="","",ALYS!AJ15) ->  | AH37: =IF(ALYS!AK15="","",ALYS!AK15) ->  | AI37: =IF(ALYS!AL15="","",ALYS!AL15) ->  | AJ37: =IF(ALYS!AM15="","",ALYS!AM15) ->  | AK37: =IF(ALYS!AN15="","",ALYS!AN15) ->  | AL37: =IF(ALYS!AO15="","",ALYS!AO15) ->  | AM37: =IF(ALYS!AP15="","",ALYS!AP15) -> 
D38: Criterio Evaluación 5.2 | E38: =IF(ALYS!H16="","",ALYS!H16) ->  | F38: =IF(ALYS!I16="","",ALYS!I16) ->  | G38: =IF(ALYS!J16="","",ALYS!J16) ->  | H38: =IF(ALYS!K16="","",ALYS!K16) ->  | I38: =IF(ALYS!L16="","",ALYS!L16) ->  | J38: =IF(ALYS!M16="","",ALYS!M16) ->  | K38: =IF(ALYS!N16="","",ALYS!N16) ->  | L38: =IF(ALYS!O16="","",ALYS!O16) ->  | M38: =IF(ALYS!P16="","",ALYS!P16) ->  | N38: =IF(ALYS!Q16="","",ALYS!Q16) ->  | O38: =IF(ALYS!R16="","",ALYS!R16) ->  | P38: =IF(ALYS!S16="","",ALYS!S16) ->  | Q38: =IF(ALYS!T16="","",ALYS!T16) ->  | R38: =IF(ALYS!U16="","",ALYS!U16) ->  | S38: =IF(ALYS!V16="","",ALYS!V16) ->  | T38: =IF(ALYS!W16="","",ALYS!W16) ->  | U38: =IF(ALYS!X16="","",ALYS!X16) ->  | V38: =IF(ALYS!Y16="","",ALYS!Y16) ->  | W38: =IF(ALYS!Z16="","",ALYS!Z16) ->  | X38: =IF(ALYS!AA16="","",ALYS!AA16) ->  | Y38: =IF(ALYS!AB16="","",ALYS!AB16) ->  | Z38: =IF(ALYS!AC16="","",ALYS!AC16) ->  | AA38: =IF(ALYS!AD16="","",ALYS!AD16) ->  | AB38: =IF(ALYS!AE16="","",ALYS!AE16) ->  | AC38: =IF(ALYS!AF16="","",ALYS!AF16) ->  | AD38: =IF(ALYS!AG16="","",ALYS!AG16) ->  | AE38: =IF(ALYS!AH16="","",ALYS!AH16) ->  | AF38: =IF(ALYS!AI16="","",ALYS!AI16) ->  | AG38: =IF(ALYS!AJ16="","",ALYS!AJ16) ->  | AH38: =IF(ALYS!AK16="","",ALYS!AK16) ->  | AI38: =IF(ALYS!AL16="","",ALYS!AL16) ->  | AJ38: =IF(ALYS!AM16="","",ALYS!AM16) ->  | AK38: =IF(ALYS!AN16="","",ALYS!AN16) ->  | AL38: =IF(ALYS!AO16="","",ALYS!AO16) ->  | AM38: =IF(ALYS!AP16="","",ALYS!AP16) -> 
D39: Criterio Evaluación 5.3 | E39: =IF(ALYS!H17="","",ALYS!H17) ->  | F39: =IF(ALYS!I17="","",ALYS!I17) ->  | G39: =IF(ALYS!J17="","",ALYS!J17) ->  | H39: =IF(ALYS!K17="","",ALYS!K17) ->  | I39: =IF(ALYS!L17="","",ALYS!L17) ->  | J39: =IF(ALYS!M17="","",ALYS!M17) ->  | K39: =IF(ALYS!N17="","",ALYS!N17) ->  | L39: =IF(ALYS!O17="","",ALYS!O17) ->  | M39: =IF(ALYS!P17="","",ALYS!P17) ->  | N39: =IF(ALYS!Q17="","",ALYS!Q17) ->  | O39: =IF(ALYS!R17="","",ALYS!R17) ->  | P39: =IF(ALYS!S17="","",ALYS!S17) ->  | Q39: =IF(ALYS!T17="","",ALYS!T17) ->  | R39: =IF(ALYS!U17="","",ALYS!U17) ->  | S39: =IF(ALYS!V17="","",ALYS!V17) ->  | T39: =IF(ALYS!W17="","",ALYS!W17) ->  | U39: =IF(ALYS!X17="","",ALYS!X17) ->  | V39: =IF(ALYS!Y17="","",ALYS!Y17) ->  | W39: =IF(ALYS!Z17="","",ALYS!Z17) ->  | X39: =IF(ALYS!AA17="","",ALYS!AA17) ->  | Y39: =IF(ALYS!AB17="","",ALYS!AB17) ->  | Z39: =IF(ALYS!AC17="","",ALYS!AC17) ->  | AA39: =IF(ALYS!AD17="","",ALYS!AD17) ->  | AB39: =IF(ALYS!AE17="","",ALYS!AE17) ->  | AC39: =IF(ALYS!AF17="","",ALYS!AF17) ->  | AD39: =IF(ALYS!AG17="","",ALYS!AG17) ->  | AE39: =IF(ALYS!AH17="","",ALYS!AH17) ->  | AF39: =IF(ALYS!AI17="","",ALYS!AI17) ->  | AG39: =IF(ALYS!AJ17="","",ALYS!AJ17) ->  | AH39: =IF(ALYS!AK17="","",ALYS!AK17) ->  | AI39: =IF(ALYS!AL17="","",ALYS!AL17) ->  | AJ39: =IF(ALYS!AM17="","",ALYS!AM17) ->  | AK39: =IF(ALYS!AN17="","",ALYS!AN17) ->  | AL39: =IF(ALYS!AO17="","",ALYS!AO17) ->  | AM39: =IF(ALYS!AP17="","",ALYS!AP17) -> 
C40: Comp. Esp. 6 | D40: Criterio Evaluación 6.1 | E40: =IF(ALYS!H18="","",ALYS!H18) ->  | F40: =IF(ALYS!I18="","",ALYS!I18) ->  | G40: =IF(ALYS!J18="","",ALYS!J18) ->  | H40: =IF(ALYS!K18="","",ALYS!K18) ->  | I40: =IF(ALYS!L18="","",ALYS!L18) ->  | J40: =IF(ALYS!M18="","",ALYS!M18) ->  | K40: =IF(ALYS!N18="","",ALYS!N18) ->  | L40: =IF(ALYS!O18="","",ALYS!O18) ->  | M40: =IF(ALYS!P18="","",ALYS!P18) ->  | N40: =IF(ALYS!Q18="","",ALYS!Q18) ->  | O40: =IF(ALYS!R18="","",ALYS!R18) ->  | P40: =IF(ALYS!S18="","",ALYS!S18) ->  | Q40: =IF(ALYS!T18="","",ALYS!T18) ->  | R40: =IF(ALYS!U18="","",ALYS!U18) ->  | S40: =IF(ALYS!V18="","",ALYS!V18) ->  | T40: =IF(ALYS!W18="","",ALYS!W18) ->  | U40: =IF(ALYS!X18="","",ALYS!X18) ->  | V40: =IF(ALYS!Y18="","",ALYS!Y18) ->  | W40: =IF(ALYS!Z18="","",ALYS!Z18) ->  | X40: =IF(ALYS!AA18="","",ALYS!AA18) ->  | Y40: =IF(ALYS!AB18="","",ALYS!AB18) ->  | Z40: =IF(ALYS!AC18="","",ALYS!AC18) ->  | AA40: =IF(ALYS!AD18="","",ALYS!AD18) ->  | AB40: =IF(ALYS!AE18="","",ALYS!AE18) ->  | AC40: =IF(ALYS!AF18="","",ALYS!AF18) ->  | AD40: =IF(ALYS!AG18="","",ALYS!AG18) ->  | AE40: =IF(ALYS!AH18="","",ALYS!AH18) ->  | AF40: =IF(ALYS!AI18="","",ALYS!AI18) ->  | AG40: =IF(ALYS!AJ18="","",ALYS!AJ18) ->  | AH40: =IF(ALYS!AK18="","",ALYS!AK18) ->  | AI40: =IF(ALYS!AL18="","",ALYS!AL18) ->  | AJ40: =IF(ALYS!AM18="","",ALYS!AM18) ->  | AK40: =IF(ALYS!AN18="","",ALYS!AN18) ->  | AL40: =IF(ALYS!AO18="","",ALYS!AO18) ->  | AM40: =IF(ALYS!AP18="","",ALYS!AP18) -> 
D41: Criterio Evaluación 6.2 | E41: =IF(ALYS!H19="","",ALYS!H19) ->  | F41: =IF(ALYS!I19="","",ALYS!I19) ->  | G41: =IF(ALYS!J19="","",ALYS!J19) ->  | H41: =IF(ALYS!K19="","",ALYS!K19) ->  | I41: =IF(ALYS!L19="","",ALYS!L19) ->  | J41: =IF(ALYS!M19="","",ALYS!M19) ->  | K41: =IF(ALYS!N19="","",ALYS!N19) ->  | L41: =IF(ALYS!O19="","",ALYS!O19) ->  | M41: =IF(ALYS!P19="","",ALYS!P19) ->  | N41: =IF(ALYS!Q19="","",ALYS!Q19) ->  | O41: =IF(ALYS!R19="","",ALYS!R19) ->  | P41: =IF(ALYS!S19="","",ALYS!S19) ->  | Q41: =IF(ALYS!T19="","",ALYS!T19) ->  | R41: =IF(ALYS!U19="","",ALYS!U19) ->  | S41: =IF(ALYS!V19="","",ALYS!V19) ->  | T41: =IF(ALYS!W19="","",ALYS!W19) ->  | U41: =IF(ALYS!X19="","",ALYS!X19) ->  | V41: =IF(ALYS!Y19="","",ALYS!Y19) ->  | W41: =IF(ALYS!Z19="","",ALYS!Z19) ->  | X41: =IF(ALYS!AA19="","",ALYS!AA19) ->  | Y41: =IF(ALYS!AB19="","",ALYS!AB19) ->  | Z41: =IF(ALYS!AC19="","",ALYS!AC19) ->  | AA41: =IF(ALYS!AD19="","",ALYS!AD19) ->  | AB41: =IF(ALYS!AE19="","",ALYS!AE19) ->  | AC41: =IF(ALYS!AF19="","",ALYS!AF19) ->  | AD41: =IF(ALYS!AG19="","",ALYS!AG19) ->  | AE41: =IF(ALYS!AH19="","",ALYS!AH19) ->  | AF41: =IF(ALYS!AI19="","",ALYS!AI19) ->  | AG41: =IF(ALYS!AJ19="","",ALYS!AJ19) ->  | AH41: =IF(ALYS!AK19="","",ALYS!AK19) ->  | AI41: =IF(ALYS!AL19="","",ALYS!AL19) ->  | AJ41: =IF(ALYS!AM19="","",ALYS!AM19) ->  | AK41: =IF(ALYS!AN19="","",ALYS!AN19) ->  | AL41: =IF(ALYS!AO19="","",ALYS!AO19) ->  | AM41: =IF(ALYS!AP19="","",ALYS!AP19) -> 
C42: Comp. Esp. 7 | D42: Criterio Evaluación 7.1 | E42: =IF(ALYS!H20="","",ALYS!H20) ->  | F42: =IF(ALYS!I20="","",ALYS!I20) ->  | G42: =IF(ALYS!J20="","",ALYS!J20) ->  | H42: =IF(ALYS!K20="","",ALYS!K20) ->  | I42: =IF(ALYS!L20="","",ALYS!L20) ->  | J42: =IF(ALYS!M20="","",ALYS!M20) ->  | K42: =IF(ALYS!N20="","",ALYS!N20) ->  | L42: =IF(ALYS!O20="","",ALYS!O20) ->  | M42: =IF(ALYS!P20="","",ALYS!P20) ->  | N42: =IF(ALYS!Q20="","",ALYS!Q20) ->  | O42: =IF(ALYS!R20="","",ALYS!R20) ->  | P42: =IF(ALYS!S20="","",ALYS!S20) ->  | Q42: =IF(ALYS!T20="","",ALYS!T20) ->  | R42: =IF(ALYS!U20="","",ALYS!U20) ->  | S42: =IF(ALYS!V20="","",ALYS!V20) ->  | T42: =IF(ALYS!W20="","",ALYS!W20) ->  | U42: =IF(ALYS!X20="","",ALYS!X20) ->  | V42: =IF(ALYS!Y20="","",ALYS!Y20) ->  | W42: =IF(ALYS!Z20="","",ALYS!Z20) ->  | X42: =IF(ALYS!AA20="","",ALYS!AA20) ->  | Y42: =IF(ALYS!AB20="","",ALYS!AB20) ->  | Z42: =IF(ALYS!AC20="","",ALYS!AC20) ->  | AA42: =IF(ALYS!AD20="","",ALYS!AD20) ->  | AB42: =IF(ALYS!AE20="","",ALYS!AE20) ->  | AC42: =IF(ALYS!AF20="","",ALYS!AF20) ->  | AD42: =IF(ALYS!AG20="","",ALYS!AG20) ->  | AE42: =IF(ALYS!AH20="","",ALYS!AH20) ->  | AF42: =IF(ALYS!AI20="","",ALYS!AI20) ->  | AG42: =IF(ALYS!AJ20="","",ALYS!AJ20) ->  | AH42: =IF(ALYS!AK20="","",ALYS!AK20) ->  | AI42: =IF(ALYS!AL20="","",ALYS!AL20) ->  | AJ42: =IF(ALYS!AM20="","",ALYS!AM20) ->  | AK42: =IF(ALYS!AN20="","",ALYS!AN20) ->  | AL42: =IF(ALYS!AO20="","",ALYS!AO20) ->  | AM42: =IF(ALYS!AP20="","",ALYS!AP20) -> 
D43: Criterio Evaluación 7.2 | E43: =IF(ALYS!H21="","",ALYS!H21) ->  | F43: =IF(ALYS!I21="","",ALYS!I21) ->  | G43: =IF(ALYS!J21="","",ALYS!J21) ->  | H43: =IF(ALYS!K21="","",ALYS!K21) ->  | I43: =IF(ALYS!L21="","",ALYS!L21) ->  | J43: =IF(ALYS!M21="","",ALYS!M21) ->  | K43: =IF(ALYS!N21="","",ALYS!N21) ->  | L43: =IF(ALYS!O21="","",ALYS!O21) ->  | M43: =IF(ALYS!P21="","",ALYS!P21) ->  | N43: =IF(ALYS!Q21="","",ALYS!Q21) ->  | O43: =IF(ALYS!R21="","",ALYS!R21) ->  | P43: =IF(ALYS!S21="","",ALYS!S21) ->  | Q43: =IF(ALYS!T21="","",ALYS!T21) ->  | R43: =IF(ALYS!U21="","",ALYS!U21) ->  | S43: =IF(ALYS!V21="","",ALYS!V21) ->  | T43: =IF(ALYS!W21="","",ALYS!W21) ->  | U43: =IF(ALYS!X21="","",ALYS!X21) ->  | V43: =IF(ALYS!Y21="","",ALYS!Y21) ->  | W43: =IF(ALYS!Z21="","",ALYS!Z21) ->  | X43: =IF(ALYS!AA21="","",ALYS!AA21) ->  | Y43: =IF(ALYS!AB21="","",ALYS!AB21) ->  | Z43: =IF(ALYS!AC21="","",ALYS!AC21) ->  | AA43: =IF(ALYS!AD21="","",ALYS!AD21) ->  | AB43: =IF(ALYS!AE21="","",ALYS!AE21) ->  | AC43: =IF(ALYS!AF21="","",ALYS!AF21) ->  | AD43: =IF(ALYS!AG21="","",ALYS!AG21) ->  | AE43: =IF(ALYS!AH21="","",ALYS!AH21) ->  | AF43: =IF(ALYS!AI21="","",ALYS!AI21) ->  | AG43: =IF(ALYS!AJ21="","",ALYS!AJ21) ->  | AH43: =IF(ALYS!AK21="","",ALYS!AK21) ->  | AI43: =IF(ALYS!AL21="","",ALYS!AL21) ->  | AJ43: =IF(ALYS!AM21="","",ALYS!AM21) ->  | AK43: =IF(ALYS!AN21="","",ALYS!AN21) ->  | AL43: =IF(ALYS!AO21="","",ALYS!AO21) ->  | AM43: =IF(ALYS!AP21="","",ALYS!AP21) -> 
D44: Criterio Evaluación 7.3 | E44: =IF(ALYS!H22="","",ALYS!H22) ->  | F44: =IF(ALYS!I22="","",ALYS!I22) ->  | G44: =IF(ALYS!J22="","",ALYS!J22) ->  | H44: =IF(ALYS!K22="","",ALYS!K22) ->  | I44: =IF(ALYS!L22="","",ALYS!L22) ->  | J44: =IF(ALYS!M22="","",ALYS!M22) ->  | K44: =IF(ALYS!N22="","",ALYS!N22) ->  | L44: =IF(ALYS!O22="","",ALYS!O22) ->  | M44: =IF(ALYS!P22="","",ALYS!P22) ->  | N44: =IF(ALYS!Q22="","",ALYS!Q22) ->  | O44: =IF(ALYS!R22="","",ALYS!R22) ->  | P44: =IF(ALYS!S22="","",ALYS!S22) ->  | Q44: =IF(ALYS!T22="","",ALYS!T22) ->  | R44: =IF(ALYS!U22="","",ALYS!U22) ->  | S44: =IF(ALYS!V22="","",ALYS!V22) ->  | T44: =IF(ALYS!W22="","",ALYS!W22) ->  | U44: =IF(ALYS!X22="","",ALYS!X22) ->  | V44: =IF(ALYS!Y22="","",ALYS!Y22) ->  | W44: =IF(ALYS!Z22="","",ALYS!Z22) ->  | X44: =IF(ALYS!AA22="","",ALYS!AA22) ->  | Y44: =IF(ALYS!AB22="","",ALYS!AB22) ->  | Z44: =IF(ALYS!AC22="","",ALYS!AC22) ->  | AA44: =IF(ALYS!AD22="","",ALYS!AD22) ->  | AB44: =IF(ALYS!AE22="","",ALYS!AE22) ->  | AC44: =IF(ALYS!AF22="","",ALYS!AF22) ->  | AD44: =IF(ALYS!AG22="","",ALYS!AG22) ->  | AE44: =IF(ALYS!AH22="","",ALYS!AH22) ->  | AF44: =IF(ALYS!AI22="","",ALYS!AI22) ->  | AG44: =IF(ALYS!AJ22="","",ALYS!AJ22) ->  | AH44: =IF(ALYS!AK22="","",ALYS!AK22) ->  | AI44: =IF(ALYS!AL22="","",ALYS!AL22) ->  | AJ44: =IF(ALYS!AM22="","",ALYS!AM22) ->  | AK44: =IF(ALYS!AN22="","",ALYS!AN22) ->  | AL44: =IF(ALYS!AO22="","",ALYS!AO22) ->  | AM44: =IF(ALYS!AP22="","",ALYS!AP22) -> 
B45: Ámbito práctico | C45: Comp. Esp. 1 | D45: Criterio Evaluación 1.1 | E45: =IF(AP!H4="","",AP!H4) ->  | F45: =IF(AP!I4="","",AP!I4) ->  | G45: =IF(AP!J4="","",AP!J4) ->  | H45: =IF(AP!K4="","",AP!K4) ->  | I45: =IF(AP!L4="","",AP!L4) ->  | J45: =IF(AP!M4="","",AP!M4) ->  | K45: =IF(AP!N4="","",AP!N4) ->  | L45: =IF(AP!O4="","",AP!O4) ->  | M45: =IF(AP!P4="","",AP!P4) ->  | N45: =IF(AP!Q4="","",AP!Q4) ->  | O45: =IF(AP!R4="","",AP!R4) ->  | P45: =IF(AP!S4="","",AP!S4) ->  | Q45: =IF(AP!T4="","",AP!T4) ->  | R45: =IF(AP!U4="","",AP!U4) ->  | S45: =IF(AP!V4="","",AP!V4) ->  | T45: =IF(AP!W4="","",AP!W4) ->  | U45: =IF(AP!X4="","",AP!X4) ->  | V45: =IF(AP!Y4="","",AP!Y4) ->  | W45: =IF(AP!Z4="","",AP!Z4) ->  | X45: =IF(AP!AA4="","",AP!AA4) ->  | Y45: =IF(AP!AB4="","",AP!AB4) ->  | Z45: =IF(AP!AC4="","",AP!AC4) ->  | AA45: =IF(AP!AD4="","",AP!AD4) ->  | AB45: =IF(AP!AE4="","",AP!AE4) ->  | AC45: =IF(AP!AF4="","",AP!AF4) ->  | AD45: =IF(AP!AG4="","",AP!AG4) ->  | AE45: =IF(AP!AH4="","",AP!AH4) ->  | AF45: =IF(AP!AI4="","",AP!AI4) ->  | AG45: =IF(AP!AJ4="","",AP!AJ4) ->  | AH45: =IF(AP!AK4="","",AP!AK4) ->  | AI45: =IF(AP!AL4="","",AP!AL4) ->  | AJ45: =IF(AP!AM4="","",AP!AM4) ->  | AK45: =IF(AP!AN4="","",AP!AN4) ->  | AL45: =IF(AP!AO4="","",AP!AO4) ->  | AM45: =IF(AP!AP4="","",AP!AP4) -> 
D46: Criterio Evaluación 1.2 | E46: =IF(AP!H5="","",AP!H5) ->  | F46: =IF(AP!I5="","",AP!I5) ->  | G46: =IF(AP!J5="","",AP!J5) ->  | H46: =IF(AP!K5="","",AP!K5) ->  | I46: =IF(AP!L5="","",AP!L5) ->  | J46: =IF(AP!M5="","",AP!M5) ->  | K46: =IF(AP!N5="","",AP!N5) ->  | L46: =IF(AP!O5="","",AP!O5) ->  | M46: =IF(AP!P5="","",AP!P5) ->  | N46: =IF(AP!Q5="","",AP!Q5) ->  | O46: =IF(AP!R5="","",AP!R5) ->  | P46: =IF(AP!S5="","",AP!S5) ->  | Q46: =IF(AP!T5="","",AP!T5) ->  | R46: =IF(AP!U5="","",AP!U5) ->  | S46: =IF(AP!V5="","",AP!V5) ->  | T46: =IF(AP!W5="","",AP!W5) ->  | U46: =IF(AP!X5="","",AP!X5) ->  | V46: =IF(AP!Y5="","",AP!Y5) ->  | W46: =IF(AP!Z5="","",AP!Z5) ->  | X46: =IF(AP!AA5="","",AP!AA5) ->  | Y46: =IF(AP!AB5="","",AP!AB5) ->  | Z46: =IF(AP!AC5="","",AP!AC5) ->  | AA46: =IF(AP!AD5="","",AP!AD5) ->  | AB46: =IF(AP!AE5="","",AP!AE5) ->  | AC46: =IF(AP!AF5="","",AP!AF5) ->  | AD46: =IF(AP!AG5="","",AP!AG5) ->  | AE46: =IF(AP!AH5="","",AP!AH5) ->  | AF46: =IF(AP!AI5="","",AP!AI5) ->  | AG46: =IF(AP!AJ5="","",AP!AJ5) ->  | AH46: =IF(AP!AK5="","",AP!AK5) ->  | AI46: =IF(AP!AL5="","",AP!AL5) ->  | AJ46: =IF(AP!AM5="","",AP!AM5) ->  | AK46: =IF(AP!AN5="","",AP!AN5) ->  | AL46: =IF(AP!AO5="","",AP!AO5) ->  | AM46: =IF(AP!AP5="","",AP!AP5) -> 
D47: Criterio Evaluación 1.3 | E47: =IF(AP!H6="","",AP!H6) ->  | F47: =IF(AP!I6="","",AP!I6) ->  | G47: =IF(AP!J6="","",AP!J6) ->  | H47: =IF(AP!K6="","",AP!K6) ->  | I47: =IF(AP!L6="","",AP!L6) ->  | J47: =IF(AP!M6="","",AP!M6) ->  | K47: =IF(AP!N6="","",AP!N6) ->  | L47: =IF(AP!O6="","",AP!O6) ->  | M47: =IF(AP!P6="","",AP!P6) ->  | N47: =IF(AP!Q6="","",AP!Q6) ->  | O47: =IF(AP!R6="","",AP!R6) ->  | P47: =IF(AP!S6="","",AP!S6) ->  | Q47: =IF(AP!T6="","",AP!T6) ->  | R47: =IF(AP!U6="","",AP!U6) ->  | S47: =IF(AP!V6="","",AP!V6) ->  | T47: =IF(AP!W6="","",AP!W6) ->  | U47: =IF(AP!X6="","",AP!X6) ->  | V47: =IF(AP!Y6="","",AP!Y6) ->  | W47: =IF(AP!Z6="","",AP!Z6) ->  | X47: =IF(AP!AA6="","",AP!AA6) ->  | Y47: =IF(AP!AB6="","",AP!AB6) ->  | Z47: =IF(AP!AC6="","",AP!AC6) ->  | AA47: =IF(AP!AD6="","",AP!AD6) ->  | AB47: =IF(AP!AE6="","",AP!AE6) ->  | AC47: =IF(AP!AF6="","",AP!AF6) ->  | AD47: =IF(AP!AG6="","",AP!AG6) ->  | AE47: =IF(AP!AH6="","",AP!AH6) ->  | AF47: =IF(AP!AI6="","",AP!AI6) ->  | AG47: =IF(AP!AJ6="","",AP!AJ6) ->  | AH47: =IF(AP!AK6="","",AP!AK6) ->  | AI47: =IF(AP!AL6="","",AP!AL6) ->  | AJ47: =IF(AP!AM6="","",AP!AM6) ->  | AK47: =IF(AP!AN6="","",AP!AN6) ->  | AL47: =IF(AP!AO6="","",AP!AO6) ->  | AM47: =IF(AP!AP6="","",AP!AP6) -> 
C48: Comp. Esp. 2 | D48: Criterio Evaluación 2.1 | E48: =IF(AP!H7="","",AP!H7) ->  | F48: =IF(AP!I7="","",AP!I7) ->  | G48: =IF(AP!J7="","",AP!J7) ->  | H48: =IF(AP!K7="","",AP!K7) ->  | I48: =IF(AP!L7="","",AP!L7) ->  | J48: =IF(AP!M7="","",AP!M7) ->  | K48: =IF(AP!N7="","",AP!N7) ->  | L48: =IF(AP!O7="","",AP!O7) ->  | M48: =IF(AP!P7="","",AP!P7) ->  | N48: =IF(AP!Q7="","",AP!Q7) ->  | O48: =IF(AP!R7="","",AP!R7) ->  | P48: =IF(AP!S7="","",AP!S7) ->  | Q48: =IF(AP!T7="","",AP!T7) ->  | R48: =IF(AP!U7="","",AP!U7) ->  | S48: =IF(AP!V7="","",AP!V7) ->  | T48: =IF(AP!W7="","",AP!W7) ->  | U48: =IF(AP!X7="","",AP!X7) ->  | V48: =IF(AP!Y7="","",AP!Y7) ->  | W48: =IF(AP!Z7="","",AP!Z7) ->  | X48: =IF(AP!AA7="","",AP!AA7) ->  | Y48: =IF(AP!AB7="","",AP!AB7) ->  | Z48: =IF(AP!AC7="","",AP!AC7) ->  | AA48: =IF(AP!AD7="","",AP!AD7) ->  | AB48: =IF(AP!AE7="","",AP!AE7) ->  | AC48: =IF(AP!AF7="","",AP!AF7) ->  | AD48: =IF(AP!AG7="","",AP!AG7) ->  | AE48: =IF(AP!AH7="","",AP!AH7) ->  | AF48: =IF(AP!AI7="","",AP!AI7) ->  | AG48: =IF(AP!AJ7="","",AP!AJ7) ->  | AH48: =IF(AP!AK7="","",AP!AK7) ->  | AI48: =IF(AP!AL7="","",AP!AL7) ->  | AJ48: =IF(AP!AM7="","",AP!AM7) ->  | AK48: =IF(AP!AN7="","",AP!AN7) ->  | AL48: =IF(AP!AO7="","",AP!AO7) ->  | AM48: =IF(AP!AP7="","",AP!AP7) -> 
D49: Criterio Evaluación 2.2 | E49: =IF(AP!H8="","",AP!H8) ->  | F49: =IF(AP!I8="","",AP!I8) ->  | G49: =IF(AP!J8="","",AP!J8) ->  | H49: =IF(AP!K8="","",AP!K8) ->  | I49: =IF(AP!L8="","",AP!L8) ->  | J49: =IF(AP!M8="","",AP!M8) ->  | K49: =IF(AP!N8="","",AP!N8) ->  | L49: =IF(AP!O8="","",AP!O8) ->  | M49: =IF(AP!P8="","",AP!P8) ->  | N49: =IF(AP!Q8="","",AP!Q8) ->  | O49: =IF(AP!R8="","",AP!R8) ->  | P49: =IF(AP!S8="","",AP!S8) ->  | Q49: =IF(AP!T8="","",AP!T8) ->  | R49: =IF(AP!U8="","",AP!U8) ->  | S49: =IF(AP!V8="","",AP!V8) ->  | T49: =IF(AP!W8="","",AP!W8) ->  | U49: =IF(AP!X8="","",AP!X8) ->  | V49: =IF(AP!Y8="","",AP!Y8) ->  | W49: =IF(AP!Z8="","",AP!Z8) ->  | X49: =IF(AP!AA8="","",AP!AA8) ->  | Y49: =IF(AP!AB8="","",AP!AB8) ->  | Z49: =IF(AP!AC8="","",AP!AC8) ->  | AA49: =IF(AP!AD8="","",AP!AD8) ->  | AB49: =IF(AP!AE8="","",AP!AE8) ->  | AC49: =IF(AP!AF8="","",AP!AF8) ->  | AD49: =IF(AP!AG8="","",AP!AG8) ->  | AE49: =IF(AP!AH8="","",AP!AH8) ->  | AF49: =IF(AP!AI8="","",AP!AI8) ->  | AG49: =IF(AP!AJ8="","",AP!AJ8) ->  | AH49: =IF(AP!AK8="","",AP!AK8) ->  | AI49: =IF(AP!AL8="","",AP!AL8) ->  | AJ49: =IF(AP!AM8="","",AP!AM8) ->  | AK49: =IF(AP!AN8="","",AP!AN8) ->  | AL49: =IF(AP!AO8="","",AP!AO8) ->  | AM49: =IF(AP!AP8="","",AP!AP8) -> 
D50: Criterio Evaluación 2.3 | E50: =IF(AP!H9="","",AP!H9) ->  | F50: =IF(AP!I9="","",AP!I9) ->  | G50: =IF(AP!J9="","",AP!J9) ->  | H50: =IF(AP!K9="","",AP!K9) ->  | I50: =IF(AP!L9="","",AP!L9) ->  | J50: =IF(AP!M9="","",AP!M9) ->  | K50: =IF(AP!N9="","",AP!N9) ->  | L50: =IF(AP!O9="","",AP!O9) ->  | M50: =IF(AP!P9="","",AP!P9) ->  | N50: =IF(AP!Q9="","",AP!Q9) ->  | O50: =IF(AP!R9="","",AP!R9) ->  | P50: =IF(AP!S9="","",AP!S9) ->  | Q50: =IF(AP!T9="","",AP!T9) ->  | R50: =IF(AP!U9="","",AP!U9) ->  | S50: =IF(AP!V9="","",AP!V9) ->  | T50: =IF(AP!W9="","",AP!W9) ->  | U50: =IF(AP!X9="","",AP!X9) ->  | V50: =IF(AP!Y9="","",AP!Y9) ->  | W50: =IF(AP!Z9="","",AP!Z9) ->  | X50: =IF(AP!AA9="","",AP!AA9) ->  | Y50: =IF(AP!AB9="","",AP!AB9) ->  | Z50: =IF(AP!AC9="","",AP!AC9) ->  | AA50: =IF(AP!AD9="","",AP!AD9) ->  | AB50: =IF(AP!AE9="","",AP!AE9) ->  | AC50: =IF(AP!AF9="","",AP!AF9) ->  | AD50: =IF(AP!AG9="","",AP!AG9) ->  | AE50: =IF(AP!AH9="","",AP!AH9) ->  | AF50: =IF(AP!AI9="","",AP!AI9) ->  | AG50: =IF(AP!AJ9="","",AP!AJ9) ->  | AH50: =IF(AP!AK9="","",AP!AK9) ->  | AI50: =IF(AP!AL9="","",AP!AL9) ->  | AJ50: =IF(AP!AM9="","",AP!AM9) ->  | AK50: =IF(AP!AN9="","",AP!AN9) ->  | AL50: =IF(AP!AO9="","",AP!AO9) ->  | AM50: =IF(AP!AP9="","",AP!AP9) -> 
D51: Criterio Evaluación 2.4 | E51: =IF(AP!H10="","",AP!H10) ->  | F51: =IF(AP!I10="","",AP!I10) ->  | G51: =IF(AP!J10="","",AP!J10) ->  | H51: =IF(AP!K10="","",AP!K10) ->  | I51: =IF(AP!L10="","",AP!L10) ->  | J51: =IF(AP!M10="","",AP!M10) ->  | K51: =IF(AP!N10="","",AP!N10) ->  | L51: =IF(AP!O10="","",AP!O10) ->  | M51: =IF(AP!P10="","",AP!P10) ->  | N51: =IF(AP!Q10="","",AP!Q10) ->  | O51: =IF(AP!R10="","",AP!R10) ->  | P51: =IF(AP!S10="","",AP!S10) ->  | Q51: =IF(AP!T10="","",AP!T10) ->  | R51: =IF(AP!U10="","",AP!U10) ->  | S51: =IF(AP!V10="","",AP!V10) ->  | T51: =IF(AP!W10="","",AP!W10) ->  | U51: =IF(AP!X10="","",AP!X10) ->  | V51: =IF(AP!Y10="","",AP!Y10) ->  | W51: =IF(AP!Z10="","",AP!Z10) ->  | X51: =IF(AP!AA10="","",AP!AA10) ->  | Y51: =IF(AP!AB10="","",AP!AB10) ->  | Z51: =IF(AP!AC10="","",AP!AC10) ->  | AA51: =IF(AP!AD10="","",AP!AD10) ->  | AB51: =IF(AP!AE10="","",AP!AE10) ->  | AC51: =IF(AP!AF10="","",AP!AF10) ->  | AD51: =IF(AP!AG10="","",AP!AG10) ->  | AE51: =IF(AP!AH10="","",AP!AH10) ->  | AF51: =IF(AP!AI10="","",AP!AI10) ->  | AG51: =IF(AP!AJ10="","",AP!AJ10) ->  | AH51: =IF(AP!AK10="","",AP!AK10) ->  | AI51: =IF(AP!AL10="","",AP!AL10) ->  | AJ51: =IF(AP!AM10="","",AP!AM10) ->  | AK51: =IF(AP!AN10="","",AP!AN10) ->  | AL51: =IF(AP!AO10="","",AP!AO10) ->  | AM51: =IF(AP!AP10="","",AP!AP10) -> 
C52: Comp. Esp. 3 | D52: Criterio Evaluación 3.1 | E52: =IF(AP!H11="","",AP!H11) ->  | F52: =IF(AP!I11="","",AP!I11) ->  | G52: =IF(AP!J11="","",AP!J11) ->  | H52: =IF(AP!K11="","",AP!K11) ->  | I52: =IF(AP!L11="","",AP!L11) ->  | J52: =IF(AP!M11="","",AP!M11) ->  | K52: =IF(AP!N11="","",AP!N11) ->  | L52: =IF(AP!O11="","",AP!O11) ->  | M52: =IF(AP!P11="","",AP!P11) ->  | N52: =IF(AP!Q11="","",AP!Q11) ->  | O52: =IF(AP!R11="","",AP!R11) ->  | P52: =IF(AP!S11="","",AP!S11) ->  | Q52: =IF(AP!T11="","",AP!T11) ->  | R52: =IF(AP!U11="","",AP!U11) ->  | S52: =IF(AP!V11="","",AP!V11) ->  | T52: =IF(AP!W11="","",AP!W11) ->  | U52: =IF(AP!X11="","",AP!X11) ->  | V52: =IF(AP!Y11="","",AP!Y11) ->  | W52: =IF(AP!Z11="","",AP!Z11) ->  | X52: =IF(AP!AA11="","",AP!AA11) ->  | Y52: =IF(AP!AB11="","",AP!AB11) ->  | Z52: =IF(AP!AC11="","",AP!AC11) ->  | AA52: =IF(AP!AD11="","",AP!AD11) ->  | AB52: =IF(AP!AE11="","",AP!AE11) ->  | AC52: =IF(AP!AF11="","",AP!AF11) ->  | AD52: =IF(AP!AG11="","",AP!AG11) ->  | AE52: =IF(AP!AH11="","",AP!AH11) ->  | AF52: =IF(AP!AI11="","",AP!AI11) ->  | AG52: =IF(AP!AJ11="","",AP!AJ11) ->  | AH52: =IF(AP!AK11="","",AP!AK11) ->  | AI52: =IF(AP!AL11="","",AP!AL11) ->  | AJ52: =IF(AP!AM11="","",AP!AM11) ->  | AK52: =IF(AP!AN11="","",AP!AN11) ->  | AL52: =IF(AP!AO11="","",AP!AO11) ->  | AM52: =IF(AP!AP11="","",AP!AP11) -> 
D53: Criterio Evaluación 3.2 | E53: =IF(AP!H12="","",AP!H12) ->  | F53: =IF(AP!I12="","",AP!I12) ->  | G53: =IF(AP!J12="","",AP!J12) ->  | H53: =IF(AP!K12="","",AP!K12) ->  | I53: =IF(AP!L12="","",AP!L12) ->  | J53: =IF(AP!M12="","",AP!M12) ->  | K53: =IF(AP!N12="","",AP!N12) ->  | L53: =IF(AP!O12="","",AP!O12) ->  | M53: =IF(AP!P12="","",AP!P12) ->  | N53: =IF(AP!Q12="","",AP!Q12) ->  | O53: =IF(AP!R12="","",AP!R12) ->  | P53: =IF(AP!S12="","",AP!S12) ->  | Q53: =IF(AP!T12="","",AP!T12) ->  | R53: =IF(AP!U12="","",AP!U12) ->  | S53: =IF(AP!V12="","",AP!V12) ->  | T53: =IF(AP!W12="","",AP!W12) ->  | U53: =IF(AP!X12="","",AP!X12) ->  | V53: =IF(AP!Y12="","",AP!Y12) ->  | W53: =IF(AP!Z12="","",AP!Z12) ->  | X53: =IF(AP!AA12="","",AP!AA12) ->  | Y53: =IF(AP!AB12="","",AP!AB12) ->  | Z53: =IF(AP!AC12="","",AP!AC12) ->  | AA53: =IF(AP!AD12="","",AP!AD12) ->  | AB53: =IF(AP!AE12="","",AP!AE12) ->  | AC53: =IF(AP!AF12="","",AP!AF12) ->  | AD53: =IF(AP!AG12="","",AP!AG12) ->  | AE53: =IF(AP!AH12="","",AP!AH12) ->  | AF53: =IF(AP!AI12="","",AP!AI12) ->  | AG53: =IF(AP!AJ12="","",AP!AJ12) ->  | AH53: =IF(AP!AK12="","",AP!AK12) ->  | AI53: =IF(AP!AL12="","",AP!AL12) ->  | AJ53: =IF(AP!AM12="","",AP!AM12) ->  | AK53: =IF(AP!AN12="","",AP!AN12) ->  | AL53: =IF(AP!AO12="","",AP!AO12) ->  | AM53: =IF(AP!AP12="","",AP!AP12) -> 
C54: Comp. Esp. 4 | D54: Criterio Evaluación 4.1 | E54: =IF(AP!H13="","",AP!H13) ->  | F54: =IF(AP!I13="","",AP!I13) ->  | G54: =IF(AP!J13="","",AP!J13) ->  | H54: =IF(AP!K13="","",AP!K13) ->  | I54: =IF(AP!L13="","",AP!L13) ->  | J54: =IF(AP!M13="","",AP!M13) ->  | K54: =IF(AP!N13="","",AP!N13) ->  | L54: =IF(AP!O13="","",AP!O13) ->  | M54: =IF(AP!P13="","",AP!P13) ->  | N54: =IF(AP!Q13="","",AP!Q13) ->  | O54: =IF(AP!R13="","",AP!R13) ->  | P54: =IF(AP!S13="","",AP!S13) ->  | Q54: =IF(AP!T13="","",AP!T13) ->  | R54: =IF(AP!U13="","",AP!U13) ->  | S54: =IF(AP!V13="","",AP!V13) ->  | T54: =IF(AP!W13="","",AP!W13) ->  | U54: =IF(AP!X13="","",AP!X13) ->  | V54: =IF(AP!Y13="","",AP!Y13) ->  | W54: =IF(AP!Z13="","",AP!Z13) ->  | X54: =IF(AP!AA13="","",AP!AA13) ->  | Y54: =IF(AP!AB13="","",AP!AB13) ->  | Z54: =IF(AP!AC13="","",AP!AC13) ->  | AA54: =IF(AP!AD13="","",AP!AD13) ->  | AB54: =IF(AP!AE13="","",AP!AE13) ->  | AC54: =IF(AP!AF13="","",AP!AF13) ->  | AD54: =IF(AP!AG13="","",AP!AG13) ->  | AE54: =IF(AP!AH13="","",AP!AH13) ->  | AF54: =IF(AP!AI13="","",AP!AI13) ->  | AG54: =IF(AP!AJ13="","",AP!AJ13) ->  | AH54: =IF(AP!AK13="","",AP!AK13) ->  | AI54: =IF(AP!AL13="","",AP!AL13) ->  | AJ54: =IF(AP!AM13="","",AP!AM13) ->  | AK54: =IF(AP!AN13="","",AP!AN13) ->  | AL54: =IF(AP!AO13="","",AP!AO13) ->  | AM54: =IF(AP!AP13="","",AP!AP13) -> 
D55: Criterio Evaluación 4.2 | E55: =IF(AP!H14="","",AP!H14) ->  | F55: =IF(AP!I14="","",AP!I14) ->  | G55: =IF(AP!J14="","",AP!J14) ->  | H55: =IF(AP!K14="","",AP!K14) ->  | I55: =IF(AP!L14="","",AP!L14) ->  | J55: =IF(AP!M14="","",AP!M14) ->  | K55: =IF(AP!N14="","",AP!N14) ->  | L55: =IF(AP!O14="","",AP!O14) ->  | M55: =IF(AP!P14="","",AP!P14) ->  | N55: =IF(AP!Q14="","",AP!Q14) ->  | O55: =IF(AP!R14="","",AP!R14) ->  | P55: =IF(AP!S14="","",AP!S14) ->  | Q55: =IF(AP!T14="","",AP!T14) ->  | R55: =IF(AP!U14="","",AP!U14) ->  | S55: =IF(AP!V14="","",AP!V14) ->  | T55: =IF(AP!W14="","",AP!W14) ->  | U55: =IF(AP!X14="","",AP!X14) ->  | V55: =IF(AP!Y14="","",AP!Y14) ->  | W55: =IF(AP!Z14="","",AP!Z14) ->  | X55: =IF(AP!AA14="","",AP!AA14) ->  | Y55: =IF(AP!AB14="","",AP!AB14) ->  | Z55: =IF(AP!AC14="","",AP!AC14) ->  | AA55: =IF(AP!AD14="","",AP!AD14) ->  | AB55: =IF(AP!AE14="","",AP!AE14) ->  | AC55: =IF(AP!AF14="","",AP!AF14) ->  | AD55: =IF(AP!AG14="","",AP!AG14) ->  | AE55: =IF(AP!AH14="","",AP!AH14) ->  | AF55: =IF(AP!AI14="","",AP!AI14) ->  | AG55: =IF(AP!AJ14="","",AP!AJ14) ->  | AH55: =IF(AP!AK14="","",AP!AK14) ->  | AI55: =IF(AP!AL14="","",AP!AL14) ->  | AJ55: =IF(AP!AM14="","",AP!AM14) ->  | AK55: =IF(AP!AN14="","",AP!AN14) ->  | AL55: =IF(AP!AO14="","",AP!AO14) ->  | AM55: =IF(AP!AP14="","",AP!AP14) -> 
D56: Criterio Evaluación 4.3 | E56: =IF(AP!H15="","",AP!H15) ->  | F56: =IF(AP!I15="","",AP!I15) ->  | G56: =IF(AP!J15="","",AP!J15) ->  | H56: =IF(AP!K15="","",AP!K15) ->  | I56: =IF(AP!L15="","",AP!L15) ->  | J56: =IF(AP!M15="","",AP!M15) ->  | K56: =IF(AP!N15="","",AP!N15) ->  | L56: =IF(AP!O15="","",AP!O15) ->  | M56: =IF(AP!P15="","",AP!P15) ->  | N56: =IF(AP!Q15="","",AP!Q15) ->  | O56: =IF(AP!R15="","",AP!R15) ->  | P56: =IF(AP!S15="","",AP!S15) ->  | Q56: =IF(AP!T15="","",AP!T15) ->  | R56: =IF(AP!U15="","",AP!U15) ->  | S56: =IF(AP!V15="","",AP!V15) ->  | T56: =IF(AP!W15="","",AP!W15) ->  | U56: =IF(AP!X15="","",AP!X15) ->  | V56: =IF(AP!Y15="","",AP!Y15) ->  | W56: =IF(AP!Z15="","",AP!Z15) ->  | X56: =IF(AP!AA15="","",AP!AA15) ->  | Y56: =IF(AP!AB15="","",AP!AB15) ->  | Z56: =IF(AP!AC15="","",AP!AC15) ->  | AA56: =IF(AP!AD15="","",AP!AD15) ->  | AB56: =IF(AP!AE15="","",AP!AE15) ->  | AC56: =IF(AP!AF15="","",AP!AF15) ->  | AD56: =IF(AP!AG15="","",AP!AG15) ->  | AE56: =IF(AP!AH15="","",AP!AH15) ->  | AF56: =IF(AP!AI15="","",AP!AI15) ->  | AG56: =IF(AP!AJ15="","",AP!AJ15) ->  | AH56: =IF(AP!AK15="","",AP!AK15) ->  | AI56: =IF(AP!AL15="","",AP!AL15) ->  | AJ56: =IF(AP!AM15="","",AP!AM15) ->  | AK56: =IF(AP!AN15="","",AP!AN15) ->  | AL56: =IF(AP!AO15="","",AP!AO15) ->  | AM56: =IF(AP!AP15="","",AP!AP15) -> 
C57: Comp. Esp. 5 | D57: Criterio Evaluación 5.1 | E57: =IF(AP!H16="","",AP!H16) ->  | F57: =IF(AP!I16="","",AP!I16) ->  | G57: =IF(AP!J16="","",AP!J16) ->  | H57: =IF(AP!K16="","",AP!K16) ->  | I57: =IF(AP!L16="","",AP!L16) ->  | J57: =IF(AP!M16="","",AP!M16) ->  | K57: =IF(AP!N16="","",AP!N16) ->  | L57: =IF(AP!O16="","",AP!O16) ->  | M57: =IF(AP!P16="","",AP!P16) ->  | N57: =IF(AP!Q16="","",AP!Q16) ->  | O57: =IF(AP!R16="","",AP!R16) ->  | P57: =IF(AP!S16="","",AP!S16) ->  | Q57: =IF(AP!T16="","",AP!T16) ->  | R57: =IF(AP!U16="","",AP!U16) ->  | S57: =IF(AP!V16="","",AP!V16) ->  | T57: =IF(AP!W16="","",AP!W16) ->  | U57: =IF(AP!X16="","",AP!X16) ->  | V57: =IF(AP!Y16="","",AP!Y16) ->  | W57: =IF(AP!Z16="","",AP!Z16) ->  | X57: =IF(AP!AA16="","",AP!AA16) ->  | Y57: =IF(AP!AB16="","",AP!AB16) ->  | Z57: =IF(AP!AC16="","",AP!AC16) ->  | AA57: =IF(AP!AD16="","",AP!AD16) ->  | AB57: =IF(AP!AE16="","",AP!AE16) ->  | AC57: =IF(AP!AF16="","",AP!AF16) ->  | AD57: =IF(AP!AG16="","",AP!AG16) ->  | AE57: =IF(AP!AH16="","",AP!AH16) ->  | AF57: =IF(AP!AI16="","",AP!AI16) ->  | AG57: =IF(AP!AJ16="","",AP!AJ16) ->  | AH57: =IF(AP!AK16="","",AP!AK16) ->  | AI57: =IF(AP!AL16="","",AP!AL16) ->  | AJ57: =IF(AP!AM16="","",AP!AM16) ->  | AK57: =IF(AP!AN16="","",AP!AN16) ->  | AL57: =IF(AP!AO16="","",AP!AO16) ->  | AM57: =IF(AP!AP16="","",AP!AP16) -> 
D58: Criterio Evaluación 5.2 | E58: =IF(AP!H17="","",AP!H17) ->  | F58: =IF(AP!I17="","",AP!I17) ->  | G58: =IF(AP!J17="","",AP!J17) ->  | H58: =IF(AP!K17="","",AP!K17) ->  | I58: =IF(AP!L17="","",AP!L17) ->  | J58: =IF(AP!M17="","",AP!M17) ->  | K58: =IF(AP!N17="","",AP!N17) ->  | L58: =IF(AP!O17="","",AP!O17) ->  | M58: =IF(AP!P17="","",AP!P17) ->  | N58: =IF(AP!Q17="","",AP!Q17) ->  | O58: =IF(AP!R17="","",AP!R17) ->  | P58: =IF(AP!S17="","",AP!S17) ->  | Q58: =IF(AP!T17="","",AP!T17) ->  | R58: =IF(AP!U17="","",AP!U17) ->  | S58: =IF(AP!V17="","",AP!V17) ->  | T58: =IF(AP!W17="","",AP!W17) ->  | U58: =IF(AP!X17="","",AP!X17) ->  | V58: =IF(AP!Y17="","",AP!Y17) ->  | W58: =IF(AP!Z17="","",AP!Z17) ->  | X58: =IF(AP!AA17="","",AP!AA17) ->  | Y58: =IF(AP!AB17="","",AP!AB17) ->  | Z58: =IF(AP!AC17="","",AP!AC17) ->  | AA58: =IF(AP!AD17="","",AP!AD17) ->  | AB58: =IF(AP!AE17="","",AP!AE17) ->  | AC58: =IF(AP!AF17="","",AP!AF17) ->  | AD58: =IF(AP!AG17="","",AP!AG17) ->  | AE58: =IF(AP!AH17="","",AP!AH17) ->  | AF58: =IF(AP!AI17="","",AP!AI17) ->  | AG58: =IF(AP!AJ17="","",AP!AJ17) ->  | AH58: =IF(AP!AK17="","",AP!AK17) ->  | AI58: =IF(AP!AL17="","",AP!AL17) ->  | AJ58: =IF(AP!AM17="","",AP!AM17) ->  | AK58: =IF(AP!AN17="","",AP!AN17) ->  | AL58: =IF(AP!AO17="","",AP!AO17) ->  | AM58: =IF(AP!AP17="","",AP!AP17) -> 
D59: Criterio Evaluación 5.3 | E59: =IF(AP!H18="","",AP!H18) ->  | F59: =IF(AP!I18="","",AP!I18) ->  | G59: =IF(AP!J18="","",AP!J18) ->  | H59: =IF(AP!K18="","",AP!K18) ->  | I59: =IF(AP!L18="","",AP!L18) ->  | J59: =IF(AP!M18="","",AP!M18) ->  | K59: =IF(AP!N18="","",AP!N18) ->  | L59: =IF(AP!O18="","",AP!O18) ->  | M59: =IF(AP!P18="","",AP!P18) ->  | N59: =IF(AP!Q18="","",AP!Q18) ->  | O59: =IF(AP!R18="","",AP!R18) ->  | P59: =IF(AP!S18="","",AP!S18) ->  | Q59: =IF(AP!T18="","",AP!T18) ->  | R59: =IF(AP!U18="","",AP!U18) ->  | S59: =IF(AP!V18="","",AP!V18) ->  | T59: =IF(AP!W18="","",AP!W18) ->  | U59: =IF(AP!X18="","",AP!X18) ->  | V59: =IF(AP!Y18="","",AP!Y18) ->  | W59: =IF(AP!Z18="","",AP!Z18) ->  | X59: =IF(AP!AA18="","",AP!AA18) ->  | Y59: =IF(AP!AB18="","",AP!AB18) ->  | Z59: =IF(AP!AC18="","",AP!AC18) ->  | AA59: =IF(AP!AD18="","",AP!AD18) ->  | AB59: =IF(AP!AE18="","",AP!AE18) ->  | AC59: =IF(AP!AF18="","",AP!AF18) ->  | AD59: =IF(AP!AG18="","",AP!AG18) ->  | AE59: =IF(AP!AH18="","",AP!AH18) ->  | AF59: =IF(AP!AI18="","",AP!AI18) ->  | AG59: =IF(AP!AJ18="","",AP!AJ18) ->  | AH59: =IF(AP!AK18="","",AP!AK18) ->  | AI59: =IF(AP!AL18="","",AP!AL18) ->  | AJ59: =IF(AP!AM18="","",AP!AM18) ->  | AK59: =IF(AP!AN18="","",AP!AN18) ->  | AL59: =IF(AP!AO18="","",AP!AO18) ->  | AM59: =IF(AP!AP18="","",AP!AP18) -> 
D60: Criterio Evaluación 5.4 | E60: =IF(AP!H19="","",AP!H19) ->  | F60: =IF(AP!I19="","",AP!I19) ->  | G60: =IF(AP!J19="","",AP!J19) ->  | H60: =IF(AP!K19="","",AP!K19) ->  | I60: =IF(AP!L19="","",AP!L19) ->  | J60: =IF(AP!M19="","",AP!M19) ->  | K60: =IF(AP!N19="","",AP!N19) ->  | L60: =IF(AP!O19="","",AP!O19) ->  | M60: =IF(AP!P19="","",AP!P19) ->  | N60: =IF(AP!Q19="","",AP!Q19) ->  | O60: =IF(AP!R19="","",AP!R19) ->  | P60: =IF(AP!S19="","",AP!S19) ->  | Q60: =IF(AP!T19="","",AP!T19) ->  | R60: =IF(AP!U19="","",AP!U19) ->  | S60: =IF(AP!V19="","",AP!V19) ->  | T60: =IF(AP!W19="","",AP!W19) ->  | U60: =IF(AP!X19="","",AP!X19) ->  | V60: =IF(AP!Y19="","",AP!Y19) ->  | W60: =IF(AP!Z19="","",AP!Z19) ->  | X60: =IF(AP!AA19="","",AP!AA19) ->  | Y60: =IF(AP!AB19="","",AP!AB19) ->  | Z60: =IF(AP!AC19="","",AP!AC19) ->  | AA60: =IF(AP!AD19="","",AP!AD19) ->  | AB60: =IF(AP!AE19="","",AP!AE19) ->  | AC60: =IF(AP!AF19="","",AP!AF19) ->  | AD60: =IF(AP!AG19="","",AP!AG19) ->  | AE60: =IF(AP!AH19="","",AP!AH19) ->  | AF60: =IF(AP!AI19="","",AP!AI19) ->  | AG60: =IF(AP!AJ19="","",AP!AJ19) ->  | AH60: =IF(AP!AK19="","",AP!AK19) ->  | AI60: =IF(AP!AL19="","",AP!AL19) ->  | AJ60: =IF(AP!AM19="","",AP!AM19) ->  | AK60: =IF(AP!AN19="","",AP!AN19) ->  | AL60: =IF(AP!AO19="","",AP!AO19) ->  | AM60: =IF(AP!AP19="","",AP!AP19) -> 
C61: Comp. Esp. 6 | D61: Criterio Evaluación 6.1 | E61: =IF(AP!H20="","",AP!H20) ->  | F61: =IF(AP!I20="","",AP!I20) ->  | G61: =IF(AP!J20="","",AP!J20) ->  | H61: =IF(AP!K20="","",AP!K20) ->  | I61: =IF(AP!L20="","",AP!L20) ->  | J61: =IF(AP!M20="","",AP!M20) ->  | K61: =IF(AP!N20="","",AP!N20) ->  | L61: =IF(AP!O20="","",AP!O20) ->  | M61: =IF(AP!P20="","",AP!P20) ->  | N61: =IF(AP!Q20="","",AP!Q20) ->  | O61: =IF(AP!R20="","",AP!R20) ->  | P61: =IF(AP!S20="","",AP!S20) ->  | Q61: =IF(AP!T20="","",AP!T20) ->  | R61: =IF(AP!U20="","",AP!U20) ->  | S61: =IF(AP!V20="","",AP!V20) ->  | T61: =IF(AP!W20="","",AP!W20) ->  | U61: =IF(AP!X20="","",AP!X20) ->  | V61: =IF(AP!Y20="","",AP!Y20) ->  | W61: =IF(AP!Z20="","",AP!Z20) ->  | X61: =IF(AP!AA20="","",AP!AA20) ->  | Y61: =IF(AP!AB20="","",AP!AB20) ->  | Z61: =IF(AP!AC20="","",AP!AC20) ->  | AA61: =IF(AP!AD20="","",AP!AD20) ->  | AB61: =IF(AP!AE20="","",AP!AE20) ->  | AC61: =IF(AP!AF20="","",AP!AF20) ->  | AD61: =IF(AP!AG20="","",AP!AG20) ->  | AE61: =IF(AP!AH20="","",AP!AH20) ->  | AF61: =IF(AP!AI20="","",AP!AI20) ->  | AG61: =IF(AP!AJ20="","",AP!AJ20) ->  | AH61: =IF(AP!AK20="","",AP!AK20) ->  | AI61: =IF(AP!AL20="","",AP!AL20) ->  | AJ61: =IF(AP!AM20="","",AP!AM20) ->  | AK61: =IF(AP!AN20="","",AP!AN20) ->  | AL61: =IF(AP!AO20="","",AP!AO20) ->  | AM61: =IF(AP!AP20="","",AP!AP20) -> 
D62: Criterio Evaluación 6.2 | E62: =IF(AP!H21="","",AP!H21) ->  | F62: =IF(AP!I21="","",AP!I21) ->  | G62: =IF(AP!J21="","",AP!J21) ->  | H62: =IF(AP!K21="","",AP!K21) ->  | I62: =IF(AP!L21="","",AP!L21) ->  | J62: =IF(AP!M21="","",AP!M21) ->  | K62: =IF(AP!N21="","",AP!N21) ->  | L62: =IF(AP!O21="","",AP!O21) ->  | M62: =IF(AP!P21="","",AP!P21) ->  | N62: =IF(AP!Q21="","",AP!Q21) ->  | O62: =IF(AP!R21="","",AP!R21) ->  | P62: =IF(AP!S21="","",AP!S21) ->  | Q62: =IF(AP!T21="","",AP!T21) ->  | R62: =IF(AP!U21="","",AP!U21) ->  | S62: =IF(AP!V21="","",AP!V21) ->  | T62: =IF(AP!W21="","",AP!W21) ->  | U62: =IF(AP!X21="","",AP!X21) ->  | V62: =IF(AP!Y21="","",AP!Y21) ->  | W62: =IF(AP!Z21="","",AP!Z21) ->  | X62: =IF(AP!AA21="","",AP!AA21) ->  | Y62: =IF(AP!AB21="","",AP!AB21) ->  | Z62: =IF(AP!AC21="","",AP!AC21) ->  | AA62: =IF(AP!AD21="","",AP!AD21) ->  | AB62: =IF(AP!AE21="","",AP!AE21) ->  | AC62: =IF(AP!AF21="","",AP!AF21) ->  | AD62: =IF(AP!AG21="","",AP!AG21) ->  | AE62: =IF(AP!AH21="","",AP!AH21) ->  | AF62: =IF(AP!AI21="","",AP!AI21) ->  | AG62: =IF(AP!AJ21="","",AP!AJ21) ->  | AH62: =IF(AP!AK21="","",AP!AK21) ->  | AI62: =IF(AP!AL21="","",AP!AL21) ->  | AJ62: =IF(AP!AM21="","",AP!AM21) ->  | AK62: =IF(AP!AN21="","",AP!AN21) ->  | AL62: =IF(AP!AO21="","",AP!AO21) ->  | AM62: =IF(AP!AP21="","",AP!AP21) -> 
D63: Criterio Evaluación 6.3 | E63: =IF(AP!H22="","",AP!H22) ->  | F63: =IF(AP!I22="","",AP!I22) ->  | G63: =IF(AP!J22="","",AP!J22) ->  | H63: =IF(AP!K22="","",AP!K22) ->  | I63: =IF(AP!L22="","",AP!L22) ->  | J63: =IF(AP!M22="","",AP!M22) ->  | K63: =IF(AP!N22="","",AP!N22) ->  | L63: =IF(AP!O22="","",AP!O22) ->  | M63: =IF(AP!P22="","",AP!P22) ->  | N63: =IF(AP!Q22="","",AP!Q22) ->  | O63: =IF(AP!R22="","",AP!R22) ->  | P63: =IF(AP!S22="","",AP!S22) ->  | Q63: =IF(AP!T22="","",AP!T22) ->  | R63: =IF(AP!U22="","",AP!U22) ->  | S63: =IF(AP!V22="","",AP!V22) ->  | T63: =IF(AP!W22="","",AP!W22) ->  | U63: =IF(AP!X22="","",AP!X22) ->  | V63: =IF(AP!Y22="","",AP!Y22) ->  | W63: =IF(AP!Z22="","",AP!Z22) ->  | X63: =IF(AP!AA22="","",AP!AA22) ->  | Y63: =IF(AP!AB22="","",AP!AB22) ->  | Z63: =IF(AP!AC22="","",AP!AC22) ->  | AA63: =IF(AP!AD22="","",AP!AD22) ->  | AB63: =IF(AP!AE22="","",AP!AE22) ->  | AC63: =IF(AP!AF22="","",AP!AF22) ->  | AD63: =IF(AP!AG22="","",AP!AG22) ->  | AE63: =IF(AP!AH22="","",AP!AH22) ->  | AF63: =IF(AP!AI22="","",AP!AI22) ->  | AG63: =IF(AP!AJ22="","",AP!AJ22) ->  | AH63: =IF(AP!AK22="","",AP!AK22) ->  | AI63: =IF(AP!AL22="","",AP!AL22) ->  | AJ63: =IF(AP!AM22="","",AP!AM22) ->  | AK63: =IF(AP!AN22="","",AP!AN22) ->  | AL63: =IF(AP!AO22="","",AP!AO22) ->  | AM63: =IF(AP!AP22="","",AP!AP22) -> 
D64: Criterio Evaluación 6.4 | E64: =IF(AP!H23="","",AP!H23) ->  | F64: =IF(AP!I23="","",AP!I23) ->  | G64: =IF(AP!J23="","",AP!J23) ->  | H64: =IF(AP!K23="","",AP!K23) ->  | I64: =IF(AP!L23="","",AP!L23) ->  | J64: =IF(AP!M23="","",AP!M23) ->  | K64: =IF(AP!N23="","",AP!N23) ->  | L64: =IF(AP!O23="","",AP!O23) ->  | M64: =IF(AP!P23="","",AP!P23) ->  | N64: =IF(AP!Q23="","",AP!Q23) ->  | O64: =IF(AP!R23="","",AP!R23) ->  | P64: =IF(AP!S23="","",AP!S23) ->  | Q64: =IF(AP!T23="","",AP!T23) ->  | R64: =IF(AP!U23="","",AP!U23) ->  | S64: =IF(AP!V23="","",AP!V23) ->  | T64: =IF(AP!W23="","",AP!W23) ->  | U64: =IF(AP!X23="","",AP!X23) ->  | V64: =IF(AP!Y23="","",AP!Y23) ->  | W64: =IF(AP!Z23="","",AP!Z23) ->  | X64: =IF(AP!AA23="","",AP!AA23) ->  | Y64: =IF(AP!AB23="","",AP!AB23) ->  | Z64: =IF(AP!AC23="","",AP!AC23) ->  | AA64: =IF(AP!AD23="","",AP!AD23) ->  | AB64: =IF(AP!AE23="","",AP!AE23) ->  | AC64: =IF(AP!AF23="","",AP!AF23) ->  | AD64: =IF(AP!AG23="","",AP!AG23) ->  | AE64: =IF(AP!AH23="","",AP!AH23) ->  | AF64: =IF(AP!AI23="","",AP!AI23) ->  | AG64: =IF(AP!AJ23="","",AP!AJ23) ->  | AH64: =IF(AP!AK23="","",AP!AK23) ->  | AI64: =IF(AP!AL23="","",AP!AL23) ->  | AJ64: =IF(AP!AM23="","",AP!AM23) ->  | AK64: =IF(AP!AN23="","",AP!AN23) ->  | AL64: =IF(AP!AO23="","",AP!AO23) ->  | AM64: =IF(AP!AP23="","",AP!AP23) -> 
C65: Comp. Esp. 7 | D65: Criterio Evaluación 7.1 | E65: =IF(AP!H24="","",AP!H24) ->  | F65: =IF(AP!I24="","",AP!I24) ->  | G65: =IF(AP!J24="","",AP!J24) ->  | H65: =IF(AP!K24="","",AP!K24) ->  | I65: =IF(AP!L24="","",AP!L24) ->  | J65: =IF(AP!M24="","",AP!M24) ->  | K65: =IF(AP!N24="","",AP!N24) ->  | L65: =IF(AP!O24="","",AP!O24) ->  | M65: =IF(AP!P24="","",AP!P24) ->  | N65: =IF(AP!Q24="","",AP!Q24) ->  | O65: =IF(AP!R24="","",AP!R24) ->  | P65: =IF(AP!S24="","",AP!S24) ->  | Q65: =IF(AP!T24="","",AP!T24) ->  | R65: =IF(AP!U24="","",AP!U24) ->  | S65: =IF(AP!V24="","",AP!V24) ->  | T65: =IF(AP!W24="","",AP!W24) ->  | U65: =IF(AP!X24="","",AP!X24) ->  | V65: =IF(AP!Y24="","",AP!Y24) ->  | W65: =IF(AP!Z24="","",AP!Z24) ->  | X65: =IF(AP!AA24="","",AP!AA24) ->  | Y65: =IF(AP!AB24="","",AP!AB24) ->  | Z65: =IF(AP!AC24="","",AP!AC24) ->  | AA65: =IF(AP!AD24="","",AP!AD24) ->  | AB65: =IF(AP!AE24="","",AP!AE24) ->  | AC65: =IF(AP!AF24="","",AP!AF24) ->  | AD65: =IF(AP!AG24="","",AP!AG24) ->  | AE65: =IF(AP!AH24="","",AP!AH24) ->  | AF65: =IF(AP!AI24="","",AP!AI24) ->  | AG65: =IF(AP!AJ24="","",AP!AJ24) ->  | AH65: =IF(AP!AK24="","",AP!AK24) ->  | AI65: =IF(AP!AL24="","",AP!AL24) ->  | AJ65: =IF(AP!AM24="","",AP!AM24) ->  | AK65: =IF(AP!AN24="","",AP!AN24) ->  | AL65: =IF(AP!AO24="","",AP!AO24) ->  | AM65: =IF(AP!AP24="","",AP!AP24) -> 
D66: Criterio Evaluación 7.2 | E66: =IF(AP!H25="","",AP!H25) ->  | F66: =IF(AP!I25="","",AP!I25) ->  | G66: =IF(AP!J25="","",AP!J25) ->  | H66: =IF(AP!K25="","",AP!K25) ->  | I66: =IF(AP!L25="","",AP!L25) ->  | J66: =IF(AP!M25="","",AP!M25) ->  | K66: =IF(AP!N25="","",AP!N25) ->  | L66: =IF(AP!O25="","",AP!O25) ->  | M66: =IF(AP!P25="","",AP!P25) ->  | N66: =IF(AP!Q25="","",AP!Q25) ->  | O66: =IF(AP!R25="","",AP!R25) ->  | P66: =IF(AP!S25="","",AP!S25) ->  | Q66: =IF(AP!T25="","",AP!T25) ->  | R66: =IF(AP!U25="","",AP!U25) ->  | S66: =IF(AP!V25="","",AP!V25) ->  | T66: =IF(AP!W25="","",AP!W25) ->  | U66: =IF(AP!X25="","",AP!X25) ->  | V66: =IF(AP!Y25="","",AP!Y25) ->  | W66: =IF(AP!Z25="","",AP!Z25) ->  | X66: =IF(AP!AA25="","",AP!AA25) ->  | Y66: =IF(AP!AB25="","",AP!AB25) ->  | Z66: =IF(AP!AC25="","",AP!AC25) ->  | AA66: =IF(AP!AD25="","",AP!AD25) ->  | AB66: =IF(AP!AE25="","",AP!AE25) ->  | AC66: =IF(AP!AF25="","",AP!AF25) ->  | AD66: =IF(AP!AG25="","",AP!AG25) ->  | AE66: =IF(AP!AH25="","",AP!AH25) ->  | AF66: =IF(AP!AI25="","",AP!AI25) ->  | AG66: =IF(AP!AJ25="","",AP!AJ25) ->  | AH66: =IF(AP!AK25="","",AP!AK25) ->  | AI66: =IF(AP!AL25="","",AP!AL25) ->  | AJ66: =IF(AP!AM25="","",AP!AM25) ->  | AK66: =IF(AP!AN25="","",AP!AN25) ->  | AL66: =IF(AP!AO25="","",AP!AO25) ->  | AM66: =IF(AP!AP25="","",AP!AP25) -> 
D67: Criterio Evaluación 7.3 | E67: =IF(AP!H26="","",AP!H26) ->  | F67: =IF(AP!I26="","",AP!I26) ->  | G67: =IF(AP!J26="","",AP!J26) ->  | H67: =IF(AP!K26="","",AP!K26) ->  | I67: =IF(AP!L26="","",AP!L26) ->  | J67: =IF(AP!M26="","",AP!M26) ->  | K67: =IF(AP!N26="","",AP!N26) ->  | L67: =IF(AP!O26="","",AP!O26) ->  | M67: =IF(AP!P26="","",AP!P26) ->  | N67: =IF(AP!Q26="","",AP!Q26) ->  | O67: =IF(AP!R26="","",AP!R26) ->  | P67: =IF(AP!S26="","",AP!S26) ->  | Q67: =IF(AP!T26="","",AP!T26) ->  | R67: =IF(AP!U26="","",AP!U26) ->  | S67: =IF(AP!V26="","",AP!V26) ->  | T67: =IF(AP!W26="","",AP!W26) ->  | U67: =IF(AP!X26="","",AP!X26) ->  | V67: =IF(AP!Y26="","",AP!Y26) ->  | W67: =IF(AP!Z26="","",AP!Z26) ->  | X67: =IF(AP!AA26="","",AP!AA26) ->  | Y67: =IF(AP!AB26="","",AP!AB26) ->  | Z67: =IF(AP!AC26="","",AP!AC26) ->  | AA67: =IF(AP!AD26="","",AP!AD26) ->  | AB67: =IF(AP!AE26="","",AP!AE26) ->  | AC67: =IF(AP!AF26="","",AP!AF26) ->  | AD67: =IF(AP!AG26="","",AP!AG26) ->  | AE67: =IF(AP!AH26="","",AP!AH26) ->  | AF67: =IF(AP!AI26="","",AP!AI26) ->  | AG67: =IF(AP!AJ26="","",AP!AJ26) ->  | AH67: =IF(AP!AK26="","",AP!AK26) ->  | AI67: =IF(AP!AL26="","",AP!AL26) ->  | AJ67: =IF(AP!AM26="","",AP!AM26) ->  | AK67: =IF(AP!AN26="","",AP!AN26) ->  | AL67: =IF(AP!AO26="","",AP!AO26) ->  | AM67: =IF(AP!AP26="","",AP!AP26) -> 
D68: Criterio Evaluación 7.4 | E68: =IF(AP!H27="","",AP!H27) ->  | F68: =IF(AP!I27="","",AP!I27) ->  | G68: =IF(AP!J27="","",AP!J27) ->  | H68: =IF(AP!K27="","",AP!K27) ->  | I68: =IF(AP!L27="","",AP!L27) ->  | J68: =IF(AP!M27="","",AP!M27) ->  | K68: =IF(AP!N27="","",AP!N27) ->  | L68: =IF(AP!O27="","",AP!O27) ->  | M68: =IF(AP!P27="","",AP!P27) ->  | N68: =IF(AP!Q27="","",AP!Q27) ->  | O68: =IF(AP!R27="","",AP!R27) ->  | P68: =IF(AP!S27="","",AP!S27) ->  | Q68: =IF(AP!T27="","",AP!T27) ->  | R68: =IF(AP!U27="","",AP!U27) ->  | S68: =IF(AP!V27="","",AP!V27) ->  | T68: =IF(AP!W27="","",AP!W27) ->  | U68: =IF(AP!X27="","",AP!X27) ->  | V68: =IF(AP!Y27="","",AP!Y27) ->  | W68: =IF(AP!Z27="","",AP!Z27) ->  | X68: =IF(AP!AA27="","",AP!AA27) ->  | Y68: =IF(AP!AB27="","",AP!AB27) ->  | Z68: =IF(AP!AC27="","",AP!AC27) ->  | AA68: =IF(AP!AD27="","",AP!AD27) ->  | AB68: =IF(AP!AE27="","",AP!AE27) ->  | AC68: =IF(AP!AF27="","",AP!AF27) ->  | AD68: =IF(AP!AG27="","",AP!AG27) ->  | AE68: =IF(AP!AH27="","",AP!AH27) ->  | AF68: =IF(AP!AI27="","",AP!AI27) ->  | AG68: =IF(AP!AJ27="","",AP!AJ27) ->  | AH68: =IF(AP!AK27="","",AP!AK27) ->  | AI68: =IF(AP!AL27="","",AP!AL27) ->  | AJ68: =IF(AP!AM27="","",AP!AM27) ->  | AK68: =IF(AP!AN27="","",AP!AN27) ->  | AL68: =IF(AP!AO27="","",AP!AO27) ->  | AM68: =IF(AP!AP27="","",AP!AP27) -> 
C69: Comp. Esp. 8 | D69: Criterio Evaluación 8.1 | E69: =IF(AP!H28="","",AP!H28) ->  | F69: =IF(AP!I28="","",AP!I28) ->  | G69: =IF(AP!J28="","",AP!J28) ->  | H69: =IF(AP!K28="","",AP!K28) ->  | I69: =IF(AP!L28="","",AP!L28) ->  | J69: =IF(AP!M28="","",AP!M28) ->  | K69: =IF(AP!N28="","",AP!N28) ->  | L69: =IF(AP!O28="","",AP!O28) ->  | M69: =IF(AP!P28="","",AP!P28) ->  | N69: =IF(AP!Q28="","",AP!Q28) ->  | O69: =IF(AP!R28="","",AP!R28) ->  | P69: =IF(AP!S28="","",AP!S28) ->  | Q69: =IF(AP!T28="","",AP!T28) ->  | R69: =IF(AP!U28="","",AP!U28) ->  | S69: =IF(AP!V28="","",AP!V28) ->  | T69: =IF(AP!W28="","",AP!W28) ->  | U69: =IF(AP!X28="","",AP!X28) ->  | V69: =IF(AP!Y28="","",AP!Y28) ->  | W69: =IF(AP!Z28="","",AP!Z28) ->  | X69: =IF(AP!AA28="","",AP!AA28) ->  | Y69: =IF(AP!AB28="","",AP!AB28) ->  | Z69: =IF(AP!AC28="","",AP!AC28) ->  | AA69: =IF(AP!AD28="","",AP!AD28) ->  | AB69: =IF(AP!AE28="","",AP!AE28) ->  | AC69: =IF(AP!AF28="","",AP!AF28) ->  | AD69: =IF(AP!AG28="","",AP!AG28) ->  | AE69: =IF(AP!AH28="","",AP!AH28) ->  | AF69: =IF(AP!AI28="","",AP!AI28) ->  | AG69: =IF(AP!AJ28="","",AP!AJ28) ->  | AH69: =IF(AP!AK28="","",AP!AK28) ->  | AI69: =IF(AP!AL28="","",AP!AL28) ->  | AJ69: =IF(AP!AM28="","",AP!AM28) ->  | AK69: =IF(AP!AN28="","",AP!AN28) ->  | AL69: =IF(AP!AO28="","",AP!AO28) ->  | AM69: =IF(AP!AP28="","",AP!AP28) -> 
D70: Criterio Evaluación 8.2 | E70: =IF(AP!H29="","",AP!H29) ->  | F70: =IF(AP!I29="","",AP!I29) ->  | G70: =IF(AP!J29="","",AP!J29) ->  | H70: =IF(AP!K29="","",AP!K29) ->  | I70: =IF(AP!L29="","",AP!L29) ->  | J70: =IF(AP!M29="","",AP!M29) ->  | K70: =IF(AP!N29="","",AP!N29) ->  | L70: =IF(AP!O29="","",AP!O29) ->  | M70: =IF(AP!P29="","",AP!P29) ->  | N70: =IF(AP!Q29="","",AP!Q29) ->  | O70: =IF(AP!R29="","",AP!R29) ->  | P70: =IF(AP!S29="","",AP!S29) ->  | Q70: =IF(AP!T29="","",AP!T29) ->  | R70: =IF(AP!U29="","",AP!U29) ->  | S70: =IF(AP!V29="","",AP!V29) ->  | T70: =IF(AP!W29="","",AP!W29) ->  | U70: =IF(AP!X29="","",AP!X29) ->  | V70: =IF(AP!Y29="","",AP!Y29) ->  | W70: =IF(AP!Z29="","",AP!Z29) ->  | X70: =IF(AP!AA29="","",AP!AA29) ->  | Y70: =IF(AP!AB29="","",AP!AB29) ->  | Z70: =IF(AP!AC29="","",AP!AC29) ->  | AA70: =IF(AP!AD29="","",AP!AD29) ->  | AB70: =IF(AP!AE29="","",AP!AE29) ->  | AC70: =IF(AP!AF29="","",AP!AF29) ->  | AD70: =IF(AP!AG29="","",AP!AG29) ->  | AE70: =IF(AP!AH29="","",AP!AH29) ->  | AF70: =IF(AP!AI29="","",AP!AI29) ->  | AG70: =IF(AP!AJ29="","",AP!AJ29) ->  | AH70: =IF(AP!AK29="","",AP!AK29) ->  | AI70: =IF(AP!AL29="","",AP!AL29) ->  | AJ70: =IF(AP!AM29="","",AP!AM29) ->  | AK70: =IF(AP!AN29="","",AP!AN29) ->  | AL70: =IF(AP!AO29="","",AP!AO29) ->  | AM70: =IF(AP!AP29="","",AP!AP29) -> 
D71: Criterio Evaluación 8.3 | E71: =IF(AP!H30="","",AP!H30) ->  | F71: =IF(AP!I30="","",AP!I30) ->  | G71: =IF(AP!J30="","",AP!J30) ->  | H71: =IF(AP!K30="","",AP!K30) ->  | I71: =IF(AP!L30="","",AP!L30) ->  | J71: =IF(AP!M30="","",AP!M30) ->  | K71: =IF(AP!N30="","",AP!N30) ->  | L71: =IF(AP!O30="","",AP!O30) ->  | M71: =IF(AP!P30="","",AP!P30) ->  | N71: =IF(AP!Q30="","",AP!Q30) ->  | O71: =IF(AP!R30="","",AP!R30) ->  | P71: =IF(AP!S30="","",AP!S30) ->  | Q71: =IF(AP!T30="","",AP!T30) ->  | R71: =IF(AP!U30="","",AP!U30) ->  | S71: =IF(AP!V30="","",AP!V30) ->  | T71: =IF(AP!W30="","",AP!W30) ->  | U71: =IF(AP!X30="","",AP!X30) ->  | V71: =IF(AP!Y30="","",AP!Y30) ->  | W71: =IF(AP!Z30="","",AP!Z30) ->  | X71: =IF(AP!AA30="","",AP!AA30) ->  | Y71: =IF(AP!AB30="","",AP!AB30) ->  | Z71: =IF(AP!AC30="","",AP!AC30) ->  | AA71: =IF(AP!AD30="","",AP!AD30) ->  | AB71: =IF(AP!AE30="","",AP!AE30) ->  | AC71: =IF(AP!AF30="","",AP!AF30) ->  | AD71: =IF(AP!AG30="","",AP!AG30) ->  | AE71: =IF(AP!AH30="","",AP!AH30) ->  | AF71: =IF(AP!AI30="","",AP!AI30) ->  | AG71: =IF(AP!AJ30="","",AP!AJ30) ->  | AH71: =IF(AP!AK30="","",AP!AK30) ->  | AI71: =IF(AP!AL30="","",AP!AL30) ->  | AJ71: =IF(AP!AM30="","",AP!AM30) ->  | AK71: =IF(AP!AN30="","",AP!AN30) ->  | AL71: =IF(AP!AO30="","",AP!AO30) ->  | AM71: =IF(AP!AP30="","",AP!AP30) -> 
B72: Conocimiento de las Matemáticas | C72: Comp. Esp. 1 | D72: Criterio Evaluación 1.1 | E72: =IF(CMAT!H4="","",CMAT!H4) ->  | F72: =IF(CMAT!I4="","",CMAT!I4) ->  | G72: =IF(CMAT!J4="","",CMAT!J4) ->  | H72: =IF(CMAT!K4="","",CMAT!K4) ->  | I72: =IF(CMAT!L4="","",CMAT!L4) ->  | J72: =IF(CMAT!M4="","",CMAT!M4) ->  | K72: =IF(CMAT!N4="","",CMAT!N4) ->  | L72: =IF(CMAT!O4="","",CMAT!O4) ->  | M72: =IF(CMAT!P4="","",CMAT!P4) ->  | N72: =IF(CMAT!Q4="","",CMAT!Q4) ->  | O72: =IF(CMAT!R4="","",CMAT!R4) ->  | P72: =IF(CMAT!S4="","",CMAT!S4) ->  | Q72: =IF(CMAT!T4="","",CMAT!T4) ->  | R72: =IF(CMAT!U4="","",CMAT!U4) ->  | S72: =IF(CMAT!V4="","",CMAT!V4) ->  | T72: =IF(CMAT!W4="","",CMAT!W4) ->  | U72: =IF(CMAT!X4="","",CMAT!X4) ->  | V72: =IF(CMAT!Y4="","",CMAT!Y4) ->  | W72: =IF(CMAT!Z4="","",CMAT!Z4) ->  | X72: =IF(CMAT!AA4="","",CMAT!AA4) ->  | Y72: =IF(CMAT!AB4="","",CMAT!AB4) ->  | Z72: =IF(CMAT!AC4="","",CMAT!AC4) ->  | AA72: =IF(CMAT!AD4="","",CMAT!AD4) ->  | AB72: =IF(CMAT!AE4="","",CMAT!AE4) ->  | AC72: =IF(CMAT!AF4="","",CMAT!AF4) ->  | AD72: =IF(CMAT!AG4="","",CMAT!AG4) ->  | AE72: =IF(CMAT!AH4="","",CMAT!AH4) ->  | AF72: =IF(CMAT!AI4="","",CMAT!AI4) ->  | AG72: =IF(CMAT!AJ4="","",CMAT!AJ4) ->  | AH72: =IF(CMAT!AK4="","",CMAT!AK4) ->  | AI72: =IF(CMAT!AL4="","",CMAT!AL4) ->  | AJ72: =IF(CMAT!AM4="","",CMAT!AM4) ->  | AK72: =IF(CMAT!AN4="","",CMAT!AN4) ->  | AL72: =IF(CMAT!AO4="","",CMAT!AO4) ->  | AM72: =IF(CMAT!AP4="","",CMAT!AP4) -> 
D73: Criterio Evaluación 1.2 | E73: =IF(CMAT!H5="","",CMAT!H5) ->  | F73: =IF(CMAT!I5="","",CMAT!I5) ->  | G73: =IF(CMAT!J5="","",CMAT!J5) ->  | H73: =IF(CMAT!K5="","",CMAT!K5) ->  | I73: =IF(CMAT!L5="","",CMAT!L5) ->  | J73: =IF(CMAT!M5="","",CMAT!M5) ->  | K73: =IF(CMAT!N5="","",CMAT!N5) ->  | L73: =IF(CMAT!O5="","",CMAT!O5) ->  | M73: =IF(CMAT!P5="","",CMAT!P5) ->  | N73: =IF(CMAT!Q5="","",CMAT!Q5) ->  | O73: =IF(CMAT!R5="","",CMAT!R5) ->  | P73: =IF(CMAT!S5="","",CMAT!S5) ->  | Q73: =IF(CMAT!T5="","",CMAT!T5) ->  | R73: =IF(CMAT!U5="","",CMAT!U5) ->  | S73: =IF(CMAT!V5="","",CMAT!V5) ->  | T73: =IF(CMAT!W5="","",CMAT!W5) ->  | U73: =IF(CMAT!X5="","",CMAT!X5) ->  | V73: =IF(CMAT!Y5="","",CMAT!Y5) ->  | W73: =IF(CMAT!Z5="","",CMAT!Z5) ->  | X73: =IF(CMAT!AA5="","",CMAT!AA5) ->  | Y73: =IF(CMAT!AB5="","",CMAT!AB5) ->  | Z73: =IF(CMAT!AC5="","",CMAT!AC5) ->  | AA73: =IF(CMAT!AD5="","",CMAT!AD5) ->  | AB73: =IF(CMAT!AE5="","",CMAT!AE5) ->  | AC73: =IF(CMAT!AF5="","",CMAT!AF5) ->  | AD73: =IF(CMAT!AG5="","",CMAT!AG5) ->  | AE73: =IF(CMAT!AH5="","",CMAT!AH5) ->  | AF73: =IF(CMAT!AI5="","",CMAT!AI5) ->  | AG73: =IF(CMAT!AJ5="","",CMAT!AJ5) ->  | AH73: =IF(CMAT!AK5="","",CMAT!AK5) ->  | AI73: =IF(CMAT!AL5="","",CMAT!AL5) ->  | AJ73: =IF(CMAT!AM5="","",CMAT!AM5) ->  | AK73: =IF(CMAT!AN5="","",CMAT!AN5) ->  | AL73: =IF(CMAT!AO5="","",CMAT!AO5) ->  | AM73: =IF(CMAT!AP5="","",CMAT!AP5) -> 
D74: Criterio Evaluación 1.3 | E74: =IF(CMAT!H6="","",CMAT!H6) ->  | F74: =IF(CMAT!I6="","",CMAT!I6) ->  | G74: =IF(CMAT!J6="","",CMAT!J6) ->  | H74: =IF(CMAT!K6="","",CMAT!K6) ->  | I74: =IF(CMAT!L6="","",CMAT!L6) ->  | J74: =IF(CMAT!M6="","",CMAT!M6) ->  | K74: =IF(CMAT!N6="","",CMAT!N6) ->  | L74: =IF(CMAT!O6="","",CMAT!O6) ->  | M74: =IF(CMAT!P6="","",CMAT!P6) ->  | N74: =IF(CMAT!Q6="","",CMAT!Q6) ->  | O74: =IF(CMAT!R6="","",CMAT!R6) ->  | P74: =IF(CMAT!S6="","",CMAT!S6) ->  | Q74: =IF(CMAT!T6="","",CMAT!T6) ->  | R74: =IF(CMAT!U6="","",CMAT!U6) ->  | S74: =IF(CMAT!V6="","",CMAT!V6) ->  | T74: =IF(CMAT!W6="","",CMAT!W6) ->  | U74: =IF(CMAT!X6="","",CMAT!X6) ->  | V74: =IF(CMAT!Y6="","",CMAT!Y6) ->  | W74: =IF(CMAT!Z6="","",CMAT!Z6) ->  | X74: =IF(CMAT!AA6="","",CMAT!AA6) ->  | Y74: =IF(CMAT!AB6="","",CMAT!AB6) ->  | Z74: =IF(CMAT!AC6="","",CMAT!AC6) ->  | AA74: =IF(CMAT!AD6="","",CMAT!AD6) ->  | AB74: =IF(CMAT!AE6="","",CMAT!AE6) ->  | AC74: =IF(CMAT!AF6="","",CMAT!AF6) ->  | AD74: =IF(CMAT!AG6="","",CMAT!AG6) ->  | AE74: =IF(CMAT!AH6="","",CMAT!AH6) ->  | AF74: =IF(CMAT!AI6="","",CMAT!AI6) ->  | AG74: =IF(CMAT!AJ6="","",CMAT!AJ6) ->  | AH74: =IF(CMAT!AK6="","",CMAT!AK6) ->  | AI74: =IF(CMAT!AL6="","",CMAT!AL6) ->  | AJ74: =IF(CMAT!AM6="","",CMAT!AM6) ->  | AK74: =IF(CMAT!AN6="","",CMAT!AN6) ->  | AL74: =IF(CMAT!AO6="","",CMAT!AO6) ->  | AM74: =IF(CMAT!AP6="","",CMAT!AP6) -> 
C75: Comp. Esp. 2 | D75: Criterio Evaluación 2.1 | E75: =IF(CMAT!H7="","",CMAT!H7) ->  | F75: =IF(CMAT!I7="","",CMAT!I7) ->  | G75: =IF(CMAT!J7="","",CMAT!J7) ->  | H75: =IF(CMAT!K7="","",CMAT!K7) ->  | I75: =IF(CMAT!L7="","",CMAT!L7) ->  | J75: =IF(CMAT!M7="","",CMAT!M7) ->  | K75: =IF(CMAT!N7="","",CMAT!N7) ->  | L75: =IF(CMAT!O7="","",CMAT!O7) ->  | M75: =IF(CMAT!P7="","",CMAT!P7) ->  | N75: =IF(CMAT!Q7="","",CMAT!Q7) ->  | O75: =IF(CMAT!R7="","",CMAT!R7) ->  | P75: =IF(CMAT!S7="","",CMAT!S7) ->  | Q75: =IF(CMAT!T7="","",CMAT!T7) ->  | R75: =IF(CMAT!U7="","",CMAT!U7) ->  | S75: =IF(CMAT!V7="","",CMAT!V7) ->  | T75: =IF(CMAT!W7="","",CMAT!W7) ->  | U75: =IF(CMAT!X7="","",CMAT!X7) ->  | V75: =IF(CMAT!Y7="","",CMAT!Y7) ->  | W75: =IF(CMAT!Z7="","",CMAT!Z7) ->  | X75: =IF(CMAT!AA7="","",CMAT!AA7) ->  | Y75: =IF(CMAT!AB7="","",CMAT!AB7) ->  | Z75: =IF(CMAT!AC7="","",CMAT!AC7) ->  | AA75: =IF(CMAT!AD7="","",CMAT!AD7) ->  | AB75: =IF(CMAT!AE7="","",CMAT!AE7) ->  | AC75: =IF(CMAT!AF7="","",CMAT!AF7) ->  | AD75: =IF(CMAT!AG7="","",CMAT!AG7) ->  | AE75: =IF(CMAT!AH7="","",CMAT!AH7) ->  | AF75: =IF(CMAT!AI7="","",CMAT!AI7) ->  | AG75: =IF(CMAT!AJ7="","",CMAT!AJ7) ->  | AH75: =IF(CMAT!AK7="","",CMAT!AK7) ->  | AI75: =IF(CMAT!AL7="","",CMAT!AL7) ->  | AJ75: =IF(CMAT!AM7="","",CMAT!AM7) ->  | AK75: =IF(CMAT!AN7="","",CMAT!AN7) ->  | AL75: =IF(CMAT!AO7="","",CMAT!AO7) ->  | AM75: =IF(CMAT!AP7="","",CMAT!AP7) -> 
C76: Comp. Esp. 3 | D76: Criterio Evaluación 3.1 | E76: =IF(CMAT!H8="","",CMAT!H8) ->  | F76: =IF(CMAT!I8="","",CMAT!I8) ->  | G76: =IF(CMAT!J8="","",CMAT!J8) ->  | H76: =IF(CMAT!K8="","",CMAT!K8) ->  | I76: =IF(CMAT!L8="","",CMAT!L8) ->  | J76: =IF(CMAT!M8="","",CMAT!M8) ->  | K76: =IF(CMAT!N8="","",CMAT!N8) ->  | L76: =IF(CMAT!O8="","",CMAT!O8) ->  | M76: =IF(CMAT!P8="","",CMAT!P8) ->  | N76: =IF(CMAT!Q8="","",CMAT!Q8) ->  | O76: =IF(CMAT!R8="","",CMAT!R8) ->  | P76: =IF(CMAT!S8="","",CMAT!S8) ->  | Q76: =IF(CMAT!T8="","",CMAT!T8) ->  | R76: =IF(CMAT!U8="","",CMAT!U8) ->  | S76: =IF(CMAT!V8="","",CMAT!V8) ->  | T76: =IF(CMAT!W8="","",CMAT!W8) ->  | U76: =IF(CMAT!X8="","",CMAT!X8) ->  | V76: =IF(CMAT!Y8="","",CMAT!Y8) ->  | W76: =IF(CMAT!Z8="","",CMAT!Z8) ->  | X76: =IF(CMAT!AA8="","",CMAT!AA8) ->  | Y76: =IF(CMAT!AB8="","",CMAT!AB8) ->  | Z76: =IF(CMAT!AC8="","",CMAT!AC8) ->  | AA76: =IF(CMAT!AD8="","",CMAT!AD8) ->  | AB76: =IF(CMAT!AE8="","",CMAT!AE8) ->  | AC76: =IF(CMAT!AF8="","",CMAT!AF8) ->  | AD76: =IF(CMAT!AG8="","",CMAT!AG8) ->  | AE76: =IF(CMAT!AH8="","",CMAT!AH8) ->  | AF76: =IF(CMAT!AI8="","",CMAT!AI8) ->  | AG76: =IF(CMAT!AJ8="","",CMAT!AJ8) ->  | AH76: =IF(CMAT!AK8="","",CMAT!AK8) ->  | AI76: =IF(CMAT!AL8="","",CMAT!AL8) ->  | AJ76: =IF(CMAT!AM8="","",CMAT!AM8) ->  | AK76: =IF(CMAT!AN8="","",CMAT!AN8) ->  | AL76: =IF(CMAT!AO8="","",CMAT!AO8) ->  | AM76: =IF(CMAT!AP8="","",CMAT!AP8) -> 
D77: Criterio Evaluación 3.2 | E77: =IF(CMAT!H9="","",CMAT!H9) ->  | F77: =IF(CMAT!I9="","",CMAT!I9) ->  | G77: =IF(CMAT!J9="","",CMAT!J9) ->  | H77: =IF(CMAT!K9="","",CMAT!K9) ->  | I77: =IF(CMAT!L9="","",CMAT!L9) ->  | J77: =IF(CMAT!M9="","",CMAT!M9) ->  | K77: =IF(CMAT!N9="","",CMAT!N9) ->  | L77: =IF(CMAT!O9="","",CMAT!O9) ->  | M77: =IF(CMAT!P9="","",CMAT!P9) ->  | N77: =IF(CMAT!Q9="","",CMAT!Q9) ->  | O77: =IF(CMAT!R9="","",CMAT!R9) ->  | P77: =IF(CMAT!S9="","",CMAT!S9) ->  | Q77: =IF(CMAT!T9="","",CMAT!T9) ->  | R77: =IF(CMAT!U9="","",CMAT!U9) ->  | S77: =IF(CMAT!V9="","",CMAT!V9) ->  | T77: =IF(CMAT!W9="","",CMAT!W9) ->  | U77: =IF(CMAT!X9="","",CMAT!X9) ->  | V77: =IF(CMAT!Y9="","",CMAT!Y9) ->  | W77: =IF(CMAT!Z9="","",CMAT!Z9) ->  | X77: =IF(CMAT!AA9="","",CMAT!AA9) ->  | Y77: =IF(CMAT!AB9="","",CMAT!AB9) ->  | Z77: =IF(CMAT!AC9="","",CMAT!AC9) ->  | AA77: =IF(CMAT!AD9="","",CMAT!AD9) ->  | AB77: =IF(CMAT!AE9="","",CMAT!AE9) ->  | AC77: =IF(CMAT!AF9="","",CMAT!AF9) ->  | AD77: =IF(CMAT!AG9="","",CMAT!AG9) ->  | AE77: =IF(CMAT!AH9="","",CMAT!AH9) ->  | AF77: =IF(CMAT!AI9="","",CMAT!AI9) ->  | AG77: =IF(CMAT!AJ9="","",CMAT!AJ9) ->  | AH77: =IF(CMAT!AK9="","",CMAT!AK9) ->  | AI77: =IF(CMAT!AL9="","",CMAT!AL9) ->  | AJ77: =IF(CMAT!AM9="","",CMAT!AM9) ->  | AK77: =IF(CMAT!AN9="","",CMAT!AN9) ->  | AL77: =IF(CMAT!AO9="","",CMAT!AO9) ->  | AM77: =IF(CMAT!AP9="","",CMAT!AP9) -> 
D78: Criterio Evaluación 3.3 | E78: =IF(CMAT!H10="","",CMAT!H10) ->  | F78: =IF(CMAT!I10="","",CMAT!I10) ->  | G78: =IF(CMAT!J10="","",CMAT!J10) ->  | H78: =IF(CMAT!K10="","",CMAT!K10) ->  | I78: =IF(CMAT!L10="","",CMAT!L10) ->  | J78: =IF(CMAT!M10="","",CMAT!M10) ->  | K78: =IF(CMAT!N10="","",CMAT!N10) ->  | L78: =IF(CMAT!O10="","",CMAT!O10) ->  | M78: =IF(CMAT!P10="","",CMAT!P10) ->  | N78: =IF(CMAT!Q10="","",CMAT!Q10) ->  | O78: =IF(CMAT!R10="","",CMAT!R10) ->  | P78: =IF(CMAT!S10="","",CMAT!S10) ->  | Q78: =IF(CMAT!T10="","",CMAT!T10) ->  | R78: =IF(CMAT!U10="","",CMAT!U10) ->  | S78: =IF(CMAT!V10="","",CMAT!V10) ->  | T78: =IF(CMAT!W10="","",CMAT!W10) ->  | U78: =IF(CMAT!X10="","",CMAT!X10) ->  | V78: =IF(CMAT!Y10="","",CMAT!Y10) ->  | W78: =IF(CMAT!Z10="","",CMAT!Z10) ->  | X78: =IF(CMAT!AA10="","",CMAT!AA10) ->  | Y78: =IF(CMAT!AB10="","",CMAT!AB10) ->  | Z78: =IF(CMAT!AC10="","",CMAT!AC10) ->  | AA78: =IF(CMAT!AD10="","",CMAT!AD10) ->  | AB78: =IF(CMAT!AE10="","",CMAT!AE10) ->  | AC78: =IF(CMAT!AF10="","",CMAT!AF10) ->  | AD78: =IF(CMAT!AG10="","",CMAT!AG10) ->  | AE78: =IF(CMAT!AH10="","",CMAT!AH10) ->  | AF78: =IF(CMAT!AI10="","",CMAT!AI10) ->  | AG78: =IF(CMAT!AJ10="","",CMAT!AJ10) ->  | AH78: =IF(CMAT!AK10="","",CMAT!AK10) ->  | AI78: =IF(CMAT!AL10="","",CMAT!AL10) ->  | AJ78: =IF(CMAT!AM10="","",CMAT!AM10) ->  | AK78: =IF(CMAT!AN10="","",CMAT!AN10) ->  | AL78: =IF(CMAT!AO10="","",CMAT!AO10) ->  | AM78: =IF(CMAT!AP10="","",CMAT!AP10) -> 
C79: Comp. Esp. 4 | D79: Criterio Evaluación 4.1 | E79: =IF(CMAT!H11="","",CMAT!H11) ->  | F79: =IF(CMAT!I11="","",CMAT!I11) ->  | G79: =IF(CMAT!J11="","",CMAT!J11) ->  | H79: =IF(CMAT!K11="","",CMAT!K11) ->  | I79: =IF(CMAT!L11="","",CMAT!L11) ->  | J79: =IF(CMAT!M11="","",CMAT!M11) ->  | K79: =IF(CMAT!N11="","",CMAT!N11) ->  | L79: =IF(CMAT!O11="","",CMAT!O11) ->  | M79: =IF(CMAT!P11="","",CMAT!P11) ->  | N79: =IF(CMAT!Q11="","",CMAT!Q11) ->  | O79: =IF(CMAT!R11="","",CMAT!R11) ->  | P79: =IF(CMAT!S11="","",CMAT!S11) ->  | Q79: =IF(CMAT!T11="","",CMAT!T11) ->  | R79: =IF(CMAT!U11="","",CMAT!U11) ->  | S79: =IF(CMAT!V11="","",CMAT!V11) ->  | T79: =IF(CMAT!W11="","",CMAT!W11) ->  | U79: =IF(CMAT!X11="","",CMAT!X11) ->  | V79: =IF(CMAT!Y11="","",CMAT!Y11) ->  | W79: =IF(CMAT!Z11="","",CMAT!Z11) ->  | X79: =IF(CMAT!AA11="","",CMAT!AA11) ->  | Y79: =IF(CMAT!AB11="","",CMAT!AB11) ->  | Z79: =IF(CMAT!AC11="","",CMAT!AC11) ->  | AA79: =IF(CMAT!AD11="","",CMAT!AD11) ->  | AB79: =IF(CMAT!AE11="","",CMAT!AE11) ->  | AC79: =IF(CMAT!AF11="","",CMAT!AF11) ->  | AD79: =IF(CMAT!AG11="","",CMAT!AG11) ->  | AE79: =IF(CMAT!AH11="","",CMAT!AH11) ->  | AF79: =IF(CMAT!AI11="","",CMAT!AI11) ->  | AG79: =IF(CMAT!AJ11="","",CMAT!AJ11) ->  | AH79: =IF(CMAT!AK11="","",CMAT!AK11) ->  | AI79: =IF(CMAT!AL11="","",CMAT!AL11) ->  | AJ79: =IF(CMAT!AM11="","",CMAT!AM11) ->  | AK79: =IF(CMAT!AN11="","",CMAT!AN11) ->  | AL79: =IF(CMAT!AO11="","",CMAT!AO11) ->  | AM79: =IF(CMAT!AP11="","",CMAT!AP11) -> 
D80: Criterio Evaluación 4.2 | E80: =IF(CMAT!H12="","",CMAT!H12) ->  | F80: =IF(CMAT!I12="","",CMAT!I12) ->  | G80: =IF(CMAT!J12="","",CMAT!J12) ->  | H80: =IF(CMAT!K12="","",CMAT!K12) ->  | I80: =IF(CMAT!L12="","",CMAT!L12) ->  | J80: =IF(CMAT!M12="","",CMAT!M12) ->  | K80: =IF(CMAT!N12="","",CMAT!N12) ->  | L80: =IF(CMAT!O12="","",CMAT!O12) ->  | M80: =IF(CMAT!P12="","",CMAT!P12) ->  | N80: =IF(CMAT!Q12="","",CMAT!Q12) ->  | O80: =IF(CMAT!R12="","",CMAT!R12) ->  | P80: =IF(CMAT!S12="","",CMAT!S12) ->  | Q80: =IF(CMAT!T12="","",CMAT!T12) ->  | R80: =IF(CMAT!U12="","",CMAT!U12) ->  | S80: =IF(CMAT!V12="","",CMAT!V12) ->  | T80: =IF(CMAT!W12="","",CMAT!W12) ->  | U80: =IF(CMAT!X12="","",CMAT!X12) ->  | V80: =IF(CMAT!Y12="","",CMAT!Y12) ->  | W80: =IF(CMAT!Z12="","",CMAT!Z12) ->  | X80: =IF(CMAT!AA12="","",CMAT!AA12) ->  | Y80: =IF(CMAT!AB12="","",CMAT!AB12) ->  | Z80: =IF(CMAT!AC12="","",CMAT!AC12) ->  | AA80: =IF(CMAT!AD12="","",CMAT!AD12) ->  | AB80: =IF(CMAT!AE12="","",CMAT!AE12) ->  | AC80: =IF(CMAT!AF12="","",CMAT!AF12) ->  | AD80: =IF(CMAT!AG12="","",CMAT!AG12) ->  | AE80: =IF(CMAT!AH12="","",CMAT!AH12) ->  | AF80: =IF(CMAT!AI12="","",CMAT!AI12) ->  | AG80: =IF(CMAT!AJ12="","",CMAT!AJ12) ->  | AH80: =IF(CMAT!AK12="","",CMAT!AK12) ->  | AI80: =IF(CMAT!AL12="","",CMAT!AL12) ->  | AJ80: =IF(CMAT!AM12="","",CMAT!AM12) ->  | AK80: =IF(CMAT!AN12="","",CMAT!AN12) ->  | AL80: =IF(CMAT!AO12="","",CMAT!AO12) ->  | AM80: =IF(CMAT!AP12="","",CMAT!AP12) -> 
D81: Criterio Evaluación 4.3 | E81: =IF(CMAT!H13="","",CMAT!H13) ->  | F81: =IF(CMAT!I13="","",CMAT!I13) ->  | G81: =IF(CMAT!J13="","",CMAT!J13) ->  | H81: =IF(CMAT!K13="","",CMAT!K13) ->  | I81: =IF(CMAT!L13="","",CMAT!L13) ->  | J81: =IF(CMAT!M13="","",CMAT!M13) ->  | K81: =IF(CMAT!N13="","",CMAT!N13) ->  | L81: =IF(CMAT!O13="","",CMAT!O13) ->  | M81: =IF(CMAT!P13="","",CMAT!P13) ->  | N81: =IF(CMAT!Q13="","",CMAT!Q13) ->  | O81: =IF(CMAT!R13="","",CMAT!R13) ->  | P81: =IF(CMAT!S13="","",CMAT!S13) ->  | Q81: =IF(CMAT!T13="","",CMAT!T13) ->  | R81: =IF(CMAT!U13="","",CMAT!U13) ->  | S81: =IF(CMAT!V13="","",CMAT!V13) ->  | T81: =IF(CMAT!W13="","",CMAT!W13) ->  | U81: =IF(CMAT!X13="","",CMAT!X13) ->  | V81: =IF(CMAT!Y13="","",CMAT!Y13) ->  | W81: =IF(CMAT!Z13="","",CMAT!Z13) ->  | X81: =IF(CMAT!AA13="","",CMAT!AA13) ->  | Y81: =IF(CMAT!AB13="","",CMAT!AB13) ->  | Z81: =IF(CMAT!AC13="","",CMAT!AC13) ->  | AA81: =IF(CMAT!AD13="","",CMAT!AD13) ->  | AB81: =IF(CMAT!AE13="","",CMAT!AE13) ->  | AC81: =IF(CMAT!AF13="","",CMAT!AF13) ->  | AD81: =IF(CMAT!AG13="","",CMAT!AG13) ->  | AE81: =IF(CMAT!AH13="","",CMAT!AH13) ->  | AF81: =IF(CMAT!AI13="","",CMAT!AI13) ->  | AG81: =IF(CMAT!AJ13="","",CMAT!AJ13) ->  | AH81: =IF(CMAT!AK13="","",CMAT!AK13) ->  | AI81: =IF(CMAT!AL13="","",CMAT!AL13) ->  | AJ81: =IF(CMAT!AM13="","",CMAT!AM13) ->  | AK81: =IF(CMAT!AN13="","",CMAT!AN13) ->  | AL81: =IF(CMAT!AO13="","",CMAT!AO13) ->  | AM81: =IF(CMAT!AP13="","",CMAT!AP13) -> 
C82: Comp. Esp. 5 | D82: Criterio Evaluación 5.1 | E82: =IF(CMAT!H14="","",CMAT!H14) ->  | F82: =IF(CMAT!I14="","",CMAT!I14) ->  | G82: =IF(CMAT!J14="","",CMAT!J14) ->  | H82: =IF(CMAT!K14="","",CMAT!K14) ->  | I82: =IF(CMAT!L14="","",CMAT!L14) ->  | J82: =IF(CMAT!M14="","",CMAT!M14) ->  | K82: =IF(CMAT!N14="","",CMAT!N14) ->  | L82: =IF(CMAT!O14="","",CMAT!O14) ->  | M82: =IF(CMAT!P14="","",CMAT!P14) ->  | N82: =IF(CMAT!Q14="","",CMAT!Q14) ->  | O82: =IF(CMAT!R14="","",CMAT!R14) ->  | P82: =IF(CMAT!S14="","",CMAT!S14) ->  | Q82: =IF(CMAT!T14="","",CMAT!T14) ->  | R82: =IF(CMAT!U14="","",CMAT!U14) ->  | S82: =IF(CMAT!V14="","",CMAT!V14) ->  | T82: =IF(CMAT!W14="","",CMAT!W14) ->  | U82: =IF(CMAT!X14="","",CMAT!X14) ->  | V82: =IF(CMAT!Y14="","",CMAT!Y14) ->  | W82: =IF(CMAT!Z14="","",CMAT!Z14) ->  | X82: =IF(CMAT!AA14="","",CMAT!AA14) ->  | Y82: =IF(CMAT!AB14="","",CMAT!AB14) ->  | Z82: =IF(CMAT!AC14="","",CMAT!AC14) ->  | AA82: =IF(CMAT!AD14="","",CMAT!AD14) ->  | AB82: =IF(CMAT!AE14="","",CMAT!AE14) ->  | AC82: =IF(CMAT!AF14="","",CMAT!AF14) ->  | AD82: =IF(CMAT!AG14="","",CMAT!AG14) ->  | AE82: =IF(CMAT!AH14="","",CMAT!AH14) ->  | AF82: =IF(CMAT!AI14="","",CMAT!AI14) ->  | AG82: =IF(CMAT!AJ14="","",CMAT!AJ14) ->  | AH82: =IF(CMAT!AK14="","",CMAT!AK14) ->  | AI82: =IF(CMAT!AL14="","",CMAT!AL14) ->  | AJ82: =IF(CMAT!AM14="","",CMAT!AM14) ->  | AK82: =IF(CMAT!AN14="","",CMAT!AN14) ->  | AL82: =IF(CMAT!AO14="","",CMAT!AO14) ->  | AM82: =IF(CMAT!AP14="","",CMAT!AP14) -> 
D83: Criterio Evaluación 5.2 | E83: =IF(CMAT!H15="","",CMAT!H15) ->  | F83: =IF(CMAT!I15="","",CMAT!I15) ->  | G83: =IF(CMAT!J15="","",CMAT!J15) ->  | H83: =IF(CMAT!K15="","",CMAT!K15) ->  | I83: =IF(CMAT!L15="","",CMAT!L15) ->  | J83: =IF(CMAT!M15="","",CMAT!M15) ->  | K83: =IF(CMAT!N15="","",CMAT!N15) ->  | L83: =IF(CMAT!O15="","",CMAT!O15) ->  | M83: =IF(CMAT!P15="","",CMAT!P15) ->  | N83: =IF(CMAT!Q15="","",CMAT!Q15) ->  | O83: =IF(CMAT!R15="","",CMAT!R15) ->  | P83: =IF(CMAT!S15="","",CMAT!S15) ->  | Q83: =IF(CMAT!T15="","",CMAT!T15) ->  | R83: =IF(CMAT!U15="","",CMAT!U15) ->  | S83: =IF(CMAT!V15="","",CMAT!V15) ->  | T83: =IF(CMAT!W15="","",CMAT!W15) ->  | U83: =IF(CMAT!X15="","",CMAT!X15) ->  | V83: =IF(CMAT!Y15="","",CMAT!Y15) ->  | W83: =IF(CMAT!Z15="","",CMAT!Z15) ->  | X83: =IF(CMAT!AA15="","",CMAT!AA15) ->  | Y83: =IF(CMAT!AB15="","",CMAT!AB15) ->  | Z83: =IF(CMAT!AC15="","",CMAT!AC15) ->  | AA83: =IF(CMAT!AD15="","",CMAT!AD15) ->  | AB83: =IF(CMAT!AE15="","",CMAT!AE15) ->  | AC83: =IF(CMAT!AF15="","",CMAT!AF15) ->  | AD83: =IF(CMAT!AG15="","",CMAT!AG15) ->  | AE83: =IF(CMAT!AH15="","",CMAT!AH15) ->  | AF83: =IF(CMAT!AI15="","",CMAT!AI15) ->  | AG83: =IF(CMAT!AJ15="","",CMAT!AJ15) ->  | AH83: =IF(CMAT!AK15="","",CMAT!AK15) ->  | AI83: =IF(CMAT!AL15="","",CMAT!AL15) ->  | AJ83: =IF(CMAT!AM15="","",CMAT!AM15) ->  | AK83: =IF(CMAT!AN15="","",CMAT!AN15) ->  | AL83: =IF(CMAT!AO15="","",CMAT!AO15) ->  | AM83: =IF(CMAT!AP15="","",CMAT!AP15) -> 
D84: Criterio Evaluación 5.3 | E84: =IF(CMAT!H16="","",CMAT!H16) ->  | F84: =IF(CMAT!I16="","",CMAT!I16) ->  | G84: =IF(CMAT!J16="","",CMAT!J16) ->  | H84: =IF(CMAT!K16="","",CMAT!K16) ->  | I84: =IF(CMAT!L16="","",CMAT!L16) ->  | J84: =IF(CMAT!M16="","",CMAT!M16) ->  | K84: =IF(CMAT!N16="","",CMAT!N16) ->  | L84: =IF(CMAT!O16="","",CMAT!O16) ->  | M84: =IF(CMAT!P16="","",CMAT!P16) ->  | N84: =IF(CMAT!Q16="","",CMAT!Q16) ->  | O84: =IF(CMAT!R16="","",CMAT!R16) ->  | P84: =IF(CMAT!S16="","",CMAT!S16) ->  | Q84: =IF(CMAT!T16="","",CMAT!T16) ->  | R84: =IF(CMAT!U16="","",CMAT!U16) ->  | S84: =IF(CMAT!V16="","",CMAT!V16) ->  | T84: =IF(CMAT!W16="","",CMAT!W16) ->  | U84: =IF(CMAT!X16="","",CMAT!X16) ->  | V84: =IF(CMAT!Y16="","",CMAT!Y16) ->  | W84: =IF(CMAT!Z16="","",CMAT!Z16) ->  | X84: =IF(CMAT!AA16="","",CMAT!AA16) ->  | Y84: =IF(CMAT!AB16="","",CMAT!AB16) ->  | Z84: =IF(CMAT!AC16="","",CMAT!AC16) ->  | AA84: =IF(CMAT!AD16="","",CMAT!AD16) ->  | AB84: =IF(CMAT!AE16="","",CMAT!AE16) ->  | AC84: =IF(CMAT!AF16="","",CMAT!AF16) ->  | AD84: =IF(CMAT!AG16="","",CMAT!AG16) ->  | AE84: =IF(CMAT!AH16="","",CMAT!AH16) ->  | AF84: =IF(CMAT!AI16="","",CMAT!AI16) ->  | AG84: =IF(CMAT!AJ16="","",CMAT!AJ16) ->  | AH84: =IF(CMAT!AK16="","",CMAT!AK16) ->  | AI84: =IF(CMAT!AL16="","",CMAT!AL16) ->  | AJ84: =IF(CMAT!AM16="","",CMAT!AM16) ->  | AK84: =IF(CMAT!AN16="","",CMAT!AN16) ->  | AL84: =IF(CMAT!AO16="","",CMAT!AO16) ->  | AM84: =IF(CMAT!AP16="","",CMAT!AP16) -> 
D85: Criterio Evaluación 5.4 | E85: =IF(CMAT!H17="","",CMAT!H17) ->  | F85: =IF(CMAT!I17="","",CMAT!I17) ->  | G85: =IF(CMAT!J17="","",CMAT!J17) ->  | H85: =IF(CMAT!K17="","",CMAT!K17) ->  | I85: =IF(CMAT!L17="","",CMAT!L17) ->  | J85: =IF(CMAT!M17="","",CMAT!M17) ->  | K85: =IF(CMAT!N17="","",CMAT!N17) ->  | L85: =IF(CMAT!O17="","",CMAT!O17) ->  | M85: =IF(CMAT!P17="","",CMAT!P17) ->  | N85: =IF(CMAT!Q17="","",CMAT!Q17) ->  | O85: =IF(CMAT!R17="","",CMAT!R17) ->  | P85: =IF(CMAT!S17="","",CMAT!S17) ->  | Q85: =IF(CMAT!T17="","",CMAT!T17) ->  | R85: =IF(CMAT!U17="","",CMAT!U17) ->  | S85: =IF(CMAT!V17="","",CMAT!V17) ->  | T85: =IF(CMAT!W17="","",CMAT!W17) ->  | U85: =IF(CMAT!X17="","",CMAT!X17) ->  | V85: =IF(CMAT!Y17="","",CMAT!Y17) ->  | W85: =IF(CMAT!Z17="","",CMAT!Z17) ->  | X85: =IF(CMAT!AA17="","",CMAT!AA17) ->  | Y85: =IF(CMAT!AB17="","",CMAT!AB17) ->  | Z85: =IF(CMAT!AC17="","",CMAT!AC17) ->  | AA85: =IF(CMAT!AD17="","",CMAT!AD17) ->  | AB85: =IF(CMAT!AE17="","",CMAT!AE17) ->  | AC85: =IF(CMAT!AF17="","",CMAT!AF17) ->  | AD85: =IF(CMAT!AG17="","",CMAT!AG17) ->  | AE85: =IF(CMAT!AH17="","",CMAT!AH17) ->  | AF85: =IF(CMAT!AI17="","",CMAT!AI17) ->  | AG85: =IF(CMAT!AJ17="","",CMAT!AJ17) ->  | AH85: =IF(CMAT!AK17="","",CMAT!AK17) ->  | AI85: =IF(CMAT!AL17="","",CMAT!AL17) ->  | AJ85: =IF(CMAT!AM17="","",CMAT!AM17) ->  | AK85: =IF(CMAT!AN17="","",CMAT!AN17) ->  | AL85: =IF(CMAT!AO17="","",CMAT!AO17) ->  | AM85: =IF(CMAT!AP17="","",CMAT!AP17) -> 
B86: Conocimiento del Lenguaje | C86: Comp. Esp. 1 | D86: Criterio Evaluación 1.1 | E86: =IF(CLEN!H4="","",CLEN!H4) ->  | F86: =IF(CLEN!I4="","",CLEN!I4) ->  | G86: =IF(CLEN!J4="","",CLEN!J4) ->  | H86: =IF(CLEN!K4="","",CLEN!K4) ->  | I86: =IF(CLEN!L4="","",CLEN!L4) ->  | J86: =IF(CLEN!M4="","",CLEN!M4) ->  | K86: =IF(CLEN!N4="","",CLEN!N4) ->  | L86: =IF(CLEN!O4="","",CLEN!O4) ->  | M86: =IF(CLEN!P4="","",CLEN!P4) ->  | N86: =IF(CLEN!Q4="","",CLEN!Q4) ->  | O86: =IF(CLEN!R4="","",CLEN!R4) ->  | P86: =IF(CLEN!S4="","",CLEN!S4) ->  | Q86: =IF(CLEN!T4="","",CLEN!T4) ->  | R86: =IF(CLEN!U4="","",CLEN!U4) ->  | S86: =IF(CLEN!V4="","",CLEN!V4) ->  | T86: =IF(CLEN!W4="","",CLEN!W4) ->  | U86: =IF(CLEN!X4="","",CLEN!X4) ->  | V86: =IF(CLEN!Y4="","",CLEN!Y4) ->  | W86: =IF(CLEN!Z4="","",CLEN!Z4) ->  | X86: =IF(CLEN!AA4="","",CLEN!AA4) ->  | Y86: =IF(CLEN!AB4="","",CLEN!AB4) ->  | Z86: =IF(CLEN!AC4="","",CLEN!AC4) ->  | AA86: =IF(CLEN!AD4="","",CLEN!AD4) ->  | AB86: =IF(CLEN!AE4="","",CLEN!AE4) ->  | AC86: =IF(CLEN!AF4="","",CLEN!AF4) ->  | AD86: =IF(CLEN!AG4="","",CLEN!AG4) ->  | AE86: =IF(CLEN!AH4="","",CLEN!AH4) ->  | AF86: =IF(CLEN!AI4="","",CLEN!AI4) ->  | AG86: =IF(CLEN!AJ4="","",CLEN!AJ4) ->  | AH86: =IF(CLEN!AK4="","",CLEN!AK4) ->  | AI86: =IF(CLEN!AL4="","",CLEN!AL4) ->  | AJ86: =IF(CLEN!AM4="","",CLEN!AM4) ->  | AK86: =IF(CLEN!AN4="","",CLEN!AN4) ->  | AL86: =IF(CLEN!AO4="","",CLEN!AO4) ->  | AM86: =IF(CLEN!AP4="","",CLEN!AP4) -> 
D87: Criterio Evaluación 1.2 | E87: =IF(CLEN!H5="","",CLEN!H5) ->  | F87: =IF(CLEN!I5="","",CLEN!I5) ->  | G87: =IF(CLEN!J5="","",CLEN!J5) ->  | H87: =IF(CLEN!K5="","",CLEN!K5) ->  | I87: =IF(CLEN!L5="","",CLEN!L5) ->  | J87: =IF(CLEN!M5="","",CLEN!M5) ->  | K87: =IF(CLEN!N5="","",CLEN!N5) ->  | L87: =IF(CLEN!O5="","",CLEN!O5) ->  | M87: =IF(CLEN!P5="","",CLEN!P5) ->  | N87: =IF(CLEN!Q5="","",CLEN!Q5) ->  | O87: =IF(CLEN!R5="","",CLEN!R5) ->  | P87: =IF(CLEN!S5="","",CLEN!S5) ->  | Q87: =IF(CLEN!T5="","",CLEN!T5) ->  | R87: =IF(CLEN!U5="","",CLEN!U5) ->  | S87: =IF(CLEN!V5="","",CLEN!V5) ->  | T87: =IF(CLEN!W5="","",CLEN!W5) ->  | U87: =IF(CLEN!X5="","",CLEN!X5) ->  | V87: =IF(CLEN!Y5="","",CLEN!Y5) ->  | W87: =IF(CLEN!Z5="","",CLEN!Z5) ->  | X87: =IF(CLEN!AA5="","",CLEN!AA5) ->  | Y87: =IF(CLEN!AB5="","",CLEN!AB5) ->  | Z87: =IF(CLEN!AC5="","",CLEN!AC5) ->  | AA87: =IF(CLEN!AD5="","",CLEN!AD5) ->  | AB87: =IF(CLEN!AE5="","",CLEN!AE5) ->  | AC87: =IF(CLEN!AF5="","",CLEN!AF5) ->  | AD87: =IF(CLEN!AG5="","",CLEN!AG5) ->  | AE87: =IF(CLEN!AH5="","",CLEN!AH5) ->  | AF87: =IF(CLEN!AI5="","",CLEN!AI5) ->  | AG87: =IF(CLEN!AJ5="","",CLEN!AJ5) ->  | AH87: =IF(CLEN!AK5="","",CLEN!AK5) ->  | AI87: =IF(CLEN!AL5="","",CLEN!AL5) ->  | AJ87: =IF(CLEN!AM5="","",CLEN!AM5) ->  | AK87: =IF(CLEN!AN5="","",CLEN!AN5) ->  | AL87: =IF(CLEN!AO5="","",CLEN!AO5) ->  | AM87: =IF(CLEN!AP5="","",CLEN!AP5) -> 
C88: Comp. Esp. 2 | D88: Criterio Evaluación 2.1 | E88: =IF(CLEN!H6="","",CLEN!H6) ->  | F88: =IF(CLEN!I6="","",CLEN!I6) ->  | G88: =IF(CLEN!J6="","",CLEN!J6) ->  | H88: =IF(CLEN!K6="","",CLEN!K6) ->  | I88: =IF(CLEN!L6="","",CLEN!L6) ->  | J88: =IF(CLEN!M6="","",CLEN!M6) ->  | K88: =IF(CLEN!N6="","",CLEN!N6) ->  | L88: =IF(CLEN!O6="","",CLEN!O6) ->  | M88: =IF(CLEN!P6="","",CLEN!P6) ->  | N88: =IF(CLEN!Q6="","",CLEN!Q6) ->  | O88: =IF(CLEN!R6="","",CLEN!R6) ->  | P88: =IF(CLEN!S6="","",CLEN!S6) ->  | Q88: =IF(CLEN!T6="","",CLEN!T6) ->  | R88: =IF(CLEN!U6="","",CLEN!U6) ->  | S88: =IF(CLEN!V6="","",CLEN!V6) ->  | T88: =IF(CLEN!W6="","",CLEN!W6) ->  | U88: =IF(CLEN!X6="","",CLEN!X6) ->  | V88: =IF(CLEN!Y6="","",CLEN!Y6) ->  | W88: =IF(CLEN!Z6="","",CLEN!Z6) ->  | X88: =IF(CLEN!AA6="","",CLEN!AA6) ->  | Y88: =IF(CLEN!AB6="","",CLEN!AB6) ->  | Z88: =IF(CLEN!AC6="","",CLEN!AC6) ->  | AA88: =IF(CLEN!AD6="","",CLEN!AD6) ->  | AB88: =IF(CLEN!AE6="","",CLEN!AE6) ->  | AC88: =IF(CLEN!AF6="","",CLEN!AF6) ->  | AD88: =IF(CLEN!AG6="","",CLEN!AG6) ->  | AE88: =IF(CLEN!AH6="","",CLEN!AH6) ->  | AF88: =IF(CLEN!AI6="","",CLEN!AI6) ->  | AG88: =IF(CLEN!AJ6="","",CLEN!AJ6) ->  | AH88: =IF(CLEN!AK6="","",CLEN!AK6) ->  | AI88: =IF(CLEN!AL6="","",CLEN!AL6) ->  | AJ88: =IF(CLEN!AM6="","",CLEN!AM6) ->  | AK88: =IF(CLEN!AN6="","",CLEN!AN6) ->  | AL88: =IF(CLEN!AO6="","",CLEN!AO6) ->  | AM88: =IF(CLEN!AP6="","",CLEN!AP6) -> 
D89: Criterio Evaluación 2.2 | E89: =IF(CLEN!H7="","",CLEN!H7) ->  | F89: =IF(CLEN!I7="","",CLEN!I7) ->  | G89: =IF(CLEN!J7="","",CLEN!J7) ->  | H89: =IF(CLEN!K7="","",CLEN!K7) ->  | I89: =IF(CLEN!L7="","",CLEN!L7) ->  | J89: =IF(CLEN!M7="","",CLEN!M7) ->  | K89: =IF(CLEN!N7="","",CLEN!N7) ->  | L89: =IF(CLEN!O7="","",CLEN!O7) ->  | M89: =IF(CLEN!P7="","",CLEN!P7) ->  | N89: =IF(CLEN!Q7="","",CLEN!Q7) ->  | O89: =IF(CLEN!R7="","",CLEN!R7) ->  | P89: =IF(CLEN!S7="","",CLEN!S7) ->  | Q89: =IF(CLEN!T7="","",CLEN!T7) ->  | R89: =IF(CLEN!U7="","",CLEN!U7) ->  | S89: =IF(CLEN!V7="","",CLEN!V7) ->  | T89: =IF(CLEN!W7="","",CLEN!W7) ->  | U89: =IF(CLEN!X7="","",CLEN!X7) ->  | V89: =IF(CLEN!Y7="","",CLEN!Y7) ->  | W89: =IF(CLEN!Z7="","",CLEN!Z7) ->  | X89: =IF(CLEN!AA7="","",CLEN!AA7) ->  | Y89: =IF(CLEN!AB7="","",CLEN!AB7) ->  | Z89: =IF(CLEN!AC7="","",CLEN!AC7) ->  | AA89: =IF(CLEN!AD7="","",CLEN!AD7) ->  | AB89: =IF(CLEN!AE7="","",CLEN!AE7) ->  | AC89: =IF(CLEN!AF7="","",CLEN!AF7) ->  | AD89: =IF(CLEN!AG7="","",CLEN!AG7) ->  | AE89: =IF(CLEN!AH7="","",CLEN!AH7) ->  | AF89: =IF(CLEN!AI7="","",CLEN!AI7) ->  | AG89: =IF(CLEN!AJ7="","",CLEN!AJ7) ->  | AH89: =IF(CLEN!AK7="","",CLEN!AK7) ->  | AI89: =IF(CLEN!AL7="","",CLEN!AL7) ->  | AJ89: =IF(CLEN!AM7="","",CLEN!AM7) ->  | AK89: =IF(CLEN!AN7="","",CLEN!AN7) ->  | AL89: =IF(CLEN!AO7="","",CLEN!AO7) ->  | AM89: =IF(CLEN!AP7="","",CLEN!AP7) -> 
C90: Comp. Esp. 3 | D90: Criterio Evaluación 3.1 | E90: =IF(CLEN!H8="","",CLEN!H8) ->  | F90: =IF(CLEN!I8="","",CLEN!I8) ->  | G90: =IF(CLEN!J8="","",CLEN!J8) ->  | H90: =IF(CLEN!K8="","",CLEN!K8) ->  | I90: =IF(CLEN!L8="","",CLEN!L8) ->  | J90: =IF(CLEN!M8="","",CLEN!M8) ->  | K90: =IF(CLEN!N8="","",CLEN!N8) ->  | L90: =IF(CLEN!O8="","",CLEN!O8) ->  | M90: =IF(CLEN!P8="","",CLEN!P8) ->  | N90: =IF(CLEN!Q8="","",CLEN!Q8) ->  | O90: =IF(CLEN!R8="","",CLEN!R8) ->  | P90: =IF(CLEN!S8="","",CLEN!S8) ->  | Q90: =IF(CLEN!T8="","",CLEN!T8) ->  | R90: =IF(CLEN!U8="","",CLEN!U8) ->  | S90: =IF(CLEN!V8="","",CLEN!V8) ->  | T90: =IF(CLEN!W8="","",CLEN!W8) ->  | U90: =IF(CLEN!X8="","",CLEN!X8) ->  | V90: =IF(CLEN!Y8="","",CLEN!Y8) ->  | W90: =IF(CLEN!Z8="","",CLEN!Z8) ->  | X90: =IF(CLEN!AA8="","",CLEN!AA8) ->  | Y90: =IF(CLEN!AB8="","",CLEN!AB8) ->  | Z90: =IF(CLEN!AC8="","",CLEN!AC8) ->  | AA90: =IF(CLEN!AD8="","",CLEN!AD8) ->  | AB90: =IF(CLEN!AE8="","",CLEN!AE8) ->  | AC90: =IF(CLEN!AF8="","",CLEN!AF8) ->  | AD90: =IF(CLEN!AG8="","",CLEN!AG8) ->  | AE90: =IF(CLEN!AH8="","",CLEN!AH8) ->  | AF90: =IF(CLEN!AI8="","",CLEN!AI8) ->  | AG90: =IF(CLEN!AJ8="","",CLEN!AJ8) ->  | AH90: =IF(CLEN!AK8="","",CLEN!AK8) ->  | AI90: =IF(CLEN!AL8="","",CLEN!AL8) ->  | AJ90: =IF(CLEN!AM8="","",CLEN!AM8) ->  | AK90: =IF(CLEN!AN8="","",CLEN!AN8) ->  | AL90: =IF(CLEN!AO8="","",CLEN!AO8) ->  | AM90: =IF(CLEN!AP8="","",CLEN!AP8) -> 
D91: Criterio Evaluación 3.2 | E91: =IF(CLEN!H9="","",CLEN!H9) ->  | F91: =IF(CLEN!I9="","",CLEN!I9) ->  | G91: =IF(CLEN!J9="","",CLEN!J9) ->  | H91: =IF(CLEN!K9="","",CLEN!K9) ->  | I91: =IF(CLEN!L9="","",CLEN!L9) ->  | J91: =IF(CLEN!M9="","",CLEN!M9) ->  | K91: =IF(CLEN!N9="","",CLEN!N9) ->  | L91: =IF(CLEN!O9="","",CLEN!O9) ->  | M91: =IF(CLEN!P9="","",CLEN!P9) ->  | N91: =IF(CLEN!Q9="","",CLEN!Q9) ->  | O91: =IF(CLEN!R9="","",CLEN!R9) ->  | P91: =IF(CLEN!S9="","",CLEN!S9) ->  | Q91: =IF(CLEN!T9="","",CLEN!T9) ->  | R91: =IF(CLEN!U9="","",CLEN!U9) ->  | S91: =IF(CLEN!V9="","",CLEN!V9) ->  | T91: =IF(CLEN!W9="","",CLEN!W9) ->  | U91: =IF(CLEN!X9="","",CLEN!X9) ->  | V91: =IF(CLEN!Y9="","",CLEN!Y9) ->  | W91: =IF(CLEN!Z9="","",CLEN!Z9) ->  | X91: =IF(CLEN!AA9="","",CLEN!AA9) ->  | Y91: =IF(CLEN!AB9="","",CLEN!AB9) ->  | Z91: =IF(CLEN!AC9="","",CLEN!AC9) ->  | AA91: =IF(CLEN!AD9="","",CLEN!AD9) ->  | AB91: =IF(CLEN!AE9="","",CLEN!AE9) ->  | AC91: =IF(CLEN!AF9="","",CLEN!AF9) ->  | AD91: =IF(CLEN!AG9="","",CLEN!AG9) ->  | AE91: =IF(CLEN!AH9="","",CLEN!AH9) ->  | AF91: =IF(CLEN!AI9="","",CLEN!AI9) ->  | AG91: =IF(CLEN!AJ9="","",CLEN!AJ9) ->  | AH91: =IF(CLEN!AK9="","",CLEN!AK9) ->  | AI91: =IF(CLEN!AL9="","",CLEN!AL9) ->  | AJ91: =IF(CLEN!AM9="","",CLEN!AM9) ->  | AK91: =IF(CLEN!AN9="","",CLEN!AN9) ->  | AL91: =IF(CLEN!AO9="","",CLEN!AO9) ->  | AM91: =IF(CLEN!AP9="","",CLEN!AP9) -> 
D92: Criterio Evaluación 3.3 | E92: =IF(CLEN!H10="","",CLEN!H10) ->  | F92: =IF(CLEN!I10="","",CLEN!I10) ->  | G92: =IF(CLEN!J10="","",CLEN!J10) ->  | H92: =IF(CLEN!K10="","",CLEN!K10) ->  | I92: =IF(CLEN!L10="","",CLEN!L10) ->  | J92: =IF(CLEN!M10="","",CLEN!M10) ->  | K92: =IF(CLEN!N10="","",CLEN!N10) ->  | L92: =IF(CLEN!O10="","",CLEN!O10) ->  | M92: =IF(CLEN!P10="","",CLEN!P10) ->  | N92: =IF(CLEN!Q10="","",CLEN!Q10) ->  | O92: =IF(CLEN!R10="","",CLEN!R10) ->  | P92: =IF(CLEN!S10="","",CLEN!S10) ->  | Q92: =IF(CLEN!T10="","",CLEN!T10) ->  | R92: =IF(CLEN!U10="","",CLEN!U10) ->  | S92: =IF(CLEN!V10="","",CLEN!V10) ->  | T92: =IF(CLEN!W10="","",CLEN!W10) ->  | U92: =IF(CLEN!X10="","",CLEN!X10) ->  | V92: =IF(CLEN!Y10="","",CLEN!Y10) ->  | W92: =IF(CLEN!Z10="","",CLEN!Z10) ->  | X92: =IF(CLEN!AA10="","",CLEN!AA10) ->  | Y92: =IF(CLEN!AB10="","",CLEN!AB10) ->  | Z92: =IF(CLEN!AC10="","",CLEN!AC10) ->  | AA92: =IF(CLEN!AD10="","",CLEN!AD10) ->  | AB92: =IF(CLEN!AE10="","",CLEN!AE10) ->  | AC92: =IF(CLEN!AF10="","",CLEN!AF10) ->  | AD92: =IF(CLEN!AG10="","",CLEN!AG10) ->  | AE92: =IF(CLEN!AH10="","",CLEN!AH10) ->  | AF92: =IF(CLEN!AI10="","",CLEN!AI10) ->  | AG92: =IF(CLEN!AJ10="","",CLEN!AJ10) ->  | AH92: =IF(CLEN!AK10="","",CLEN!AK10) ->  | AI92: =IF(CLEN!AL10="","",CLEN!AL10) ->  | AJ92: =IF(CLEN!AM10="","",CLEN!AM10) ->  | AK92: =IF(CLEN!AN10="","",CLEN!AN10) ->  | AL92: =IF(CLEN!AO10="","",CLEN!AO10) ->  | AM92: =IF(CLEN!AP10="","",CLEN!AP10) -> 
D93: Criterio Evaluación 3.4 | E93: =IF(CLEN!H11="","",CLEN!H11) ->  | F93: =IF(CLEN!I11="","",CLEN!I11) ->  | G93: =IF(CLEN!J11="","",CLEN!J11) ->  | H93: =IF(CLEN!K11="","",CLEN!K11) ->  | I93: =IF(CLEN!L11="","",CLEN!L11) ->  | J93: =IF(CLEN!M11="","",CLEN!M11) ->  | K93: =IF(CLEN!N11="","",CLEN!N11) ->  | L93: =IF(CLEN!O11="","",CLEN!O11) ->  | M93: =IF(CLEN!P11="","",CLEN!P11) ->  | N93: =IF(CLEN!Q11="","",CLEN!Q11) ->  | O93: =IF(CLEN!R11="","",CLEN!R11) ->  | P93: =IF(CLEN!S11="","",CLEN!S11) ->  | Q93: =IF(CLEN!T11="","",CLEN!T11) ->  | R93: =IF(CLEN!U11="","",CLEN!U11) ->  | S93: =IF(CLEN!V11="","",CLEN!V11) ->  | T93: =IF(CLEN!W11="","",CLEN!W11) ->  | U93: =IF(CLEN!X11="","",CLEN!X11) ->  | V93: =IF(CLEN!Y11="","",CLEN!Y11) ->  | W93: =IF(CLEN!Z11="","",CLEN!Z11) ->  | X93: =IF(CLEN!AA11="","",CLEN!AA11) ->  | Y93: =IF(CLEN!AB11="","",CLEN!AB11) ->  | Z93: =IF(CLEN!AC11="","",CLEN!AC11) ->  | AA93: =IF(CLEN!AD11="","",CLEN!AD11) ->  | AB93: =IF(CLEN!AE11="","",CLEN!AE11) ->  | AC93: =IF(CLEN!AF11="","",CLEN!AF11) ->  | AD93: =IF(CLEN!AG11="","",CLEN!AG11) ->  | AE93: =IF(CLEN!AH11="","",CLEN!AH11) ->  | AF93: =IF(CLEN!AI11="","",CLEN!AI11) ->  | AG93: =IF(CLEN!AJ11="","",CLEN!AJ11) ->  | AH93: =IF(CLEN!AK11="","",CLEN!AK11) ->  | AI93: =IF(CLEN!AL11="","",CLEN!AL11) ->  | AJ93: =IF(CLEN!AM11="","",CLEN!AM11) ->  | AK93: =IF(CLEN!AN11="","",CLEN!AN11) ->  | AL93: =IF(CLEN!AO11="","",CLEN!AO11) ->  | AM93: =IF(CLEN!AP11="","",CLEN!AP11) -> 
C94: Comp. Esp. 4 | D94: Criterio Evaluación 4.1 | E94: =IF(CLEN!H12="","",CLEN!H12) ->  | F94: =IF(CLEN!I12="","",CLEN!I12) ->  | G94: =IF(CLEN!J12="","",CLEN!J12) ->  | H94: =IF(CLEN!K12="","",CLEN!K12) ->  | I94: =IF(CLEN!L12="","",CLEN!L12) ->  | J94: =IF(CLEN!M12="","",CLEN!M12) ->  | K94: =IF(CLEN!N12="","",CLEN!N12) ->  | L94: =IF(CLEN!O12="","",CLEN!O12) ->  | M94: =IF(CLEN!P12="","",CLEN!P12) ->  | N94: =IF(CLEN!Q12="","",CLEN!Q12) ->  | O94: =IF(CLEN!R12="","",CLEN!R12) ->  | P94: =IF(CLEN!S12="","",CLEN!S12) ->  | Q94: =IF(CLEN!T12="","",CLEN!T12) ->  | R94: =IF(CLEN!U12="","",CLEN!U12) ->  | S94: =IF(CLEN!V12="","",CLEN!V12) ->  | T94: =IF(CLEN!W12="","",CLEN!W12) ->  | U94: =IF(CLEN!X12="","",CLEN!X12) ->  | V94: =IF(CLEN!Y12="","",CLEN!Y12) ->  | W94: =IF(CLEN!Z12="","",CLEN!Z12) ->  | X94: =IF(CLEN!AA12="","",CLEN!AA12) ->  | Y94: =IF(CLEN!AB12="","",CLEN!AB12) ->  | Z94: =IF(CLEN!AC12="","",CLEN!AC12) ->  | AA94: =IF(CLEN!AD12="","",CLEN!AD12) ->  | AB94: =IF(CLEN!AE12="","",CLEN!AE12) ->  | AC94: =IF(CLEN!AF12="","",CLEN!AF12) ->  | AD94: =IF(CLEN!AG12="","",CLEN!AG12) ->  | AE94: =IF(CLEN!AH12="","",CLEN!AH12) ->  | AF94: =IF(CLEN!AI12="","",CLEN!AI12) ->  | AG94: =IF(CLEN!AJ12="","",CLEN!AJ12) ->  | AH94: =IF(CLEN!AK12="","",CLEN!AK12) ->  | AI94: =IF(CLEN!AL12="","",CLEN!AL12) ->  | AJ94: =IF(CLEN!AM12="","",CLEN!AM12) ->  | AK94: =IF(CLEN!AN12="","",CLEN!AN12) ->  | AL94: =IF(CLEN!AO12="","",CLEN!AO12) ->  | AM94: =IF(CLEN!AP12="","",CLEN!AP12) -> 
C95: Comp. Esp. 5 | D95: Criterio Evaluación 5.1 | E95: =IF(CLEN!H13="","",CLEN!H13) ->  | F95: =IF(CLEN!I13="","",CLEN!I13) ->  | G95: =IF(CLEN!J13="","",CLEN!J13) ->  | H95: =IF(CLEN!K13="","",CLEN!K13) ->  | I95: =IF(CLEN!L13="","",CLEN!L13) ->  | J95: =IF(CLEN!M13="","",CLEN!M13) ->  | K95: =IF(CLEN!N13="","",CLEN!N13) ->  | L95: =IF(CLEN!O13="","",CLEN!O13) ->  | M95: =IF(CLEN!P13="","",CLEN!P13) ->  | N95: =IF(CLEN!Q13="","",CLEN!Q13) ->  | O95: =IF(CLEN!R13="","",CLEN!R13) ->  | P95: =IF(CLEN!S13="","",CLEN!S13) ->  | Q95: =IF(CLEN!T13="","",CLEN!T13) ->  | R95: =IF(CLEN!U13="","",CLEN!U13) ->  | S95: =IF(CLEN!V13="","",CLEN!V13) ->  | T95: =IF(CLEN!W13="","",CLEN!W13) ->  | U95: =IF(CLEN!X13="","",CLEN!X13) ->  | V95: =IF(CLEN!Y13="","",CLEN!Y13) ->  | W95: =IF(CLEN!Z13="","",CLEN!Z13) ->  | X95: =IF(CLEN!AA13="","",CLEN!AA13) ->  | Y95: =IF(CLEN!AB13="","",CLEN!AB13) ->  | Z95: =IF(CLEN!AC13="","",CLEN!AC13) ->  | AA95: =IF(CLEN!AD13="","",CLEN!AD13) ->  | AB95: =IF(CLEN!AE13="","",CLEN!AE13) ->  | AC95: =IF(CLEN!AF13="","",CLEN!AF13) ->  | AD95: =IF(CLEN!AG13="","",CLEN!AG13) ->  | AE95: =IF(CLEN!AH13="","",CLEN!AH13) ->  | AF95: =IF(CLEN!AI13="","",CLEN!AI13) ->  | AG95: =IF(CLEN!AJ13="","",CLEN!AJ13) ->  | AH95: =IF(CLEN!AK13="","",CLEN!AK13) ->  | AI95: =IF(CLEN!AL13="","",CLEN!AL13) ->  | AJ95: =IF(CLEN!AM13="","",CLEN!AM13) ->  | AK95: =IF(CLEN!AN13="","",CLEN!AN13) ->  | AL95: =IF(CLEN!AO13="","",CLEN!AO13) ->  | AM95: =IF(CLEN!AP13="","",CLEN!AP13) -> 
D96: Criterio Evaluación 5.2 | E96: =IF(CLEN!H14="","",CLEN!H14) ->  | F96: =IF(CLEN!I14="","",CLEN!I14) ->  | G96: =IF(CLEN!J14="","",CLEN!J14) ->  | H96: =IF(CLEN!K14="","",CLEN!K14) ->  | I96: =IF(CLEN!L14="","",CLEN!L14) ->  | J96: =IF(CLEN!M14="","",CLEN!M14) ->  | K96: =IF(CLEN!N14="","",CLEN!N14) ->  | L96: =IF(CLEN!O14="","",CLEN!O14) ->  | M96: =IF(CLEN!P14="","",CLEN!P14) ->  | N96: =IF(CLEN!Q14="","",CLEN!Q14) ->  | O96: =IF(CLEN!R14="","",CLEN!R14) ->  | P96: =IF(CLEN!S14="","",CLEN!S14) ->  | Q96: =IF(CLEN!T14="","",CLEN!T14) ->  | R96: =IF(CLEN!U14="","",CLEN!U14) ->  | S96: =IF(CLEN!V14="","",CLEN!V14) ->  | T96: =IF(CLEN!W14="","",CLEN!W14) ->  | U96: =IF(CLEN!X14="","",CLEN!X14) ->  | V96: =IF(CLEN!Y14="","",CLEN!Y14) ->  | W96: =IF(CLEN!Z14="","",CLEN!Z14) ->  | X96: =IF(CLEN!AA14="","",CLEN!AA14) ->  | Y96: =IF(CLEN!AB14="","",CLEN!AB14) ->  | Z96: =IF(CLEN!AC14="","",CLEN!AC14) ->  | AA96: =IF(CLEN!AD14="","",CLEN!AD14) ->  | AB96: =IF(CLEN!AE14="","",CLEN!AE14) ->  | AC96: =IF(CLEN!AF14="","",CLEN!AF14) ->  | AD96: =IF(CLEN!AG14="","",CLEN!AG14) ->  | AE96: =IF(CLEN!AH14="","",CLEN!AH14) ->  | AF96: =IF(CLEN!AI14="","",CLEN!AI14) ->  | AG96: =IF(CLEN!AJ14="","",CLEN!AJ14) ->  | AH96: =IF(CLEN!AK14="","",CLEN!AK14) ->  | AI96: =IF(CLEN!AL14="","",CLEN!AL14) ->  | AJ96: =IF(CLEN!AM14="","",CLEN!AM14) ->  | AK96: =IF(CLEN!AN14="","",CLEN!AN14) ->  | AL96: =IF(CLEN!AO14="","",CLEN!AO14) ->  | AM96: =IF(CLEN!AP14="","",CLEN!AP14) -> 
C97: Comp. Esp. 6 | D97: Criterio Evaluación 6.1 | E97: =IF(CLEN!H15="","",CLEN!H15) ->  | F97: =IF(CLEN!I15="","",CLEN!I15) ->  | G97: =IF(CLEN!J15="","",CLEN!J15) ->  | H97: =IF(CLEN!K15="","",CLEN!K15) ->  | I97: =IF(CLEN!L15="","",CLEN!L15) ->  | J97: =IF(CLEN!M15="","",CLEN!M15) ->  | K97: =IF(CLEN!N15="","",CLEN!N15) ->  | L97: =IF(CLEN!O15="","",CLEN!O15) ->  | M97: =IF(CLEN!P15="","",CLEN!P15) ->  | N97: =IF(CLEN!Q15="","",CLEN!Q15) ->  | O97: =IF(CLEN!R15="","",CLEN!R15) ->  | P97: =IF(CLEN!S15="","",CLEN!S15) ->  | Q97: =IF(CLEN!T15="","",CLEN!T15) ->  | R97: =IF(CLEN!U15="","",CLEN!U15) ->  | S97: =IF(CLEN!V15="","",CLEN!V15) ->  | T97: =IF(CLEN!W15="","",CLEN!W15) ->  | U97: =IF(CLEN!X15="","",CLEN!X15) ->  | V97: =IF(CLEN!Y15="","",CLEN!Y15) ->  | W97: =IF(CLEN!Z15="","",CLEN!Z15) ->  | X97: =IF(CLEN!AA15="","",CLEN!AA15) ->  | Y97: =IF(CLEN!AB15="","",CLEN!AB15) ->  | Z97: =IF(CLEN!AC15="","",CLEN!AC15) ->  | AA97: =IF(CLEN!AD15="","",CLEN!AD15) ->  | AB97: =IF(CLEN!AE15="","",CLEN!AE15) ->  | AC97: =IF(CLEN!AF15="","",CLEN!AF15) ->  | AD97: =IF(CLEN!AG15="","",CLEN!AG15) ->  | AE97: =IF(CLEN!AH15="","",CLEN!AH15) ->  | AF97: =IF(CLEN!AI15="","",CLEN!AI15) ->  | AG97: =IF(CLEN!AJ15="","",CLEN!AJ15) ->  | AH97: =IF(CLEN!AK15="","",CLEN!AK15) ->  | AI97: =IF(CLEN!AL15="","",CLEN!AL15) ->  | AJ97: =IF(CLEN!AM15="","",CLEN!AM15) ->  | AK97: =IF(CLEN!AN15="","",CLEN!AN15) ->  | AL97: =IF(CLEN!AO15="","",CLEN!AO15) ->  | AM97: =IF(CLEN!AP15="","",CLEN!AP15) -> 
D98: Criterio Evaluación 6.2 | E98: =IF(CLEN!H16="","",CLEN!H16) ->  | F98: =IF(CLEN!I16="","",CLEN!I16) ->  | G98: =IF(CLEN!J16="","",CLEN!J16) ->  | H98: =IF(CLEN!K16="","",CLEN!K16) ->  | I98: =IF(CLEN!L16="","",CLEN!L16) ->  | J98: =IF(CLEN!M16="","",CLEN!M16) ->  | K98: =IF(CLEN!N16="","",CLEN!N16) ->  | L98: =IF(CLEN!O16="","",CLEN!O16) ->  | M98: =IF(CLEN!P16="","",CLEN!P16) ->  | N98: =IF(CLEN!Q16="","",CLEN!Q16) ->  | O98: =IF(CLEN!R16="","",CLEN!R16) ->  | P98: =IF(CLEN!S16="","",CLEN!S16) ->  | Q98: =IF(CLEN!T16="","",CLEN!T16) ->  | R98: =IF(CLEN!U16="","",CLEN!U16) ->  | S98: =IF(CLEN!V16="","",CLEN!V16) ->  | T98: =IF(CLEN!W16="","",CLEN!W16) ->  | U98: =IF(CLEN!X16="","",CLEN!X16) ->  | V98: =IF(CLEN!Y16="","",CLEN!Y16) ->  | W98: =IF(CLEN!Z16="","",CLEN!Z16) ->  | X98: =IF(CLEN!AA16="","",CLEN!AA16) ->  | Y98: =IF(CLEN!AB16="","",CLEN!AB16) ->  | Z98: =IF(CLEN!AC16="","",CLEN!AC16) ->  | AA98: =IF(CLEN!AD16="","",CLEN!AD16) ->  | AB98: =IF(CLEN!AE16="","",CLEN!AE16) ->  | AC98: =IF(CLEN!AF16="","",CLEN!AF16) ->  | AD98: =IF(CLEN!AG16="","",CLEN!AG16) ->  | AE98: =IF(CLEN!AH16="","",CLEN!AH16) ->  | AF98: =IF(CLEN!AI16="","",CLEN!AI16) ->  | AG98: =IF(CLEN!AJ16="","",CLEN!AJ16) ->  | AH98: =IF(CLEN!AK16="","",CLEN!AK16) ->  | AI98: =IF(CLEN!AL16="","",CLEN!AL16) ->  | AJ98: =IF(CLEN!AM16="","",CLEN!AM16) ->  | AK98: =IF(CLEN!AN16="","",CLEN!AN16) ->  | AL98: =IF(CLEN!AO16="","",CLEN!AO16) ->  | AM98: =IF(CLEN!AP16="","",CLEN!AP16) -> 
B99: Educación Física | C99: Comp. Esp. 1 | D99: Criterio Evaluación 1.1 | E99: =IF(EF!H4="","",EF!H4) ->  | F99: =IF(EF!I4="","",EF!I4) ->  | G99: =IF(EF!J4="","",EF!J4) ->  | H99: =IF(EF!K4="","",EF!K4) ->  | I99: =IF(EF!L4="","",EF!L4) ->  | J99: =IF(EF!M4="","",EF!M4) ->  | K99: =IF(EF!N4="","",EF!N4) ->  | L99: =IF(EF!O4="","",EF!O4) ->  | M99: =IF(EF!P4="","",EF!P4) ->  | N99: =IF(EF!Q4="","",EF!Q4) ->  | O99: =IF(EF!R4="","",EF!R4) ->  | P99: =IF(EF!S4="","",EF!S4) ->  | Q99: =IF(EF!T4="","",EF!T4) ->  | R99: =IF(EF!U4="","",EF!U4) ->  | S99: =IF(EF!V4="","",EF!V4) ->  | T99: =IF(EF!W4="","",EF!W4) ->  | U99: =IF(EF!X4="","",EF!X4) ->  | V99: =IF(EF!Y4="","",EF!Y4) ->  | W99: =IF(EF!Z4="","",EF!Z4) ->  | X99: =IF(EF!AA4="","",EF!AA4) ->  | Y99: =IF(EF!AB4="","",EF!AB4) ->  | Z99: =IF(EF!AC4="","",EF!AC4) ->  | AA99: =IF(EF!AD4="","",EF!AD4) ->  | AB99: =IF(EF!AE4="","",EF!AE4) ->  | AC99: =IF(EF!AF4="","",EF!AF4) ->  | AD99: =IF(EF!AG4="","",EF!AG4) ->  | AE99: =IF(EF!AH4="","",EF!AH4) ->  | AF99: =IF(EF!AI4="","",EF!AI4) ->  | AG99: =IF(EF!AJ4="","",EF!AJ4) ->  | AH99: =IF(EF!AK4="","",EF!AK4) ->  | AI99: =IF(EF!AL4="","",EF!AL4) ->  | AJ99: =IF(EF!AM4="","",EF!AM4) ->  | AK99: =IF(EF!AN4="","",EF!AN4) ->  | AL99: =IF(EF!AO4="","",EF!AO4) ->  | AM99: =IF(EF!AP4="","",EF!AP4) -> 
D100: Criterio Evaluación 1.2 | E100: =IF(EF!H5="","",EF!H5) ->  | F100: =IF(EF!I5="","",EF!I5) ->  | G100: =IF(EF!J5="","",EF!J5) ->  | H100: =IF(EF!K5="","",EF!K5) ->  | I100: =IF(EF!L5="","",EF!L5) ->  | J100: =IF(EF!M5="","",EF!M5) ->  | K100: =IF(EF!N5="","",EF!N5) ->  | L100: =IF(EF!O5="","",EF!O5) ->  | M100: =IF(EF!P5="","",EF!P5) ->  | N100: =IF(EF!Q5="","",EF!Q5) ->  | O100: =IF(EF!R5="","",EF!R5) ->  | P100: =IF(EF!S5="","",EF!S5) ->  | Q100: =IF(EF!T5="","",EF!T5) ->  | R100: =IF(EF!U5="","",EF!U5) ->  | S100: =IF(EF!V5="","",EF!V5) ->  | T100: =IF(EF!W5="","",EF!W5) ->  | U100: =IF(EF!X5="","",EF!X5) ->  | V100: =IF(EF!Y5="","",EF!Y5) ->  | W100: =IF(EF!Z5="","",EF!Z5) ->  | X100: =IF(EF!AA5="","",EF!AA5) ->  | Y100: =IF(EF!AB5="","",EF!AB5) ->  | Z100: =IF(EF!AC5="","",EF!AC5) ->  | AA100: =IF(EF!AD5="","",EF!AD5) ->  | AB100: =IF(EF!AE5="","",EF!AE5) ->  | AC100: =IF(EF!AF5="","",EF!AF5) ->  | AD100: =IF(EF!AG5="","",EF!AG5) ->  | AE100: =IF(EF!AH5="","",EF!AH5) ->  | AF100: =IF(EF!AI5="","",EF!AI5) ->  | AG100: =IF(EF!AJ5="","",EF!AJ5) ->  | AH100: =IF(EF!AK5="","",EF!AK5) ->  | AI100: =IF(EF!AL5="","",EF!AL5) ->  | AJ100: =IF(EF!AM5="","",EF!AM5) ->  | AK100: =IF(EF!AN5="","",EF!AN5) ->  | AL100: =IF(EF!AO5="","",EF!AO5) ->  | AM100: =IF(EF!AP5="","",EF!AP5) -> 
D101: Criterio Evaluación 1.3 | E101: =IF(EF!H6="","",EF!H6) ->  | F101: =IF(EF!I6="","",EF!I6) ->  | G101: =IF(EF!J6="","",EF!J6) ->  | H101: =IF(EF!K6="","",EF!K6) ->  | I101: =IF(EF!L6="","",EF!L6) ->  | J101: =IF(EF!M6="","",EF!M6) ->  | K101: =IF(EF!N6="","",EF!N6) ->  | L101: =IF(EF!O6="","",EF!O6) ->  | M101: =IF(EF!P6="","",EF!P6) ->  | N101: =IF(EF!Q6="","",EF!Q6) ->  | O101: =IF(EF!R6="","",EF!R6) ->  | P101: =IF(EF!S6="","",EF!S6) ->  | Q101: =IF(EF!T6="","",EF!T6) ->  | R101: =IF(EF!U6="","",EF!U6) ->  | S101: =IF(EF!V6="","",EF!V6) ->  | T101: =IF(EF!W6="","",EF!W6) ->  | U101: =IF(EF!X6="","",EF!X6) ->  | V101: =IF(EF!Y6="","",EF!Y6) ->  | W101: =IF(EF!Z6="","",EF!Z6) ->  | X101: =IF(EF!AA6="","",EF!AA6) ->  | Y101: =IF(EF!AB6="","",EF!AB6) ->  | Z101: =IF(EF!AC6="","",EF!AC6) ->  | AA101: =IF(EF!AD6="","",EF!AD6) ->  | AB101: =IF(EF!AE6="","",EF!AE6) ->  | AC101: =IF(EF!AF6="","",EF!AF6) ->  | AD101: =IF(EF!AG6="","",EF!AG6) ->  | AE101: =IF(EF!AH6="","",EF!AH6) ->  | AF101: =IF(EF!AI6="","",EF!AI6) ->  | AG101: =IF(EF!AJ6="","",EF!AJ6) ->  | AH101: =IF(EF!AK6="","",EF!AK6) ->  | AI101: =IF(EF!AL6="","",EF!AL6) ->  | AJ101: =IF(EF!AM6="","",EF!AM6) ->  | AK101: =IF(EF!AN6="","",EF!AN6) ->  | AL101: =IF(EF!AO6="","",EF!AO6) ->  | AM101: =IF(EF!AP6="","",EF!AP6) -> 
D102: Criterio Evaluación 1.4 | E102: =IF(EF!H7="","",EF!H7) ->  | F102: =IF(EF!I7="","",EF!I7) ->  | G102: =IF(EF!J7="","",EF!J7) ->  | H102: =IF(EF!K7="","",EF!K7) ->  | I102: =IF(EF!L7="","",EF!L7) ->  | J102: =IF(EF!M7="","",EF!M7) ->  | K102: =IF(EF!N7="","",EF!N7) ->  | L102: =IF(EF!O7="","",EF!O7) ->  | M102: =IF(EF!P7="","",EF!P7) ->  | N102: =IF(EF!Q7="","",EF!Q7) ->  | O102: =IF(EF!R7="","",EF!R7) ->  | P102: =IF(EF!S7="","",EF!S7) ->  | Q102: =IF(EF!T7="","",EF!T7) ->  | R102: =IF(EF!U7="","",EF!U7) ->  | S102: =IF(EF!V7="","",EF!V7) ->  | T102: =IF(EF!W7="","",EF!W7) ->  | U102: =IF(EF!X7="","",EF!X7) ->  | V102: =IF(EF!Y7="","",EF!Y7) ->  | W102: =IF(EF!Z7="","",EF!Z7) ->  | X102: =IF(EF!AA7="","",EF!AA7) ->  | Y102: =IF(EF!AB7="","",EF!AB7) ->  | Z102: =IF(EF!AC7="","",EF!AC7) ->  | AA102: =IF(EF!AD7="","",EF!AD7) ->  | AB102: =IF(EF!AE7="","",EF!AE7) ->  | AC102: =IF(EF!AF7="","",EF!AF7) ->  | AD102: =IF(EF!AG7="","",EF!AG7) ->  | AE102: =IF(EF!AH7="","",EF!AH7) ->  | AF102: =IF(EF!AI7="","",EF!AI7) ->  | AG102: =IF(EF!AJ7="","",EF!AJ7) ->  | AH102: =IF(EF!AK7="","",EF!AK7) ->  | AI102: =IF(EF!AL7="","",EF!AL7) ->  | AJ102: =IF(EF!AM7="","",EF!AM7) ->  | AK102: =IF(EF!AN7="","",EF!AN7) ->  | AL102: =IF(EF!AO7="","",EF!AO7) ->  | AM102: =IF(EF!AP7="","",EF!AP7) -> 
D103: Criterio Evaluación 1.5 | E103: =IF(EF!H8="","",EF!H8) ->  | F103: =IF(EF!I8="","",EF!I8) ->  | G103: =IF(EF!J8="","",EF!J8) ->  | H103: =IF(EF!K8="","",EF!K8) ->  | I103: =IF(EF!L8="","",EF!L8) ->  | J103: =IF(EF!M8="","",EF!M8) ->  | K103: =IF(EF!N8="","",EF!N8) ->  | L103: =IF(EF!O8="","",EF!O8) ->  | M103: =IF(EF!P8="","",EF!P8) ->  | N103: =IF(EF!Q8="","",EF!Q8) ->  | O103: =IF(EF!R8="","",EF!R8) ->  | P103: =IF(EF!S8="","",EF!S8) ->  | Q103: =IF(EF!T8="","",EF!T8) ->  | R103: =IF(EF!U8="","",EF!U8) ->  | S103: =IF(EF!V8="","",EF!V8) ->  | T103: =IF(EF!W8="","",EF!W8) ->  | U103: =IF(EF!X8="","",EF!X8) ->  | V103: =IF(EF!Y8="","",EF!Y8) ->  | W103: =IF(EF!Z8="","",EF!Z8) ->  | X103: =IF(EF!AA8="","",EF!AA8) ->  | Y103: =IF(EF!AB8="","",EF!AB8) ->  | Z103: =IF(EF!AC8="","",EF!AC8) ->  | AA103: =IF(EF!AD8="","",EF!AD8) ->  | AB103: =IF(EF!AE8="","",EF!AE8) ->  | AC103: =IF(EF!AF8="","",EF!AF8) ->  | AD103: =IF(EF!AG8="","",EF!AG8) ->  | AE103: =IF(EF!AH8="","",EF!AH8) ->  | AF103: =IF(EF!AI8="","",EF!AI8) ->  | AG103: =IF(EF!AJ8="","",EF!AJ8) ->  | AH103: =IF(EF!AK8="","",EF!AK8) ->  | AI103: =IF(EF!AL8="","",EF!AL8) ->  | AJ103: =IF(EF!AM8="","",EF!AM8) ->  | AK103: =IF(EF!AN8="","",EF!AN8) ->  | AL103: =IF(EF!AO8="","",EF!AO8) ->  | AM103: =IF(EF!AP8="","",EF!AP8) -> 
D104: Criterio Evaluación 1.6 | E104: =IF(EF!H9="","",EF!H9) ->  | F104: =IF(EF!I9="","",EF!I9) ->  | G104: =IF(EF!J9="","",EF!J9) ->  | H104: =IF(EF!K9="","",EF!K9) ->  | I104: =IF(EF!L9="","",EF!L9) ->  | J104: =IF(EF!M9="","",EF!M9) ->  | K104: =IF(EF!N9="","",EF!N9) ->  | L104: =IF(EF!O9="","",EF!O9) ->  | M104: =IF(EF!P9="","",EF!P9) ->  | N104: =IF(EF!Q9="","",EF!Q9) ->  | O104: =IF(EF!R9="","",EF!R9) ->  | P104: =IF(EF!S9="","",EF!S9) ->  | Q104: =IF(EF!T9="","",EF!T9) ->  | R104: =IF(EF!U9="","",EF!U9) ->  | S104: =IF(EF!V9="","",EF!V9) ->  | T104: =IF(EF!W9="","",EF!W9) ->  | U104: =IF(EF!X9="","",EF!X9) ->  | V104: =IF(EF!Y9="","",EF!Y9) ->  | W104: =IF(EF!Z9="","",EF!Z9) ->  | X104: =IF(EF!AA9="","",EF!AA9) ->  | Y104: =IF(EF!AB9="","",EF!AB9) ->  | Z104: =IF(EF!AC9="","",EF!AC9) ->  | AA104: =IF(EF!AD9="","",EF!AD9) ->  | AB104: =IF(EF!AE9="","",EF!AE9) ->  | AC104: =IF(EF!AF9="","",EF!AF9) ->  | AD104: =IF(EF!AG9="","",EF!AG9) ->  | AE104: =IF(EF!AH9="","",EF!AH9) ->  | AF104: =IF(EF!AI9="","",EF!AI9) ->  | AG104: =IF(EF!AJ9="","",EF!AJ9) ->  | AH104: =IF(EF!AK9="","",EF!AK9) ->  | AI104: =IF(EF!AL9="","",EF!AL9) ->  | AJ104: =IF(EF!AM9="","",EF!AM9) ->  | AK104: =IF(EF!AN9="","",EF!AN9) ->  | AL104: =IF(EF!AO9="","",EF!AO9) ->  | AM104: =IF(EF!AP9="","",EF!AP9) -> 
D105: Criterio Evaluación 1.7 | E105: =IF(EF!H10="","",EF!H10) ->  | F105: =IF(EF!I10="","",EF!I10) ->  | G105: =IF(EF!J10="","",EF!J10) ->  | H105: =IF(EF!K10="","",EF!K10) ->  | I105: =IF(EF!L10="","",EF!L10) ->  | J105: =IF(EF!M10="","",EF!M10) ->  | K105: =IF(EF!N10="","",EF!N10) ->  | L105: =IF(EF!O10="","",EF!O10) ->  | M105: =IF(EF!P10="","",EF!P10) ->  | N105: =IF(EF!Q10="","",EF!Q10) ->  | O105: =IF(EF!R10="","",EF!R10) ->  | P105: =IF(EF!S10="","",EF!S10) ->  | Q105: =IF(EF!T10="","",EF!T10) ->  | R105: =IF(EF!U10="","",EF!U10) ->  | S105: =IF(EF!V10="","",EF!V10) ->  | T105: =IF(EF!W10="","",EF!W10) ->  | U105: =IF(EF!X10="","",EF!X10) ->  | V105: =IF(EF!Y10="","",EF!Y10) ->  | W105: =IF(EF!Z10="","",EF!Z10) ->  | X105: =IF(EF!AA10="","",EF!AA10) ->  | Y105: =IF(EF!AB10="","",EF!AB10) ->  | Z105: =IF(EF!AC10="","",EF!AC10) ->  | AA105: =IF(EF!AD10="","",EF!AD10) ->  | AB105: =IF(EF!AE10="","",EF!AE10) ->  | AC105: =IF(EF!AF10="","",EF!AF10) ->  | AD105: =IF(EF!AG10="","",EF!AG10) ->  | AE105: =IF(EF!AH10="","",EF!AH10) ->  | AF105: =IF(EF!AI10="","",EF!AI10) ->  | AG105: =IF(EF!AJ10="","",EF!AJ10) ->  | AH105: =IF(EF!AK10="","",EF!AK10) ->  | AI105: =IF(EF!AL10="","",EF!AL10) ->  | AJ105: =IF(EF!AM10="","",EF!AM10) ->  | AK105: =IF(EF!AN10="","",EF!AN10) ->  | AL105: =IF(EF!AO10="","",EF!AO10) ->  | AM105: =IF(EF!AP10="","",EF!AP10) -> 
D106: Criterio Evaluación 1.8 | E106: =IF(EF!H11="","",EF!H11) ->  | F106: =IF(EF!I11="","",EF!I11) ->  | G106: =IF(EF!J11="","",EF!J11) ->  | H106: =IF(EF!K11="","",EF!K11) ->  | I106: =IF(EF!L11="","",EF!L11) ->  | J106: =IF(EF!M11="","",EF!M11) ->  | K106: =IF(EF!N11="","",EF!N11) ->  | L106: =IF(EF!O11="","",EF!O11) ->  | M106: =IF(EF!P11="","",EF!P11) ->  | N106: =IF(EF!Q11="","",EF!Q11) ->  | O106: =IF(EF!R11="","",EF!R11) ->  | P106: =IF(EF!S11="","",EF!S11) ->  | Q106: =IF(EF!T11="","",EF!T11) ->  | R106: =IF(EF!U11="","",EF!U11) ->  | S106: =IF(EF!V11="","",EF!V11) ->  | T106: =IF(EF!W11="","",EF!W11) ->  | U106: =IF(EF!X11="","",EF!X11) ->  | V106: =IF(EF!Y11="","",EF!Y11) ->  | W106: =IF(EF!Z11="","",EF!Z11) ->  | X106: =IF(EF!AA11="","",EF!AA11) ->  | Y106: =IF(EF!AB11="","",EF!AB11) ->  | Z106: =IF(EF!AC11="","",EF!AC11) ->  | AA106: =IF(EF!AD11="","",EF!AD11) ->  | AB106: =IF(EF!AE11="","",EF!AE11) ->  | AC106: =IF(EF!AF11="","",EF!AF11) ->  | AD106: =IF(EF!AG11="","",EF!AG11) ->  | AE106: =IF(EF!AH11="","",EF!AH11) ->  | AF106: =IF(EF!AI11="","",EF!AI11) ->  | AG106: =IF(EF!AJ11="","",EF!AJ11) ->  | AH106: =IF(EF!AK11="","",EF!AK11) ->  | AI106: =IF(EF!AL11="","",EF!AL11) ->  | AJ106: =IF(EF!AM11="","",EF!AM11) ->  | AK106: =IF(EF!AN11="","",EF!AN11) ->  | AL106: =IF(EF!AO11="","",EF!AO11) ->  | AM106: =IF(EF!AP11="","",EF!AP11) -> 
D107: Criterio Evaluación 1.9 | E107: =IF(EF!H12="","",EF!H12) ->  | F107: =IF(EF!I12="","",EF!I12) ->  | G107: =IF(EF!J12="","",EF!J12) ->  | H107: =IF(EF!K12="","",EF!K12) ->  | I107: =IF(EF!L12="","",EF!L12) ->  | J107: =IF(EF!M12="","",EF!M12) ->  | K107: =IF(EF!N12="","",EF!N12) ->  | L107: =IF(EF!O12="","",EF!O12) ->  | M107: =IF(EF!P12="","",EF!P12) ->  | N107: =IF(EF!Q12="","",EF!Q12) ->  | O107: =IF(EF!R12="","",EF!R12) ->  | P107: =IF(EF!S12="","",EF!S12) ->  | Q107: =IF(EF!T12="","",EF!T12) ->  | R107: =IF(EF!U12="","",EF!U12) ->  | S107: =IF(EF!V12="","",EF!V12) ->  | T107: =IF(EF!W12="","",EF!W12) ->  | U107: =IF(EF!X12="","",EF!X12) ->  | V107: =IF(EF!Y12="","",EF!Y12) ->  | W107: =IF(EF!Z12="","",EF!Z12) ->  | X107: =IF(EF!AA12="","",EF!AA12) ->  | Y107: =IF(EF!AB12="","",EF!AB12) ->  | Z107: =IF(EF!AC12="","",EF!AC12) ->  | AA107: =IF(EF!AD12="","",EF!AD12) ->  | AB107: =IF(EF!AE12="","",EF!AE12) ->  | AC107: =IF(EF!AF12="","",EF!AF12) ->  | AD107: =IF(EF!AG12="","",EF!AG12) ->  | AE107: =IF(EF!AH12="","",EF!AH12) ->  | AF107: =IF(EF!AI12="","",EF!AI12) ->  | AG107: =IF(EF!AJ12="","",EF!AJ12) ->  | AH107: =IF(EF!AK12="","",EF!AK12) ->  | AI107: =IF(EF!AL12="","",EF!AL12) ->  | AJ107: =IF(EF!AM12="","",EF!AM12) ->  | AK107: =IF(EF!AN12="","",EF!AN12) ->  | AL107: =IF(EF!AO12="","",EF!AO12) ->  | AM107: =IF(EF!AP12="","",EF!AP12) -> 
C108: Comp. Esp. 2 | D108: Criterio Evaluación 2.1 | E108: =IF(EF!H13="","",EF!H13) ->  | F108: =IF(EF!I13="","",EF!I13) ->  | G108: =IF(EF!J13="","",EF!J13) ->  | H108: =IF(EF!K13="","",EF!K13) ->  | I108: =IF(EF!L13="","",EF!L13) ->  | J108: =IF(EF!M13="","",EF!M13) ->  | K108: =IF(EF!N13="","",EF!N13) ->  | L108: =IF(EF!O13="","",EF!O13) ->  | M108: =IF(EF!P13="","",EF!P13) ->  | N108: =IF(EF!Q13="","",EF!Q13) ->  | O108: =IF(EF!R13="","",EF!R13) ->  | P108: =IF(EF!S13="","",EF!S13) ->  | Q108: =IF(EF!T13="","",EF!T13) ->  | R108: =IF(EF!U13="","",EF!U13) ->  | S108: =IF(EF!V13="","",EF!V13) ->  | T108: =IF(EF!W13="","",EF!W13) ->  | U108: =IF(EF!X13="","",EF!X13) ->  | V108: =IF(EF!Y13="","",EF!Y13) ->  | W108: =IF(EF!Z13="","",EF!Z13) ->  | X108: =IF(EF!AA13="","",EF!AA13) ->  | Y108: =IF(EF!AB13="","",EF!AB13) ->  | Z108: =IF(EF!AC13="","",EF!AC13) ->  | AA108: =IF(EF!AD13="","",EF!AD13) ->  | AB108: =IF(EF!AE13="","",EF!AE13) ->  | AC108: =IF(EF!AF13="","",EF!AF13) ->  | AD108: =IF(EF!AG13="","",EF!AG13) ->  | AE108: =IF(EF!AH13="","",EF!AH13) ->  | AF108: =IF(EF!AI13="","",EF!AI13) ->  | AG108: =IF(EF!AJ13="","",EF!AJ13) ->  | AH108: =IF(EF!AK13="","",EF!AK13) ->  | AI108: =IF(EF!AL13="","",EF!AL13) ->  | AJ108: =IF(EF!AM13="","",EF!AM13) ->  | AK108: =IF(EF!AN13="","",EF!AN13) ->  | AL108: =IF(EF!AO13="","",EF!AO13) ->  | AM108: =IF(EF!AP13="","",EF!AP13) -> 
D109: Criterio Evaluación 2.2 | E109: =IF(EF!H14="","",EF!H14) ->  | F109: =IF(EF!I14="","",EF!I14) ->  | G109: =IF(EF!J14="","",EF!J14) ->  | H109: =IF(EF!K14="","",EF!K14) ->  | I109: =IF(EF!L14="","",EF!L14) ->  | J109: =IF(EF!M14="","",EF!M14) ->  | K109: =IF(EF!N14="","",EF!N14) ->  | L109: =IF(EF!O14="","",EF!O14) ->  | M109: =IF(EF!P14="","",EF!P14) ->  | N109: =IF(EF!Q14="","",EF!Q14) ->  | O109: =IF(EF!R14="","",EF!R14) ->  | P109: =IF(EF!S14="","",EF!S14) ->  | Q109: =IF(EF!T14="","",EF!T14) ->  | R109: =IF(EF!U14="","",EF!U14) ->  | S109: =IF(EF!V14="","",EF!V14) ->  | T109: =IF(EF!W14="","",EF!W14) ->  | U109: =IF(EF!X14="","",EF!X14) ->  | V109: =IF(EF!Y14="","",EF!Y14) ->  | W109: =IF(EF!Z14="","",EF!Z14) ->  | X109: =IF(EF!AA14="","",EF!AA14) ->  | Y109: =IF(EF!AB14="","",EF!AB14) ->  | Z109: =IF(EF!AC14="","",EF!AC14) ->  | AA109: =IF(EF!AD14="","",EF!AD14) ->  | AB109: =IF(EF!AE14="","",EF!AE14) ->  | AC109: =IF(EF!AF14="","",EF!AF14) ->  | AD109: =IF(EF!AG14="","",EF!AG14) ->  | AE109: =IF(EF!AH14="","",EF!AH14) ->  | AF109: =IF(EF!AI14="","",EF!AI14) ->  | AG109: =IF(EF!AJ14="","",EF!AJ14) ->  | AH109: =IF(EF!AK14="","",EF!AK14) ->  | AI109: =IF(EF!AL14="","",EF!AL14) ->  | AJ109: =IF(EF!AM14="","",EF!AM14) ->  | AK109: =IF(EF!AN14="","",EF!AN14) ->  | AL109: =IF(EF!AO14="","",EF!AO14) ->  | AM109: =IF(EF!AP14="","",EF!AP14) -> 
D110: Criterio Evaluación 2.3 | E110: =IF(EF!H15="","",EF!H15) ->  | F110: =IF(EF!I15="","",EF!I15) ->  | G110: =IF(EF!J15="","",EF!J15) ->  | H110: =IF(EF!K15="","",EF!K15) ->  | I110: =IF(EF!L15="","",EF!L15) ->  | J110: =IF(EF!M15="","",EF!M15) ->  | K110: =IF(EF!N15="","",EF!N15) ->  | L110: =IF(EF!O15="","",EF!O15) ->  | M110: =IF(EF!P15="","",EF!P15) ->  | N110: =IF(EF!Q15="","",EF!Q15) ->  | O110: =IF(EF!R15="","",EF!R15) ->  | P110: =IF(EF!S15="","",EF!S15) ->  | Q110: =IF(EF!T15="","",EF!T15) ->  | R110: =IF(EF!U15="","",EF!U15) ->  | S110: =IF(EF!V15="","",EF!V15) ->  | T110: =IF(EF!W15="","",EF!W15) ->  | U110: =IF(EF!X15="","",EF!X15) ->  | V110: =IF(EF!Y15="","",EF!Y15) ->  | W110: =IF(EF!Z15="","",EF!Z15) ->  | X110: =IF(EF!AA15="","",EF!AA15) ->  | Y110: =IF(EF!AB15="","",EF!AB15) ->  | Z110: =IF(EF!AC15="","",EF!AC15) ->  | AA110: =IF(EF!AD15="","",EF!AD15) ->  | AB110: =IF(EF!AE15="","",EF!AE15) ->  | AC110: =IF(EF!AF15="","",EF!AF15) ->  | AD110: =IF(EF!AG15="","",EF!AG15) ->  | AE110: =IF(EF!AH15="","",EF!AH15) ->  | AF110: =IF(EF!AI15="","",EF!AI15) ->  | AG110: =IF(EF!AJ15="","",EF!AJ15) ->  | AH110: =IF(EF!AK15="","",EF!AK15) ->  | AI110: =IF(EF!AL15="","",EF!AL15) ->  | AJ110: =IF(EF!AM15="","",EF!AM15) ->  | AK110: =IF(EF!AN15="","",EF!AN15) ->  | AL110: =IF(EF!AO15="","",EF!AO15) ->  | AM110: =IF(EF!AP15="","",EF!AP15) -> 
D111: Criterio Evaluación 2.4 | E111: =IF(EF!H16="","",EF!H16) ->  | F111: =IF(EF!I16="","",EF!I16) ->  | G111: =IF(EF!J16="","",EF!J16) ->  | H111: =IF(EF!K16="","",EF!K16) ->  | I111: =IF(EF!L16="","",EF!L16) ->  | J111: =IF(EF!M16="","",EF!M16) ->  | K111: =IF(EF!N16="","",EF!N16) ->  | L111: =IF(EF!O16="","",EF!O16) ->  | M111: =IF(EF!P16="","",EF!P16) ->  | N111: =IF(EF!Q16="","",EF!Q16) ->  | O111: =IF(EF!R16="","",EF!R16) ->  | P111: =IF(EF!S16="","",EF!S16) ->  | Q111: =IF(EF!T16="","",EF!T16) ->  | R111: =IF(EF!U16="","",EF!U16) ->  | S111: =IF(EF!V16="","",EF!V16) ->  | T111: =IF(EF!W16="","",EF!W16) ->  | U111: =IF(EF!X16="","",EF!X16) ->  | V111: =IF(EF!Y16="","",EF!Y16) ->  | W111: =IF(EF!Z16="","",EF!Z16) ->  | X111: =IF(EF!AA16="","",EF!AA16) ->  | Y111: =IF(EF!AB16="","",EF!AB16) ->  | Z111: =IF(EF!AC16="","",EF!AC16) ->  | AA111: =IF(EF!AD16="","",EF!AD16) ->  | AB111: =IF(EF!AE16="","",EF!AE16) ->  | AC111: =IF(EF!AF16="","",EF!AF16) ->  | AD111: =IF(EF!AG16="","",EF!AG16) ->  | AE111: =IF(EF!AH16="","",EF!AH16) ->  | AF111: =IF(EF!AI16="","",EF!AI16) ->  | AG111: =IF(EF!AJ16="","",EF!AJ16) ->  | AH111: =IF(EF!AK16="","",EF!AK16) ->  | AI111: =IF(EF!AL16="","",EF!AL16) ->  | AJ111: =IF(EF!AM16="","",EF!AM16) ->  | AK111: =IF(EF!AN16="","",EF!AN16) ->  | AL111: =IF(EF!AO16="","",EF!AO16) ->  | AM111: =IF(EF!AP16="","",EF!AP16) -> 
C112: Comp. Esp. 3 | D112: Criterio Evaluación 3.1 | E112: =IF(EF!H17="","",EF!H17) ->  | F112: =IF(EF!I17="","",EF!I17) ->  | G112: =IF(EF!J17="","",EF!J17) ->  | H112: =IF(EF!K17="","",EF!K17) ->  | I112: =IF(EF!L17="","",EF!L17) ->  | J112: =IF(EF!M17="","",EF!M17) ->  | K112: =IF(EF!N17="","",EF!N17) ->  | L112: =IF(EF!O17="","",EF!O17) ->  | M112: =IF(EF!P17="","",EF!P17) ->  | N112: =IF(EF!Q17="","",EF!Q17) ->  | O112: =IF(EF!R17="","",EF!R17) ->  | P112: =IF(EF!S17="","",EF!S17) ->  | Q112: =IF(EF!T17="","",EF!T17) ->  | R112: =IF(EF!U17="","",EF!U17) ->  | S112: =IF(EF!V17="","",EF!V17) ->  | T112: =IF(EF!W17="","",EF!W17) ->  | U112: =IF(EF!X17="","",EF!X17) ->  | V112: =IF(EF!Y17="","",EF!Y17) ->  | W112: =IF(EF!Z17="","",EF!Z17) ->  | X112: =IF(EF!AA17="","",EF!AA17) ->  | Y112: =IF(EF!AB17="","",EF!AB17) ->  | Z112: =IF(EF!AC17="","",EF!AC17) ->  | AA112: =IF(EF!AD17="","",EF!AD17) ->  | AB112: =IF(EF!AE17="","",EF!AE17) ->  | AC112: =IF(EF!AF17="","",EF!AF17) ->  | AD112: =IF(EF!AG17="","",EF!AG17) ->  | AE112: =IF(EF!AH17="","",EF!AH17) ->  | AF112: =IF(EF!AI17="","",EF!AI17) ->  | AG112: =IF(EF!AJ17="","",EF!AJ17) ->  | AH112: =IF(EF!AK17="","",EF!AK17) ->  | AI112: =IF(EF!AL17="","",EF!AL17) ->  | AJ112: =IF(EF!AM17="","",EF!AM17) ->  | AK112: =IF(EF!AN17="","",EF!AN17) ->  | AL112: =IF(EF!AO17="","",EF!AO17) ->  | AM112: =IF(EF!AP17="","",EF!AP17) -> 
D113: Criterio Evaluación 3.2 | E113: =IF(EF!H18="","",EF!H18) ->  | F113: =IF(EF!I18="","",EF!I18) ->  | G113: =IF(EF!J18="","",EF!J18) ->  | H113: =IF(EF!K18="","",EF!K18) ->  | I113: =IF(EF!L18="","",EF!L18) ->  | J113: =IF(EF!M18="","",EF!M18) ->  | K113: =IF(EF!N18="","",EF!N18) ->  | L113: =IF(EF!O18="","",EF!O18) ->  | M113: =IF(EF!P18="","",EF!P18) ->  | N113: =IF(EF!Q18="","",EF!Q18) ->  | O113: =IF(EF!R18="","",EF!R18) ->  | P113: =IF(EF!S18="","",EF!S18) ->  | Q113: =IF(EF!T18="","",EF!T18) ->  | R113: =IF(EF!U18="","",EF!U18) ->  | S113: =IF(EF!V18="","",EF!V18) ->  | T113: =IF(EF!W18="","",EF!W18) ->  | U113: =IF(EF!X18="","",EF!X18) ->  | V113: =IF(EF!Y18="","",EF!Y18) ->  | W113: =IF(EF!Z18="","",EF!Z18) ->  | X113: =IF(EF!AA18="","",EF!AA18) ->  | Y113: =IF(EF!AB18="","",EF!AB18) ->  | Z113: =IF(EF!AC18="","",EF!AC18) ->  | AA113: =IF(EF!AD18="","",EF!AD18) ->  | AB113: =IF(EF!AE18="","",EF!AE18) ->  | AC113: =IF(EF!AF18="","",EF!AF18) ->  | AD113: =IF(EF!AG18="","",EF!AG18) ->  | AE113: =IF(EF!AH18="","",EF!AH18) ->  | AF113: =IF(EF!AI18="","",EF!AI18) ->  | AG113: =IF(EF!AJ18="","",EF!AJ18) ->  | AH113: =IF(EF!AK18="","",EF!AK18) ->  | AI113: =IF(EF!AL18="","",EF!AL18) ->  | AJ113: =IF(EF!AM18="","",EF!AM18) ->  | AK113: =IF(EF!AN18="","",EF!AN18) ->  | AL113: =IF(EF!AO18="","",EF!AO18) ->  | AM113: =IF(EF!AP18="","",EF!AP18) -> 
D114: Criterio Evaluación 3.3 | E114: =IF(EF!H19="","",EF!H19) ->  | F114: =IF(EF!I19="","",EF!I19) ->  | G114: =IF(EF!J19="","",EF!J19) ->  | H114: =IF(EF!K19="","",EF!K19) ->  | I114: =IF(EF!L19="","",EF!L19) ->  | J114: =IF(EF!M19="","",EF!M19) ->  | K114: =IF(EF!N19="","",EF!N19) ->  | L114: =IF(EF!O19="","",EF!O19) ->  | M114: =IF(EF!P19="","",EF!P19) ->  | N114: =IF(EF!Q19="","",EF!Q19) ->  | O114: =IF(EF!R19="","",EF!R19) ->  | P114: =IF(EF!S19="","",EF!S19) ->  | Q114: =IF(EF!T19="","",EF!T19) ->  | R114: =IF(EF!U19="","",EF!U19) ->  | S114: =IF(EF!V19="","",EF!V19) ->  | T114: =IF(EF!W19="","",EF!W19) ->  | U114: =IF(EF!X19="","",EF!X19) ->  | V114: =IF(EF!Y19="","",EF!Y19) ->  | W114: =IF(EF!Z19="","",EF!Z19) ->  | X114: =IF(EF!AA19="","",EF!AA19) ->  | Y114: =IF(EF!AB19="","",EF!AB19) ->  | Z114: =IF(EF!AC19="","",EF!AC19) ->  | AA114: =IF(EF!AD19="","",EF!AD19) ->  | AB114: =IF(EF!AE19="","",EF!AE19) ->  | AC114: =IF(EF!AF19="","",EF!AF19) ->  | AD114: =IF(EF!AG19="","",EF!AG19) ->  | AE114: =IF(EF!AH19="","",EF!AH19) ->  | AF114: =IF(EF!AI19="","",EF!AI19) ->  | AG114: =IF(EF!AJ19="","",EF!AJ19) ->  | AH114: =IF(EF!AK19="","",EF!AK19) ->  | AI114: =IF(EF!AL19="","",EF!AL19) ->  | AJ114: =IF(EF!AM19="","",EF!AM19) ->  | AK114: =IF(EF!AN19="","",EF!AN19) ->  | AL114: =IF(EF!AO19="","",EF!AO19) ->  | AM114: =IF(EF!AP19="","",EF!AP19) -> 
C115: Comp. Esp. 4 | D115: Criterio Evaluación 4.1 | E115: =IF(EF!H20="","",EF!H20) ->  | F115: =IF(EF!I20="","",EF!I20) ->  | G115: =IF(EF!J20="","",EF!J20) ->  | H115: =IF(EF!K20="","",EF!K20) ->  | I115: =IF(EF!L20="","",EF!L20) ->  | J115: =IF(EF!M20="","",EF!M20) ->  | K115: =IF(EF!N20="","",EF!N20) ->  | L115: =IF(EF!O20="","",EF!O20) ->  | M115: =IF(EF!P20="","",EF!P20) ->  | N115: =IF(EF!Q20="","",EF!Q20) ->  | O115: =IF(EF!R20="","",EF!R20) ->  | P115: =IF(EF!S20="","",EF!S20) ->  | Q115: =IF(EF!T20="","",EF!T20) ->  | R115: =IF(EF!U20="","",EF!U20) ->  | S115: =IF(EF!V20="","",EF!V20) ->  | T115: =IF(EF!W20="","",EF!W20) ->  | U115: =IF(EF!X20="","",EF!X20) ->  | V115: =IF(EF!Y20="","",EF!Y20) ->  | W115: =IF(EF!Z20="","",EF!Z20) ->  | X115: =IF(EF!AA20="","",EF!AA20) ->  | Y115: =IF(EF!AB20="","",EF!AB20) ->  | Z115: =IF(EF!AC20="","",EF!AC20) ->  | AA115: =IF(EF!AD20="","",EF!AD20) ->  | AB115: =IF(EF!AE20="","",EF!AE20) ->  | AC115: =IF(EF!AF20="","",EF!AF20) ->  | AD115: =IF(EF!AG20="","",EF!AG20) ->  | AE115: =IF(EF!AH20="","",EF!AH20) ->  | AF115: =IF(EF!AI20="","",EF!AI20) ->  | AG115: =IF(EF!AJ20="","",EF!AJ20) ->  | AH115: =IF(EF!AK20="","",EF!AK20) ->  | AI115: =IF(EF!AL20="","",EF!AL20) ->  | AJ115: =IF(EF!AM20="","",EF!AM20) ->  | AK115: =IF(EF!AN20="","",EF!AN20) ->  | AL115: =IF(EF!AO20="","",EF!AO20) ->  | AM115: =IF(EF!AP20="","",EF!AP20) -> 
D116: Criterio Evaluación 4.2 | E116: =IF(EF!H21="","",EF!H21) ->  | F116: =IF(EF!I21="","",EF!I21) ->  | G116: =IF(EF!J21="","",EF!J21) ->  | H116: =IF(EF!K21="","",EF!K21) ->  | I116: =IF(EF!L21="","",EF!L21) ->  | J116: =IF(EF!M21="","",EF!M21) ->  | K116: =IF(EF!N21="","",EF!N21) ->  | L116: =IF(EF!O21="","",EF!O21) ->  | M116: =IF(EF!P21="","",EF!P21) ->  | N116: =IF(EF!Q21="","",EF!Q21) ->  | O116: =IF(EF!R21="","",EF!R21) ->  | P116: =IF(EF!S21="","",EF!S21) ->  | Q116: =IF(EF!T21="","",EF!T21) ->  | R116: =IF(EF!U21="","",EF!U21) ->  | S116: =IF(EF!V21="","",EF!V21) ->  | T116: =IF(EF!W21="","",EF!W21) ->  | U116: =IF(EF!X21="","",EF!X21) ->  | V116: =IF(EF!Y21="","",EF!Y21) ->  | W116: =IF(EF!Z21="","",EF!Z21) ->  | X116: =IF(EF!AA21="","",EF!AA21) ->  | Y116: =IF(EF!AB21="","",EF!AB21) ->  | Z116: =IF(EF!AC21="","",EF!AC21) ->  | AA116: =IF(EF!AD21="","",EF!AD21) ->  | AB116: =IF(EF!AE21="","",EF!AE21) ->  | AC116: =IF(EF!AF21="","",EF!AF21) ->  | AD116: =IF(EF!AG21="","",EF!AG21) ->  | AE116: =IF(EF!AH21="","",EF!AH21) ->  | AF116: =IF(EF!AI21="","",EF!AI21) ->  | AG116: =IF(EF!AJ21="","",EF!AJ21) ->  | AH116: =IF(EF!AK21="","",EF!AK21) ->  | AI116: =IF(EF!AL21="","",EF!AL21) ->  | AJ116: =IF(EF!AM21="","",EF!AM21) ->  | AK116: =IF(EF!AN21="","",EF!AN21) ->  | AL116: =IF(EF!AO21="","",EF!AO21) ->  | AM116: =IF(EF!AP21="","",EF!AP21) -> 
D117: Criterio Evaluación 4.3 | E117: =IF(EF!H22="","",EF!H22) ->  | F117: =IF(EF!I22="","",EF!I22) ->  | G117: =IF(EF!J22="","",EF!J22) ->  | H117: =IF(EF!K22="","",EF!K22) ->  | I117: =IF(EF!L22="","",EF!L22) ->  | J117: =IF(EF!M22="","",EF!M22) ->  | K117: =IF(EF!N22="","",EF!N22) ->  | L117: =IF(EF!O22="","",EF!O22) ->  | M117: =IF(EF!P22="","",EF!P22) ->  | N117: =IF(EF!Q22="","",EF!Q22) ->  | O117: =IF(EF!R22="","",EF!R22) ->  | P117: =IF(EF!S22="","",EF!S22) ->  | Q117: =IF(EF!T22="","",EF!T22) ->  | R117: =IF(EF!U22="","",EF!U22) ->  | S117: =IF(EF!V22="","",EF!V22) ->  | T117: =IF(EF!W22="","",EF!W22) ->  | U117: =IF(EF!X22="","",EF!X22) ->  | V117: =IF(EF!Y22="","",EF!Y22) ->  | W117: =IF(EF!Z22="","",EF!Z22) ->  | X117: =IF(EF!AA22="","",EF!AA22) ->  | Y117: =IF(EF!AB22="","",EF!AB22) ->  | Z117: =IF(EF!AC22="","",EF!AC22) ->  | AA117: =IF(EF!AD22="","",EF!AD22) ->  | AB117: =IF(EF!AE22="","",EF!AE22) ->  | AC117: =IF(EF!AF22="","",EF!AF22) ->  | AD117: =IF(EF!AG22="","",EF!AG22) ->  | AE117: =IF(EF!AH22="","",EF!AH22) ->  | AF117: =IF(EF!AI22="","",EF!AI22) ->  | AG117: =IF(EF!AJ22="","",EF!AJ22) ->  | AH117: =IF(EF!AK22="","",EF!AK22) ->  | AI117: =IF(EF!AL22="","",EF!AL22) ->  | AJ117: =IF(EF!AM22="","",EF!AM22) ->  | AK117: =IF(EF!AN22="","",EF!AN22) ->  | AL117: =IF(EF!AO22="","",EF!AO22) ->  | AM117: =IF(EF!AP22="","",EF!AP22) -> 
C118: Comp. Esp. 5 | D118: Criterio Evaluación 5.1 | E118: =IF(EF!H23="","",EF!H23) ->  | F118: =IF(EF!I23="","",EF!I23) ->  | G118: =IF(EF!J23="","",EF!J23) ->  | H118: =IF(EF!K23="","",EF!K23) ->  | I118: =IF(EF!L23="","",EF!L23) ->  | J118: =IF(EF!M23="","",EF!M23) ->  | K118: =IF(EF!N23="","",EF!N23) ->  | L118: =IF(EF!O23="","",EF!O23) ->  | M118: =IF(EF!P23="","",EF!P23) ->  | N118: =IF(EF!Q23="","",EF!Q23) ->  | O118: =IF(EF!R23="","",EF!R23) ->  | P118: =IF(EF!S23="","",EF!S23) ->  | Q118: =IF(EF!T23="","",EF!T23) ->  | R118: =IF(EF!U23="","",EF!U23) ->  | S118: =IF(EF!V23="","",EF!V23) ->  | T118: =IF(EF!W23="","",EF!W23) ->  | U118: =IF(EF!X23="","",EF!X23) ->  | V118: =IF(EF!Y23="","",EF!Y23) ->  | W118: =IF(EF!Z23="","",EF!Z23) ->  | X118: =IF(EF!AA23="","",EF!AA23) ->  | Y118: =IF(EF!AB23="","",EF!AB23) ->  | Z118: =IF(EF!AC23="","",EF!AC23) ->  | AA118: =IF(EF!AD23="","",EF!AD23) ->  | AB118: =IF(EF!AE23="","",EF!AE23) ->  | AC118: =IF(EF!AF23="","",EF!AF23) ->  | AD118: =IF(EF!AG23="","",EF!AG23) ->  | AE118: =IF(EF!AH23="","",EF!AH23) ->  | AF118: =IF(EF!AI23="","",EF!AI23) ->  | AG118: =IF(EF!AJ23="","",EF!AJ23) ->  | AH118: =IF(EF!AK23="","",EF!AK23) ->  | AI118: =IF(EF!AL23="","",EF!AL23) ->  | AJ118: =IF(EF!AM23="","",EF!AM23) ->  | AK118: =IF(EF!AN23="","",EF!AN23) ->  | AL118: =IF(EF!AO23="","",EF!AO23) ->  | AM118: =IF(EF!AP23="","",EF!AP23) -> 
D119: Criterio Evaluación 5.2 | E119: =IF(EF!H24="","",EF!H24) ->  | F119: =IF(EF!I24="","",EF!I24) ->  | G119: =IF(EF!J24="","",EF!J24) ->  | H119: =IF(EF!K24="","",EF!K24) ->  | I119: =IF(EF!L24="","",EF!L24) ->  | J119: =IF(EF!M24="","",EF!M24) ->  | K119: =IF(EF!N24="","",EF!N24) ->  | L119: =IF(EF!O24="","",EF!O24) ->  | M119: =IF(EF!P24="","",EF!P24) ->  | N119: =IF(EF!Q24="","",EF!Q24) ->  | O119: =IF(EF!R24="","",EF!R24) ->  | P119: =IF(EF!S24="","",EF!S24) ->  | Q119: =IF(EF!T24="","",EF!T24) ->  | R119: =IF(EF!U24="","",EF!U24) ->  | S119: =IF(EF!V24="","",EF!V24) ->  | T119: =IF(EF!W24="","",EF!W24) ->  | U119: =IF(EF!X24="","",EF!X24) ->  | V119: =IF(EF!Y24="","",EF!Y24) ->  | W119: =IF(EF!Z24="","",EF!Z24) ->  | X119: =IF(EF!AA24="","",EF!AA24) ->  | Y119: =IF(EF!AB24="","",EF!AB24) ->  | Z119: =IF(EF!AC24="","",EF!AC24) ->  | AA119: =IF(EF!AD24="","",EF!AD24) ->  | AB119: =IF(EF!AE24="","",EF!AE24) ->  | AC119: =IF(EF!AF24="","",EF!AF24) ->  | AD119: =IF(EF!AG24="","",EF!AG24) ->  | AE119: =IF(EF!AH24="","",EF!AH24) ->  | AF119: =IF(EF!AI24="","",EF!AI24) ->  | AG119: =IF(EF!AJ24="","",EF!AJ24) ->  | AH119: =IF(EF!AK24="","",EF!AK24) ->  | AI119: =IF(EF!AL24="","",EF!AL24) ->  | AJ119: =IF(EF!AM24="","",EF!AM24) ->  | AK119: =IF(EF!AN24="","",EF!AN24) ->  | AL119: =IF(EF!AO24="","",EF!AO24) ->  | AM119: =IF(EF!AP24="","",EF!AP24) -> 
B120: Expresión Artística | C120: Comp. Esp. 1 | D120: Criterio Evaluación 1.1 | E120: =IF(EA!H4="","",EA!H4) ->  | F120: =IF(EA!I4="","",EA!I4) ->  | G120: =IF(EA!J4="","",EA!J4) ->  | H120: =IF(EA!K4="","",EA!K4) ->  | I120: =IF(EA!L4="","",EA!L4) ->  | J120: =IF(EA!M4="","",EA!M4) ->  | K120: =IF(EA!N4="","",EA!N4) ->  | L120: =IF(EA!O4="","",EA!O4) ->  | M120: =IF(EA!P4="","",EA!P4) ->  | N120: =IF(EA!Q4="","",EA!Q4) ->  | O120: =IF(EA!R4="","",EA!R4) ->  | P120: =IF(EA!S4="","",EA!S4) ->  | Q120: =IF(EA!T4="","",EA!T4) ->  | R120: =IF(EA!U4="","",EA!U4) ->  | S120: =IF(EA!V4="","",EA!V4) ->  | T120: =IF(EA!W4="","",EA!W4) ->  | U120: =IF(EA!X4="","",EA!X4) ->  | V120: =IF(EA!Y4="","",EA!Y4) ->  | W120: =IF(EA!Z4="","",EA!Z4) ->  | X120: =IF(EA!AA4="","",EA!AA4) ->  | Y120: =IF(EA!AB4="","",EA!AB4) ->  | Z120: =IF(EA!AC4="","",EA!AC4) ->  | AA120: =IF(EA!AD4="","",EA!AD4) ->  | AB120: =IF(EA!AE4="","",EA!AE4) ->  | AC120: =IF(EA!AF4="","",EA!AF4) ->  | AD120: =IF(EA!AG4="","",EA!AG4) ->  | AE120: =IF(EA!AH4="","",EA!AH4) ->  | AF120: =IF(EA!AI4="","",EA!AI4) ->  | AG120: =IF(EA!AJ4="","",EA!AJ4) ->  | AH120: =IF(EA!AK4="","",EA!AK4) ->  | AI120: =IF(EA!AL4="","",EA!AL4) ->  | AJ120: =IF(EA!AM4="","",EA!AM4) ->  | AK120: =IF(EA!AN4="","",EA!AN4) ->  | AL120: =IF(EA!AO4="","",EA!AO4) ->  | AM120: =IF(EA!AP4="","",EA!AP4) -> 
D121: Criterio Evaluación 1.2 | E121: =IF(EA!H5="","",EA!H5) ->  | F121: =IF(EA!I5="","",EA!I5) ->  | G121: =IF(EA!J5="","",EA!J5) ->  | H121: =IF(EA!K5="","",EA!K5) ->  | I121: =IF(EA!L5="","",EA!L5) ->  | J121: =IF(EA!M5="","",EA!M5) ->  | K121: =IF(EA!N5="","",EA!N5) ->  | L121: =IF(EA!O5="","",EA!O5) ->  | M121: =IF(EA!P5="","",EA!P5) ->  | N121: =IF(EA!Q5="","",EA!Q5) ->  | O121: =IF(EA!R5="","",EA!R5) ->  | P121: =IF(EA!S5="","",EA!S5) ->  | Q121: =IF(EA!T5="","",EA!T5) ->  | R121: =IF(EA!U5="","",EA!U5) ->  | S121: =IF(EA!V5="","",EA!V5) ->  | T121: =IF(EA!W5="","",EA!W5) ->  | U121: =IF(EA!X5="","",EA!X5) ->  | V121: =IF(EA!Y5="","",EA!Y5) ->  | W121: =IF(EA!Z5="","",EA!Z5) ->  | X121: =IF(EA!AA5="","",EA!AA5) ->  | Y121: =IF(EA!AB5="","",EA!AB5) ->  | Z121: =IF(EA!AC5="","",EA!AC5) ->  | AA121: =IF(EA!AD5="","",EA!AD5) ->  | AB121: =IF(EA!AE5="","",EA!AE5) ->  | AC121: =IF(EA!AF5="","",EA!AF5) ->  | AD121: =IF(EA!AG5="","",EA!AG5) ->  | AE121: =IF(EA!AH5="","",EA!AH5) ->  | AF121: =IF(EA!AI5="","",EA!AI5) ->  | AG121: =IF(EA!AJ5="","",EA!AJ5) ->  | AH121: =IF(EA!AK5="","",EA!AK5) ->  | AI121: =IF(EA!AL5="","",EA!AL5) ->  | AJ121: =IF(EA!AM5="","",EA!AM5) ->  | AK121: =IF(EA!AN5="","",EA!AN5) ->  | AL121: =IF(EA!AO5="","",EA!AO5) ->  | AM121: =IF(EA!AP5="","",EA!AP5) -> 
D122: Criterio Evaluación 1.3 | E122: =IF(EA!H6="","",EA!H6) ->  | F122: =IF(EA!I6="","",EA!I6) ->  | G122: =IF(EA!J6="","",EA!J6) ->  | H122: =IF(EA!K6="","",EA!K6) ->  | I122: =IF(EA!L6="","",EA!L6) ->  | J122: =IF(EA!M6="","",EA!M6) ->  | K122: =IF(EA!N6="","",EA!N6) ->  | L122: =IF(EA!O6="","",EA!O6) ->  | M122: =IF(EA!P6="","",EA!P6) ->  | N122: =IF(EA!Q6="","",EA!Q6) ->  | O122: =IF(EA!R6="","",EA!R6) ->  | P122: =IF(EA!S6="","",EA!S6) ->  | Q122: =IF(EA!T6="","",EA!T6) ->  | R122: =IF(EA!U6="","",EA!U6) ->  | S122: =IF(EA!V6="","",EA!V6) ->  | T122: =IF(EA!W6="","",EA!W6) ->  | U122: =IF(EA!X6="","",EA!X6) ->  | V122: =IF(EA!Y6="","",EA!Y6) ->  | W122: =IF(EA!Z6="","",EA!Z6) ->  | X122: =IF(EA!AA6="","",EA!AA6) ->  | Y122: =IF(EA!AB6="","",EA!AB6) ->  | Z122: =IF(EA!AC6="","",EA!AC6) ->  | AA122: =IF(EA!AD6="","",EA!AD6) ->  | AB122: =IF(EA!AE6="","",EA!AE6) ->  | AC122: =IF(EA!AF6="","",EA!AF6) ->  | AD122: =IF(EA!AG6="","",EA!AG6) ->  | AE122: =IF(EA!AH6="","",EA!AH6) ->  | AF122: =IF(EA!AI6="","",EA!AI6) ->  | AG122: =IF(EA!AJ6="","",EA!AJ6) ->  | AH122: =IF(EA!AK6="","",EA!AK6) ->  | AI122: =IF(EA!AL6="","",EA!AL6) ->  | AJ122: =IF(EA!AM6="","",EA!AM6) ->  | AK122: =IF(EA!AN6="","",EA!AN6) ->  | AL122: =IF(EA!AO6="","",EA!AO6) ->  | AM122: =IF(EA!AP6="","",EA!AP6) -> 
C123: Comp. Esp. 2 | D123: Criterio Evaluación 2.1 | E123: =IF(EA!H7="","",EA!H7) ->  | F123: =IF(EA!I7="","",EA!I7) ->  | G123: =IF(EA!J7="","",EA!J7) ->  | H123: =IF(EA!K7="","",EA!K7) ->  | I123: =IF(EA!L7="","",EA!L7) ->  | J123: =IF(EA!M7="","",EA!M7) ->  | K123: =IF(EA!N7="","",EA!N7) ->  | L123: =IF(EA!O7="","",EA!O7) ->  | M123: =IF(EA!P7="","",EA!P7) ->  | N123: =IF(EA!Q7="","",EA!Q7) ->  | O123: =IF(EA!R7="","",EA!R7) ->  | P123: =IF(EA!S7="","",EA!S7) ->  | Q123: =IF(EA!T7="","",EA!T7) ->  | R123: =IF(EA!U7="","",EA!U7) ->  | S123: =IF(EA!V7="","",EA!V7) ->  | T123: =IF(EA!W7="","",EA!W7) ->  | U123: =IF(EA!X7="","",EA!X7) ->  | V123: =IF(EA!Y7="","",EA!Y7) ->  | W123: =IF(EA!Z7="","",EA!Z7) ->  | X123: =IF(EA!AA7="","",EA!AA7) ->  | Y123: =IF(EA!AB7="","",EA!AB7) ->  | Z123: =IF(EA!AC7="","",EA!AC7) ->  | AA123: =IF(EA!AD7="","",EA!AD7) ->  | AB123: =IF(EA!AE7="","",EA!AE7) ->  | AC123: =IF(EA!AF7="","",EA!AF7) ->  | AD123: =IF(EA!AG7="","",EA!AG7) ->  | AE123: =IF(EA!AH7="","",EA!AH7) ->  | AF123: =IF(EA!AI7="","",EA!AI7) ->  | AG123: =IF(EA!AJ7="","",EA!AJ7) ->  | AH123: =IF(EA!AK7="","",EA!AK7) ->  | AI123: =IF(EA!AL7="","",EA!AL7) ->  | AJ123: =IF(EA!AM7="","",EA!AM7) ->  | AK123: =IF(EA!AN7="","",EA!AN7) ->  | AL123: =IF(EA!AO7="","",EA!AO7) ->  | AM123: =IF(EA!AP7="","",EA!AP7) -> 
D124: Criterio Evaluación 2.2 | E124: =IF(EA!H8="","",EA!H8) ->  | F124: =IF(EA!I8="","",EA!I8) ->  | G124: =IF(EA!J8="","",EA!J8) ->  | H124: =IF(EA!K8="","",EA!K8) ->  | I124: =IF(EA!L8="","",EA!L8) ->  | J124: =IF(EA!M8="","",EA!M8) ->  | K124: =IF(EA!N8="","",EA!N8) ->  | L124: =IF(EA!O8="","",EA!O8) ->  | M124: =IF(EA!P8="","",EA!P8) ->  | N124: =IF(EA!Q8="","",EA!Q8) ->  | O124: =IF(EA!R8="","",EA!R8) ->  | P124: =IF(EA!S8="","",EA!S8) ->  | Q124: =IF(EA!T8="","",EA!T8) ->  | R124: =IF(EA!U8="","",EA!U8) ->  | S124: =IF(EA!V8="","",EA!V8) ->  | T124: =IF(EA!W8="","",EA!W8) ->  | U124: =IF(EA!X8="","",EA!X8) ->  | V124: =IF(EA!Y8="","",EA!Y8) ->  | W124: =IF(EA!Z8="","",EA!Z8) ->  | X124: =IF(EA!AA8="","",EA!AA8) ->  | Y124: =IF(EA!AB8="","",EA!AB8) ->  | Z124: =IF(EA!AC8="","",EA!AC8) ->  | AA124: =IF(EA!AD8="","",EA!AD8) ->  | AB124: =IF(EA!AE8="","",EA!AE8) ->  | AC124: =IF(EA!AF8="","",EA!AF8) ->  | AD124: =IF(EA!AG8="","",EA!AG8) ->  | AE124: =IF(EA!AH8="","",EA!AH8) ->  | AF124: =IF(EA!AI8="","",EA!AI8) ->  | AG124: =IF(EA!AJ8="","",EA!AJ8) ->  | AH124: =IF(EA!AK8="","",EA!AK8) ->  | AI124: =IF(EA!AL8="","",EA!AL8) ->  | AJ124: =IF(EA!AM8="","",EA!AM8) ->  | AK124: =IF(EA!AN8="","",EA!AN8) ->  | AL124: =IF(EA!AO8="","",EA!AO8) ->  | AM124: =IF(EA!AP8="","",EA!AP8) -> 
D125: Criterio Evaluación 2.3 | E125: =IF(EA!H9="","",EA!H9) ->  | F125: =IF(EA!I9="","",EA!I9) ->  | G125: =IF(EA!J9="","",EA!J9) ->  | H125: =IF(EA!K9="","",EA!K9) ->  | I125: =IF(EA!L9="","",EA!L9) ->  | J125: =IF(EA!M9="","",EA!M9) ->  | K125: =IF(EA!N9="","",EA!N9) ->  | L125: =IF(EA!O9="","",EA!O9) ->  | M125: =IF(EA!P9="","",EA!P9) ->  | N125: =IF(EA!Q9="","",EA!Q9) ->  | O125: =IF(EA!R9="","",EA!R9) ->  | P125: =IF(EA!S9="","",EA!S9) ->  | Q125: =IF(EA!T9="","",EA!T9) ->  | R125: =IF(EA!U9="","",EA!U9) ->  | S125: =IF(EA!V9="","",EA!V9) ->  | T125: =IF(EA!W9="","",EA!W9) ->  | U125: =IF(EA!X9="","",EA!X9) ->  | V125: =IF(EA!Y9="","",EA!Y9) ->  | W125: =IF(EA!Z9="","",EA!Z9) ->  | X125: =IF(EA!AA9="","",EA!AA9) ->  | Y125: =IF(EA!AB9="","",EA!AB9) ->  | Z125: =IF(EA!AC9="","",EA!AC9) ->  | AA125: =IF(EA!AD9="","",EA!AD9) ->  | AB125: =IF(EA!AE9="","",EA!AE9) ->  | AC125: =IF(EA!AF9="","",EA!AF9) ->  | AD125: =IF(EA!AG9="","",EA!AG9) ->  | AE125: =IF(EA!AH9="","",EA!AH9) ->  | AF125: =IF(EA!AI9="","",EA!AI9) ->  | AG125: =IF(EA!AJ9="","",EA!AJ9) ->  | AH125: =IF(EA!AK9="","",EA!AK9) ->  | AI125: =IF(EA!AL9="","",EA!AL9) ->  | AJ125: =IF(EA!AM9="","",EA!AM9) ->  | AK125: =IF(EA!AN9="","",EA!AN9) ->  | AL125: =IF(EA!AO9="","",EA!AO9) ->  | AM125: =IF(EA!AP9="","",EA!AP9) -> 
C126: Comp. Esp. 3 | D126: Criterio Evaluación 3.1 | E126: =IF(EA!H10="","",EA!H10) ->  | F126: =IF(EA!I10="","",EA!I10) ->  | G126: =IF(EA!J10="","",EA!J10) ->  | H126: =IF(EA!K10="","",EA!K10) ->  | I126: =IF(EA!L10="","",EA!L10) ->  | J126: =IF(EA!M10="","",EA!M10) ->  | K126: =IF(EA!N10="","",EA!N10) ->  | L126: =IF(EA!O10="","",EA!O10) ->  | M126: =IF(EA!P10="","",EA!P10) ->  | N126: =IF(EA!Q10="","",EA!Q10) ->  | O126: =IF(EA!R10="","",EA!R10) ->  | P126: =IF(EA!S10="","",EA!S10) ->  | Q126: =IF(EA!T10="","",EA!T10) ->  | R126: =IF(EA!U10="","",EA!U10) ->  | S126: =IF(EA!V10="","",EA!V10) ->  | T126: =IF(EA!W10="","",EA!W10) ->  | U126: =IF(EA!X10="","",EA!X10) ->  | V126: =IF(EA!Y10="","",EA!Y10) ->  | W126: =IF(EA!Z10="","",EA!Z10) ->  | X126: =IF(EA!AA10="","",EA!AA10) ->  | Y126: =IF(EA!AB10="","",EA!AB10) ->  | Z126: =IF(EA!AC10="","",EA!AC10) ->  | AA126: =IF(EA!AD10="","",EA!AD10) ->  | AB126: =IF(EA!AE10="","",EA!AE10) ->  | AC126: =IF(EA!AF10="","",EA!AF10) ->  | AD126: =IF(EA!AG10="","",EA!AG10) ->  | AE126: =IF(EA!AH10="","",EA!AH10) ->  | AF126: =IF(EA!AI10="","",EA!AI10) ->  | AG126: =IF(EA!AJ10="","",EA!AJ10) ->  | AH126: =IF(EA!AK10="","",EA!AK10) ->  | AI126: =IF(EA!AL10="","",EA!AL10) ->  | AJ126: =IF(EA!AM10="","",EA!AM10) ->  | AK126: =IF(EA!AN10="","",EA!AN10) ->  | AL126: =IF(EA!AO10="","",EA!AO10) ->  | AM126: =IF(EA!AP10="","",EA!AP10) -> 
D127: Criterio Evaluación 3.2 | E127: =IF(EA!H11="","",EA!H11) ->  | F127: =IF(EA!I11="","",EA!I11) ->  | G127: =IF(EA!J11="","",EA!J11) ->  | H127: =IF(EA!K11="","",EA!K11) ->  | I127: =IF(EA!L11="","",EA!L11) ->  | J127: =IF(EA!M11="","",EA!M11) ->  | K127: =IF(EA!N11="","",EA!N11) ->  | L127: =IF(EA!O11="","",EA!O11) ->  | M127: =IF(EA!P11="","",EA!P11) ->  | N127: =IF(EA!Q11="","",EA!Q11) ->  | O127: =IF(EA!R11="","",EA!R11) ->  | P127: =IF(EA!S11="","",EA!S11) ->  | Q127: =IF(EA!T11="","",EA!T11) ->  | R127: =IF(EA!U11="","",EA!U11) ->  | S127: =IF(EA!V11="","",EA!V11) ->  | T127: =IF(EA!W11="","",EA!W11) ->  | U127: =IF(EA!X11="","",EA!X11) ->  | V127: =IF(EA!Y11="","",EA!Y11) ->  | W127: =IF(EA!Z11="","",EA!Z11) ->  | X127: =IF(EA!AA11="","",EA!AA11) ->  | Y127: =IF(EA!AB11="","",EA!AB11) ->  | Z127: =IF(EA!AC11="","",EA!AC11) ->  | AA127: =IF(EA!AD11="","",EA!AD11) ->  | AB127: =IF(EA!AE11="","",EA!AE11) ->  | AC127: =IF(EA!AF11="","",EA!AF11) ->  | AD127: =IF(EA!AG11="","",EA!AG11) ->  | AE127: =IF(EA!AH11="","",EA!AH11) ->  | AF127: =IF(EA!AI11="","",EA!AI11) ->  | AG127: =IF(EA!AJ11="","",EA!AJ11) ->  | AH127: =IF(EA!AK11="","",EA!AK11) ->  | AI127: =IF(EA!AL11="","",EA!AL11) ->  | AJ127: =IF(EA!AM11="","",EA!AM11) ->  | AK127: =IF(EA!AN11="","",EA!AN11) ->  | AL127: =IF(EA!AO11="","",EA!AO11) ->  | AM127: =IF(EA!AP11="","",EA!AP11) -> 
C128: Comp. Esp. 4 | D128: Criterio Evaluación 4.1 | E128: =IF(EA!H12="","",EA!H12) ->  | F128: =IF(EA!I12="","",EA!I12) ->  | G128: =IF(EA!J12="","",EA!J12) ->  | H128: =IF(EA!K12="","",EA!K12) ->  | I128: =IF(EA!L12="","",EA!L12) ->  | J128: =IF(EA!M12="","",EA!M12) ->  | K128: =IF(EA!N12="","",EA!N12) ->  | L128: =IF(EA!O12="","",EA!O12) ->  | M128: =IF(EA!P12="","",EA!P12) ->  | N128: =IF(EA!Q12="","",EA!Q12) ->  | O128: =IF(EA!R12="","",EA!R12) ->  | P128: =IF(EA!S12="","",EA!S12) ->  | Q128: =IF(EA!T12="","",EA!T12) ->  | R128: =IF(EA!U12="","",EA!U12) ->  | S128: =IF(EA!V12="","",EA!V12) ->  | T128: =IF(EA!W12="","",EA!W12) ->  | U128: =IF(EA!X12="","",EA!X12) ->  | V128: =IF(EA!Y12="","",EA!Y12) ->  | W128: =IF(EA!Z12="","",EA!Z12) ->  | X128: =IF(EA!AA12="","",EA!AA12) ->  | Y128: =IF(EA!AB12="","",EA!AB12) ->  | Z128: =IF(EA!AC12="","",EA!AC12) ->  | AA128: =IF(EA!AD12="","",EA!AD12) ->  | AB128: =IF(EA!AE12="","",EA!AE12) ->  | AC128: =IF(EA!AF12="","",EA!AF12) ->  | AD128: =IF(EA!AG12="","",EA!AG12) ->  | AE128: =IF(EA!AH12="","",EA!AH12) ->  | AF128: =IF(EA!AI12="","",EA!AI12) ->  | AG128: =IF(EA!AJ12="","",EA!AJ12) ->  | AH128: =IF(EA!AK12="","",EA!AK12) ->  | AI128: =IF(EA!AL12="","",EA!AL12) ->  | AJ128: =IF(EA!AM12="","",EA!AM12) ->  | AK128: =IF(EA!AN12="","",EA!AN12) ->  | AL128: =IF(EA!AO12="","",EA!AO12) ->  | AM128: =IF(EA!AP12="","",EA!AP12) -> 
D129: Criterio Evaluación 4.2 | E129: =IF(EA!H13="","",EA!H13) ->  | F129: =IF(EA!I13="","",EA!I13) ->  | G129: =IF(EA!J13="","",EA!J13) ->  | H129: =IF(EA!K13="","",EA!K13) ->  | I129: =IF(EA!L13="","",EA!L13) ->  | J129: =IF(EA!M13="","",EA!M13) ->  | K129: =IF(EA!N13="","",EA!N13) ->  | L129: =IF(EA!O13="","",EA!O13) ->  | M129: =IF(EA!P13="","",EA!P13) ->  | N129: =IF(EA!Q13="","",EA!Q13) ->  | O129: =IF(EA!R13="","",EA!R13) ->  | P129: =IF(EA!S13="","",EA!S13) ->  | Q129: =IF(EA!T13="","",EA!T13) ->  | R129: =IF(EA!U13="","",EA!U13) ->  | S129: =IF(EA!V13="","",EA!V13) ->  | T129: =IF(EA!W13="","",EA!W13) ->  | U129: =IF(EA!X13="","",EA!X13) ->  | V129: =IF(EA!Y13="","",EA!Y13) ->  | W129: =IF(EA!Z13="","",EA!Z13) ->  | X129: =IF(EA!AA13="","",EA!AA13) ->  | Y129: =IF(EA!AB13="","",EA!AB13) ->  | Z129: =IF(EA!AC13="","",EA!AC13) ->  | AA129: =IF(EA!AD13="","",EA!AD13) ->  | AB129: =IF(EA!AE13="","",EA!AE13) ->  | AC129: =IF(EA!AF13="","",EA!AF13) ->  | AD129: =IF(EA!AG13="","",EA!AG13) ->  | AE129: =IF(EA!AH13="","",EA!AH13) ->  | AF129: =IF(EA!AI13="","",EA!AI13) ->  | AG129: =IF(EA!AJ13="","",EA!AJ13) ->  | AH129: =IF(EA!AK13="","",EA!AK13) ->  | AI129: =IF(EA!AL13="","",EA!AL13) ->  | AJ129: =IF(EA!AM13="","",EA!AM13) ->  | AK129: =IF(EA!AN13="","",EA!AN13) ->  | AL129: =IF(EA!AO13="","",EA!AO13) ->  | AM129: =IF(EA!AP13="","",EA!AP13) -> 
D130: Criterio Evaluación 4.3 | E130: =IF(EA!H14="","",EA!H14) ->  | F130: =IF(EA!I14="","",EA!I14) ->  | G130: =IF(EA!J14="","",EA!J14) ->  | H130: =IF(EA!K14="","",EA!K14) ->  | I130: =IF(EA!L14="","",EA!L14) ->  | J130: =IF(EA!M14="","",EA!M14) ->  | K130: =IF(EA!N14="","",EA!N14) ->  | L130: =IF(EA!O14="","",EA!O14) ->  | M130: =IF(EA!P14="","",EA!P14) ->  | N130: =IF(EA!Q14="","",EA!Q14) ->  | O130: =IF(EA!R14="","",EA!R14) ->  | P130: =IF(EA!S14="","",EA!S14) ->  | Q130: =IF(EA!T14="","",EA!T14) ->  | R130: =IF(EA!U14="","",EA!U14) ->  | S130: =IF(EA!V14="","",EA!V14) ->  | T130: =IF(EA!W14="","",EA!W14) ->  | U130: =IF(EA!X14="","",EA!X14) ->  | V130: =IF(EA!Y14="","",EA!Y14) ->  | W130: =IF(EA!Z14="","",EA!Z14) ->  | X130: =IF(EA!AA14="","",EA!AA14) ->  | Y130: =IF(EA!AB14="","",EA!AB14) ->  | Z130: =IF(EA!AC14="","",EA!AC14) ->  | AA130: =IF(EA!AD14="","",EA!AD14) ->  | AB130: =IF(EA!AE14="","",EA!AE14) ->  | AC130: =IF(EA!AF14="","",EA!AF14) ->  | AD130: =IF(EA!AG14="","",EA!AG14) ->  | AE130: =IF(EA!AH14="","",EA!AH14) ->  | AF130: =IF(EA!AI14="","",EA!AI14) ->  | AG130: =IF(EA!AJ14="","",EA!AJ14) ->  | AH130: =IF(EA!AK14="","",EA!AK14) ->  | AI130: =IF(EA!AL14="","",EA!AL14) ->  | AJ130: =IF(EA!AM14="","",EA!AM14) ->  | AK130: =IF(EA!AN14="","",EA!AN14) ->  | AL130: =IF(EA!AO14="","",EA!AO14) ->  | AM130: =IF(EA!AP14="","",EA!AP14) -> 
D131: Criterio Evaluación 4.4 | E131: =IF(EA!H15="","",EA!H15) ->  | F131: =IF(EA!I15="","",EA!I15) ->  | G131: =IF(EA!J15="","",EA!J15) ->  | H131: =IF(EA!K15="","",EA!K15) ->  | I131: =IF(EA!L15="","",EA!L15) ->  | J131: =IF(EA!M15="","",EA!M15) ->  | K131: =IF(EA!N15="","",EA!N15) ->  | L131: =IF(EA!O15="","",EA!O15) ->  | M131: =IF(EA!P15="","",EA!P15) ->  | N131: =IF(EA!Q15="","",EA!Q15) ->  | O131: =IF(EA!R15="","",EA!R15) ->  | P131: =IF(EA!S15="","",EA!S15) ->  | Q131: =IF(EA!T15="","",EA!T15) ->  | R131: =IF(EA!U15="","",EA!U15) ->  | S131: =IF(EA!V15="","",EA!V15) ->  | T131: =IF(EA!W15="","",EA!W15) ->  | U131: =IF(EA!X15="","",EA!X15) ->  | V131: =IF(EA!Y15="","",EA!Y15) ->  | W131: =IF(EA!Z15="","",EA!Z15) ->  | X131: =IF(EA!AA15="","",EA!AA15) ->  | Y131: =IF(EA!AB15="","",EA!AB15) ->  | Z131: =IF(EA!AC15="","",EA!AC15) ->  | AA131: =IF(EA!AD15="","",EA!AD15) ->  | AB131: =IF(EA!AE15="","",EA!AE15) ->  | AC131: =IF(EA!AF15="","",EA!AF15) ->  | AD131: =IF(EA!AG15="","",EA!AG15) ->  | AE131: =IF(EA!AH15="","",EA!AH15) ->  | AF131: =IF(EA!AI15="","",EA!AI15) ->  | AG131: =IF(EA!AJ15="","",EA!AJ15) ->  | AH131: =IF(EA!AK15="","",EA!AK15) ->  | AI131: =IF(EA!AL15="","",EA!AL15) ->  | AJ131: =IF(EA!AM15="","",EA!AM15) ->  | AK131: =IF(EA!AN15="","",EA!AN15) ->  | AL131: =IF(EA!AO15="","",EA!AO15) ->  | AM131: =IF(EA!AP15="","",EA!AP15) -> 
B132: Formación y orientación personal y profesional | C132: Comp. Esp. 1 | D132: Criterio Evaluación 1.1 | E132: =IF(FOPP!H4="","",FOPP!H4) ->  | F132: =IF(FOPP!I4="","",FOPP!I4) ->  | G132: =IF(FOPP!J4="","",FOPP!J4) ->  | H132: =IF(FOPP!K4="","",FOPP!K4) ->  | I132: =IF(FOPP!L4="","",FOPP!L4) ->  | J132: =IF(FOPP!M4="","",FOPP!M4) ->  | K132: =IF(FOPP!N4="","",FOPP!N4) ->  | L132: =IF(FOPP!O4="","",FOPP!O4) ->  | M132: =IF(FOPP!P4="","",FOPP!P4) ->  | N132: =IF(FOPP!Q4="","",FOPP!Q4) ->  | O132: =IF(FOPP!R4="","",FOPP!R4) ->  | P132: =IF(FOPP!S4="","",FOPP!S4) ->  | Q132: =IF(FOPP!T4="","",FOPP!T4) ->  | R132: =IF(FOPP!U4="","",FOPP!U4) ->  | S132: =IF(FOPP!V4="","",FOPP!V4) ->  | T132: =IF(FOPP!W4="","",FOPP!W4) ->  | U132: =IF(FOPP!X4="","",FOPP!X4) ->  | V132: =IF(FOPP!Y4="","",FOPP!Y4) ->  | W132: =IF(FOPP!Z4="","",FOPP!Z4) ->  | X132: =IF(FOPP!AA4="","",FOPP!AA4) ->  | Y132: =IF(FOPP!AB4="","",FOPP!AB4) ->  | Z132: =IF(FOPP!AC4="","",FOPP!AC4) ->  | AA132: =IF(FOPP!AD4="","",FOPP!AD4) ->  | AB132: =IF(FOPP!AE4="","",FOPP!AE4) ->  | AC132: =IF(FOPP!AF4="","",FOPP!AF4) ->  | AD132: =IF(FOPP!AG4="","",FOPP!AG4) ->  | AE132: =IF(FOPP!AH4="","",FOPP!AH4) ->  | AF132: =IF(FOPP!AI4="","",FOPP!AI4) ->  | AG132: =IF(FOPP!AJ4="","",FOPP!AJ4) ->  | AH132: =IF(FOPP!AK4="","",FOPP!AK4) ->  | AI132: =IF(FOPP!AL4="","",FOPP!AL4) ->  | AJ132: =IF(FOPP!AM4="","",FOPP!AM4) ->  | AK132: =IF(FOPP!AN4="","",FOPP!AN4) ->  | AL132: =IF(FOPP!AO4="","",FOPP!AO4) ->  | AM132: =IF(FOPP!AP4="","",FOPP!AP4) -> 
D133: Criterio Evaluación 1.2 | E133: =IF(FOPP!H5="","",FOPP!H5) ->  | F133: =IF(FOPP!I5="","",FOPP!I5) ->  | G133: =IF(FOPP!J5="","",FOPP!J5) ->  | H133: =IF(FOPP!K5="","",FOPP!K5) ->  | I133: =IF(FOPP!L5="","",FOPP!L5) ->  | J133: =IF(FOPP!M5="","",FOPP!M5) ->  | K133: =IF(FOPP!N5="","",FOPP!N5) ->  | L133: =IF(FOPP!O5="","",FOPP!O5) ->  | M133: =IF(FOPP!P5="","",FOPP!P5) ->  | N133: =IF(FOPP!Q5="","",FOPP!Q5) ->  | O133: =IF(FOPP!R5="","",FOPP!R5) ->  | P133: =IF(FOPP!S5="","",FOPP!S5) ->  | Q133: =IF(FOPP!T5="","",FOPP!T5) ->  | R133: =IF(FOPP!U5="","",FOPP!U5) ->  | S133: =IF(FOPP!V5="","",FOPP!V5) ->  | T133: =IF(FOPP!W5="","",FOPP!W5) ->  | U133: =IF(FOPP!X5="","",FOPP!X5) ->  | V133: =IF(FOPP!Y5="","",FOPP!Y5) ->  | W133: =IF(FOPP!Z5="","",FOPP!Z5) ->  | X133: =IF(FOPP!AA5="","",FOPP!AA5) ->  | Y133: =IF(FOPP!AB5="","",FOPP!AB5) ->  | Z133: =IF(FOPP!AC5="","",FOPP!AC5) ->  | AA133: =IF(FOPP!AD5="","",FOPP!AD5) ->  | AB133: =IF(FOPP!AE5="","",FOPP!AE5) ->  | AC133: =IF(FOPP!AF5="","",FOPP!AF5) ->  | AD133: =IF(FOPP!AG5="","",FOPP!AG5) ->  | AE133: =IF(FOPP!AH5="","",FOPP!AH5) ->  | AF133: =IF(FOPP!AI5="","",FOPP!AI5) ->  | AG133: =IF(FOPP!AJ5="","",FOPP!AJ5) ->  | AH133: =IF(FOPP!AK5="","",FOPP!AK5) ->  | AI133: =IF(FOPP!AL5="","",FOPP!AL5) ->  | AJ133: =IF(FOPP!AM5="","",FOPP!AM5) ->  | AK133: =IF(FOPP!AN5="","",FOPP!AN5) ->  | AL133: =IF(FOPP!AO5="","",FOPP!AO5) ->  | AM133: =IF(FOPP!AP5="","",FOPP!AP5) -> 
D134: Criterio Evaluación 1.3 | E134: =IF(FOPP!H6="","",FOPP!H6) ->  | F134: =IF(FOPP!I6="","",FOPP!I6) ->  | G134: =IF(FOPP!J6="","",FOPP!J6) ->  | H134: =IF(FOPP!K6="","",FOPP!K6) ->  | I134: =IF(FOPP!L6="","",FOPP!L6) ->  | J134: =IF(FOPP!M6="","",FOPP!M6) ->  | K134: =IF(FOPP!N6="","",FOPP!N6) ->  | L134: =IF(FOPP!O6="","",FOPP!O6) ->  | M134: =IF(FOPP!P6="","",FOPP!P6) ->  | N134: =IF(FOPP!Q6="","",FOPP!Q6) ->  | O134: =IF(FOPP!R6="","",FOPP!R6) ->  | P134: =IF(FOPP!S6="","",FOPP!S6) ->  | Q134: =IF(FOPP!T6="","",FOPP!T6) ->  | R134: =IF(FOPP!U6="","",FOPP!U6) ->  | S134: =IF(FOPP!V6="","",FOPP!V6) ->  | T134: =IF(FOPP!W6="","",FOPP!W6) ->  | U134: =IF(FOPP!X6="","",FOPP!X6) ->  | V134: =IF(FOPP!Y6="","",FOPP!Y6) ->  | W134: =IF(FOPP!Z6="","",FOPP!Z6) ->  | X134: =IF(FOPP!AA6="","",FOPP!AA6) ->  | Y134: =IF(FOPP!AB6="","",FOPP!AB6) ->  | Z134: =IF(FOPP!AC6="","",FOPP!AC6) ->  | AA134: =IF(FOPP!AD6="","",FOPP!AD6) ->  | AB134: =IF(FOPP!AE6="","",FOPP!AE6) ->  | AC134: =IF(FOPP!AF6="","",FOPP!AF6) ->  | AD134: =IF(FOPP!AG6="","",FOPP!AG6) ->  | AE134: =IF(FOPP!AH6="","",FOPP!AH6) ->  | AF134: =IF(FOPP!AI6="","",FOPP!AI6) ->  | AG134: =IF(FOPP!AJ6="","",FOPP!AJ6) ->  | AH134: =IF(FOPP!AK6="","",FOPP!AK6) ->  | AI134: =IF(FOPP!AL6="","",FOPP!AL6) ->  | AJ134: =IF(FOPP!AM6="","",FOPP!AM6) ->  | AK134: =IF(FOPP!AN6="","",FOPP!AN6) ->  | AL134: =IF(FOPP!AO6="","",FOPP!AO6) ->  | AM134: =IF(FOPP!AP6="","",FOPP!AP6) -> 
D135: Criterio Evaluación 1.4 | E135: =IF(FOPP!H7="","",FOPP!H7) ->  | F135: =IF(FOPP!I7="","",FOPP!I7) ->  | G135: =IF(FOPP!J7="","",FOPP!J7) ->  | H135: =IF(FOPP!K7="","",FOPP!K7) ->  | I135: =IF(FOPP!L7="","",FOPP!L7) ->  | J135: =IF(FOPP!M7="","",FOPP!M7) ->  | K135: =IF(FOPP!N7="","",FOPP!N7) ->  | L135: =IF(FOPP!O7="","",FOPP!O7) ->  | M135: =IF(FOPP!P7="","",FOPP!P7) ->  | N135: =IF(FOPP!Q7="","",FOPP!Q7) ->  | O135: =IF(FOPP!R7="","",FOPP!R7) ->  | P135: =IF(FOPP!S7="","",FOPP!S7) ->  | Q135: =IF(FOPP!T7="","",FOPP!T7) ->  | R135: =IF(FOPP!U7="","",FOPP!U7) ->  | S135: =IF(FOPP!V7="","",FOPP!V7) ->  | T135: =IF(FOPP!W7="","",FOPP!W7) ->  | U135: =IF(FOPP!X7="","",FOPP!X7) ->  | V135: =IF(FOPP!Y7="","",FOPP!Y7) ->  | W135: =IF(FOPP!Z7="","",FOPP!Z7) ->  | X135: =IF(FOPP!AA7="","",FOPP!AA7) ->  | Y135: =IF(FOPP!AB7="","",FOPP!AB7) ->  | Z135: =IF(FOPP!AC7="","",FOPP!AC7) ->  | AA135: =IF(FOPP!AD7="","",FOPP!AD7) ->  | AB135: =IF(FOPP!AE7="","",FOPP!AE7) ->  | AC135: =IF(FOPP!AF7="","",FOPP!AF7) ->  | AD135: =IF(FOPP!AG7="","",FOPP!AG7) ->  | AE135: =IF(FOPP!AH7="","",FOPP!AH7) ->  | AF135: =IF(FOPP!AI7="","",FOPP!AI7) ->  | AG135: =IF(FOPP!AJ7="","",FOPP!AJ7) ->  | AH135: =IF(FOPP!AK7="","",FOPP!AK7) ->  | AI135: =IF(FOPP!AL7="","",FOPP!AL7) ->  | AJ135: =IF(FOPP!AM7="","",FOPP!AM7) ->  | AK135: =IF(FOPP!AN7="","",FOPP!AN7) ->  | AL135: =IF(FOPP!AO7="","",FOPP!AO7) ->  | AM135: =IF(FOPP!AP7="","",FOPP!AP7) -> 
D136: Criterio Evaluación 1.5 | E136: =IF(FOPP!H8="","",FOPP!H8) ->  | F136: =IF(FOPP!I8="","",FOPP!I8) ->  | G136: =IF(FOPP!J8="","",FOPP!J8) ->  | H136: =IF(FOPP!K8="","",FOPP!K8) ->  | I136: =IF(FOPP!L8="","",FOPP!L8) ->  | J136: =IF(FOPP!M8="","",FOPP!M8) ->  | K136: =IF(FOPP!N8="","",FOPP!N8) ->  | L136: =IF(FOPP!O8="","",FOPP!O8) ->  | M136: =IF(FOPP!P8="","",FOPP!P8) ->  | N136: =IF(FOPP!Q8="","",FOPP!Q8) ->  | O136: =IF(FOPP!R8="","",FOPP!R8) ->  | P136: =IF(FOPP!S8="","",FOPP!S8) ->  | Q136: =IF(FOPP!T8="","",FOPP!T8) ->  | R136: =IF(FOPP!U8="","",FOPP!U8) ->  | S136: =IF(FOPP!V8="","",FOPP!V8) ->  | T136: =IF(FOPP!W8="","",FOPP!W8) ->  | U136: =IF(FOPP!X8="","",FOPP!X8) ->  | V136: =IF(FOPP!Y8="","",FOPP!Y8) ->  | W136: =IF(FOPP!Z8="","",FOPP!Z8) ->  | X136: =IF(FOPP!AA8="","",FOPP!AA8) ->  | Y136: =IF(FOPP!AB8="","",FOPP!AB8) ->  | Z136: =IF(FOPP!AC8="","",FOPP!AC8) ->  | AA136: =IF(FOPP!AD8="","",FOPP!AD8) ->  | AB136: =IF(FOPP!AE8="","",FOPP!AE8) ->  | AC136: =IF(FOPP!AF8="","",FOPP!AF8) ->  | AD136: =IF(FOPP!AG8="","",FOPP!AG8) ->  | AE136: =IF(FOPP!AH8="","",FOPP!AH8) ->  | AF136: =IF(FOPP!AI8="","",FOPP!AI8) ->  | AG136: =IF(FOPP!AJ8="","",FOPP!AJ8) ->  | AH136: =IF(FOPP!AK8="","",FOPP!AK8) ->  | AI136: =IF(FOPP!AL8="","",FOPP!AL8) ->  | AJ136: =IF(FOPP!AM8="","",FOPP!AM8) ->  | AK136: =IF(FOPP!AN8="","",FOPP!AN8) ->  | AL136: =IF(FOPP!AO8="","",FOPP!AO8) ->  | AM136: =IF(FOPP!AP8="","",FOPP!AP8) -> 
D137: Criterio Evaluación 1.6 | E137: =IF(FOPP!H9="","",FOPP!H9) ->  | F137: =IF(FOPP!I9="","",FOPP!I9) ->  | G137: =IF(FOPP!J9="","",FOPP!J9) ->  | H137: =IF(FOPP!K9="","",FOPP!K9) ->  | I137: =IF(FOPP!L9="","",FOPP!L9) ->  | J137: =IF(FOPP!M9="","",FOPP!M9) ->  | K137: =IF(FOPP!N9="","",FOPP!N9) ->  | L137: =IF(FOPP!O9="","",FOPP!O9) ->  | M137: =IF(FOPP!P9="","",FOPP!P9) ->  | N137: =IF(FOPP!Q9="","",FOPP!Q9) ->  | O137: =IF(FOPP!R9="","",FOPP!R9) ->  | P137: =IF(FOPP!S9="","",FOPP!S9) ->  | Q137: =IF(FOPP!T9="","",FOPP!T9) ->  | R137: =IF(FOPP!U9="","",FOPP!U9) ->  | S137: =IF(FOPP!V9="","",FOPP!V9) ->  | T137: =IF(FOPP!W9="","",FOPP!W9) ->  | U137: =IF(FOPP!X9="","",FOPP!X9) ->  | V137: =IF(FOPP!Y9="","",FOPP!Y9) ->  | W137: =IF(FOPP!Z9="","",FOPP!Z9) ->  | X137: =IF(FOPP!AA9="","",FOPP!AA9) ->  | Y137: =IF(FOPP!AB9="","",FOPP!AB9) ->  | Z137: =IF(FOPP!AC9="","",FOPP!AC9) ->  | AA137: =IF(FOPP!AD9="","",FOPP!AD9) ->  | AB137: =IF(FOPP!AE9="","",FOPP!AE9) ->  | AC137: =IF(FOPP!AF9="","",FOPP!AF9) ->  | AD137: =IF(FOPP!AG9="","",FOPP!AG9) ->  | AE137: =IF(FOPP!AH9="","",FOPP!AH9) ->  | AF137: =IF(FOPP!AI9="","",FOPP!AI9) ->  | AG137: =IF(FOPP!AJ9="","",FOPP!AJ9) ->  | AH137: =IF(FOPP!AK9="","",FOPP!AK9) ->  | AI137: =IF(FOPP!AL9="","",FOPP!AL9) ->  | AJ137: =IF(FOPP!AM9="","",FOPP!AM9) ->  | AK137: =IF(FOPP!AN9="","",FOPP!AN9) ->  | AL137: =IF(FOPP!AO9="","",FOPP!AO9) ->  | AM137: =IF(FOPP!AP9="","",FOPP!AP9) -> 
D138: Criterio Evaluación 1.7 | E138: =IF(FOPP!H10="","",FOPP!H10) ->  | F138: =IF(FOPP!I10="","",FOPP!I10) ->  | G138: =IF(FOPP!J10="","",FOPP!J10) ->  | H138: =IF(FOPP!K10="","",FOPP!K10) ->  | I138: =IF(FOPP!L10="","",FOPP!L10) ->  | J138: =IF(FOPP!M10="","",FOPP!M10) ->  | K138: =IF(FOPP!N10="","",FOPP!N10) ->  | L138: =IF(FOPP!O10="","",FOPP!O10) ->  | M138: =IF(FOPP!P10="","",FOPP!P10) ->  | N138: =IF(FOPP!Q10="","",FOPP!Q10) ->  | O138: =IF(FOPP!R10="","",FOPP!R10) ->  | P138: =IF(FOPP!S10="","",FOPP!S10) ->  | Q138: =IF(FOPP!T10="","",FOPP!T10) ->  | R138: =IF(FOPP!U10="","",FOPP!U10) ->  | S138: =IF(FOPP!V10="","",FOPP!V10) ->  | T138: =IF(FOPP!W10="","",FOPP!W10) ->  | U138: =IF(FOPP!X10="","",FOPP!X10) ->  | V138: =IF(FOPP!Y10="","",FOPP!Y10) ->  | W138: =IF(FOPP!Z10="","",FOPP!Z10) ->  | X138: =IF(FOPP!AA10="","",FOPP!AA10) ->  | Y138: =IF(FOPP!AB10="","",FOPP!AB10) ->  | Z138: =IF(FOPP!AC10="","",FOPP!AC10) ->  | AA138: =IF(FOPP!AD10="","",FOPP!AD10) ->  | AB138: =IF(FOPP!AE10="","",FOPP!AE10) ->  | AC138: =IF(FOPP!AF10="","",FOPP!AF10) ->  | AD138: =IF(FOPP!AG10="","",FOPP!AG10) ->  | AE138: =IF(FOPP!AH10="","",FOPP!AH10) ->  | AF138: =IF(FOPP!AI10="","",FOPP!AI10) ->  | AG138: =IF(FOPP!AJ10="","",FOPP!AJ10) ->  | AH138: =IF(FOPP!AK10="","",FOPP!AK10) ->  | AI138: =IF(FOPP!AL10="","",FOPP!AL10) ->  | AJ138: =IF(FOPP!AM10="","",FOPP!AM10) ->  | AK138: =IF(FOPP!AN10="","",FOPP!AN10) ->  | AL138: =IF(FOPP!AO10="","",FOPP!AO10) ->  | AM138: =IF(FOPP!AP10="","",FOPP!AP10) -> 
C139: Comp. Esp. 2 | D139: Criterio Evaluación 2.1 | E139: =IF(FOPP!H11="","",FOPP!H11) ->  | F139: =IF(FOPP!I11="","",FOPP!I11) ->  | G139: =IF(FOPP!J11="","",FOPP!J11) ->  | H139: =IF(FOPP!K11="","",FOPP!K11) ->  | I139: =IF(FOPP!L11="","",FOPP!L11) ->  | J139: =IF(FOPP!M11="","",FOPP!M11) ->  | K139: =IF(FOPP!N11="","",FOPP!N11) ->  | L139: =IF(FOPP!O11="","",FOPP!O11) ->  | M139: =IF(FOPP!P11="","",FOPP!P11) ->  | N139: =IF(FOPP!Q11="","",FOPP!Q11) ->  | O139: =IF(FOPP!R11="","",FOPP!R11) ->  | P139: =IF(FOPP!S11="","",FOPP!S11) ->  | Q139: =IF(FOPP!T11="","",FOPP!T11) ->  | R139: =IF(FOPP!U11="","",FOPP!U11) ->  | S139: =IF(FOPP!V11="","",FOPP!V11) ->  | T139: =IF(FOPP!W11="","",FOPP!W11) ->  | U139: =IF(FOPP!X11="","",FOPP!X11) ->  | V139: =IF(FOPP!Y11="","",FOPP!Y11) ->  | W139: =IF(FOPP!Z11="","",FOPP!Z11) ->  | X139: =IF(FOPP!AA11="","",FOPP!AA11) ->  | Y139: =IF(FOPP!AB11="","",FOPP!AB11) ->  | Z139: =IF(FOPP!AC11="","",FOPP!AC11) ->  | AA139: =IF(FOPP!AD11="","",FOPP!AD11) ->  | AB139: =IF(FOPP!AE11="","",FOPP!AE11) ->  | AC139: =IF(FOPP!AF11="","",FOPP!AF11) ->  | AD139: =IF(FOPP!AG11="","",FOPP!AG11) ->  | AE139: =IF(FOPP!AH11="","",FOPP!AH11) ->  | AF139: =IF(FOPP!AI11="","",FOPP!AI11) ->  | AG139: =IF(FOPP!AJ11="","",FOPP!AJ11) ->  | AH139: =IF(FOPP!AK11="","",FOPP!AK11) ->  | AI139: =IF(FOPP!AL11="","",FOPP!AL11) ->  | AJ139: =IF(FOPP!AM11="","",FOPP!AM11) ->  | AK139: =IF(FOPP!AN11="","",FOPP!AN11) ->  | AL139: =IF(FOPP!AO11="","",FOPP!AO11) ->  | AM139: =IF(FOPP!AP11="","",FOPP!AP11) -> 
D140: Criterio Evaluación 2.2 | E140: =IF(FOPP!H12="","",FOPP!H12) ->  | F140: =IF(FOPP!I12="","",FOPP!I12) ->  | G140: =IF(FOPP!J12="","",FOPP!J12) ->  | H140: =IF(FOPP!K12="","",FOPP!K12) ->  | I140: =IF(FOPP!L12="","",FOPP!L12) ->  | J140: =IF(FOPP!M12="","",FOPP!M12) ->  | K140: =IF(FOPP!N12="","",FOPP!N12) ->  | L140: =IF(FOPP!O12="","",FOPP!O12) ->  | M140: =IF(FOPP!P12="","",FOPP!P12) ->  | N140: =IF(FOPP!Q12="","",FOPP!Q12) ->  | O140: =IF(FOPP!R12="","",FOPP!R12) ->  | P140: =IF(FOPP!S12="","",FOPP!S12) ->  | Q140: =IF(FOPP!T12="","",FOPP!T12) ->  | R140: =IF(FOPP!U12="","",FOPP!U12) ->  | S140: =IF(FOPP!V12="","",FOPP!V12) ->  | T140: =IF(FOPP!W12="","",FOPP!W12) ->  | U140: =IF(FOPP!X12="","",FOPP!X12) ->  | V140: =IF(FOPP!Y12="","",FOPP!Y12) ->  | W140: =IF(FOPP!Z12="","",FOPP!Z12) ->  | X140: =IF(FOPP!AA12="","",FOPP!AA12) ->  | Y140: =IF(FOPP!AB12="","",FOPP!AB12) ->  | Z140: =IF(FOPP!AC12="","",FOPP!AC12) ->  | AA140: =IF(FOPP!AD12="","",FOPP!AD12) ->  | AB140: =IF(FOPP!AE12="","",FOPP!AE12) ->  | AC140: =IF(FOPP!AF12="","",FOPP!AF12) ->  | AD140: =IF(FOPP!AG12="","",FOPP!AG12) ->  | AE140: =IF(FOPP!AH12="","",FOPP!AH12) ->  | AF140: =IF(FOPP!AI12="","",FOPP!AI12) ->  | AG140: =IF(FOPP!AJ12="","",FOPP!AJ12) ->  | AH140: =IF(FOPP!AK12="","",FOPP!AK12) ->  | AI140: =IF(FOPP!AL12="","",FOPP!AL12) ->  | AJ140: =IF(FOPP!AM12="","",FOPP!AM12) ->  | AK140: =IF(FOPP!AN12="","",FOPP!AN12) ->  | AL140: =IF(FOPP!AO12="","",FOPP!AO12) ->  | AM140: =IF(FOPP!AP12="","",FOPP!AP12) -> 
D141: Criterio Evaluación 2.3 | E141: =IF(FOPP!H13="","",FOPP!H13) ->  | F141: =IF(FOPP!I13="","",FOPP!I13) ->  | G141: =IF(FOPP!J13="","",FOPP!J13) ->  | H141: =IF(FOPP!K13="","",FOPP!K13) ->  | I141: =IF(FOPP!L13="","",FOPP!L13) ->  | J141: =IF(FOPP!M13="","",FOPP!M13) ->  | K141: =IF(FOPP!N13="","",FOPP!N13) ->  | L141: =IF(FOPP!O13="","",FOPP!O13) ->  | M141: =IF(FOPP!P13="","",FOPP!P13) ->  | N141: =IF(FOPP!Q13="","",FOPP!Q13) ->  | O141: =IF(FOPP!R13="","",FOPP!R13) ->  | P141: =IF(FOPP!S13="","",FOPP!S13) ->  | Q141: =IF(FOPP!T13="","",FOPP!T13) ->  | R141: =IF(FOPP!U13="","",FOPP!U13) ->  | S141: =IF(FOPP!V13="","",FOPP!V13) ->  | T141: =IF(FOPP!W13="","",FOPP!W13) ->  | U141: =IF(FOPP!X13="","",FOPP!X13) ->  | V141: =IF(FOPP!Y13="","",FOPP!Y13) ->  | W141: =IF(FOPP!Z13="","",FOPP!Z13) ->  | X141: =IF(FOPP!AA13="","",FOPP!AA13) ->  | Y141: =IF(FOPP!AB13="","",FOPP!AB13) ->  | Z141: =IF(FOPP!AC13="","",FOPP!AC13) ->  | AA141: =IF(FOPP!AD13="","",FOPP!AD13) ->  | AB141: =IF(FOPP!AE13="","",FOPP!AE13) ->  | AC141: =IF(FOPP!AF13="","",FOPP!AF13) ->  | AD141: =IF(FOPP!AG13="","",FOPP!AG13) ->  | AE141: =IF(FOPP!AH13="","",FOPP!AH13) ->  | AF141: =IF(FOPP!AI13="","",FOPP!AI13) ->  | AG141: =IF(FOPP!AJ13="","",FOPP!AJ13) ->  | AH141: =IF(FOPP!AK13="","",FOPP!AK13) ->  | AI141: =IF(FOPP!AL13="","",FOPP!AL13) ->  | AJ141: =IF(FOPP!AM13="","",FOPP!AM13) ->  | AK141: =IF(FOPP!AN13="","",FOPP!AN13) ->  | AL141: =IF(FOPP!AO13="","",FOPP!AO13) ->  | AM141: =IF(FOPP!AP13="","",FOPP!AP13) -> 
D142: Criterio Evaluación 2.4 | E142: =IF(FOPP!H14="","",FOPP!H14) ->  | F142: =IF(FOPP!I14="","",FOPP!I14) ->  | G142: =IF(FOPP!J14="","",FOPP!J14) ->  | H142: =IF(FOPP!K14="","",FOPP!K14) ->  | I142: =IF(FOPP!L14="","",FOPP!L14) ->  | J142: =IF(FOPP!M14="","",FOPP!M14) ->  | K142: =IF(FOPP!N14="","",FOPP!N14) ->  | L142: =IF(FOPP!O14="","",FOPP!O14) ->  | M142: =IF(FOPP!P14="","",FOPP!P14) ->  | N142: =IF(FOPP!Q14="","",FOPP!Q14) ->  | O142: =IF(FOPP!R14="","",FOPP!R14) ->  | P142: =IF(FOPP!S14="","",FOPP!S14) ->  | Q142: =IF(FOPP!T14="","",FOPP!T14) ->  | R142: =IF(FOPP!U14="","",FOPP!U14) ->  | S142: =IF(FOPP!V14="","",FOPP!V14) ->  | T142: =IF(FOPP!W14="","",FOPP!W14) ->  | U142: =IF(FOPP!X14="","",FOPP!X14) ->  | V142: =IF(FOPP!Y14="","",FOPP!Y14) ->  | W142: =IF(FOPP!Z14="","",FOPP!Z14) ->  | X142: =IF(FOPP!AA14="","",FOPP!AA14) ->  | Y142: =IF(FOPP!AB14="","",FOPP!AB14) ->  | Z142: =IF(FOPP!AC14="","",FOPP!AC14) ->  | AA142: =IF(FOPP!AD14="","",FOPP!AD14) ->  | AB142: =IF(FOPP!AE14="","",FOPP!AE14) ->  | AC142: =IF(FOPP!AF14="","",FOPP!AF14) ->  | AD142: =IF(FOPP!AG14="","",FOPP!AG14) ->  | AE142: =IF(FOPP!AH14="","",FOPP!AH14) ->  | AF142: =IF(FOPP!AI14="","",FOPP!AI14) ->  | AG142: =IF(FOPP!AJ14="","",FOPP!AJ14) ->  | AH142: =IF(FOPP!AK14="","",FOPP!AK14) ->  | AI142: =IF(FOPP!AL14="","",FOPP!AL14) ->  | AJ142: =IF(FOPP!AM14="","",FOPP!AM14) ->  | AK142: =IF(FOPP!AN14="","",FOPP!AN14) ->  | AL142: =IF(FOPP!AO14="","",FOPP!AO14) ->  | AM142: =IF(FOPP!AP14="","",FOPP!AP14) -> 
C143: Comp. Esp. 3 | D143: Criterio Evaluación 3.1 | E143: =IF(FOPP!H15="","",FOPP!H15) ->  | F143: =IF(FOPP!I15="","",FOPP!I15) ->  | G143: =IF(FOPP!J15="","",FOPP!J15) ->  | H143: =IF(FOPP!K15="","",FOPP!K15) ->  | I143: =IF(FOPP!L15="","",FOPP!L15) ->  | J143: =IF(FOPP!M15="","",FOPP!M15) ->  | K143: =IF(FOPP!N15="","",FOPP!N15) ->  | L143: =IF(FOPP!O15="","",FOPP!O15) ->  | M143: =IF(FOPP!P15="","",FOPP!P15) ->  | N143: =IF(FOPP!Q15="","",FOPP!Q15) ->  | O143: =IF(FOPP!R15="","",FOPP!R15) ->  | P143: =IF(FOPP!S15="","",FOPP!S15) ->  | Q143: =IF(FOPP!T15="","",FOPP!T15) ->  | R143: =IF(FOPP!U15="","",FOPP!U15) ->  | S143: =IF(FOPP!V15="","",FOPP!V15) ->  | T143: =IF(FOPP!W15="","",FOPP!W15) ->  | U143: =IF(FOPP!X15="","",FOPP!X15) ->  | V143: =IF(FOPP!Y15="","",FOPP!Y15) ->  | W143: =IF(FOPP!Z15="","",FOPP!Z15) ->  | X143: =IF(FOPP!AA15="","",FOPP!AA15) ->  | Y143: =IF(FOPP!AB15="","",FOPP!AB15) ->  | Z143: =IF(FOPP!AC15="","",FOPP!AC15) ->  | AA143: =IF(FOPP!AD15="","",FOPP!AD15) ->  | AB143: =IF(FOPP!AE15="","",FOPP!AE15) ->  | AC143: =IF(FOPP!AF15="","",FOPP!AF15) ->  | AD143: =IF(FOPP!AG15="","",FOPP!AG15) ->  | AE143: =IF(FOPP!AH15="","",FOPP!AH15) ->  | AF143: =IF(FOPP!AI15="","",FOPP!AI15) ->  | AG143: =IF(FOPP!AJ15="","",FOPP!AJ15) ->  | AH143: =IF(FOPP!AK15="","",FOPP!AK15) ->  | AI143: =IF(FOPP!AL15="","",FOPP!AL15) ->  | AJ143: =IF(FOPP!AM15="","",FOPP!AM15) ->  | AK143: =IF(FOPP!AN15="","",FOPP!AN15) ->  | AL143: =IF(FOPP!AO15="","",FOPP!AO15) ->  | AM143: =IF(FOPP!AP15="","",FOPP!AP15) -> 
D144: Criterio Evaluación 3.2 | E144: =IF(FOPP!H16="","",FOPP!H16) ->  | F144: =IF(FOPP!I16="","",FOPP!I16) ->  | G144: =IF(FOPP!J16="","",FOPP!J16) ->  | H144: =IF(FOPP!K16="","",FOPP!K16) ->  | I144: =IF(FOPP!L16="","",FOPP!L16) ->  | J144: =IF(FOPP!M16="","",FOPP!M16) ->  | K144: =IF(FOPP!N16="","",FOPP!N16) ->  | L144: =IF(FOPP!O16="","",FOPP!O16) ->  | M144: =IF(FOPP!P16="","",FOPP!P16) ->  | N144: =IF(FOPP!Q16="","",FOPP!Q16) ->  | O144: =IF(FOPP!R16="","",FOPP!R16) ->  | P144: =IF(FOPP!S16="","",FOPP!S16) ->  | Q144: =IF(FOPP!T16="","",FOPP!T16) ->  | R144: =IF(FOPP!U16="","",FOPP!U16) ->  | S144: =IF(FOPP!V16="","",FOPP!V16) ->  | T144: =IF(FOPP!W16="","",FOPP!W16) ->  | U144: =IF(FOPP!X16="","",FOPP!X16) ->  | V144: =IF(FOPP!Y16="","",FOPP!Y16) ->  | W144: =IF(FOPP!Z16="","",FOPP!Z16) ->  | X144: =IF(FOPP!AA16="","",FOPP!AA16) ->  | Y144: =IF(FOPP!AB16="","",FOPP!AB16) ->  | Z144: =IF(FOPP!AC16="","",FOPP!AC16) ->  | AA144: =IF(FOPP!AD16="","",FOPP!AD16) ->  | AB144: =IF(FOPP!AE16="","",FOPP!AE16) ->  | AC144: =IF(FOPP!AF16="","",FOPP!AF16) ->  | AD144: =IF(FOPP!AG16="","",FOPP!AG16) ->  | AE144: =IF(FOPP!AH16="","",FOPP!AH16) ->  | AF144: =IF(FOPP!AI16="","",FOPP!AI16) ->  | AG144: =IF(FOPP!AJ16="","",FOPP!AJ16) ->  | AH144: =IF(FOPP!AK16="","",FOPP!AK16) ->  | AI144: =IF(FOPP!AL16="","",FOPP!AL16) ->  | AJ144: =IF(FOPP!AM16="","",FOPP!AM16) ->  | AK144: =IF(FOPP!AN16="","",FOPP!AN16) ->  | AL144: =IF(FOPP!AO16="","",FOPP!AO16) ->  | AM144: =IF(FOPP!AP16="","",FOPP!AP16) -> 
C145: Comp. Esp. 4 | D145: Criterio Evaluación 4.1 | E145: =IF(FOPP!H17="","",FOPP!H17) ->  | F145: =IF(FOPP!I17="","",FOPP!I17) ->  | G145: =IF(FOPP!J17="","",FOPP!J17) ->  | H145: =IF(FOPP!K17="","",FOPP!K17) ->  | I145: =IF(FOPP!L17="","",FOPP!L17) ->  | J145: =IF(FOPP!M17="","",FOPP!M17) ->  | K145: =IF(FOPP!N17="","",FOPP!N17) ->  | L145: =IF(FOPP!O17="","",FOPP!O17) ->  | M145: =IF(FOPP!P17="","",FOPP!P17) ->  | N145: =IF(FOPP!Q17="","",FOPP!Q17) ->  | O145: =IF(FOPP!R17="","",FOPP!R17) ->  | P145: =IF(FOPP!S17="","",FOPP!S17) ->  | Q145: =IF(FOPP!T17="","",FOPP!T17) ->  | R145: =IF(FOPP!U17="","",FOPP!U17) ->  | S145: =IF(FOPP!V17="","",FOPP!V17) ->  | T145: =IF(FOPP!W17="","",FOPP!W17) ->  | U145: =IF(FOPP!X17="","",FOPP!X17) ->  | V145: =IF(FOPP!Y17="","",FOPP!Y17) ->  | W145: =IF(FOPP!Z17="","",FOPP!Z17) ->  | X145: =IF(FOPP!AA17="","",FOPP!AA17) ->  | Y145: =IF(FOPP!AB17="","",FOPP!AB17) ->  | Z145: =IF(FOPP!AC17="","",FOPP!AC17) ->  | AA145: =IF(FOPP!AD17="","",FOPP!AD17) ->  | AB145: =IF(FOPP!AE17="","",FOPP!AE17) ->  | AC145: =IF(FOPP!AF17="","",FOPP!AF17) ->  | AD145: =IF(FOPP!AG17="","",FOPP!AG17) ->  | AE145: =IF(FOPP!AH17="","",FOPP!AH17) ->  | AF145: =IF(FOPP!AI17="","",FOPP!AI17) ->  | AG145: =IF(FOPP!AJ17="","",FOPP!AJ17) ->  | AH145: =IF(FOPP!AK17="","",FOPP!AK17) ->  | AI145: =IF(FOPP!AL17="","",FOPP!AL17) ->  | AJ145: =IF(FOPP!AM17="","",FOPP!AM17) ->  | AK145: =IF(FOPP!AN17="","",FOPP!AN17) ->  | AL145: =IF(FOPP!AO17="","",FOPP!AO17) ->  | AM145: =IF(FOPP!AP17="","",FOPP!AP17) -> 
D146: Criterio Evaluación 4.2 | E146: =IF(FOPP!H18="","",FOPP!H18) ->  | F146: =IF(FOPP!I18="","",FOPP!I18) ->  | G146: =IF(FOPP!J18="","",FOPP!J18) ->  | H146: =IF(FOPP!K18="","",FOPP!K18) ->  | I146: =IF(FOPP!L18="","",FOPP!L18) ->  | J146: =IF(FOPP!M18="","",FOPP!M18) ->  | K146: =IF(FOPP!N18="","",FOPP!N18) ->  | L146: =IF(FOPP!O18="","",FOPP!O18) ->  | M146: =IF(FOPP!P18="","",FOPP!P18) ->  | N146: =IF(FOPP!Q18="","",FOPP!Q18) ->  | O146: =IF(FOPP!R18="","",FOPP!R18) ->  | P146: =IF(FOPP!S18="","",FOPP!S18) ->  | Q146: =IF(FOPP!T18="","",FOPP!T18) ->  | R146: =IF(FOPP!U18="","",FOPP!U18) ->  | S146: =IF(FOPP!V18="","",FOPP!V18) ->  | T146: =IF(FOPP!W18="","",FOPP!W18) ->  | U146: =IF(FOPP!X18="","",FOPP!X18) ->  | V146: =IF(FOPP!Y18="","",FOPP!Y18) ->  | W146: =IF(FOPP!Z18="","",FOPP!Z18) ->  | X146: =IF(FOPP!AA18="","",FOPP!AA18) ->  | Y146: =IF(FOPP!AB18="","",FOPP!AB18) ->  | Z146: =IF(FOPP!AC18="","",FOPP!AC18) ->  | AA146: =IF(FOPP!AD18="","",FOPP!AD18) ->  | AB146: =IF(FOPP!AE18="","",FOPP!AE18) ->  | AC146: =IF(FOPP!AF18="","",FOPP!AF18) ->  | AD146: =IF(FOPP!AG18="","",FOPP!AG18) ->  | AE146: =IF(FOPP!AH18="","",FOPP!AH18) ->  | AF146: =IF(FOPP!AI18="","",FOPP!AI18) ->  | AG146: =IF(FOPP!AJ18="","",FOPP!AJ18) ->  | AH146: =IF(FOPP!AK18="","",FOPP!AK18) ->  | AI146: =IF(FOPP!AL18="","",FOPP!AL18) ->  | AJ146: =IF(FOPP!AM18="","",FOPP!AM18) ->  | AK146: =IF(FOPP!AN18="","",FOPP!AN18) ->  | AL146: =IF(FOPP!AO18="","",FOPP!AO18) ->  | AM146: =IF(FOPP!AP18="","",FOPP!AP18) -> 
D147: Criterio Evaluación 4.3 | E147: =IF(FOPP!H19="","",FOPP!H19) ->  | F147: =IF(FOPP!I19="","",FOPP!I19) ->  | G147: =IF(FOPP!J19="","",FOPP!J19) ->  | H147: =IF(FOPP!K19="","",FOPP!K19) ->  | I147: =IF(FOPP!L19="","",FOPP!L19) ->  | J147: =IF(FOPP!M19="","",FOPP!M19) ->  | K147: =IF(FOPP!N19="","",FOPP!N19) ->  | L147: =IF(FOPP!O19="","",FOPP!O19) ->  | M147: =IF(FOPP!P19="","",FOPP!P19) ->  | N147: =IF(FOPP!Q19="","",FOPP!Q19) ->  | O147: =IF(FOPP!R19="","",FOPP!R19) ->  | P147: =IF(FOPP!S19="","",FOPP!S19) ->  | Q147: =IF(FOPP!T19="","",FOPP!T19) ->  | R147: =IF(FOPP!U19="","",FOPP!U19) ->  | S147: =IF(FOPP!V19="","",FOPP!V19) ->  | T147: =IF(FOPP!W19="","",FOPP!W19) ->  | U147: =IF(FOPP!X19="","",FOPP!X19) ->  | V147: =IF(FOPP!Y19="","",FOPP!Y19) ->  | W147: =IF(FOPP!Z19="","",FOPP!Z19) ->  | X147: =IF(FOPP!AA19="","",FOPP!AA19) ->  | Y147: =IF(FOPP!AB19="","",FOPP!AB19) ->  | Z147: =IF(FOPP!AC19="","",FOPP!AC19) ->  | AA147: =IF(FOPP!AD19="","",FOPP!AD19) ->  | AB147: =IF(FOPP!AE19="","",FOPP!AE19) ->  | AC147: =IF(FOPP!AF19="","",FOPP!AF19) ->  | AD147: =IF(FOPP!AG19="","",FOPP!AG19) ->  | AE147: =IF(FOPP!AH19="","",FOPP!AH19) ->  | AF147: =IF(FOPP!AI19="","",FOPP!AI19) ->  | AG147: =IF(FOPP!AJ19="","",FOPP!AJ19) ->  | AH147: =IF(FOPP!AK19="","",FOPP!AK19) ->  | AI147: =IF(FOPP!AL19="","",FOPP!AL19) ->  | AJ147: =IF(FOPP!AM19="","",FOPP!AM19) ->  | AK147: =IF(FOPP!AN19="","",FOPP!AN19) ->  | AL147: =IF(FOPP!AO19="","",FOPP!AO19) ->  | AM147: =IF(FOPP!AP19="","",FOPP!AP19) -> 
D148: Criterio Evaluación 4.4 | E148: =IF(FOPP!H20="","",FOPP!H20) ->  | F148: =IF(FOPP!I20="","",FOPP!I20) ->  | G148: =IF(FOPP!J20="","",FOPP!J20) ->  | H148: =IF(FOPP!K20="","",FOPP!K20) ->  | I148: =IF(FOPP!L20="","",FOPP!L20) ->  | J148: =IF(FOPP!M20="","",FOPP!M20) ->  | K148: =IF(FOPP!N20="","",FOPP!N20) ->  | L148: =IF(FOPP!O20="","",FOPP!O20) ->  | M148: =IF(FOPP!P20="","",FOPP!P20) ->  | N148: =IF(FOPP!Q20="","",FOPP!Q20) ->  | O148: =IF(FOPP!R20="","",FOPP!R20) ->  | P148: =IF(FOPP!S20="","",FOPP!S20) ->  | Q148: =IF(FOPP!T20="","",FOPP!T20) ->  | R148: =IF(FOPP!U20="","",FOPP!U20) ->  | S148: =IF(FOPP!V20="","",FOPP!V20) ->  | T148: =IF(FOPP!W20="","",FOPP!W20) ->  | U148: =IF(FOPP!X20="","",FOPP!X20) ->  | V148: =IF(FOPP!Y20="","",FOPP!Y20) ->  | W148: =IF(FOPP!Z20="","",FOPP!Z20) ->  | X148: =IF(FOPP!AA20="","",FOPP!AA20) ->  | Y148: =IF(FOPP!AB20="","",FOPP!AB20) ->  | Z148: =IF(FOPP!AC20="","",FOPP!AC20) ->  | AA148: =IF(FOPP!AD20="","",FOPP!AD20) ->  | AB148: =IF(FOPP!AE20="","",FOPP!AE20) ->  | AC148: =IF(FOPP!AF20="","",FOPP!AF20) ->  | AD148: =IF(FOPP!AG20="","",FOPP!AG20) ->  | AE148: =IF(FOPP!AH20="","",FOPP!AH20) ->  | AF148: =IF(FOPP!AI20="","",FOPP!AI20) ->  | AG148: =IF(FOPP!AJ20="","",FOPP!AJ20) ->  | AH148: =IF(FOPP!AK20="","",FOPP!AK20) ->  | AI148: =IF(FOPP!AL20="","",FOPP!AL20) ->  | AJ148: =IF(FOPP!AM20="","",FOPP!AM20) ->  | AK148: =IF(FOPP!AN20="","",FOPP!AN20) ->  | AL148: =IF(FOPP!AO20="","",FOPP!AO20) ->  | AM148: =IF(FOPP!AP20="","",FOPP!AP20) -> 
C149: Comp. Esp. 5 | D149: Criterio Evaluación 5.1 | E149: =IF(FOPP!H21="","",FOPP!H21) ->  | F149: =IF(FOPP!I21="","",FOPP!I21) ->  | G149: =IF(FOPP!J21="","",FOPP!J21) ->  | H149: =IF(FOPP!K21="","",FOPP!K21) ->  | I149: =IF(FOPP!L21="","",FOPP!L21) ->  | J149: =IF(FOPP!M21="","",FOPP!M21) ->  | K149: =IF(FOPP!N21="","",FOPP!N21) ->  | L149: =IF(FOPP!O21="","",FOPP!O21) ->  | M149: =IF(FOPP!P21="","",FOPP!P21) ->  | N149: =IF(FOPP!Q21="","",FOPP!Q21) ->  | O149: =IF(FOPP!R21="","",FOPP!R21) ->  | P149: =IF(FOPP!S21="","",FOPP!S21) ->  | Q149: =IF(FOPP!T21="","",FOPP!T21) ->  | R149: =IF(FOPP!U21="","",FOPP!U21) ->  | S149: =IF(FOPP!V21="","",FOPP!V21) ->  | T149: =IF(FOPP!W21="","",FOPP!W21) ->  | U149: =IF(FOPP!X21="","",FOPP!X21) ->  | V149: =IF(FOPP!Y21="","",FOPP!Y21) ->  | W149: =IF(FOPP!Z21="","",FOPP!Z21) ->  | X149: =IF(FOPP!AA21="","",FOPP!AA21) ->  | Y149: =IF(FOPP!AB21="","",FOPP!AB21) ->  | Z149: =IF(FOPP!AC21="","",FOPP!AC21) ->  | AA149: =IF(FOPP!AD21="","",FOPP!AD21) ->  | AB149: =IF(FOPP!AE21="","",FOPP!AE21) ->  | AC149: =IF(FOPP!AF21="","",FOPP!AF21) ->  | AD149: =IF(FOPP!AG21="","",FOPP!AG21) ->  | AE149: =IF(FOPP!AH21="","",FOPP!AH21) ->  | AF149: =IF(FOPP!AI21="","",FOPP!AI21) ->  | AG149: =IF(FOPP!AJ21="","",FOPP!AJ21) ->  | AH149: =IF(FOPP!AK21="","",FOPP!AK21) ->  | AI149: =IF(FOPP!AL21="","",FOPP!AL21) ->  | AJ149: =IF(FOPP!AM21="","",FOPP!AM21) ->  | AK149: =IF(FOPP!AN21="","",FOPP!AN21) ->  | AL149: =IF(FOPP!AO21="","",FOPP!AO21) ->  | AM149: =IF(FOPP!AP21="","",FOPP!AP21) -> 
D150: Criterio Evaluación 5.2 | E150: =IF(FOPP!H22="","",FOPP!H22) ->  | F150: =IF(FOPP!I22="","",FOPP!I22) ->  | G150: =IF(FOPP!J22="","",FOPP!J22) ->  | H150: =IF(FOPP!K22="","",FOPP!K22) ->  | I150: =IF(FOPP!L22="","",FOPP!L22) ->  | J150: =IF(FOPP!M22="","",FOPP!M22) ->  | K150: =IF(FOPP!N22="","",FOPP!N22) ->  | L150: =IF(FOPP!O22="","",FOPP!O22) ->  | M150: =IF(FOPP!P22="","",FOPP!P22) ->  | N150: =IF(FOPP!Q22="","",FOPP!Q22) ->  | O150: =IF(FOPP!R22="","",FOPP!R22) ->  | P150: =IF(FOPP!S22="","",FOPP!S22) ->  | Q150: =IF(FOPP!T22="","",FOPP!T22) ->  | R150: =IF(FOPP!U22="","",FOPP!U22) ->  | S150: =IF(FOPP!V22="","",FOPP!V22) ->  | T150: =IF(FOPP!W22="","",FOPP!W22) ->  | U150: =IF(FOPP!X22="","",FOPP!X22) ->  | V150: =IF(FOPP!Y22="","",FOPP!Y22) ->  | W150: =IF(FOPP!Z22="","",FOPP!Z22) ->  | X150: =IF(FOPP!AA22="","",FOPP!AA22) ->  | Y150: =IF(FOPP!AB22="","",FOPP!AB22) ->  | Z150: =IF(FOPP!AC22="","",FOPP!AC22) ->  | AA150: =IF(FOPP!AD22="","",FOPP!AD22) ->  | AB150: =IF(FOPP!AE22="","",FOPP!AE22) ->  | AC150: =IF(FOPP!AF22="","",FOPP!AF22) ->  | AD150: =IF(FOPP!AG22="","",FOPP!AG22) ->  | AE150: =IF(FOPP!AH22="","",FOPP!AH22) ->  | AF150: =IF(FOPP!AI22="","",FOPP!AI22) ->  | AG150: =IF(FOPP!AJ22="","",FOPP!AJ22) ->  | AH150: =IF(FOPP!AK22="","",FOPP!AK22) ->  | AI150: =IF(FOPP!AL22="","",FOPP!AL22) ->  | AJ150: =IF(FOPP!AM22="","",FOPP!AM22) ->  | AK150: =IF(FOPP!AN22="","",FOPP!AN22) ->  | AL150: =IF(FOPP!AO22="","",FOPP!AO22) ->  | AM150: =IF(FOPP!AP22="","",FOPP!AP22) -> 
D151: Criterio Evaluación 5.3 | E151: =IF(FOPP!H23="","",FOPP!H23) ->  | F151: =IF(FOPP!I23="","",FOPP!I23) ->  | G151: =IF(FOPP!J23="","",FOPP!J23) ->  | H151: =IF(FOPP!K23="","",FOPP!K23) ->  | I151: =IF(FOPP!L23="","",FOPP!L23) ->  | J151: =IF(FOPP!M23="","",FOPP!M23) ->  | K151: =IF(FOPP!N23="","",FOPP!N23) ->  | L151: =IF(FOPP!O23="","",FOPP!O23) ->  | M151: =IF(FOPP!P23="","",FOPP!P23) ->  | N151: =IF(FOPP!Q23="","",FOPP!Q23) ->  | O151: =IF(FOPP!R23="","",FOPP!R23) ->  | P151: =IF(FOPP!S23="","",FOPP!S23) ->  | Q151: =IF(FOPP!T23="","",FOPP!T23) ->  | R151: =IF(FOPP!U23="","",FOPP!U23) ->  | S151: =IF(FOPP!V23="","",FOPP!V23) ->  | T151: =IF(FOPP!W23="","",FOPP!W23) ->  | U151: =IF(FOPP!X23="","",FOPP!X23) ->  | V151: =IF(FOPP!Y23="","",FOPP!Y23) ->  | W151: =IF(FOPP!Z23="","",FOPP!Z23) ->  | X151: =IF(FOPP!AA23="","",FOPP!AA23) ->  | Y151: =IF(FOPP!AB23="","",FOPP!AB23) ->  | Z151: =IF(FOPP!AC23="","",FOPP!AC23) ->  | AA151: =IF(FOPP!AD23="","",FOPP!AD23) ->  | AB151: =IF(FOPP!AE23="","",FOPP!AE23) ->  | AC151: =IF(FOPP!AF23="","",FOPP!AF23) ->  | AD151: =IF(FOPP!AG23="","",FOPP!AG23) ->  | AE151: =IF(FOPP!AH23="","",FOPP!AH23) ->  | AF151: =IF(FOPP!AI23="","",FOPP!AI23) ->  | AG151: =IF(FOPP!AJ23="","",FOPP!AJ23) ->  | AH151: =IF(FOPP!AK23="","",FOPP!AK23) ->  | AI151: =IF(FOPP!AL23="","",FOPP!AL23) ->  | AJ151: =IF(FOPP!AM23="","",FOPP!AM23) ->  | AK151: =IF(FOPP!AN23="","",FOPP!AN23) ->  | AL151: =IF(FOPP!AO23="","",FOPP!AO23) ->  | AM151: =IF(FOPP!AP23="","",FOPP!AP23) -> 
D152: Criterio Evaluación 5.4 | E152: =IF(FOPP!H24="","",FOPP!H24) ->  | F152: =IF(FOPP!I24="","",FOPP!I24) ->  | G152: =IF(FOPP!J24="","",FOPP!J24) ->  | H152: =IF(FOPP!K24="","",FOPP!K24) ->  | I152: =IF(FOPP!L24="","",FOPP!L24) ->  | J152: =IF(FOPP!M24="","",FOPP!M24) ->  | K152: =IF(FOPP!N24="","",FOPP!N24) ->  | L152: =IF(FOPP!O24="","",FOPP!O24) ->  | M152: =IF(FOPP!P24="","",FOPP!P24) ->  | N152: =IF(FOPP!Q24="","",FOPP!Q24) ->  | O152: =IF(FOPP!R24="","",FOPP!R24) ->  | P152: =IF(FOPP!S24="","",FOPP!S24) ->  | Q152: =IF(FOPP!T24="","",FOPP!T24) ->  | R152: =IF(FOPP!U24="","",FOPP!U24) ->  | S152: =IF(FOPP!V24="","",FOPP!V24) ->  | T152: =IF(FOPP!W24="","",FOPP!W24) ->  | U152: =IF(FOPP!X24="","",FOPP!X24) ->  | V152: =IF(FOPP!Y24="","",FOPP!Y24) ->  | W152: =IF(FOPP!Z24="","",FOPP!Z24) ->  | X152: =IF(FOPP!AA24="","",FOPP!AA24) ->  | Y152: =IF(FOPP!AB24="","",FOPP!AB24) ->  | Z152: =IF(FOPP!AC24="","",FOPP!AC24) ->  | AA152: =IF(FOPP!AD24="","",FOPP!AD24) ->  | AB152: =IF(FOPP!AE24="","",FOPP!AE24) ->  | AC152: =IF(FOPP!AF24="","",FOPP!AF24) ->  | AD152: =IF(FOPP!AG24="","",FOPP!AG24) ->  | AE152: =IF(FOPP!AH24="","",FOPP!AH24) ->  | AF152: =IF(FOPP!AI24="","",FOPP!AI24) ->  | AG152: =IF(FOPP!AJ24="","",FOPP!AJ24) ->  | AH152: =IF(FOPP!AK24="","",FOPP!AK24) ->  | AI152: =IF(FOPP!AL24="","",FOPP!AL24) ->  | AJ152: =IF(FOPP!AM24="","",FOPP!AM24) ->  | AK152: =IF(FOPP!AN24="","",FOPP!AN24) ->  | AL152: =IF(FOPP!AO24="","",FOPP!AO24) ->  | AM152: =IF(FOPP!AP24="","",FOPP!AP24) -> 
D153: Criterio Evaluación 5.5 | E153: =IF(FOPP!H25="","",FOPP!H25) ->  | F153: =IF(FOPP!I25="","",FOPP!I25) ->  | G153: =IF(FOPP!J25="","",FOPP!J25) ->  | H153: =IF(FOPP!K25="","",FOPP!K25) ->  | I153: =IF(FOPP!L25="","",FOPP!L25) ->  | J153: =IF(FOPP!M25="","",FOPP!M25) ->  | K153: =IF(FOPP!N25="","",FOPP!N25) ->  | L153: =IF(FOPP!O25="","",FOPP!O25) ->  | M153: =IF(FOPP!P25="","",FOPP!P25) ->  | N153: =IF(FOPP!Q25="","",FOPP!Q25) ->  | O153: =IF(FOPP!R25="","",FOPP!R25) ->  | P153: =IF(FOPP!S25="","",FOPP!S25) ->  | Q153: =IF(FOPP!T25="","",FOPP!T25) ->  | R153: =IF(FOPP!U25="","",FOPP!U25) ->  | S153: =IF(FOPP!V25="","",FOPP!V25) ->  | T153: =IF(FOPP!W25="","",FOPP!W25) ->  | U153: =IF(FOPP!X25="","",FOPP!X25) ->  | V153: =IF(FOPP!Y25="","",FOPP!Y25) ->  | W153: =IF(FOPP!Z25="","",FOPP!Z25) ->  | X153: =IF(FOPP!AA25="","",FOPP!AA25) ->  | Y153: =IF(FOPP!AB25="","",FOPP!AB25) ->  | Z153: =IF(FOPP!AC25="","",FOPP!AC25) ->  | AA153: =IF(FOPP!AD25="","",FOPP!AD25) ->  | AB153: =IF(FOPP!AE25="","",FOPP!AE25) ->  | AC153: =IF(FOPP!AF25="","",FOPP!AF25) ->  | AD153: =IF(FOPP!AG25="","",FOPP!AG25) ->  | AE153: =IF(FOPP!AH25="","",FOPP!AH25) ->  | AF153: =IF(FOPP!AI25="","",FOPP!AI25) ->  | AG153: =IF(FOPP!AJ25="","",FOPP!AJ25) ->  | AH153: =IF(FOPP!AK25="","",FOPP!AK25) ->  | AI153: =IF(FOPP!AL25="","",FOPP!AL25) ->  | AJ153: =IF(FOPP!AM25="","",FOPP!AM25) ->  | AK153: =IF(FOPP!AN25="","",FOPP!AN25) ->  | AL153: =IF(FOPP!AO25="","",FOPP!AO25) ->  | AM153: =IF(FOPP!AP25="","",FOPP!AP25) -> 
D154: Criterio Evaluación 5.6 | E154: =IF(FOPP!H26="","",FOPP!H26) ->  | F154: =IF(FOPP!I26="","",FOPP!I26) ->  | G154: =IF(FOPP!J26="","",FOPP!J26) ->  | H154: =IF(FOPP!K26="","",FOPP!K26) ->  | I154: =IF(FOPP!L26="","",FOPP!L26) ->  | J154: =IF(FOPP!M26="","",FOPP!M26) ->  | K154: =IF(FOPP!N26="","",FOPP!N26) ->  | L154: =IF(FOPP!O26="","",FOPP!O26) ->  | M154: =IF(FOPP!P26="","",FOPP!P26) ->  | N154: =IF(FOPP!Q26="","",FOPP!Q26) ->  | O154: =IF(FOPP!R26="","",FOPP!R26) ->  | P154: =IF(FOPP!S26="","",FOPP!S26) ->  | Q154: =IF(FOPP!T26="","",FOPP!T26) ->  | R154: =IF(FOPP!U26="","",FOPP!U26) ->  | S154: =IF(FOPP!V26="","",FOPP!V26) ->  | T154: =IF(FOPP!W26="","",FOPP!W26) ->  | U154: =IF(FOPP!X26="","",FOPP!X26) ->  | V154: =IF(FOPP!Y26="","",FOPP!Y26) ->  | W154: =IF(FOPP!Z26="","",FOPP!Z26) ->  | X154: =IF(FOPP!AA26="","",FOPP!AA26) ->  | Y154: =IF(FOPP!AB26="","",FOPP!AB26) ->  | Z154: =IF(FOPP!AC26="","",FOPP!AC26) ->  | AA154: =IF(FOPP!AD26="","",FOPP!AD26) ->  | AB154: =IF(FOPP!AE26="","",FOPP!AE26) ->  | AC154: =IF(FOPP!AF26="","",FOPP!AF26) ->  | AD154: =IF(FOPP!AG26="","",FOPP!AG26) ->  | AE154: =IF(FOPP!AH26="","",FOPP!AH26) ->  | AF154: =IF(FOPP!AI26="","",FOPP!AI26) ->  | AG154: =IF(FOPP!AJ26="","",FOPP!AJ26) ->  | AH154: =IF(FOPP!AK26="","",FOPP!AK26) ->  | AI154: =IF(FOPP!AL26="","",FOPP!AL26) ->  | AJ154: =IF(FOPP!AM26="","",FOPP!AM26) ->  | AK154: =IF(FOPP!AN26="","",FOPP!AN26) ->  | AL154: =IF(FOPP!AO26="","",FOPP!AO26) ->  | AM154: =IF(FOPP!AP26="","",FOPP!AP26) -> 
B155: Lengua Extranjera | C155: Comp. Esp. 1 | D155: Criterio Evaluación 1.1 | E155: =IF(LEX!H4="","",LEX!H4) ->  | F155: =IF(LEX!I4="","",LEX!I4) ->  | G155: =IF(LEX!J4="","",LEX!J4) ->  | H155: =IF(LEX!K4="","",LEX!K4) ->  | I155: =IF(LEX!L4="","",LEX!L4) ->  | J155: =IF(LEX!M4="","",LEX!M4) ->  | K155: =IF(LEX!N4="","",LEX!N4) ->  | L155: =IF(LEX!O4="","",LEX!O4) ->  | M155: =IF(LEX!P4="","",LEX!P4) ->  | N155: =IF(LEX!Q4="","",LEX!Q4) ->  | O155: =IF(LEX!R4="","",LEX!R4) ->  | P155: =IF(LEX!S4="","",LEX!S4) ->  | Q155: =IF(LEX!T4="","",LEX!T4) ->  | R155: =IF(LEX!U4="","",LEX!U4) ->  | S155: =IF(LEX!V4="","",LEX!V4) ->  | T155: =IF(LEX!W4="","",LEX!W4) ->  | U155: =IF(LEX!X4="","",LEX!X4) ->  | V155: =IF(LEX!Y4="","",LEX!Y4) ->  | W155: =IF(LEX!Z4="","",LEX!Z4) ->  | X155: =IF(LEX!AA4="","",LEX!AA4) ->  | Y155: =IF(LEX!AB4="","",LEX!AB4) ->  | Z155: =IF(LEX!AC4="","",LEX!AC4) ->  | AA155: =IF(LEX!AD4="","",LEX!AD4) ->  | AB155: =IF(LEX!AE4="","",LEX!AE4) ->  | AC155: =IF(LEX!AF4="","",LEX!AF4) ->  | AD155: =IF(LEX!AG4="","",LEX!AG4) ->  | AE155: =IF(LEX!AH4="","",LEX!AH4) ->  | AF155: =IF(LEX!AI4="","",LEX!AI4) ->  | AG155: =IF(LEX!AJ4="","",LEX!AJ4) ->  | AH155: =IF(LEX!AK4="","",LEX!AK4) ->  | AI155: =IF(LEX!AL4="","",LEX!AL4) ->  | AJ155: =IF(LEX!AM4="","",LEX!AM4) ->  | AK155: =IF(LEX!AN4="","",LEX!AN4) ->  | AL155: =IF(LEX!AO4="","",LEX!AO4) ->  | AM155: =IF(LEX!AP4="","",LEX!AP4) -> 
D156: Criterio Evaluación 1.2 | E156: =IF(LEX!H5="","",LEX!H5) ->  | F156: =IF(LEX!I5="","",LEX!I5) ->  | G156: =IF(LEX!J5="","",LEX!J5) ->  | H156: =IF(LEX!K5="","",LEX!K5) ->  | I156: =IF(LEX!L5="","",LEX!L5) ->  | J156: =IF(LEX!M5="","",LEX!M5) ->  | K156: =IF(LEX!N5="","",LEX!N5) ->  | L156: =IF(LEX!O5="","",LEX!O5) ->  | M156: =IF(LEX!P5="","",LEX!P5) ->  | N156: =IF(LEX!Q5="","",LEX!Q5) ->  | O156: =IF(LEX!R5="","",LEX!R5) ->  | P156: =IF(LEX!S5="","",LEX!S5) ->  | Q156: =IF(LEX!T5="","",LEX!T5) ->  | R156: =IF(LEX!U5="","",LEX!U5) ->  | S156: =IF(LEX!V5="","",LEX!V5) ->  | T156: =IF(LEX!W5="","",LEX!W5) ->  | U156: =IF(LEX!X5="","",LEX!X5) ->  | V156: =IF(LEX!Y5="","",LEX!Y5) ->  | W156: =IF(LEX!Z5="","",LEX!Z5) ->  | X156: =IF(LEX!AA5="","",LEX!AA5) ->  | Y156: =IF(LEX!AB5="","",LEX!AB5) ->  | Z156: =IF(LEX!AC5="","",LEX!AC5) ->  | AA156: =IF(LEX!AD5="","",LEX!AD5) ->  | AB156: =IF(LEX!AE5="","",LEX!AE5) ->  | AC156: =IF(LEX!AF5="","",LEX!AF5) ->  | AD156: =IF(LEX!AG5="","",LEX!AG5) ->  | AE156: =IF(LEX!AH5="","",LEX!AH5) ->  | AF156: =IF(LEX!AI5="","",LEX!AI5) ->  | AG156: =IF(LEX!AJ5="","",LEX!AJ5) ->  | AH156: =IF(LEX!AK5="","",LEX!AK5) ->  | AI156: =IF(LEX!AL5="","",LEX!AL5) ->  | AJ156: =IF(LEX!AM5="","",LEX!AM5) ->  | AK156: =IF(LEX!AN5="","",LEX!AN5) ->  | AL156: =IF(LEX!AO5="","",LEX!AO5) ->  | AM156: =IF(LEX!AP5="","",LEX!AP5) -> 
D157: Criterio Evaluación 1.3 | E157: =IF(LEX!H6="","",LEX!H6) ->  | F157: =IF(LEX!I6="","",LEX!I6) ->  | G157: =IF(LEX!J6="","",LEX!J6) ->  | H157: =IF(LEX!K6="","",LEX!K6) ->  | I157: =IF(LEX!L6="","",LEX!L6) ->  | J157: =IF(LEX!M6="","",LEX!M6) ->  | K157: =IF(LEX!N6="","",LEX!N6) ->  | L157: =IF(LEX!O6="","",LEX!O6) ->  | M157: =IF(LEX!P6="","",LEX!P6) ->  | N157: =IF(LEX!Q6="","",LEX!Q6) ->  | O157: =IF(LEX!R6="","",LEX!R6) ->  | P157: =IF(LEX!S6="","",LEX!S6) ->  | Q157: =IF(LEX!T6="","",LEX!T6) ->  | R157: =IF(LEX!U6="","",LEX!U6) ->  | S157: =IF(LEX!V6="","",LEX!V6) ->  | T157: =IF(LEX!W6="","",LEX!W6) ->  | U157: =IF(LEX!X6="","",LEX!X6) ->  | V157: =IF(LEX!Y6="","",LEX!Y6) ->  | W157: =IF(LEX!Z6="","",LEX!Z6) ->  | X157: =IF(LEX!AA6="","",LEX!AA6) ->  | Y157: =IF(LEX!AB6="","",LEX!AB6) ->  | Z157: =IF(LEX!AC6="","",LEX!AC6) ->  | AA157: =IF(LEX!AD6="","",LEX!AD6) ->  | AB157: =IF(LEX!AE6="","",LEX!AE6) ->  | AC157: =IF(LEX!AF6="","",LEX!AF6) ->  | AD157: =IF(LEX!AG6="","",LEX!AG6) ->  | AE157: =IF(LEX!AH6="","",LEX!AH6) ->  | AF157: =IF(LEX!AI6="","",LEX!AI6) ->  | AG157: =IF(LEX!AJ6="","",LEX!AJ6) ->  | AH157: =IF(LEX!AK6="","",LEX!AK6) ->  | AI157: =IF(LEX!AL6="","",LEX!AL6) ->  | AJ157: =IF(LEX!AM6="","",LEX!AM6) ->  | AK157: =IF(LEX!AN6="","",LEX!AN6) ->  | AL157: =IF(LEX!AO6="","",LEX!AO6) ->  | AM157: =IF(LEX!AP6="","",LEX!AP6) -> 
C158: Comp. Esp. 2 | D158: Criterio Evaluación 2.1 | E158: =IF(LEX!H7="","",LEX!H7) ->  | F158: =IF(LEX!I7="","",LEX!I7) ->  | G158: =IF(LEX!J7="","",LEX!J7) ->  | H158: =IF(LEX!K7="","",LEX!K7) ->  | I158: =IF(LEX!L7="","",LEX!L7) ->  | J158: =IF(LEX!M7="","",LEX!M7) ->  | K158: =IF(LEX!N7="","",LEX!N7) ->  | L158: =IF(LEX!O7="","",LEX!O7) ->  | M158: =IF(LEX!P7="","",LEX!P7) ->  | N158: =IF(LEX!Q7="","",LEX!Q7) ->  | O158: =IF(LEX!R7="","",LEX!R7) ->  | P158: =IF(LEX!S7="","",LEX!S7) ->  | Q158: =IF(LEX!T7="","",LEX!T7) ->  | R158: =IF(LEX!U7="","",LEX!U7) ->  | S158: =IF(LEX!V7="","",LEX!V7) ->  | T158: =IF(LEX!W7="","",LEX!W7) ->  | U158: =IF(LEX!X7="","",LEX!X7) ->  | V158: =IF(LEX!Y7="","",LEX!Y7) ->  | W158: =IF(LEX!Z7="","",LEX!Z7) ->  | X158: =IF(LEX!AA7="","",LEX!AA7) ->  | Y158: =IF(LEX!AB7="","",LEX!AB7) ->  | Z158: =IF(LEX!AC7="","",LEX!AC7) ->  | AA158: =IF(LEX!AD7="","",LEX!AD7) ->  | AB158: =IF(LEX!AE7="","",LEX!AE7) ->  | AC158: =IF(LEX!AF7="","",LEX!AF7) ->  | AD158: =IF(LEX!AG7="","",LEX!AG7) ->  | AE158: =IF(LEX!AH7="","",LEX!AH7) ->  | AF158: =IF(LEX!AI7="","",LEX!AI7) ->  | AG158: =IF(LEX!AJ7="","",LEX!AJ7) ->  | AH158: =IF(LEX!AK7="","",LEX!AK7) ->  | AI158: =IF(LEX!AL7="","",LEX!AL7) ->  | AJ158: =IF(LEX!AM7="","",LEX!AM7) ->  | AK158: =IF(LEX!AN7="","",LEX!AN7) ->  | AL158: =IF(LEX!AO7="","",LEX!AO7) ->  | AM158: =IF(LEX!AP7="","",LEX!AP7) -> 
D159: Criterio Evaluación 2.2 | E159: =IF(LEX!H8="","",LEX!H8) ->  | F159: =IF(LEX!I8="","",LEX!I8) ->  | G159: =IF(LEX!J8="","",LEX!J8) ->  | H159: =IF(LEX!K8="","",LEX!K8) ->  | I159: =IF(LEX!L8="","",LEX!L8) ->  | J159: =IF(LEX!M8="","",LEX!M8) ->  | K159: =IF(LEX!N8="","",LEX!N8) ->  | L159: =IF(LEX!O8="","",LEX!O8) ->  | M159: =IF(LEX!P8="","",LEX!P8) ->  | N159: =IF(LEX!Q8="","",LEX!Q8) ->  | O159: =IF(LEX!R8="","",LEX!R8) ->  | P159: =IF(LEX!S8="","",LEX!S8) ->  | Q159: =IF(LEX!T8="","",LEX!T8) ->  | R159: =IF(LEX!U8="","",LEX!U8) ->  | S159: =IF(LEX!V8="","",LEX!V8) ->  | T159: =IF(LEX!W8="","",LEX!W8) ->  | U159: =IF(LEX!X8="","",LEX!X8) ->  | V159: =IF(LEX!Y8="","",LEX!Y8) ->  | W159: =IF(LEX!Z8="","",LEX!Z8) ->  | X159: =IF(LEX!AA8="","",LEX!AA8) ->  | Y159: =IF(LEX!AB8="","",LEX!AB8) ->  | Z159: =IF(LEX!AC8="","",LEX!AC8) ->  | AA159: =IF(LEX!AD8="","",LEX!AD8) ->  | AB159: =IF(LEX!AE8="","",LEX!AE8) ->  | AC159: =IF(LEX!AF8="","",LEX!AF8) ->  | AD159: =IF(LEX!AG8="","",LEX!AG8) ->  | AE159: =IF(LEX!AH8="","",LEX!AH8) ->  | AF159: =IF(LEX!AI8="","",LEX!AI8) ->  | AG159: =IF(LEX!AJ8="","",LEX!AJ8) ->  | AH159: =IF(LEX!AK8="","",LEX!AK8) ->  | AI159: =IF(LEX!AL8="","",LEX!AL8) ->  | AJ159: =IF(LEX!AM8="","",LEX!AM8) ->  | AK159: =IF(LEX!AN8="","",LEX!AN8) ->  | AL159: =IF(LEX!AO8="","",LEX!AO8) ->  | AM159: =IF(LEX!AP8="","",LEX!AP8) -> 
D160: Criterio Evaluación 2.3 | E160: =IF(LEX!H9="","",LEX!H9) ->  | F160: =IF(LEX!I9="","",LEX!I9) ->  | G160: =IF(LEX!J9="","",LEX!J9) ->  | H160: =IF(LEX!K9="","",LEX!K9) ->  | I160: =IF(LEX!L9="","",LEX!L9) ->  | J160: =IF(LEX!M9="","",LEX!M9) ->  | K160: =IF(LEX!N9="","",LEX!N9) ->  | L160: =IF(LEX!O9="","",LEX!O9) ->  | M160: =IF(LEX!P9="","",LEX!P9) ->  | N160: =IF(LEX!Q9="","",LEX!Q9) ->  | O160: =IF(LEX!R9="","",LEX!R9) ->  | P160: =IF(LEX!S9="","",LEX!S9) ->  | Q160: =IF(LEX!T9="","",LEX!T9) ->  | R160: =IF(LEX!U9="","",LEX!U9) ->  | S160: =IF(LEX!V9="","",LEX!V9) ->  | T160: =IF(LEX!W9="","",LEX!W9) ->  | U160: =IF(LEX!X9="","",LEX!X9) ->  | V160: =IF(LEX!Y9="","",LEX!Y9) ->  | W160: =IF(LEX!Z9="","",LEX!Z9) ->  | X160: =IF(LEX!AA9="","",LEX!AA9) ->  | Y160: =IF(LEX!AB9="","",LEX!AB9) ->  | Z160: =IF(LEX!AC9="","",LEX!AC9) ->  | AA160: =IF(LEX!AD9="","",LEX!AD9) ->  | AB160: =IF(LEX!AE9="","",LEX!AE9) ->  | AC160: =IF(LEX!AF9="","",LEX!AF9) ->  | AD160: =IF(LEX!AG9="","",LEX!AG9) ->  | AE160: =IF(LEX!AH9="","",LEX!AH9) ->  | AF160: =IF(LEX!AI9="","",LEX!AI9) ->  | AG160: =IF(LEX!AJ9="","",LEX!AJ9) ->  | AH160: =IF(LEX!AK9="","",LEX!AK9) ->  | AI160: =IF(LEX!AL9="","",LEX!AL9) ->  | AJ160: =IF(LEX!AM9="","",LEX!AM9) ->  | AK160: =IF(LEX!AN9="","",LEX!AN9) ->  | AL160: =IF(LEX!AO9="","",LEX!AO9) ->  | AM160: =IF(LEX!AP9="","",LEX!AP9) -> 
D161: Criterio Evaluación 2.4 | E161: =IF(LEX!H10="","",LEX!H10) ->  | F161: =IF(LEX!I10="","",LEX!I10) ->  | G161: =IF(LEX!J10="","",LEX!J10) ->  | H161: =IF(LEX!K10="","",LEX!K10) ->  | I161: =IF(LEX!L10="","",LEX!L10) ->  | J161: =IF(LEX!M10="","",LEX!M10) ->  | K161: =IF(LEX!N10="","",LEX!N10) ->  | L161: =IF(LEX!O10="","",LEX!O10) ->  | M161: =IF(LEX!P10="","",LEX!P10) ->  | N161: =IF(LEX!Q10="","",LEX!Q10) ->  | O161: =IF(LEX!R10="","",LEX!R10) ->  | P161: =IF(LEX!S10="","",LEX!S10) ->  | Q161: =IF(LEX!T10="","",LEX!T10) ->  | R161: =IF(LEX!U10="","",LEX!U10) ->  | S161: =IF(LEX!V10="","",LEX!V10) ->  | T161: =IF(LEX!W10="","",LEX!W10) ->  | U161: =IF(LEX!X10="","",LEX!X10) ->  | V161: =IF(LEX!Y10="","",LEX!Y10) ->  | W161: =IF(LEX!Z10="","",LEX!Z10) ->  | X161: =IF(LEX!AA10="","",LEX!AA10) ->  | Y161: =IF(LEX!AB10="","",LEX!AB10) ->  | Z161: =IF(LEX!AC10="","",LEX!AC10) ->  | AA161: =IF(LEX!AD10="","",LEX!AD10) ->  | AB161: =IF(LEX!AE10="","",LEX!AE10) ->  | AC161: =IF(LEX!AF10="","",LEX!AF10) ->  | AD161: =IF(LEX!AG10="","",LEX!AG10) ->  | AE161: =IF(LEX!AH10="","",LEX!AH10) ->  | AF161: =IF(LEX!AI10="","",LEX!AI10) ->  | AG161: =IF(LEX!AJ10="","",LEX!AJ10) ->  | AH161: =IF(LEX!AK10="","",LEX!AK10) ->  | AI161: =IF(LEX!AL10="","",LEX!AL10) ->  | AJ161: =IF(LEX!AM10="","",LEX!AM10) ->  | AK161: =IF(LEX!AN10="","",LEX!AN10) ->  | AL161: =IF(LEX!AO10="","",LEX!AO10) ->  | AM161: =IF(LEX!AP10="","",LEX!AP10) -> 
C162: Comp. Esp. 3 | D162: Criterio Evaluación 3.1 | E162: =IF(LEX!H11="","",LEX!H11) ->  | F162: =IF(LEX!I11="","",LEX!I11) ->  | G162: =IF(LEX!J11="","",LEX!J11) ->  | H162: =IF(LEX!K11="","",LEX!K11) ->  | I162: =IF(LEX!L11="","",LEX!L11) ->  | J162: =IF(LEX!M11="","",LEX!M11) ->  | K162: =IF(LEX!N11="","",LEX!N11) ->  | L162: =IF(LEX!O11="","",LEX!O11) ->  | M162: =IF(LEX!P11="","",LEX!P11) ->  | N162: =IF(LEX!Q11="","",LEX!Q11) ->  | O162: =IF(LEX!R11="","",LEX!R11) ->  | P162: =IF(LEX!S11="","",LEX!S11) ->  | Q162: =IF(LEX!T11="","",LEX!T11) ->  | R162: =IF(LEX!U11="","",LEX!U11) ->  | S162: =IF(LEX!V11="","",LEX!V11) ->  | T162: =IF(LEX!W11="","",LEX!W11) ->  | U162: =IF(LEX!X11="","",LEX!X11) ->  | V162: =IF(LEX!Y11="","",LEX!Y11) ->  | W162: =IF(LEX!Z11="","",LEX!Z11) ->  | X162: =IF(LEX!AA11="","",LEX!AA11) ->  | Y162: =IF(LEX!AB11="","",LEX!AB11) ->  | Z162: =IF(LEX!AC11="","",LEX!AC11) ->  | AA162: =IF(LEX!AD11="","",LEX!AD11) ->  | AB162: =IF(LEX!AE11="","",LEX!AE11) ->  | AC162: =IF(LEX!AF11="","",LEX!AF11) ->  | AD162: =IF(LEX!AG11="","",LEX!AG11) ->  | AE162: =IF(LEX!AH11="","",LEX!AH11) ->  | AF162: =IF(LEX!AI11="","",LEX!AI11) ->  | AG162: =IF(LEX!AJ11="","",LEX!AJ11) ->  | AH162: =IF(LEX!AK11="","",LEX!AK11) ->  | AI162: =IF(LEX!AL11="","",LEX!AL11) ->  | AJ162: =IF(LEX!AM11="","",LEX!AM11) ->  | AK162: =IF(LEX!AN11="","",LEX!AN11) ->  | AL162: =IF(LEX!AO11="","",LEX!AO11) ->  | AM162: =IF(LEX!AP11="","",LEX!AP11) -> 
D163: Criterio Evaluación 3.2 | E163: =IF(LEX!H12="","",LEX!H12) ->  | F163: =IF(LEX!I12="","",LEX!I12) ->  | G163: =IF(LEX!J12="","",LEX!J12) ->  | H163: =IF(LEX!K12="","",LEX!K12) ->  | I163: =IF(LEX!L12="","",LEX!L12) ->  | J163: =IF(LEX!M12="","",LEX!M12) ->  | K163: =IF(LEX!N12="","",LEX!N12) ->  | L163: =IF(LEX!O12="","",LEX!O12) ->  | M163: =IF(LEX!P12="","",LEX!P12) ->  | N163: =IF(LEX!Q12="","",LEX!Q12) ->  | O163: =IF(LEX!R12="","",LEX!R12) ->  | P163: =IF(LEX!S12="","",LEX!S12) ->  | Q163: =IF(LEX!T12="","",LEX!T12) ->  | R163: =IF(LEX!U12="","",LEX!U12) ->  | S163: =IF(LEX!V12="","",LEX!V12) ->  | T163: =IF(LEX!W12="","",LEX!W12) ->  | U163: =IF(LEX!X12="","",LEX!X12) ->  | V163: =IF(LEX!Y12="","",LEX!Y12) ->  | W163: =IF(LEX!Z12="","",LEX!Z12) ->  | X163: =IF(LEX!AA12="","",LEX!AA12) ->  | Y163: =IF(LEX!AB12="","",LEX!AB12) ->  | Z163: =IF(LEX!AC12="","",LEX!AC12) ->  | AA163: =IF(LEX!AD12="","",LEX!AD12) ->  | AB163: =IF(LEX!AE12="","",LEX!AE12) ->  | AC163: =IF(LEX!AF12="","",LEX!AF12) ->  | AD163: =IF(LEX!AG12="","",LEX!AG12) ->  | AE163: =IF(LEX!AH12="","",LEX!AH12) ->  | AF163: =IF(LEX!AI12="","",LEX!AI12) ->  | AG163: =IF(LEX!AJ12="","",LEX!AJ12) ->  | AH163: =IF(LEX!AK12="","",LEX!AK12) ->  | AI163: =IF(LEX!AL12="","",LEX!AL12) ->  | AJ163: =IF(LEX!AM12="","",LEX!AM12) ->  | AK163: =IF(LEX!AN12="","",LEX!AN12) ->  | AL163: =IF(LEX!AO12="","",LEX!AO12) ->  | AM163: =IF(LEX!AP12="","",LEX!AP12) -> 
D164: Criterio Evaluación 3.3 | E164: =IF(LEX!H13="","",LEX!H13) ->  | F164: =IF(LEX!I13="","",LEX!I13) ->  | G164: =IF(LEX!J13="","",LEX!J13) ->  | H164: =IF(LEX!K13="","",LEX!K13) ->  | I164: =IF(LEX!L13="","",LEX!L13) ->  | J164: =IF(LEX!M13="","",LEX!M13) ->  | K164: =IF(LEX!N13="","",LEX!N13) ->  | L164: =IF(LEX!O13="","",LEX!O13) ->  | M164: =IF(LEX!P13="","",LEX!P13) ->  | N164: =IF(LEX!Q13="","",LEX!Q13) ->  | O164: =IF(LEX!R13="","",LEX!R13) ->  | P164: =IF(LEX!S13="","",LEX!S13) ->  | Q164: =IF(LEX!T13="","",LEX!T13) ->  | R164: =IF(LEX!U13="","",LEX!U13) ->  | S164: =IF(LEX!V13="","",LEX!V13) ->  | T164: =IF(LEX!W13="","",LEX!W13) ->  | U164: =IF(LEX!X13="","",LEX!X13) ->  | V164: =IF(LEX!Y13="","",LEX!Y13) ->  | W164: =IF(LEX!Z13="","",LEX!Z13) ->  | X164: =IF(LEX!AA13="","",LEX!AA13) ->  | Y164: =IF(LEX!AB13="","",LEX!AB13) ->  | Z164: =IF(LEX!AC13="","",LEX!AC13) ->  | AA164: =IF(LEX!AD13="","",LEX!AD13) ->  | AB164: =IF(LEX!AE13="","",LEX!AE13) ->  | AC164: =IF(LEX!AF13="","",LEX!AF13) ->  | AD164: =IF(LEX!AG13="","",LEX!AG13) ->  | AE164: =IF(LEX!AH13="","",LEX!AH13) ->  | AF164: =IF(LEX!AI13="","",LEX!AI13) ->  | AG164: =IF(LEX!AJ13="","",LEX!AJ13) ->  | AH164: =IF(LEX!AK13="","",LEX!AK13) ->  | AI164: =IF(LEX!AL13="","",LEX!AL13) ->  | AJ164: =IF(LEX!AM13="","",LEX!AM13) ->  | AK164: =IF(LEX!AN13="","",LEX!AN13) ->  | AL164: =IF(LEX!AO13="","",LEX!AO13) ->  | AM164: =IF(LEX!AP13="","",LEX!AP13) -> 
D165: Criterio Evaluación 3.4 | E165: =IF(LEX!H14="","",LEX!H14) ->  | F165: =IF(LEX!I14="","",LEX!I14) ->  | G165: =IF(LEX!J14="","",LEX!J14) ->  | H165: =IF(LEX!K14="","",LEX!K14) ->  | I165: =IF(LEX!L14="","",LEX!L14) ->  | J165: =IF(LEX!M14="","",LEX!M14) ->  | K165: =IF(LEX!N14="","",LEX!N14) ->  | L165: =IF(LEX!O14="","",LEX!O14) ->  | M165: =IF(LEX!P14="","",LEX!P14) ->  | N165: =IF(LEX!Q14="","",LEX!Q14) ->  | O165: =IF(LEX!R14="","",LEX!R14) ->  | P165: =IF(LEX!S14="","",LEX!S14) ->  | Q165: =IF(LEX!T14="","",LEX!T14) ->  | R165: =IF(LEX!U14="","",LEX!U14) ->  | S165: =IF(LEX!V14="","",LEX!V14) ->  | T165: =IF(LEX!W14="","",LEX!W14) ->  | U165: =IF(LEX!X14="","",LEX!X14) ->  | V165: =IF(LEX!Y14="","",LEX!Y14) ->  | W165: =IF(LEX!Z14="","",LEX!Z14) ->  | X165: =IF(LEX!AA14="","",LEX!AA14) ->  | Y165: =IF(LEX!AB14="","",LEX!AB14) ->  | Z165: =IF(LEX!AC14="","",LEX!AC14) ->  | AA165: =IF(LEX!AD14="","",LEX!AD14) ->  | AB165: =IF(LEX!AE14="","",LEX!AE14) ->  | AC165: =IF(LEX!AF14="","",LEX!AF14) ->  | AD165: =IF(LEX!AG14="","",LEX!AG14) ->  | AE165: =IF(LEX!AH14="","",LEX!AH14) ->  | AF165: =IF(LEX!AI14="","",LEX!AI14) ->  | AG165: =IF(LEX!AJ14="","",LEX!AJ14) ->  | AH165: =IF(LEX!AK14="","",LEX!AK14) ->  | AI165: =IF(LEX!AL14="","",LEX!AL14) ->  | AJ165: =IF(LEX!AM14="","",LEX!AM14) ->  | AK165: =IF(LEX!AN14="","",LEX!AN14) ->  | AL165: =IF(LEX!AO14="","",LEX!AO14) ->  | AM165: =IF(LEX!AP14="","",LEX!AP14) -> 
C166: Comp. Esp. 4 | D166: Criterio Evaluación 4.1 | E166: =IF(LEX!H15="","",LEX!H15) ->  | F166: =IF(LEX!I15="","",LEX!I15) ->  | G166: =IF(LEX!J15="","",LEX!J15) ->  | H166: =IF(LEX!K15="","",LEX!K15) ->  | I166: =IF(LEX!L15="","",LEX!L15) ->  | J166: =IF(LEX!M15="","",LEX!M15) ->  | K166: =IF(LEX!N15="","",LEX!N15) ->  | L166: =IF(LEX!O15="","",LEX!O15) ->  | M166: =IF(LEX!P15="","",LEX!P15) ->  | N166: =IF(LEX!Q15="","",LEX!Q15) ->  | O166: =IF(LEX!R15="","",LEX!R15) ->  | P166: =IF(LEX!S15="","",LEX!S15) ->  | Q166: =IF(LEX!T15="","",LEX!T15) ->  | R166: =IF(LEX!U15="","",LEX!U15) ->  | S166: =IF(LEX!V15="","",LEX!V15) ->  | T166: =IF(LEX!W15="","",LEX!W15) ->  | U166: =IF(LEX!X15="","",LEX!X15) ->  | V166: =IF(LEX!Y15="","",LEX!Y15) ->  | W166: =IF(LEX!Z15="","",LEX!Z15) ->  | X166: =IF(LEX!AA15="","",LEX!AA15) ->  | Y166: =IF(LEX!AB15="","",LEX!AB15) ->  | Z166: =IF(LEX!AC15="","",LEX!AC15) ->  | AA166: =IF(LEX!AD15="","",LEX!AD15) ->  | AB166: =IF(LEX!AE15="","",LEX!AE15) ->  | AC166: =IF(LEX!AF15="","",LEX!AF15) ->  | AD166: =IF(LEX!AG15="","",LEX!AG15) ->  | AE166: =IF(LEX!AH15="","",LEX!AH15) ->  | AF166: =IF(LEX!AI15="","",LEX!AI15) ->  | AG166: =IF(LEX!AJ15="","",LEX!AJ15) ->  | AH166: =IF(LEX!AK15="","",LEX!AK15) ->  | AI166: =IF(LEX!AL15="","",LEX!AL15) ->  | AJ166: =IF(LEX!AM15="","",LEX!AM15) ->  | AK166: =IF(LEX!AN15="","",LEX!AN15) ->  | AL166: =IF(LEX!AO15="","",LEX!AO15) ->  | AM166: =IF(LEX!AP15="","",LEX!AP15) -> 
D167: Criterio Evaluación 4.2 | E167: =IF(LEX!H16="","",LEX!H16) ->  | F167: =IF(LEX!I16="","",LEX!I16) ->  | G167: =IF(LEX!J16="","",LEX!J16) ->  | H167: =IF(LEX!K16="","",LEX!K16) ->  | I167: =IF(LEX!L16="","",LEX!L16) ->  | J167: =IF(LEX!M16="","",LEX!M16) ->  | K167: =IF(LEX!N16="","",LEX!N16) ->  | L167: =IF(LEX!O16="","",LEX!O16) ->  | M167: =IF(LEX!P16="","",LEX!P16) ->  | N167: =IF(LEX!Q16="","",LEX!Q16) ->  | O167: =IF(LEX!R16="","",LEX!R16) ->  | P167: =IF(LEX!S16="","",LEX!S16) ->  | Q167: =IF(LEX!T16="","",LEX!T16) ->  | R167: =IF(LEX!U16="","",LEX!U16) ->  | S167: =IF(LEX!V16="","",LEX!V16) ->  | T167: =IF(LEX!W16="","",LEX!W16) ->  | U167: =IF(LEX!X16="","",LEX!X16) ->  | V167: =IF(LEX!Y16="","",LEX!Y16) ->  | W167: =IF(LEX!Z16="","",LEX!Z16) ->  | X167: =IF(LEX!AA16="","",LEX!AA16) ->  | Y167: =IF(LEX!AB16="","",LEX!AB16) ->  | Z167: =IF(LEX!AC16="","",LEX!AC16) ->  | AA167: =IF(LEX!AD16="","",LEX!AD16) ->  | AB167: =IF(LEX!AE16="","",LEX!AE16) ->  | AC167: =IF(LEX!AF16="","",LEX!AF16) ->  | AD167: =IF(LEX!AG16="","",LEX!AG16) ->  | AE167: =IF(LEX!AH16="","",LEX!AH16) ->  | AF167: =IF(LEX!AI16="","",LEX!AI16) ->  | AG167: =IF(LEX!AJ16="","",LEX!AJ16) ->  | AH167: =IF(LEX!AK16="","",LEX!AK16) ->  | AI167: =IF(LEX!AL16="","",LEX!AL16) ->  | AJ167: =IF(LEX!AM16="","",LEX!AM16) ->  | AK167: =IF(LEX!AN16="","",LEX!AN16) ->  | AL167: =IF(LEX!AO16="","",LEX!AO16) ->  | AM167: =IF(LEX!AP16="","",LEX!AP16) -> 
D168: Criterio Evaluación 4.3 | E168: =IF(LEX!H17="","",LEX!H17) ->  | F168: =IF(LEX!I17="","",LEX!I17) ->  | G168: =IF(LEX!J17="","",LEX!J17) ->  | H168: =IF(LEX!K17="","",LEX!K17) ->  | I168: =IF(LEX!L17="","",LEX!L17) ->  | J168: =IF(LEX!M17="","",LEX!M17) ->  | K168: =IF(LEX!N17="","",LEX!N17) ->  | L168: =IF(LEX!O17="","",LEX!O17) ->  | M168: =IF(LEX!P17="","",LEX!P17) ->  | N168: =IF(LEX!Q17="","",LEX!Q17) ->  | O168: =IF(LEX!R17="","",LEX!R17) ->  | P168: =IF(LEX!S17="","",LEX!S17) ->  | Q168: =IF(LEX!T17="","",LEX!T17) ->  | R168: =IF(LEX!U17="","",LEX!U17) ->  | S168: =IF(LEX!V17="","",LEX!V17) ->  | T168: =IF(LEX!W17="","",LEX!W17) ->  | U168: =IF(LEX!X17="","",LEX!X17) ->  | V168: =IF(LEX!Y17="","",LEX!Y17) ->  | W168: =IF(LEX!Z17="","",LEX!Z17) ->  | X168: =IF(LEX!AA17="","",LEX!AA17) ->  | Y168: =IF(LEX!AB17="","",LEX!AB17) ->  | Z168: =IF(LEX!AC17="","",LEX!AC17) ->  | AA168: =IF(LEX!AD17="","",LEX!AD17) ->  | AB168: =IF(LEX!AE17="","",LEX!AE17) ->  | AC168: =IF(LEX!AF17="","",LEX!AF17) ->  | AD168: =IF(LEX!AG17="","",LEX!AG17) ->  | AE168: =IF(LEX!AH17="","",LEX!AH17) ->  | AF168: =IF(LEX!AI17="","",LEX!AI17) ->  | AG168: =IF(LEX!AJ17="","",LEX!AJ17) ->  | AH168: =IF(LEX!AK17="","",LEX!AK17) ->  | AI168: =IF(LEX!AL17="","",LEX!AL17) ->  | AJ168: =IF(LEX!AM17="","",LEX!AM17) ->  | AK168: =IF(LEX!AN17="","",LEX!AN17) ->  | AL168: =IF(LEX!AO17="","",LEX!AO17) ->  | AM168: =IF(LEX!AP17="","",LEX!AP17) -> 
D169: Criterio Evaluación 4.4 | E169: =IF(LEX!H18="","",LEX!H18) ->  | F169: =IF(LEX!I18="","",LEX!I18) ->  | G169: =IF(LEX!J18="","",LEX!J18) ->  | H169: =IF(LEX!K18="","",LEX!K18) ->  | I169: =IF(LEX!L18="","",LEX!L18) ->  | J169: =IF(LEX!M18="","",LEX!M18) ->  | K169: =IF(LEX!N18="","",LEX!N18) ->  | L169: =IF(LEX!O18="","",LEX!O18) ->  | M169: =IF(LEX!P18="","",LEX!P18) ->  | N169: =IF(LEX!Q18="","",LEX!Q18) ->  | O169: =IF(LEX!R18="","",LEX!R18) ->  | P169: =IF(LEX!S18="","",LEX!S18) ->  | Q169: =IF(LEX!T18="","",LEX!T18) ->  | R169: =IF(LEX!U18="","",LEX!U18) ->  | S169: =IF(LEX!V18="","",LEX!V18) ->  | T169: =IF(LEX!W18="","",LEX!W18) ->  | U169: =IF(LEX!X18="","",LEX!X18) ->  | V169: =IF(LEX!Y18="","",LEX!Y18) ->  | W169: =IF(LEX!Z18="","",LEX!Z18) ->  | X169: =IF(LEX!AA18="","",LEX!AA18) ->  | Y169: =IF(LEX!AB18="","",LEX!AB18) ->  | Z169: =IF(LEX!AC18="","",LEX!AC18) ->  | AA169: =IF(LEX!AD18="","",LEX!AD18) ->  | AB169: =IF(LEX!AE18="","",LEX!AE18) ->  | AC169: =IF(LEX!AF18="","",LEX!AF18) ->  | AD169: =IF(LEX!AG18="","",LEX!AG18) ->  | AE169: =IF(LEX!AH18="","",LEX!AH18) ->  | AF169: =IF(LEX!AI18="","",LEX!AI18) ->  | AG169: =IF(LEX!AJ18="","",LEX!AJ18) ->  | AH169: =IF(LEX!AK18="","",LEX!AK18) ->  | AI169: =IF(LEX!AL18="","",LEX!AL18) ->  | AJ169: =IF(LEX!AM18="","",LEX!AM18) ->  | AK169: =IF(LEX!AN18="","",LEX!AN18) ->  | AL169: =IF(LEX!AO18="","",LEX!AO18) ->  | AM169: =IF(LEX!AP18="","",LEX!AP18) -> 
C170: Comp. Esp. 5 | D170: Criterio Evaluación 5.1 | E170: =IF(LEX!H19="","",LEX!H19) ->  | F170: =IF(LEX!I19="","",LEX!I19) ->  | G170: =IF(LEX!J19="","",LEX!J19) ->  | H170: =IF(LEX!K19="","",LEX!K19) ->  | I170: =IF(LEX!L19="","",LEX!L19) ->  | J170: =IF(LEX!M19="","",LEX!M19) ->  | K170: =IF(LEX!N19="","",LEX!N19) ->  | L170: =IF(LEX!O19="","",LEX!O19) ->  | M170: =IF(LEX!P19="","",LEX!P19) ->  | N170: =IF(LEX!Q19="","",LEX!Q19) ->  | O170: =IF(LEX!R19="","",LEX!R19) ->  | P170: =IF(LEX!S19="","",LEX!S19) ->  | Q170: =IF(LEX!T19="","",LEX!T19) ->  | R170: =IF(LEX!U19="","",LEX!U19) ->  | S170: =IF(LEX!V19="","",LEX!V19) ->  | T170: =IF(LEX!W19="","",LEX!W19) ->  | U170: =IF(LEX!X19="","",LEX!X19) ->  | V170: =IF(LEX!Y19="","",LEX!Y19) ->  | W170: =IF(LEX!Z19="","",LEX!Z19) ->  | X170: =IF(LEX!AA19="","",LEX!AA19) ->  | Y170: =IF(LEX!AB19="","",LEX!AB19) ->  | Z170: =IF(LEX!AC19="","",LEX!AC19) ->  | AA170: =IF(LEX!AD19="","",LEX!AD19) ->  | AB170: =IF(LEX!AE19="","",LEX!AE19) ->  | AC170: =IF(LEX!AF19="","",LEX!AF19) ->  | AD170: =IF(LEX!AG19="","",LEX!AG19) ->  | AE170: =IF(LEX!AH19="","",LEX!AH19) ->  | AF170: =IF(LEX!AI19="","",LEX!AI19) ->  | AG170: =IF(LEX!AJ19="","",LEX!AJ19) ->  | AH170: =IF(LEX!AK19="","",LEX!AK19) ->  | AI170: =IF(LEX!AL19="","",LEX!AL19) ->  | AJ170: =IF(LEX!AM19="","",LEX!AM19) ->  | AK170: =IF(LEX!AN19="","",LEX!AN19) ->  | AL170: =IF(LEX!AO19="","",LEX!AO19) ->  | AM170: =IF(LEX!AP19="","",LEX!AP19) -> 
D171: Criterio Evaluación 5.2 | E171: =IF(LEX!H20="","",LEX!H20) ->  | F171: =IF(LEX!I20="","",LEX!I20) ->  | G171: =IF(LEX!J20="","",LEX!J20) ->  | H171: =IF(LEX!K20="","",LEX!K20) ->  | I171: =IF(LEX!L20="","",LEX!L20) ->  | J171: =IF(LEX!M20="","",LEX!M20) ->  | K171: =IF(LEX!N20="","",LEX!N20) ->  | L171: =IF(LEX!O20="","",LEX!O20) ->  | M171: =IF(LEX!P20="","",LEX!P20) ->  | N171: =IF(LEX!Q20="","",LEX!Q20) ->  | O171: =IF(LEX!R20="","",LEX!R20) ->  | P171: =IF(LEX!S20="","",LEX!S20) ->  | Q171: =IF(LEX!T20="","",LEX!T20) ->  | R171: =IF(LEX!U20="","",LEX!U20) ->  | S171: =IF(LEX!V20="","",LEX!V20) ->  | T171: =IF(LEX!W20="","",LEX!W20) ->  | U171: =IF(LEX!X20="","",LEX!X20) ->  | V171: =IF(LEX!Y20="","",LEX!Y20) ->  | W171: =IF(LEX!Z20="","",LEX!Z20) ->  | X171: =IF(LEX!AA20="","",LEX!AA20) ->  | Y171: =IF(LEX!AB20="","",LEX!AB20) ->  | Z171: =IF(LEX!AC20="","",LEX!AC20) ->  | AA171: =IF(LEX!AD20="","",LEX!AD20) ->  | AB171: =IF(LEX!AE20="","",LEX!AE20) ->  | AC171: =IF(LEX!AF20="","",LEX!AF20) ->  | AD171: =IF(LEX!AG20="","",LEX!AG20) ->  | AE171: =IF(LEX!AH20="","",LEX!AH20) ->  | AF171: =IF(LEX!AI20="","",LEX!AI20) ->  | AG171: =IF(LEX!AJ20="","",LEX!AJ20) ->  | AH171: =IF(LEX!AK20="","",LEX!AK20) ->  | AI171: =IF(LEX!AL20="","",LEX!AL20) ->  | AJ171: =IF(LEX!AM20="","",LEX!AM20) ->  | AK171: =IF(LEX!AN20="","",LEX!AN20) ->  | AL171: =IF(LEX!AO20="","",LEX!AO20) ->  | AM171: =IF(LEX!AP20="","",LEX!AP20) -> 
D172: Criterio Evaluación 5.3 | E172: =IF(LEX!H21="","",LEX!H21) ->  | F172: =IF(LEX!I21="","",LEX!I21) ->  | G172: =IF(LEX!J21="","",LEX!J21) ->  | H172: =IF(LEX!K21="","",LEX!K21) ->  | I172: =IF(LEX!L21="","",LEX!L21) ->  | J172: =IF(LEX!M21="","",LEX!M21) ->  | K172: =IF(LEX!N21="","",LEX!N21) ->  | L172: =IF(LEX!O21="","",LEX!O21) ->  | M172: =IF(LEX!P21="","",LEX!P21) ->  | N172: =IF(LEX!Q21="","",LEX!Q21) ->  | O172: =IF(LEX!R21="","",LEX!R21) ->  | P172: =IF(LEX!S21="","",LEX!S21) ->  | Q172: =IF(LEX!T21="","",LEX!T21) ->  | R172: =IF(LEX!U21="","",LEX!U21) ->  | S172: =IF(LEX!V21="","",LEX!V21) ->  | T172: =IF(LEX!W21="","",LEX!W21) ->  | U172: =IF(LEX!X21="","",LEX!X21) ->  | V172: =IF(LEX!Y21="","",LEX!Y21) ->  | W172: =IF(LEX!Z21="","",LEX!Z21) ->  | X172: =IF(LEX!AA21="","",LEX!AA21) ->  | Y172: =IF(LEX!AB21="","",LEX!AB21) ->  | Z172: =IF(LEX!AC21="","",LEX!AC21) ->  | AA172: =IF(LEX!AD21="","",LEX!AD21) ->  | AB172: =IF(LEX!AE21="","",LEX!AE21) ->  | AC172: =IF(LEX!AF21="","",LEX!AF21) ->  | AD172: =IF(LEX!AG21="","",LEX!AG21) ->  | AE172: =IF(LEX!AH21="","",LEX!AH21) ->  | AF172: =IF(LEX!AI21="","",LEX!AI21) ->  | AG172: =IF(LEX!AJ21="","",LEX!AJ21) ->  | AH172: =IF(LEX!AK21="","",LEX!AK21) ->  | AI172: =IF(LEX!AL21="","",LEX!AL21) ->  | AJ172: =IF(LEX!AM21="","",LEX!AM21) ->  | AK172: =IF(LEX!AN21="","",LEX!AN21) ->  | AL172: =IF(LEX!AO21="","",LEX!AO21) ->  | AM172: =IF(LEX!AP21="","",LEX!AP21) -> 
C173: Comp. Esp. 6 | D173: Criterio Evaluación 6.1 | E173: =IF(LEX!H22="","",LEX!H22) ->  | F173: =IF(LEX!I22="","",LEX!I22) ->  | G173: =IF(LEX!J22="","",LEX!J22) ->  | H173: =IF(LEX!K22="","",LEX!K22) ->  | I173: =IF(LEX!L22="","",LEX!L22) ->  | J173: =IF(LEX!M22="","",LEX!M22) ->  | K173: =IF(LEX!N22="","",LEX!N22) ->  | L173: =IF(LEX!O22="","",LEX!O22) ->  | M173: =IF(LEX!P22="","",LEX!P22) ->  | N173: =IF(LEX!Q22="","",LEX!Q22) ->  | O173: =IF(LEX!R22="","",LEX!R22) ->  | P173: =IF(LEX!S22="","",LEX!S22) ->  | Q173: =IF(LEX!T22="","",LEX!T22) ->  | R173: =IF(LEX!U22="","",LEX!U22) ->  | S173: =IF(LEX!V22="","",LEX!V22) ->  | T173: =IF(LEX!W22="","",LEX!W22) ->  | U173: =IF(LEX!X22="","",LEX!X22) ->  | V173: =IF(LEX!Y22="","",LEX!Y22) ->  | W173: =IF(LEX!Z22="","",LEX!Z22) ->  | X173: =IF(LEX!AA22="","",LEX!AA22) ->  | Y173: =IF(LEX!AB22="","",LEX!AB22) ->  | Z173: =IF(LEX!AC22="","",LEX!AC22) ->  | AA173: =IF(LEX!AD22="","",LEX!AD22) ->  | AB173: =IF(LEX!AE22="","",LEX!AE22) ->  | AC173: =IF(LEX!AF22="","",LEX!AF22) ->  | AD173: =IF(LEX!AG22="","",LEX!AG22) ->  | AE173: =IF(LEX!AH22="","",LEX!AH22) ->  | AF173: =IF(LEX!AI22="","",LEX!AI22) ->  | AG173: =IF(LEX!AJ22="","",LEX!AJ22) ->  | AH173: =IF(LEX!AK22="","",LEX!AK22) ->  | AI173: =IF(LEX!AL22="","",LEX!AL22) ->  | AJ173: =IF(LEX!AM22="","",LEX!AM22) ->  | AK173: =IF(LEX!AN22="","",LEX!AN22) ->  | AL173: =IF(LEX!AO22="","",LEX!AO22) ->  | AM173: =IF(LEX!AP22="","",LEX!AP22) -> 
D174: Criterio Evaluación 6.2 | E174: =IF(LEX!H23="","",LEX!H23) ->  | F174: =IF(LEX!I23="","",LEX!I23) ->  | G174: =IF(LEX!J23="","",LEX!J23) ->  | H174: =IF(LEX!K23="","",LEX!K23) ->  | I174: =IF(LEX!L23="","",LEX!L23) ->  | J174: =IF(LEX!M23="","",LEX!M23) ->  | K174: =IF(LEX!N23="","",LEX!N23) ->  | L174: =IF(LEX!O23="","",LEX!O23) ->  | M174: =IF(LEX!P23="","",LEX!P23) ->  | N174: =IF(LEX!Q23="","",LEX!Q23) ->  | O174: =IF(LEX!R23="","",LEX!R23) ->  | P174: =IF(LEX!S23="","",LEX!S23) ->  | Q174: =IF(LEX!T23="","",LEX!T23) ->  | R174: =IF(LEX!U23="","",LEX!U23) ->  | S174: =IF(LEX!V23="","",LEX!V23) ->  | T174: =IF(LEX!W23="","",LEX!W23) ->  | U174: =IF(LEX!X23="","",LEX!X23) ->  | V174: =IF(LEX!Y23="","",LEX!Y23) ->  | W174: =IF(LEX!Z23="","",LEX!Z23) ->  | X174: =IF(LEX!AA23="","",LEX!AA23) ->  | Y174: =IF(LEX!AB23="","",LEX!AB23) ->  | Z174: =IF(LEX!AC23="","",LEX!AC23) ->  | AA174: =IF(LEX!AD23="","",LEX!AD23) ->  | AB174: =IF(LEX!AE23="","",LEX!AE23) ->  | AC174: =IF(LEX!AF23="","",LEX!AF23) ->  | AD174: =IF(LEX!AG23="","",LEX!AG23) ->  | AE174: =IF(LEX!AH23="","",LEX!AH23) ->  | AF174: =IF(LEX!AI23="","",LEX!AI23) ->  | AG174: =IF(LEX!AJ23="","",LEX!AJ23) ->  | AH174: =IF(LEX!AK23="","",LEX!AK23) ->  | AI174: =IF(LEX!AL23="","",LEX!AL23) ->  | AJ174: =IF(LEX!AM23="","",LEX!AM23) ->  | AK174: =IF(LEX!AN23="","",LEX!AN23) ->  | AL174: =IF(LEX!AO23="","",LEX!AO23) ->  | AM174: =IF(LEX!AP23="","",LEX!AP23) -> 
D175: Criterio Evaluación 6.3 | E175: =IF(LEX!H24="","",LEX!H24) ->  | F175: =IF(LEX!I24="","",LEX!I24) ->  | G175: =IF(LEX!J24="","",LEX!J24) ->  | H175: =IF(LEX!K24="","",LEX!K24) ->  | I175: =IF(LEX!L24="","",LEX!L24) ->  | J175: =IF(LEX!M24="","",LEX!M24) ->  | K175: =IF(LEX!N24="","",LEX!N24) ->  | L175: =IF(LEX!O24="","",LEX!O24) ->  | M175: =IF(LEX!P24="","",LEX!P24) ->  | N175: =IF(LEX!Q24="","",LEX!Q24) ->  | O175: =IF(LEX!R24="","",LEX!R24) ->  | P175: =IF(LEX!S24="","",LEX!S24) ->  | Q175: =IF(LEX!T24="","",LEX!T24) ->  | R175: =IF(LEX!U24="","",LEX!U24) ->  | S175: =IF(LEX!V24="","",LEX!V24) ->  | T175: =IF(LEX!W24="","",LEX!W24) ->  | U175: =IF(LEX!X24="","",LEX!X24) ->  | V175: =IF(LEX!Y24="","",LEX!Y24) ->  | W175: =IF(LEX!Z24="","",LEX!Z24) ->  | X175: =IF(LEX!AA24="","",LEX!AA24) ->  | Y175: =IF(LEX!AB24="","",LEX!AB24) ->  | Z175: =IF(LEX!AC24="","",LEX!AC24) ->  | AA175: =IF(LEX!AD24="","",LEX!AD24) ->  | AB175: =IF(LEX!AE24="","",LEX!AE24) ->  | AC175: =IF(LEX!AF24="","",LEX!AF24) ->  | AD175: =IF(LEX!AG24="","",LEX!AG24) ->  | AE175: =IF(LEX!AH24="","",LEX!AH24) ->  | AF175: =IF(LEX!AI24="","",LEX!AI24) ->  | AG175: =IF(LEX!AJ24="","",LEX!AJ24) ->  | AH175: =IF(LEX!AK24="","",LEX!AK24) ->  | AI175: =IF(LEX!AL24="","",LEX!AL24) ->  | AJ175: =IF(LEX!AM24="","",LEX!AM24) ->  | AK175: =IF(LEX!AN24="","",LEX!AN24) ->  | AL175: =IF(LEX!AO24="","",LEX!AO24) ->  | AM175: =IF(LEX!AP24="","",LEX!AP24) -> 
B176: Materia dirigida al alumnado que no cursa religión | C176: Comp. Esp. 1 | D176: Criterio Evaluación 1.1 | E176: =IF(MNR!H$3="","",MNR!H$3) ->  | F176: =IF(MNR!I$3="","",MNR!I$3) ->  | G176: =IF(MNR!J$3="","",MNR!J$3) ->  | H176: =IF(MNR!K$3="","",MNR!K$3) ->  | I176: =IF(MNR!L$3="","",MNR!L$3) ->  | J176: =IF(MNR!M$3="","",MNR!M$3) ->  | K176: =IF(MNR!N$3="","",MNR!N$3) ->  | L176: =IF(MNR!O$3="","",MNR!O$3) ->  | M176: =IF(MNR!P$3="","",MNR!P$3) ->  | N176: =IF(MNR!Q$3="","",MNR!Q$3) ->  | O176: =IF(MNR!R$3="","",MNR!R$3) ->  | P176: =IF(MNR!S$3="","",MNR!S$3) ->  | Q176: =IF(MNR!T$3="","",MNR!T$3) ->  | R176: =IF(MNR!U$3="","",MNR!U$3) ->  | S176: =IF(MNR!V$3="","",MNR!V$3) ->  | T176: =IF(MNR!W$3="","",MNR!W$3) ->  | U176: =IF(MNR!X$3="","",MNR!X$3) ->  | V176: =IF(MNR!Y$3="","",MNR!Y$3) ->  | W176: =IF(MNR!Z$3="","",MNR!Z$3) ->  | X176: =IF(MNR!AA$3="","",MNR!AA$3) ->  | Y176: =IF(MNR!AB$3="","",MNR!AB$3) ->  | Z176: =IF(MNR!AC$3="","",MNR!AC$3) ->  | AA176: =IF(MNR!AD$3="","",MNR!AD$3) ->  | AB176: =IF(MNR!AE$3="","",MNR!AE$3) ->  | AC176: =IF(MNR!AF$3="","",MNR!AF$3) ->  | AD176: =IF(MNR!AG$3="","",MNR!AG$3) ->  | AE176: =IF(MNR!AH$3="","",MNR!AH$3) ->  | AF176: =IF(MNR!AI$3="","",MNR!AI$3) ->  | AG176: =IF(MNR!AJ$3="","",MNR!AJ$3) ->  | AH176: =IF(MNR!AK$3="","",MNR!AK$3) ->  | AI176: =IF(MNR!AL$3="","",MNR!AL$3) ->  | AJ176: =IF(MNR!AM$3="","",MNR!AM$3) ->  | AK176: =IF(MNR!AN$3="","",MNR!AN$3) ->  | AL176: =IF(MNR!AO$3="","",MNR!AO$3) ->  | AM176: =IF(MNR!AP$3="","",MNR!AP$3) -> 
C177: Comp. Esp. 2 | D177: Criterio Evaluación 2.1 | E177: =IF(MNR!H$3="","",MNR!H$3) ->  | F177: =IF(MNR!I$3="","",MNR!I$3) ->  | G177: =IF(MNR!J$3="","",MNR!J$3) ->  | H177: =IF(MNR!K$3="","",MNR!K$3) ->  | I177: =IF(MNR!L$3="","",MNR!L$3) ->  | J177: =IF(MNR!M$3="","",MNR!M$3) ->  | K177: =IF(MNR!N$3="","",MNR!N$3) ->  | L177: =IF(MNR!O$3="","",MNR!O$3) ->  | M177: =IF(MNR!P$3="","",MNR!P$3) ->  | N177: =IF(MNR!Q$3="","",MNR!Q$3) ->  | O177: =IF(MNR!R$3="","",MNR!R$3) ->  | P177: =IF(MNR!S$3="","",MNR!S$3) ->  | Q177: =IF(MNR!T$3="","",MNR!T$3) ->  | R177: =IF(MNR!U$3="","",MNR!U$3) ->  | S177: =IF(MNR!V$3="","",MNR!V$3) ->  | T177: =IF(MNR!W$3="","",MNR!W$3) ->  | U177: =IF(MNR!X$3="","",MNR!X$3) ->  | V177: =IF(MNR!Y$3="","",MNR!Y$3) ->  | W177: =IF(MNR!Z$3="","",MNR!Z$3) ->  | X177: =IF(MNR!AA$3="","",MNR!AA$3) ->  | Y177: =IF(MNR!AB$3="","",MNR!AB$3) ->  | Z177: =IF(MNR!AC$3="","",MNR!AC$3) ->  | AA177: =IF(MNR!AD$3="","",MNR!AD$3) ->  | AB177: =IF(MNR!AE$3="","",MNR!AE$3) ->  | AC177: =IF(MNR!AF$3="","",MNR!AF$3) ->  | AD177: =IF(MNR!AG$3="","",MNR!AG$3) ->  | AE177: =IF(MNR!AH$3="","",MNR!AH$3) ->  | AF177: =IF(MNR!AI$3="","",MNR!AI$3) ->  | AG177: =IF(MNR!AJ$3="","",MNR!AJ$3) ->  | AH177: =IF(MNR!AK$3="","",MNR!AK$3) ->  | AI177: =IF(MNR!AL$3="","",MNR!AL$3) ->  | AJ177: =IF(MNR!AM$3="","",MNR!AM$3) ->  | AK177: =IF(MNR!AN$3="","",MNR!AN$3) ->  | AL177: =IF(MNR!AO$3="","",MNR!AO$3) ->  | AM177: =IF(MNR!AP$3="","",MNR!AP$3) -> 
C178: Comp. Esp. 3 | D178: Criterio Evaluación 3.1 | E178: =IF(MNR!H$3="","",MNR!H$3) ->  | F178: =IF(MNR!I$3="","",MNR!I$3) ->  | G178: =IF(MNR!J$3="","",MNR!J$3) ->  | H178: =IF(MNR!K$3="","",MNR!K$3) ->  | I178: =IF(MNR!L$3="","",MNR!L$3) ->  | J178: =IF(MNR!M$3="","",MNR!M$3) ->  | K178: =IF(MNR!N$3="","",MNR!N$3) ->  | L178: =IF(MNR!O$3="","",MNR!O$3) ->  | M178: =IF(MNR!P$3="","",MNR!P$3) ->  | N178: =IF(MNR!Q$3="","",MNR!Q$3) ->  | O178: =IF(MNR!R$3="","",MNR!R$3) ->  | P178: =IF(MNR!S$3="","",MNR!S$3) ->  | Q178: =IF(MNR!T$3="","",MNR!T$3) ->  | R178: =IF(MNR!U$3="","",MNR!U$3) ->  | S178: =IF(MNR!V$3="","",MNR!V$3) ->  | T178: =IF(MNR!W$3="","",MNR!W$3) ->  | U178: =IF(MNR!X$3="","",MNR!X$3) ->  | V178: =IF(MNR!Y$3="","",MNR!Y$3) ->  | W178: =IF(MNR!Z$3="","",MNR!Z$3) ->  | X178: =IF(MNR!AA$3="","",MNR!AA$3) ->  | Y178: =IF(MNR!AB$3="","",MNR!AB$3) ->  | Z178: =IF(MNR!AC$3="","",MNR!AC$3) ->  | AA178: =IF(MNR!AD$3="","",MNR!AD$3) ->  | AB178: =IF(MNR!AE$3="","",MNR!AE$3) ->  | AC178: =IF(MNR!AF$3="","",MNR!AF$3) ->  | AD178: =IF(MNR!AG$3="","",MNR!AG$3) ->  | AE178: =IF(MNR!AH$3="","",MNR!AH$3) ->  | AF178: =IF(MNR!AI$3="","",MNR!AI$3) ->  | AG178: =IF(MNR!AJ$3="","",MNR!AJ$3) ->  | AH178: =IF(MNR!AK$3="","",MNR!AK$3) ->  | AI178: =IF(MNR!AL$3="","",MNR!AL$3) ->  | AJ178: =IF(MNR!AM$3="","",MNR!AM$3) ->  | AK178: =IF(MNR!AN$3="","",MNR!AN$3) ->  | AL178: =IF(MNR!AO$3="","",MNR!AO$3) ->  | AM178: =IF(MNR!AP$3="","",MNR!AP$3) -> 
C179: Comp. Esp. 4 | D179: Criterio Evaluación 4.1 | E179: =IF(MNR!H$3="","",MNR!H$3) ->  | F179: =IF(MNR!I$3="","",MNR!I$3) ->  | G179: =IF(MNR!J$3="","",MNR!J$3) ->  | H179: =IF(MNR!K$3="","",MNR!K$3) ->  | I179: =IF(MNR!L$3="","",MNR!L$3) ->  | J179: =IF(MNR!M$3="","",MNR!M$3) ->  | K179: =IF(MNR!N$3="","",MNR!N$3) ->  | L179: =IF(MNR!O$3="","",MNR!O$3) ->  | M179: =IF(MNR!P$3="","",MNR!P$3) ->  | N179: =IF(MNR!Q$3="","",MNR!Q$3) ->  | O179: =IF(MNR!R$3="","",MNR!R$3) ->  | P179: =IF(MNR!S$3="","",MNR!S$3) ->  | Q179: =IF(MNR!T$3="","",MNR!T$3) ->  | R179: =IF(MNR!U$3="","",MNR!U$3) ->  | S179: =IF(MNR!V$3="","",MNR!V$3) ->  | T179: =IF(MNR!W$3="","",MNR!W$3) ->  | U179: =IF(MNR!X$3="","",MNR!X$3) ->  | V179: =IF(MNR!Y$3="","",MNR!Y$3) ->  | W179: =IF(MNR!Z$3="","",MNR!Z$3) ->  | X179: =IF(MNR!AA$3="","",MNR!AA$3) ->  | Y179: =IF(MNR!AB$3="","",MNR!AB$3) ->  | Z179: =IF(MNR!AC$3="","",MNR!AC$3) ->  | AA179: =IF(MNR!AD$3="","",MNR!AD$3) ->  | AB179: =IF(MNR!AE$3="","",MNR!AE$3) ->  | AC179: =IF(MNR!AF$3="","",MNR!AF$3) ->  | AD179: =IF(MNR!AG$3="","",MNR!AG$3) ->  | AE179: =IF(MNR!AH$3="","",MNR!AH$3) ->  | AF179: =IF(MNR!AI$3="","",MNR!AI$3) ->  | AG179: =IF(MNR!AJ$3="","",MNR!AJ$3) ->  | AH179: =IF(MNR!AK$3="","",MNR!AK$3) ->  | AI179: =IF(MNR!AL$3="","",MNR!AL$3) ->  | AJ179: =IF(MNR!AM$3="","",MNR!AM$3) ->  | AK179: =IF(MNR!AN$3="","",MNR!AN$3) ->  | AL179: =IF(MNR!AO$3="","",MNR!AO$3) ->  | AM179: =IF(MNR!AP$3="","",MNR!AP$3) -> 
C180: Comp. Esp. 5 | D180: Criterio Evaluación 5.1 | E180: =IF(MNR!H$3="","",MNR!H$3) ->  | F180: =IF(MNR!I$3="","",MNR!I$3) ->  | G180: =IF(MNR!J$3="","",MNR!J$3) ->  | H180: =IF(MNR!K$3="","",MNR!K$3) ->  | I180: =IF(MNR!L$3="","",MNR!L$3) ->  | J180: =IF(MNR!M$3="","",MNR!M$3) ->  | K180: =IF(MNR!N$3="","",MNR!N$3) ->  | L180: =IF(MNR!O$3="","",MNR!O$3) ->  | M180: =IF(MNR!P$3="","",MNR!P$3) ->  | N180: =IF(MNR!Q$3="","",MNR!Q$3) ->  | O180: =IF(MNR!R$3="","",MNR!R$3) ->  | P180: =IF(MNR!S$3="","",MNR!S$3) ->  | Q180: =IF(MNR!T$3="","",MNR!T$3) ->  | R180: =IF(MNR!U$3="","",MNR!U$3) ->  | S180: =IF(MNR!V$3="","",MNR!V$3) ->  | T180: =IF(MNR!W$3="","",MNR!W$3) ->  | U180: =IF(MNR!X$3="","",MNR!X$3) ->  | V180: =IF(MNR!Y$3="","",MNR!Y$3) ->  | W180: =IF(MNR!Z$3="","",MNR!Z$3) ->  | X180: =IF(MNR!AA$3="","",MNR!AA$3) ->  | Y180: =IF(MNR!AB$3="","",MNR!AB$3) ->  | Z180: =IF(MNR!AC$3="","",MNR!AC$3) ->  | AA180: =IF(MNR!AD$3="","",MNR!AD$3) ->  | AB180: =IF(MNR!AE$3="","",MNR!AE$3) ->  | AC180: =IF(MNR!AF$3="","",MNR!AF$3) ->  | AD180: =IF(MNR!AG$3="","",MNR!AG$3) ->  | AE180: =IF(MNR!AH$3="","",MNR!AH$3) ->  | AF180: =IF(MNR!AI$3="","",MNR!AI$3) ->  | AG180: =IF(MNR!AJ$3="","",MNR!AJ$3) ->  | AH180: =IF(MNR!AK$3="","",MNR!AK$3) ->  | AI180: =IF(MNR!AL$3="","",MNR!AL$3) ->  | AJ180: =IF(MNR!AM$3="","",MNR!AM$3) ->  | AK180: =IF(MNR!AN$3="","",MNR!AN$3) ->  | AL180: =IF(MNR!AO$3="","",MNR!AO$3) ->  | AM180: =IF(MNR!AP$3="","",MNR!AP$3) -> 
C181: Comp. Esp. 6 | D181: Criterio Evaluación 6.1 | E181: =IF(MNR!H$3="","",MNR!H$3) ->  | F181: =IF(MNR!I$3="","",MNR!I$3) ->  | G181: =IF(MNR!J$3="","",MNR!J$3) ->  | H181: =IF(MNR!K$3="","",MNR!K$3) ->  | I181: =IF(MNR!L$3="","",MNR!L$3) ->  | J181: =IF(MNR!M$3="","",MNR!M$3) ->  | K181: =IF(MNR!N$3="","",MNR!N$3) ->  | L181: =IF(MNR!O$3="","",MNR!O$3) ->  | M181: =IF(MNR!P$3="","",MNR!P$3) ->  | N181: =IF(MNR!Q$3="","",MNR!Q$3) ->  | O181: =IF(MNR!R$3="","",MNR!R$3) ->  | P181: =IF(MNR!S$3="","",MNR!S$3) ->  | Q181: =IF(MNR!T$3="","",MNR!T$3) ->  | R181: =IF(MNR!U$3="","",MNR!U$3) ->  | S181: =IF(MNR!V$3="","",MNR!V$3) ->  | T181: =IF(MNR!W$3="","",MNR!W$3) ->  | U181: =IF(MNR!X$3="","",MNR!X$3) ->  | V181: =IF(MNR!Y$3="","",MNR!Y$3) ->  | W181: =IF(MNR!Z$3="","",MNR!Z$3) ->  | X181: =IF(MNR!AA$3="","",MNR!AA$3) ->  | Y181: =IF(MNR!AB$3="","",MNR!AB$3) ->  | Z181: =IF(MNR!AC$3="","",MNR!AC$3) ->  | AA181: =IF(MNR!AD$3="","",MNR!AD$3) ->  | AB181: =IF(MNR!AE$3="","",MNR!AE$3) ->  | AC181: =IF(MNR!AF$3="","",MNR!AF$3) ->  | AD181: =IF(MNR!AG$3="","",MNR!AG$3) ->  | AE181: =IF(MNR!AH$3="","",MNR!AH$3) ->  | AF181: =IF(MNR!AI$3="","",MNR!AI$3) ->  | AG181: =IF(MNR!AJ$3="","",MNR!AJ$3) ->  | AH181: =IF(MNR!AK$3="","",MNR!AK$3) ->  | AI181: =IF(MNR!AL$3="","",MNR!AL$3) ->  | AJ181: =IF(MNR!AM$3="","",MNR!AM$3) ->  | AK181: =IF(MNR!AN$3="","",MNR!AN$3) ->  | AL181: =IF(MNR!AO$3="","",MNR!AO$3) ->  | AM181: =IF(MNR!AP$3="","",MNR!AP$3) -> 
B182: Música | C182: Comp. Esp. 1 | D182: Criterio Evaluación 1.1 | E182: =IF(MUS!H4="","",MUS!H4) ->  | F182: =IF(MUS!I4="","",MUS!I4) ->  | G182: =IF(MUS!J4="","",MUS!J4) ->  | H182: =IF(MUS!K4="","",MUS!K4) ->  | I182: =IF(MUS!L4="","",MUS!L4) ->  | J182: =IF(MUS!M4="","",MUS!M4) ->  | K182: =IF(MUS!N4="","",MUS!N4) ->  | L182: =IF(MUS!O4="","",MUS!O4) ->  | M182: =IF(MUS!P4="","",MUS!P4) ->  | N182: =IF(MUS!Q4="","",MUS!Q4) ->  | O182: =IF(MUS!R4="","",MUS!R4) ->  | P182: =IF(MUS!S4="","",MUS!S4) ->  | Q182: =IF(MUS!T4="","",MUS!T4) ->  | R182: =IF(MUS!U4="","",MUS!U4) ->  | S182: =IF(MUS!V4="","",MUS!V4) ->  | T182: =IF(MUS!W4="","",MUS!W4) ->  | U182: =IF(MUS!X4="","",MUS!X4) ->  | V182: =IF(MUS!Y4="","",MUS!Y4) ->  | W182: =IF(MUS!Z4="","",MUS!Z4) ->  | X182: =IF(MUS!AA4="","",MUS!AA4) ->  | Y182: =IF(MUS!AB4="","",MUS!AB4) ->  | Z182: =IF(MUS!AC4="","",MUS!AC4) ->  | AA182: =IF(MUS!AD4="","",MUS!AD4) ->  | AB182: =IF(MUS!AE4="","",MUS!AE4) ->  | AC182: =IF(MUS!AF4="","",MUS!AF4) ->  | AD182: =IF(MUS!AG4="","",MUS!AG4) ->  | AE182: =IF(MUS!AH4="","",MUS!AH4) ->  | AF182: =IF(MUS!AI4="","",MUS!AI4) ->  | AG182: =IF(MUS!AJ4="","",MUS!AJ4) ->  | AH182: =IF(MUS!AK4="","",MUS!AK4) ->  | AI182: =IF(MUS!AL4="","",MUS!AL4) ->  | AJ182: =IF(MUS!AM4="","",MUS!AM4) ->  | AK182: =IF(MUS!AN4="","",MUS!AN4) ->  | AL182: =IF(MUS!AO4="","",MUS!AO4) ->  | AM182: =IF(MUS!AP4="","",MUS!AP4) -> 
D183: Criterio Evaluación 1.2 | E183: =IF(MUS!H5="","",MUS!H5) ->  | F183: =IF(MUS!I5="","",MUS!I5) ->  | G183: =IF(MUS!J5="","",MUS!J5) ->  | H183: =IF(MUS!K5="","",MUS!K5) ->  | I183: =IF(MUS!L5="","",MUS!L5) ->  | J183: =IF(MUS!M5="","",MUS!M5) ->  | K183: =IF(MUS!N5="","",MUS!N5) ->  | L183: =IF(MUS!O5="","",MUS!O5) ->  | M183: =IF(MUS!P5="","",MUS!P5) ->  | N183: =IF(MUS!Q5="","",MUS!Q5) ->  | O183: =IF(MUS!R5="","",MUS!R5) ->  | P183: =IF(MUS!S5="","",MUS!S5) ->  | Q183: =IF(MUS!T5="","",MUS!T5) ->  | R183: =IF(MUS!U5="","",MUS!U5) ->  | S183: =IF(MUS!V5="","",MUS!V5) ->  | T183: =IF(MUS!W5="","",MUS!W5) ->  | U183: =IF(MUS!X5="","",MUS!X5) ->  | V183: =IF(MUS!Y5="","",MUS!Y5) ->  | W183: =IF(MUS!Z5="","",MUS!Z5) ->  | X183: =IF(MUS!AA5="","",MUS!AA5) ->  | Y183: =IF(MUS!AB5="","",MUS!AB5) ->  | Z183: =IF(MUS!AC5="","",MUS!AC5) ->  | AA183: =IF(MUS!AD5="","",MUS!AD5) ->  | AB183: =IF(MUS!AE5="","",MUS!AE5) ->  | AC183: =IF(MUS!AF5="","",MUS!AF5) ->  | AD183: =IF(MUS!AG5="","",MUS!AG5) ->  | AE183: =IF(MUS!AH5="","",MUS!AH5) ->  | AF183: =IF(MUS!AI5="","",MUS!AI5) ->  | AG183: =IF(MUS!AJ5="","",MUS!AJ5) ->  | AH183: =IF(MUS!AK5="","",MUS!AK5) ->  | AI183: =IF(MUS!AL5="","",MUS!AL5) ->  | AJ183: =IF(MUS!AM5="","",MUS!AM5) ->  | AK183: =IF(MUS!AN5="","",MUS!AN5) ->  | AL183: =IF(MUS!AO5="","",MUS!AO5) ->  | AM183: =IF(MUS!AP5="","",MUS!AP5) -> 
D184: Criterio Evaluación 1.3 | E184: =IF(MUS!H6="","",MUS!H6) ->  | F184: =IF(MUS!I6="","",MUS!I6) ->  | G184: =IF(MUS!J6="","",MUS!J6) ->  | H184: =IF(MUS!K6="","",MUS!K6) ->  | I184: =IF(MUS!L6="","",MUS!L6) ->  | J184: =IF(MUS!M6="","",MUS!M6) ->  | K184: =IF(MUS!N6="","",MUS!N6) ->  | L184: =IF(MUS!O6="","",MUS!O6) ->  | M184: =IF(MUS!P6="","",MUS!P6) ->  | N184: =IF(MUS!Q6="","",MUS!Q6) ->  | O184: =IF(MUS!R6="","",MUS!R6) ->  | P184: =IF(MUS!S6="","",MUS!S6) ->  | Q184: =IF(MUS!T6="","",MUS!T6) ->  | R184: =IF(MUS!U6="","",MUS!U6) ->  | S184: =IF(MUS!V6="","",MUS!V6) ->  | T184: =IF(MUS!W6="","",MUS!W6) ->  | U184: =IF(MUS!X6="","",MUS!X6) ->  | V184: =IF(MUS!Y6="","",MUS!Y6) ->  | W184: =IF(MUS!Z6="","",MUS!Z6) ->  | X184: =IF(MUS!AA6="","",MUS!AA6) ->  | Y184: =IF(MUS!AB6="","",MUS!AB6) ->  | Z184: =IF(MUS!AC6="","",MUS!AC6) ->  | AA184: =IF(MUS!AD6="","",MUS!AD6) ->  | AB184: =IF(MUS!AE6="","",MUS!AE6) ->  | AC184: =IF(MUS!AF6="","",MUS!AF6) ->  | AD184: =IF(MUS!AG6="","",MUS!AG6) ->  | AE184: =IF(MUS!AH6="","",MUS!AH6) ->  | AF184: =IF(MUS!AI6="","",MUS!AI6) ->  | AG184: =IF(MUS!AJ6="","",MUS!AJ6) ->  | AH184: =IF(MUS!AK6="","",MUS!AK6) ->  | AI184: =IF(MUS!AL6="","",MUS!AL6) ->  | AJ184: =IF(MUS!AM6="","",MUS!AM6) ->  | AK184: =IF(MUS!AN6="","",MUS!AN6) ->  | AL184: =IF(MUS!AO6="","",MUS!AO6) ->  | AM184: =IF(MUS!AP6="","",MUS!AP6) -> 
D185: Criterio Evaluación 1.4 | E185: =IF(MUS!H7="","",MUS!H7) ->  | F185: =IF(MUS!I7="","",MUS!I7) ->  | G185: =IF(MUS!J7="","",MUS!J7) ->  | H185: =IF(MUS!K7="","",MUS!K7) ->  | I185: =IF(MUS!L7="","",MUS!L7) ->  | J185: =IF(MUS!M7="","",MUS!M7) ->  | K185: =IF(MUS!N7="","",MUS!N7) ->  | L185: =IF(MUS!O7="","",MUS!O7) ->  | M185: =IF(MUS!P7="","",MUS!P7) ->  | N185: =IF(MUS!Q7="","",MUS!Q7) ->  | O185: =IF(MUS!R7="","",MUS!R7) ->  | P185: =IF(MUS!S7="","",MUS!S7) ->  | Q185: =IF(MUS!T7="","",MUS!T7) ->  | R185: =IF(MUS!U7="","",MUS!U7) ->  | S185: =IF(MUS!V7="","",MUS!V7) ->  | T185: =IF(MUS!W7="","",MUS!W7) ->  | U185: =IF(MUS!X7="","",MUS!X7) ->  | V185: =IF(MUS!Y7="","",MUS!Y7) ->  | W185: =IF(MUS!Z7="","",MUS!Z7) ->  | X185: =IF(MUS!AA7="","",MUS!AA7) ->  | Y185: =IF(MUS!AB7="","",MUS!AB7) ->  | Z185: =IF(MUS!AC7="","",MUS!AC7) ->  | AA185: =IF(MUS!AD7="","",MUS!AD7) ->  | AB185: =IF(MUS!AE7="","",MUS!AE7) ->  | AC185: =IF(MUS!AF7="","",MUS!AF7) ->  | AD185: =IF(MUS!AG7="","",MUS!AG7) ->  | AE185: =IF(MUS!AH7="","",MUS!AH7) ->  | AF185: =IF(MUS!AI7="","",MUS!AI7) ->  | AG185: =IF(MUS!AJ7="","",MUS!AJ7) ->  | AH185: =IF(MUS!AK7="","",MUS!AK7) ->  | AI185: =IF(MUS!AL7="","",MUS!AL7) ->  | AJ185: =IF(MUS!AM7="","",MUS!AM7) ->  | AK185: =IF(MUS!AN7="","",MUS!AN7) ->  | AL185: =IF(MUS!AO7="","",MUS!AO7) ->  | AM185: =IF(MUS!AP7="","",MUS!AP7) -> 
C186: Comp. Esp. 2 | D186: Criterio Evaluación 2.1 | E186: =IF(MUS!H8="","",MUS!H8) ->  | F186: =IF(MUS!I8="","",MUS!I8) ->  | G186: =IF(MUS!J8="","",MUS!J8) ->  | H186: =IF(MUS!K8="","",MUS!K8) ->  | I186: =IF(MUS!L8="","",MUS!L8) ->  | J186: =IF(MUS!M8="","",MUS!M8) ->  | K186: =IF(MUS!N8="","",MUS!N8) ->  | L186: =IF(MUS!O8="","",MUS!O8) ->  | M186: =IF(MUS!P8="","",MUS!P8) ->  | N186: =IF(MUS!Q8="","",MUS!Q8) ->  | O186: =IF(MUS!R8="","",MUS!R8) ->  | P186: =IF(MUS!S8="","",MUS!S8) ->  | Q186: =IF(MUS!T8="","",MUS!T8) ->  | R186: =IF(MUS!U8="","",MUS!U8) ->  | S186: =IF(MUS!V8="","",MUS!V8) ->  | T186: =IF(MUS!W8="","",MUS!W8) ->  | U186: =IF(MUS!X8="","",MUS!X8) ->  | V186: =IF(MUS!Y8="","",MUS!Y8) ->  | W186: =IF(MUS!Z8="","",MUS!Z8) ->  | X186: =IF(MUS!AA8="","",MUS!AA8) ->  | Y186: =IF(MUS!AB8="","",MUS!AB8) ->  | Z186: =IF(MUS!AC8="","",MUS!AC8) ->  | AA186: =IF(MUS!AD8="","",MUS!AD8) ->  | AB186: =IF(MUS!AE8="","",MUS!AE8) ->  | AC186: =IF(MUS!AF8="","",MUS!AF8) ->  | AD186: =IF(MUS!AG8="","",MUS!AG8) ->  | AE186: =IF(MUS!AH8="","",MUS!AH8) ->  | AF186: =IF(MUS!AI8="","",MUS!AI8) ->  | AG186: =IF(MUS!AJ8="","",MUS!AJ8) ->  | AH186: =IF(MUS!AK8="","",MUS!AK8) ->  | AI186: =IF(MUS!AL8="","",MUS!AL8) ->  | AJ186: =IF(MUS!AM8="","",MUS!AM8) ->  | AK186: =IF(MUS!AN8="","",MUS!AN8) ->  | AL186: =IF(MUS!AO8="","",MUS!AO8) ->  | AM186: =IF(MUS!AP8="","",MUS!AP8) -> 
